Workbook

Sheet Stacked area graphs (hidden)
A1: Hydrogen Production and Transport
A5: Kg to tonnes | B5: =1/1000 -> 0.001
B8: ='NZ Gas Inputs'!F55 -> 2020-01-01 | C8: ='NZ Gas Inputs'!G55 -> 2021-01-01 | D8: ='NZ Gas Inputs'!H55 -> 2022-01-01 | E8: ='NZ Gas Inputs'!I55 -> 2023-01-01 | F8: ='NZ Gas Inputs'!J55 -> 2024-01-01 | G8: ='NZ Gas Inputs'!K55 -> 2025-01-01 | H8: ='NZ Gas Inputs'!L55 -> 2026-01-01 | I8: ='NZ Gas Inputs'!M55 -> 2027-01-01 | J8: ='NZ Gas Inputs'!N55 -> 2028-01-01 | K8: ='NZ Gas Inputs'!O55 -> 2029-01-01 | L8: ='NZ Gas Inputs'!P55 -> 2030-01-01 | M8: ='NZ Gas Inputs'!Q55 -> 2031-01-01 | N8: ='NZ Gas Inputs'!R55 -> 2032-01-01 | O8: ='NZ Gas Inputs'!S55 -> 2033-01-01 | P8: ='NZ Gas Inputs'!T55 -> 2034-01-01 | Q8: ='NZ Gas Inputs'!U55 -> 2035-01-01 | R8: ='NZ Gas Inputs'!V55 -> 2036-01-01 | S8: ='NZ Gas Inputs'!W55 -> 2037-01-01 | T8: ='NZ Gas Inputs'!X55 -> 2038-01-01 | U8: ='NZ Gas Inputs'!Y55 -> 2039-01-01 | V8: ='NZ Gas Inputs'!Z55 -> 2040-01-01 | W8: ='NZ Gas Inputs'!AA55 -> 2041-01-01 | X8: ='NZ Gas Inputs'!AB55 -> 2042-01-01 | Y8: ='NZ Gas Inputs'!AC55 -> 2043-01-01 | Z8: ='NZ Gas Inputs'!AD55 -> 2044-01-01 | AA8: ='NZ Gas Inputs'!AE55 -> 2045-01-01 | AB8: ='NZ Gas Inputs'!AF55 -> 2046-01-01 | AC8: ='NZ Gas Inputs'!AG55 -> 2047-01-01 | AD8: ='NZ Gas Inputs'!AH55 -> 2048-01-01 | AE8: ='NZ Gas Inputs'!AI55 -> 2049-01-01 | AF8: ='NZ Gas Inputs'!AJ55 -> 2050-01-01
A9: Natural Gas Blending | B9: ='NZ Gas Inputs'!F69 -> 0 | C9: ='NZ Gas Inputs'!G69 -> 0 | D9: ='NZ Gas Inputs'!H69 -> 0 | E9: ='NZ Gas Inputs'!I69 -> 0 | F9: ='NZ Gas Inputs'!J69 -> 0 | G9: ='NZ Gas Inputs'!K69 -> 0 | H9: ='NZ Gas Inputs'!L69 -> 0 | I9: ='NZ Gas Inputs'!M69 -> 0 | J9: ='NZ Gas Inputs'!N69 -> 0 | K9: ='NZ Gas Inputs'!O69 -> 0 | L9: ='NZ Gas Inputs'!P69 -> 0 | M9: ='NZ Gas Inputs'!Q69 -> 0 | N9: ='NZ Gas Inputs'!R69 -> 0 | O9: ='NZ Gas Inputs'!S69 -> 0 | P9: ='NZ Gas Inputs'!T69 -> 0 | Q9: ='NZ Gas Inputs'!U69 -> 0 | R9: ='NZ Gas Inputs'!V69 -> 0 | S9: ='NZ Gas Inputs'!W69 -> 0 | T9: ='NZ Gas Inputs'!X69 -> 0 | U9: ='NZ Gas Inputs'!Y69 -> 0 | V9: ='NZ Gas Inputs'!Z69 -> 0 | W9: ='NZ Gas Inputs'!AA69 -> 0 | X9: ='NZ Gas Inputs'!AB69 -> 0 | Y9: ='NZ Gas Inputs'!AC69 -> 0 | Z9: ='NZ Gas Inputs'!AD69 -> 0 | AA9: ='NZ Gas Inputs'!AE69 -> 0 | AB9: ='NZ Gas Inputs'!AF69 -> 0 | AC9: ='NZ Gas Inputs'!AG69 -> 58436456.79 | AD9: ='NZ Gas Inputs'!AH69 -> 59434193.84 | AE9: ='NZ Gas Inputs'!AI69 -> 60471971.14 | AF9: ='NZ Gas Inputs'!AJ69 -> 61551585.22
A10: Heavy Vehicles | B10: ='HV Calculations'!E157 -> 0 | C10: ='HV Calculations'!F157 -> 0 | D10: ='HV Calculations'!G157 -> 0 | E10: ='HV Calculations'!H157 -> 0 | F10: ='HV Calculations'!I157 -> 0 | G10: ='HV Calculations'!J157 -> 0 | H10: ='HV Calculations'!K157 -> 0 | I10: ='HV Calculations'!L157 -> 0 | J10: ='HV Calculations'!M157 -> 0 | K10: ='HV Calculations'!N157 -> 0 | L10: ='HV Calculations'!O157 -> 0 | M10: ='HV Calculations'!P157 -> 0 | N10: ='HV Calculations'!Q157 -> 0 | O10: ='HV Calculations'!R157 -> 0 | P10: ='HV Calculations'!S157 -> 7129805.678 | Q10: ='HV Calculations'!T157 -> 16171299.55 | R10: ='HV Calculations'!U157 -> 25214161.5 | S10: ='HV Calculations'!V157 -> 34258394.74 | T10: ='HV Calculations'!W157 -> 43304002.46 | U10: ='HV Calculations'!X157 -> 52350987.89 | V10: ='HV Calculations'!Y157 -> 60304742 | W10: ='HV Calculations'!Z157 -> 68259880.25 | X10: ='HV Calculations'!AA157 -> 76216405.91 | Y10: ='HV Calculations'!AB157 -> 84174322.2 | Z10: ='HV Calculations'!AC157 -> 92133632.37 | AA10: ='HV Calculations'!AD157 -> 99327923.7 | AB10: ='HV Calculations'!AE157 -> 106523615.4 | AC10: ='HV Calculations'!AF157 -> 113720710.9 | AD10: ='HV Calculations'!AG157 -> 120919213.3 | AE10: ='HV Calculations'!AH157 -> 128119126 | AF10: ='HV Calculations'!AI157 -> 135320452.3
A12: =A9 -> Natural Gas Blending | B12: =B9*$B$5 -> 0 | C12: =C9*$B$5 -> 0 | D12: 0 | E12: 0 | F12: 0 | G12: 0 | H12: 0 | I12: =I9*$B$5 -> 0 | J12: 0 | K12: 0 | L12: 0 | M12: 0 | N12: 0 | O12: 0 | P12: 0 | Q12: 0 | R12: 0 | S12: 0 | T12: 0 | U12: 0 | V12: 0 | W12: 0 | X12: 0 | Y12: 0 | Z12: 0 | AA12: 0 | AB12: 0 | AC12: 58436.45679 | AD12: 59434.19384 | AE12: 60471.97114 | AF12: 61551.58522
A13: =A10 -> Heavy Vehicles | B13: =B10*$B$5 -> 0 | C13: 0 | D13: 0 | E13: 0 | F13: 0 | G13: 0 | H13: 0 | I13: 0 | J13: 0 | K13: 0 | L13: 0 | M13: 0 | N13: 0 | O13: 0 | P13: 7129.805678 | Q13: 16171.29955 | R13: 25214.1615 | S13: 34258.39474 | T13: 43304.00246 | U13: 52350.98789 | V13: 60304.742 | W13: 68259.88025 | X13: 76216.40591 | Y13: 84174.3222 | Z13: 92133.63237 | AA13: 99327.9237 | AB13: 106523.6154 | AC13: 113720.7109 | AD13: 120919.2133 | AE13: 128119.126 | AF13: 135320.4523
A14: CO2 Emissions Reduction Due to Use of Green H2 | B14: ='NZ Gas Inputs'!F74+'HV Calculations'!E161 -> 0 | C14: ='NZ Gas Inputs'!G74+'HV Calculations'!F161 -> 0 | D14: ='NZ Gas Inputs'!H74+'HV Calculations'!G161 -> 0 | E14: ='NZ Gas Inputs'!I74+'HV Calculations'!H161 -> 0 | F14: ='NZ Gas Inputs'!J74+'HV Calculations'!I161 -> 0 | G14: ='NZ Gas Inputs'!K74+'HV Calculations'!J161 -> 0 | H14: ='NZ Gas Inputs'!L74+'HV Calculations'!K161 -> 0 | I14: ='NZ Gas Inputs'!M74+'HV Calculations'!L161 -> 0 | J14: ='NZ Gas Inputs'!N74+'HV Calculations'!M161 -> 0 | K14: ='NZ Gas Inputs'!O74+'HV Calculations'!N161 -> 0 | L14: ='NZ Gas Inputs'!P74+'HV Calculations'!O161 -> 0 | M14: ='NZ Gas Inputs'!Q74+'HV Calculations'!P161 -> 0 | N14: ='NZ Gas Inputs'!R74+'HV Calculations'!Q161 -> 0 | O14: ='NZ Gas Inputs'!S74+'HV Calculations'!R161 -> 0 | P14: ='NZ Gas Inputs'!T74+'HV Calculations'!S161 -> 91760.59907 | Q14: ='NZ Gas Inputs'!U74+'HV Calculations'!T161 -> 208124.6252 | R14: ='NZ Gas Inputs'!V74+'HV Calculations'!U161 -> 324506.2585 | S14: ='NZ Gas Inputs'!W74+'HV Calculations'!V161 -> 440905.5403 | T14: ='NZ Gas Inputs'!X74+'HV Calculations'!W161 -> 557322.5117 | U14: ='NZ Gas Inputs'!Y74+'HV Calculations'!X161 -> 673757.2142 | V14: ='NZ Gas Inputs'!Z74+'HV Calculations'!Y161 -> 776122.0295 | W14: ='NZ Gas Inputs'!AA74+'HV Calculations'!Z161 -> 878504.6589 | X14: ='NZ Gas Inputs'!AB74+'HV Calculations'!AA161 -> 980905.144 | Y14: ='NZ Gas Inputs'!AC74+'HV Calculations'!AB161 -> 1083323.527 | Z14: ='NZ Gas Inputs'!AD74+'HV Calculations'!AC161 -> 1185759.849 | AA14: ='NZ Gas Inputs'!AE74+'HV Calculations'!AD161 -> 1278350.378 | AB14: ='NZ Gas Inputs'!AF74+'HV Calculations'!AE161 -> 1370958.931 | AC14: ='NZ Gas Inputs'!AG74+'HV Calculations'!AF161 -> 2278154.341 | AD14: ='NZ Gas Inputs'!AH74+'HV Calculations'!AG161 -> 2384706.916 | AE14: ='NZ Gas Inputs'!AI74+'HV Calculations'!AH161 -> 2491835.78 | AF14: ='NZ Gas Inputs'!AJ74+'HV Calculations'!AI161 -> 2599566.015
AF15: =AF12+AF13 -> 196872.0375
T20: (Base)
K21: Total Green Hydrogen Demand

Sheet H2 Production and Transport (hidden)
A1: Hydrogen Production and Transport
K14: Year
K15: 2035
K17: Output Currency
K18: USD

Sheet H2 for Pipeline Blending (hidden)
A1: Hydrogen Applications for Blending with Gas
Q9: Carbon Price
Q10: Yes
Q12: Scenario
Q13: Base
Q15: Subsidise H2
Q16: 0

Sheet Heavy Vehicle Demand (hidden)
A1: Heavy Vehicle Hydrogen Demand
N9: Carbon Price
N10: Yes
N11: Subsidise H2 Fleet CAPEX
N12: 0
N13: Subsidise Electric Fleet Capex
N14: 0

Sheet LCOGH Inputs (hidden)
A1: LCOGH Core Assumptions for Base Year 2020
A6: Custom Cases Assessed
A8: Area | B8: Currency | D8: Currency | E8: USD to Currency (Long Term) | F8: Currency Value to NZD Long Term | G8: Currency Value to USD Long Term | I8: Scenario
A9: New Zealand 1 | B9: NZD | D9: NZD | E9: 1.341281669 | F9: 1 | G9: =1/E9 -> 0.7455555556 | I9: Base
A10: New Zealand 2 | B10: NZD | D10: AUD | E10: 1.301518438 | F10: 1.07 | G10: 0.7683333333
A11: New Zealand 3 | B11: NZD | D11: CAD | E11: 1.225640397 | F11: 1.15 | G11: 0.8159 | H11: Capacity Factor NZ Wind | I11: =IF(I9="Low", 0.332,IF(I9="Base", 0.415, 0.498)) -> 0.415
A12: New Zealand 4 | B12: NZD | D12: USD | E12: 1 | F12: 1.34 | G12: 1
A13: New Zealand 5 | B13: NZD | D13: Spare 1 | E13: 1 | F13: 1 | G13: 1
A14: Australia 1 | B14: AUD | D14: Spare 2 | E14: 1 | F14: 1 | G14: 1
A15: Australia 2 | B15: AUD
A16: Canada | B16: CAD
A17: Lazard 1 | B17: USD
A18: International Exporter | B18: NZD
A21: GH2 Electrolyser Assumptions | C21: Source: Zen Energy, based on industry specific knowledge and first-hand experience; NEL
A23: Scale | B23: MW | C23: Fixed Average Annual O&M Costs | D23: Daily Production in kg | E23: Site Integration Costs | F23: Electrolyser CAPEX | G23: All-in CAPEX | H23: Litres of Water Required per kg | I23: KW required per hour | J23: Change in Electricity Needed per kg YoY | K23: Other Variable Cost Units | L23: Other Variable Cost Annual Unit Rate | M23: Capital Cost Change YoY | N23: Utilization
B24: [MW] | C24: [$] | D24: [kg] | E24: [$] | F24: [$] | G24: [$] | H24: [Litres/kg] | I24: [KWh/kg] | J24: % | K24: [Number] | L24: [$] | M24: [%] | N24: [%]
A25: Micro | B25: 0.015 | C25: 1125 | D25: 4 | E25: 56250 | F25: 138750 | G25: =(E25+F25) -> 195000 | H25: 18 | I25: 55 | J25: -0.012 | K25: 0 | L25: 70000 | M25: -0.034 | N25: 0.9
A26: Small | B26: 2.5 | C26: 56250 | D26: 1000 | E26: 562500 | F26: 2137500 | G26: =(E26+F26) -> 2700000 | H26: 18 | I26: 55 | J26: -0.012 | K26: 0 | L26: 70000 | M26: -0.034 | N26: 0.9
A27: Medium | B27: 10 | C27: 421875 | D27: 4010 | E27: 1687500 | F27: 7500000 | G27: =(E27+F27) -> 9187500 | H27: 18 | I27: 55 | J27: -0.012 | K27: 0 | L27: 70000 | M27: -0.034 | N27: 0.9
A28: Large | B28: 100 | C28: 2812500 | D28: 40150 | E28: 12000000 | F28: 60000000 | G28: =(E28+F28) -> 72000000 | H28: 18 | I28: 55 | J28: -0.012 | K28: 0 | L28: 70000 | M28: -0.034 | N28: 0.9
A29: Largest Efficient Scale | B29: 300 | C29: 3937500 | D29: 120440 | E29: 30000000 | F29: 168750000 | G29: =(E29+F29) -> 198750000 | H29: 18 | I29: 55 | J29: -0.012 | K29: 0 | L29: 70000 | M29: -0.034 | N29: 0.9
A32: Water Cost Assumptions
C34: 2020 Industrial Rate | D34: 2020 Commercial Rate Rate | G34: Constant YoY Escalation | H34: Or | I34: Price Path Local Currency/Litre - Note to Input in Cents
C35: [Local Currency/kL] | D35: [Local Currency/kL] | G35: [%] | I35: 2021 | J35: 2022 | K35: 2023 | L35: 2024 | M35: 2025 | N35: 2026 | O35: 2027 | P35: 2028 | Q35: 2029 | R35: 2030 | S35: 2031 | T35: 2032 | U35: 2033 | V35: 2034 | W35: 2035 | X35: 2036 | Y35: 2037 | Z35: 2038 | AA35: 2039 | AB35: 2040 | AC35: 2041 | AD35: 2042 | AE35: 2043 | AF35: 2044 | AG35: 2045 | AH35: 2046 | AI35: 2047 | AJ35: 2048 | AK35: 2049 | AL35: 2050
A36: =A9 -> New Zealand 1 | C36: 0.197 | D36: 1.61 | G36: 0.01 | I36: 0.0015 | J36: 0.0016 | K36: 0.0017 | L36: 0.0018 | M36: 0.0019 | N36: 0.002 | O36: 0.0021 | P36: 0.0022 | Q36: 0.0023 | R36: 0.0024 | S36: 0.0025 | T36: 0.0026 | U36: 0.0027 | V36: 0.0028 | W36: 0.0029 | X36: 0.003 | Y36: 0.0031 | Z36: 0.0032 | AA36: 0.0033 | AB36: 0.0034 | AC36: 0.0035 | AD36: 0.0036 | AE36: 0.0037 | AF36: 0.0038 | AG36: 0.0039 | AH36: 0.004 | AI36: 0.0041 | AJ36: 0.0042 | AK36: 0.0043 | AL36: 0.0044
A37: =A10 -> New Zealand 2 | C37: 0.197 | D37: 1.61 | G37: 0.01 | I37: 0.003 | J37: 0.0035 | K37: 0.004 | L37: 0.0045 | M37: 0.005 | N37: 0.0055 | O37: 0.006 | P37: 0.0065 | Q37: 0.007 | R37: 0.0075 | S37: 0.008 | T37: 0.0085 | U37: 0.009 | V37: 0.0095 | W37: 0.01 | X37: 0.0105 | Y37: 0.011 | Z37: 0.0115 | AA37: 0.012 | AB37: 0.0125 | AC37: 0.013 | AD37: 0.0135 | AE37: 0.014 | AF37: 0.0145 | AG37: 0.015 | AH37: 0.0155 | AI37: 0.016 | AJ37: 0.0165 | AK37: 0.017 | AL37: 0.0175
A38: =A11 -> New Zealand 3 | C38: 0.197 | D38: 1.61 | G38: 0.01 | I38: 0.0025 | J38: 0.003 | K38: 0.0035 | L38: 0.004 | M38: 0.0045 | N38: 0.005 | O38: 0.0055 | P38: 0.006 | Q38: 0.0065 | R38: 0.007 | S38: 0.0075 | T38: 0.008 | U38: 0.0085 | V38: 0.009 | W38: 0.0095 | X38: 0.01 | Y38: 0.0105 | Z38: 0.011 | AA38: 0.0115 | AB38: 0.012 | AC38: 0.0125 | AD38: 0.013 | AE38: 0.0135 | AF38: 0.014 | AG38: 0.0145 | AH38: 0.015 | AI38: 0.0155 | AJ38: 0.016 | AK38: 0.0165 | AL38: 0.017
A39: =A12 -> New Zealand 4 | C39: 0.197 | D39: 1.61 | G39: 0.01 | I39: 0.004 | J39: 0.0045 | K39: 0.005 | L39: 0.0055 | M39: 0.006 | N39: 0.0065 | O39: 0.007 | P39: 0.0075 | Q39: 0.008 | R39: 0.0085 | S39: 0.009 | T39: 0.0095 | U39: 0.01 | V39: 0.0105 | W39: 0.011 | X39: 0.0115 | Y39: 0.012 | Z39: 0.0125 | AA39: 0.013 | AB39: 0.0135 | AC39: 0.014 | AD39: 0.0145 | AE39: 0.015 | AF39: 0.0155 | AG39: 0.016 | AH39: 0.0165 | AI39: 0.017 | AJ39: 0.0175 | AK39: 0.018 | AL39: 0.0185
A40: =A13 -> New Zealand 5 | C40: 0.197 | D40: 1.61 | G40: 0.01 | I40: 0.007 | J40: 0.0075 | K40: 0.008 | L40: 0.0085 | M40: 0.009 | N40: 0.0095 | O40: 0.01 | P40: 0.0105 | Q40: 0.011 | R40: 0.0115 | S40: 0.012 | T40: 0.0125 | U40: 0.013 | V40: 0.0135 | W40: 0.014 | X40: 0.0145 | Y40: 0.015 | Z40: 0.0155 | AA40: 0.016 | AB40: 0.0165 | AC40: 0.017 | AD40: 0.0175 | AE40: 0.018 | AF40: 0.0185 | AG40: 0.019 | AH40: 0.0195 | AI40: 0.02 | AJ40: 0.0205 | AK40: 0.021 | AL40: 0.0215
A41: Australia 1 | C41: 2.392 | D41: 2.392 | G41: 0.01 | I41: 0.0045 | J41: 0.005 | K41: 0.0055 | L41: 0.006 | M41: 0.0065 | N41: 0.007 | O41: 0.0075 | P41: 0.008 | Q41: 0.0085 | R41: 0.009 | S41: 0.0095 | T41: 0.01 | U41: 0.0105 | V41: 0.011 | W41: 0.0115 | X41: 0.012 | Y41: 0.0125 | Z41: 0.013 | AA41: 0.0135 | AB41: 0.014 | AC41: 0.0145 | AD41: 0.015 | AE41: 0.0155 | AF41: 0.016 | AG41: 0.0165 | AH41: 0.017 | AI41: 0.0175 | AJ41: 0.018 | AK41: 0.0185 | AL41: 0.019
A42: Australia 2 | C42: 2.392 | D42: 2.392 | G42: 0.01 | I42: 0.007 | J42: 0.0075 | K42: 0.008 | L42: 0.0085 | M42: 0.009 | N42: 0.0095 | O42: 0.01 | P42: 0.0105 | Q42: 0.011 | R42: 0.0115 | S42: 0.012 | T42: 0.0125 | U42: 0.013 | V42: 0.0135 | W42: 0.014 | X42: 0.0145 | Y42: 0.015 | Z42: 0.0155 | AA42: 0.016 | AB42: 0.0165 | AC42: 0.017 | AD42: 0.0175 | AE42: 0.018 | AF42: 0.0185 | AG42: 0.019 | AH42: 0.0195 | AI42: 0.02 | AJ42: 0.0205 | AK42: 0.021 | AL42: 0.0215
A43: Canada | C43: 2 | D43: 2 | G43: 0.01 | I43: 0.003 | J43: 0.0035 | K43: 0.004 | L43: 0.0045 | M43: 0.005 | N43: 0.0055 | O43: 0.006 | P43: 0.0065 | Q43: 0.007 | R43: 0.0075 | S43: 0.008 | T43: 0.0085 | U43: 0.009 | V43: 0.0095 | W43: 0.01 | X43: 0.0105 | Y43: 0.011 | Z43: 0.0115 | AA43: 0.012 | AB43: 0.0125 | AC43: 0.013 | AD43: 0.0135 | AE43: 0.014 | AF43: 0.0145 | AG43: 0.015 | AH43: 0.0155 | AI43: 0.016 | AJ43: 0.0165 | AK43: 0.017 | AL43: 0.0175
A44: Lazard 1 | C44: 2 | D44: 2 | G44: 0.01 | I44: 0.007 | J44: 0.0075 | K44: 0.008 | L44: 0.0085 | M44: 0.009 | N44: 0.0095 | O44: 0.01 | P44: 0.0105 | Q44: 0.011 | R44: 0.0115 | S44: 0.012 | T44: 0.0125 | U44: 0.013 | V44: 0.0135 | W44: 0.014 | X44: 0.0145 | Y44: 0.015 | Z44: 0.0155 | AA44: 0.016 | AB44: 0.0165 | AC44: 0.017 | AD44: 0.0175 | AE44: 0.018 | AF44: 0.0185 | AG44: 0.019 | AH44: 0.0195 | AI44: 0.02 | AJ44: 0.0205 | AK44: 0.021 | AL44: 0.0215
A45: International Exporter | C45: =C40 -> 0.197 | D45: 2 | G45: 0.01 | I45: 0.007 | J45: 0.0075 | K45: 0.008 | L45: 0.0085 | M45: 0.009 | N45: 0.0095 | O45: 0.01 | P45: 0.0105 | Q45: 0.011 | R45: 0.0115 | S45: 0.012 | T45: 0.0125 | U45: 0.013 | V45: 0.0135 | W45: 0.014 | X45: 0.0145 | Y45: 0.015 | Z45: 0.0155 | AA45: 0.016 | AB45: 0.0165 | AC45: 0.017 | AD45: 0.0175 | AE45: 0.018 | AF45: 0.0185 | AG45: 0.019 | AH45: 0.0195 | AI45: 0.02 | AJ45: 0.0205 | AK45: 0.021 | AL45: 0.0215
A47: Renewable or Grid-Connected Energy Cost Assumptions
A48: New Zealand Grid Electricity LCOE Assumptions
C49: =A25 -> Micro | D49: =A26 -> Small | E49: =A27 -> Medium | F49: =A28 -> Large | G49: =A29 -> Largest Efficient Scale
A50: Tariffs by Electrolyser Size | B50: [NZD/KWh] | C50: 0.1783 | D50: 0.1375 | E50: 0.1375 | F50: 0.1079 | G50: 0.1079
G53: Other Area Grid Tariff Assumptions
A54: Renewable Tariff Assumptions | C54: Solar LCOE | D54: Wind LCOE | G54: 2020 Grid Rates | I54: Price Path - If you would like to use cost estimates year by year, enter in values here and choose the Price Path Option on the "Plant Assumptions Sheet". Otherwise, the constant escalation values (In Column C) will apply year on year to the generation mix selected from the Plant Assumptions Sheet
C55: [Local Currency/KWh] | D55: [Local Currency/KWh] | E55: ='Hydrogen Model Dashboard'!B5/1000 -> 0.061 | G55: [Local Currency/KWh]
A56: =A9 -> New Zealand 1 | C56: 0.1031104841 | D56: =$E$55 -> 0.061
A57: =A10 -> New Zealand 2 | C57: 0.1031104841 | D57: =$E$55 -> 0.061 | H57: Or
A58: =A11 -> New Zealand 3 | C58: 0.1031104841 | D58: =$E$55 -> 0.061
A59: =A12 -> New Zealand 4 | C59: 0.1031104841 | D59: =$E$55 -> 0.061
A60: =A40 -> New Zealand 5 | C60: 0.103 | D60: =$E$55 -> 0.061
A61: Australia 1 | C61: 0.04295010846 | D61: 0.09045553145 | G61: 0.1093275488
A62: Australia 2 | C62: 0.04295010846 | D62: 0.09045553145 | G62: 0.1093275488
A63: Canada | C63: 0.08 | D63: 0.06 | G63: 0.065
A64: Lazard 1 | C64: 0.032 | D64: 0.028 | G64: 0.09
A65: International Exporter | C65: ='Hydrogen Model Dashboard'!B16/1000 -> 0.061 | D65: ='Hydrogen Model Dashboard'!B16/1000 -> 0.061 | G65: 0.09
A67: Annual Change in Power Costs - Constant | C67: Constant Tariff YoY Escalation | I67: Price Path Local Currency/KWh
C68: [%] | D68: ='Hydrogen Model Dashboard'!B8 -> -0.0025 | I68: 2021 | J68: 2022 | K68: 2023 | L68: 2024 | M68: 2025 | N68: 2026 | O68: 2027 | P68: 2028 | Q68: 2029 | R68: 2030 | S68: 2031 | T68: 2032 | U68: 2033 | V68: 2034 | W68: 2035 | X68: 2036 | Y68: 2037 | Z68: 2038 | AA68: 2039 | AB68: 2040 | AC68: 2041 | AD68: 2042 | AE68: 2043 | AF68: 2044 | AG68: 2045 | AH68: 2046 | AI68: 2047 | AJ68: 2048 | AK68: 2049 | AL68: 2050
A69: =A56 -> New Zealand 1 | C69: =$D$68 -> -0.0025 | H69: =A69 -> New Zealand 1 | I69: 0.08 | J69: 0.0796 | K69: 0.079202 | L69: 0.07880599 | M69: 0.07841196005 | N69: 0.07801990025 | O69: 0.07762980075 | P69: 0.07724165174 | Q69: 0.07685544349 | R69: 0.07647116627 | S69: 0.07608881044 | T69: 0.07570836639 | U69: 0.07532982455 | V69: 0.07495317543 | W69: 0.07457840955 | X69: 0.07420551751 | Y69: 0.07383448992 | Z69: 0.07346531747 | AA69: 0.07309799088 | AB69: 0.07273250093 | AC69: 0.07236883842 | AD69: 0.07200699423 | AE69: 0.07164695926 | AF69: 0.07128872446 | AG69: 0.07093228084 | AH69: 0.07057761944 | AI69: 0.07022473134 | AJ69: 0.06987360768 | AK69: 0.06952423964 | AL69: 0.06917661845
A70: =A57 -> New Zealand 2 | C70: =$D$68 -> -0.0025 | H70: =A70 -> New Zealand 2 | I70: 0.07 | J70: 0.06965 | K70: 0.06930175 | L70: 0.06895524125 | M70: 0.06861046504 | N70: 0.06826741272 | O70: 0.06792607565 | P70: 0.06758644528 | Q70: 0.06724851305 | R70: 0.06691227049 | S70: 0.06657770913 | T70: 0.06624482059 | U70: 0.06591359648 | V70: 0.0655840285 | W70: 0.06525610836 | X70: 0.06492982782 | Y70: 0.06460517868 | Z70: 0.06428215278 | AA70: 0.06396074202 | AB70: 0.06364093831 | AC70: 0.06332273362 | AD70: 0.06300611995 | AE70: 0.06269108935 | AF70: 0.0623776339 | AG70: 0.06206574574 | AH70: 0.06175541701 | AI70: 0.06144663992 | AJ70: 0.06113940672 | AK70: 0.06083370969 | AL70: 0.06052954114
A71: =A58 -> New Zealand 3 | C71: =$D$68 -> -0.0025 | H71: =A71 -> New Zealand 3 | I71: 0.07 | J71: 0.06965 | K71: 0.06930175 | L71: 0.06895524125 | M71: 0.06861046504 | N71: 0.06826741272 | O71: 0.06792607565 | P71: 0.06758644528 | Q71: 0.06724851305 | R71: 0.06691227049 | S71: 0.06657770913 | T71: 0.06624482059 | U71: 0.06591359648 | V71: 0.0655840285 | W71: 0.06525610836 | X71: 0.06492982782 | Y71: 0.06460517868 | Z71: 0.06428215278 | AA71: 0.06396074202 | AB71: 0.06364093831 | AC71: 0.06332273362 | AD71: 0.06300611995 | AE71: 0.06269108935 | AF71: 0.0623776339 | AG71: 0.06206574574 | AH71: 0.06175541701 | AI71: 0.06144663992 | AJ71: 0.06113940672 | AK71: 0.06083370969 | AL71: 0.06052954114
A72: =A59 -> New Zealand 4 | C72: =$D$68 -> -0.0025 | H72: =A72 -> New Zealand 4 | I72: 0.085 | J72: 0.084575 | K72: 0.084152125 | L72: 0.08373136438 | M72: 0.08331270755 | N72: 0.08289614402 | O72: 0.0824816633 | P72: 0.08206925498 | Q72: 0.0816589087 | R72: 0.08125061416 | S72: 0.08084436109 | T72: 0.08044013928 | U72: 0.08003793859 | V72: 0.07963774889 | W72: 0.07923956015 | X72: 0.07884336235 | Y72: 0.07844914554 | Z72: 0.07805689981 | AA72: 0.07766661531 | AB72: 0.07727828223 | AC72: 0.07689189082 | AD72: 0.07650743137 | AE72: 0.07612489421 | AF72: 0.07574426974 | AG72: 0.07536554839 | AH72: 0.07498872065 | AI72: 0.07461377705 | AJ72: 0.07424070816 | AK72: 0.07386950462 | AL72: 0.0735001571
A73: =A13 -> New Zealand 5 | C73: =$D$68 -> -0.0025 | H73: =A73 -> New Zealand 5 | I73: 0.086 | J73: 0.08557 | K73: 0.08514215 | L73: 0.08471643925 | M73: 0.08429285705 | N73: 0.08387139277 | O73: 0.0834520358 | P73: 0.08303477563 | Q73: 0.08261960175 | R73: 0.08220650374 | S73: 0.08179547122 | T73: 0.08138649386 | U73: 0.08097956139 | V73: 0.08057466359 | W73: 0.08017179027 | X73: 0.07977093132 | Y73: 0.07937207666 | Z73: 0.07897521628 | AA73: 0.0785803402 | AB73: 0.0781874385 | AC73: 0.0777965013 | AD73: 0.0774075188 | AE73: 0.0770204812 | AF73: 0.0766353788 | AG73: 0.0762522019 | AH73: 0.07587094089 | AI73: 0.07549158619 | AJ73: 0.07511412826 | AK73: 0.07473855762 | AL73: 0.07436486483
A74: Australia 1 | C74: -0.0025 | H74: Australia 1 | I74: 0.07 | J74: 0.06965 | K74: 0.06930175 | L74: 0.06895524125 | M74: 0.06861046504 | N74: 0.06826741272 | O74: 0.06792607565 | P74: 0.06758644528 | Q74: 0.06724851305 | R74: 0.06691227049 | S74: 0.06657770913 | T74: 0.06624482059 | U74: 0.06591359648 | V74: 0.0655840285 | W74: 0.06525610836 | X74: 0.06492982782 | Y74: 0.06460517868 | Z74: 0.06428215278 | AA74: 0.06396074202 | AB74: 0.06364093831 | AC74: 0.06332273362 | AD74: 0.06300611995 | AE74: 0.06269108935 | AF74: 0.0623776339 | AG74: 0.06206574574 | AH74: 0.06175541701 | AI74: 0.06144663992 | AJ74: 0.06113940672 | AK74: 0.06083370969 | AL74: 0.06052954114
A75: Australia 2 | C75: -0.0025 | H75: Australia 2 | I75: 0.09 | J75: 0.08955 | K75: 0.08910225 | L75: 0.08865673875 | M75: 0.08821345506 | N75: 0.08777238778 | O75: 0.08733352584 | P75: 0.08689685821 | Q75: 0.08646237392 | R75: 0.08603006205 | S75: 0.08559991174 | T75: 0.08517191218 | U75: 0.08474605262 | V75: 0.08432232236 | W75: 0.08390071075 | X75: 0.08348120719 | Y75: 0.08306380116 | Z75: 0.08264848215 | AA75: 0.08223523974 | AB75: 0.08182406354 | AC75: 0.08141494322 | AD75: 0.08100786851 | AE75: 0.08060282917 | AF75: 0.08019981502 | AG75: 0.07979881595 | AH75: 0.07939982187 | AI75: 0.07900282276 | AJ75: 0.07860780864 | AK75: 0.0782147696 | AL75: 0.07782369575
A76: Canada | C76: -0.0025 | H76: Canada | I76: 0.07 | J76: 0.06965 | K76: 0.06930175 | L76: 0.06895524125 | M76: 0.06861046504 | N76: 0.06826741272 | O76: 0.06792607565 | P76: 0.06758644528 | Q76: 0.06724851305 | R76: 0.06691227049 | S76: 0.06657770913 | T76: 0.06624482059 | U76: 0.06591359648 | V76: 0.0655840285 | W76: 0.06525610836 | X76: 0.06492982782 | Y76: 0.06460517868 | Z76: 0.06428215278 | AA76: 0.06396074202 | AB76: 0.06364093831 | AC76: 0.06332273362 | AD76: 0.06300611995 | AE76: 0.06269108935 | AF76: 0.0623776339 | AG76: 0.06206574574 | AH76: 0.06175541701 | AI76: 0.06144663992 | AJ76: 0.06113940672 | AK76: 0.06083370969 | AL76: 0.06052954114
A77: Lazard 1 | C77: -0.0025 | H77: Lazard 1 | I77: 0.085 | J77: 0.084575 | K77: 0.084152125 | L77: 0.08373136438 | M77: 0.08331270755 | N77: 0.08289614402 | O77: 0.0824816633 | P77: 0.08206925498 | Q77: 0.0816589087 | R77: 0.08125061416 | S77: 0.08084436109 | T77: 0.08044013928 | U77: 0.08003793859 | V77: 0.07963774889 | W77: 0.07923956015 | X77: 0.07884336235 | Y77: 0.07844914554 | Z77: 0.07805689981 | AA77: 0.07766661531 | AB77: 0.07727828223 | AC77: 0.07689189082 | AD77: 0.07650743137 | AE77: 0.07612489421 | AF77: 0.07574426974 | AG77: 0.07536554839 | AH77: 0.07498872065 | AI77: 0.07461377705 | AJ77: 0.07424070816 | AK77: 0.07386950462 | AL77: 0.0735001571
A78: International Exporter | C78: ='Hydrogen Model Dashboard'!B20 -> -0.0025 | H78: International Exporter | I78: 0.076 | J78: 0.07562 | K78: 0.0752419 | L78: 0.0748656905 | M78: 0.07449136205 | N78: 0.07411890524 | O78: 0.07374831071 | P78: 0.07337956916 | Q78: 0.07301267131 | R78: 0.07264760796 | S78: 0.07228436992 | T78: 0.07192294807 | U78: 0.07156333333 | V78: 0.07120551666 | W78: 0.07084948908 | X78: 0.07049524163 | Y78: 0.07014276542 | Z78: 0.06979205159 | AA78: 0.06944309134 | AB78: 0.06909587588 | AC78: 0.0687503965 | AD78: 0.06840664452 | AE78: 0.0680646113 | AF78: 0.06772428824 | AG78: 0.0673856668 | AH78: 0.06704873846 | AI78: 0.06671349477 | AJ78: 0.0663799273 | AK78: 0.06604802766 | AL78: 0.06571778752
A80: Compressed Transport Cost Assumptions | D80: Source: Zen Energy, based on industry specific knowledge and first-hand experience; NEL
A82: Compressed Delivery
A84: Terminal | E84: Trailers | I84: Delivery
A85: Compressor Capex | B85: [$] | C85: =500000/E11 -> 407950 | E85: Capacity | F85: [kg H2] | G85: 280 | I85: Diesel Consumption | J85: [Litres/km] | K85: 0.34
A86: Other Capex | B86: [$] | C86: =500000/E11 -> 407950 | E86: Utilization | F86: [%] | G86: 0.9 | I86: Driver Cost | J86: [$/Hour] | K86: =30/E11 -> 24.477
A87: OPEX | B87: [%] | C87: 0.05 | E87: Trailer Cost | F87: [$] | G87: =260000/E11 -> 212134 | I87: Daily Shifts | J87: [Number] | K87: 3
A88: Power usage KWh/kg | B88: [KWh/kg] | C88: 4 | E88: Connect/Disconnect Time | F88: [Hours] | G88: 1 | I88: Speed | J88: [km/hour] | K88: 80
A89: Trailer fill time | B89: [Hours] | C89: 4 | E89: Diesel Cost/Litre | F89: [$/Litre] | G89: =1.22*G9 -> 0.9095777778 | I89: Capex per Truck | J89: [$] | K89: =150000/E11 -> 122385
E90: Diesel Price Change YoY | F90: % | G90: 0.02 | I90: Truck Fixed Opex per km | J90: [$/km] | K90: =0.2/E11 -> 0.16318
A92: Liquified Transport Cost Assumptions (Consistent Delivery Assumptions) | E92: Source: Zen Energy, based on industry specific knowledge and first-hand experience; NEL
A94: Liquified delivery
A96: Scale | B96: Liquifier CAPEX $ | C96: Capacity kg H2 | E96: Trailers | I96: Other Terminal Costs
A97: =A28 -> Large | B97: =91900000/E11 -> 74981210 | C97: 39000 | E97: Trailer fill time | F97: [Hours] | G97: 4 | I97: Terminal Power Usage | J97: [KWh/kg] | K97: 1
A98: =A29 -> Largest Efficient Scale | B98: =275700000/E11 -> 224943630 | C98: 117000 | E98: Trailer Gross Capacity | F98: [kg H2] | G98: 4600 | I98: Liquifier Power usage | J98: [KWh/kg] | K98: 10
A99: Change YoY for CAPEX Components (%) | B99: -0.01 | E99: Trailer Utilization | F99: [%] | G99: 0.9 | I99: Liquifier Opex | J99: [% of CAPEX] | K99: 0.05
E100: Trailer Storage Cost | F100: [$] | G100: =800000/E11 -> 652720
A104: Export Cost Assumptions | E104: Source: Zen Energy, based on industry specific knowledge and first-hand experience; NEL
A106: Constants | E106: Ship Assumptions | I106: Ports | J106: Nautical Miles to Auckland | K106: Nautical Miles to Lyttleton | L106: Nautical Miles to Tokyo | M106: Nautical Miles to Daipori Korea | N106: Distance from Production Site
A107: Liquid H2 Density | B107: [kg/m3] | C107: 70.8 | G107: 16 | I107: Adelaide | J107: 2035 | K107: 1891 | L107: 5771 | M107: 6466 | N107: 0 | O107: =IF('H2 Production and Transport'!$L$89="yes",'LCOGH Inputs'!N107,0) -> 0
A108: H2 Energy Density | B108: [MJ/kg] | C108: 120 | G108: 315 | I108: Gladstone | J108: 1515 | K108: 1768 | L108: 4057 | M108: 4753 | N108: 0 | O108: =IF('H2 Production and Transport'!$L$89="yes",'LCOGH Inputs'!N108,0) -> 0
G109: 56 | I109: Ras Laffan (Qatar) | J109: 8815 | K109: 8585 | L109: 7888 | M109: 7527 | N109: 0 | O109: =IF('H2 Production and Transport'!$L$89="yes",'LCOGH Inputs'!N109,0) -> 0
A110: Shipping Cost Details | G110: 28 | I110: Singapore | J110: 5060 | K110: 5143 | L110: 3772 | M110: 3411 | N110: 0 | O110: =IF('H2 Production and Transport'!$L$89="yes",'LCOGH Inputs'!N110,0) -> 0
A111: Charter Fee | B111: [$/day] | C111: 70000 | G111: 11 | I111: Kitimat (British Columbia) | J111: 6206 | K111: 6607 | L111: 4687 | M111: 4440 | N111: 0 | O111: =IF('H2 Production and Transport'!$L$89="yes",'LCOGH Inputs'!N111,0) -> 0
A112: Broker / Ship Agent Fee | B112: [% of Charter Fee] | C112: 0.02 | G112: 40000 | I112: Auckland | L112: 5794 | M112: 6472 | N112: 0 | O112: =IF('H2 Production and Transport'!$L$89="yes",'LCOGH Inputs'!N112,0) -> 0
A113: Insurance Cost | B113: [$/day] | C113: 2600 | G113: 4 | I113: Lyttleton | L113: 6278 | M113: 6956 | N113: 0 | O113: =IF('H2 Production and Transport'!$L$89="yes",'LCOGH Inputs'!N113,0) -> 0
A114: Port Fee | B114: [$/day at port] | C114: 100000 | G114: 0.002 | I114: Shanghai | J114: 5149 | K114: 6736 | L114: 1210 | M114: 738 | N114: 0 | O114: =IF('H2 Production and Transport'!$L$89="yes",'LCOGH Inputs'!N114,0) -> 0
A115: Fuel Consumption | B115: [tonnes-HFO/day] | C115: 72 | G115: 0.04
A116: Fuel Cost | B116: [$/tonne-HFO] | C116: 349 | G116: 3
A117: Fuel Cost Change YoY | B117: [%] | C117: -0.01
A118: Hydrogen Opportunity Cost | B118: [$/kg-H2] | C118: =IF('H2 Production and Transport'!K18="USD",INDEX('LCOGH Inputs'!B130:AF130,MATCH('H2 Production and Transport'!K15,'LCOGH Inputs'!B129:AF129,0)),INDEX('LCOGH Inputs'!B131:AF131,MATCH('H2 Production and Transport'!K15,'LCOGH Inputs'!B129:AF129,0))) -> 2.55
A122: Other Assumptions
A124: Parameter | B124: Value | C124: Unit
A125: Natural Gas Volumetric Energy Density | B125: 38.85 | C125: MJ-NG/m3-NG
A126: Hydrogen Volumetric Energy Density | B126: 10.8 | C126: MJ-NG/m3-H2
A128: Global Benchmark Production Cost (IRENA)
B129: 2020 | C129: =B129+1 -> 2021 | D129: =C129+1 -> 2022 | E129: 2023 | F129: 2024 | G129: 2025 | H129: 2026 | I129: 2027 | J129: 2028 | K129: 2029 | L129: 2030 | M129: 2031 | N129: 2032 | O129: 2033 | P129: 2034 | Q129: 2035 | R129: 2036 | S129: 2037 | T129: 2038 | U129: 2039 | V129: 2040 | W129: 2041 | X129: 2042 | Y129: 2043 | Z129: 2044 | AA129: 2045 | AB129: 2046 | AC129: 2047 | AD129: 2048 | AE129: 2049 | AF129: 2050
A130: [$US/kg H2] | B130: 4.2 | C130: 4.15 | D130: 4 | E130: 3.8 | F130: 3.75 | G130: 3.45 | H130: 3.3 | I130: 3.25 | J130: 3.15 | K130: 3 | L130: 2.95 | M130: 2.85 | N130: 2.75 | O130: 2.65 | P130: 2.6 | Q130: 2.55 | R130: 2.45 | S130: 2.35 | T130: 2.25 | U130: 2.15 | V130: 2.05 | W130: 2.03 | X130: 2 | Y130: 1.97 | Z130: 1.95 | AA130: 1.9 | AB130: =AA130-0.2 -> 1.7 | AC130: 1.6 | AD130: 1.55 | AE130: 1.53 | AF130: 1.5
A131: [NZD/kg H2] | B131: =B130*$E$9 -> 5.63338301 | C131: =C130*$E$9 -> 5.566318927 | D131: 5.365126677 | E131: 5.096870343 | F131: 5.029806259 | G131: 4.627421759 | H131: 4.426229508 | I131: 4.359165425 | J131: 4.225037258 | K131: 4.023845007 | L131: 3.956780924 | M131: 3.822652757 | N131: 3.68852459 | O131: 3.554396423 | P131: 3.48733234 | Q131: 3.420268256 | R131: 3.286140089 | S131: 3.152011923 | T131: 3.017883756 | U131: 2.883755589 | V131: 2.749627422 | W131: 2.722801788 | X131: 2.682563338 | Y131: 2.642324888 | Z131: 2.615499255 | AA131: 2.548435171 | AB131: 2.280178838 | AC131: 2.146050671 | AD131: 2.078986587 | AE131: 2.052160954 | AF131: 2.011922504
A135: LHV-H2 (MJ/kg) | B135: 120

Sheet Instructions to Users

Sheet Hydrogen Model Dashboard
A1: Hydrogen Supply and Demand Dashboard
A2: Control Panel
A3: NZ Hydrogen Production Assumptions and Variables | B3: Current Setting
A5: Electricity Cost - NZ 2020 Average | B5: 61 | C5: NZD/Mwh
A8: Electricity Price Change - NZ | B8: =D9/10000-0.01 -> -0.0025
D9: 75
A11: Electrolyser Utilisation Factor - NZ | B11: =D12/1000 -> 0.415
D12: 415
A14: International Exporter Hydrogen Production Assumptions and Variables
A16: Electricity Cost - International exporter 2020 Average | B16: 61 | C16: NZD/Mwh
A20: Electricity Price Change - International Exporter | B20: =D21/10000-0.01 -> -0.0025
D21: 75
A23: Electrolyser Utilisation Factor - International Exporter | B23: =D23/1000 -> 0.415 | D23: 415
A26: Heavy Vehicle Demand Assumptions and Variables
A27: Truck and Bus Capital Cost Change Per Annum
A28: Hydrogen Fuel Cell | B28: =D28/1000-0.1 -> -0.05 | D28: 50
D30: 75
A31: Battery Electric | B31: =D30/1000-0.1 -> -0.025
D32: 130
A34: Diesel Price Change | B34: =D32/1000-0.1 -> 0.03 | C34: Per Annum
D37: 130
A38: Gas Pipeline Blending Assumptions and Variables
A40: Natural Gas Price Change | B40: =D37/1000-0.1 -> 0.03 | C40: Per Annum
D43: 145
A44: Green Hydrogen Price Premium to Natural Gas Price | B44: 0 | C44: NZD per Mwh
D46: 15
A48: Carbon Price Change (Also Affects Heavy Vehicles) | B48: =D43/1000-0.1 -> 0.045 | C48: Per Annum
A52: Hydrogen that can be Blended into Natural Gas Network | B52: =D46/100 -> 0.15 | G52: *Adds the additional distribution cost of importing to a port city, compared
G53: to domestic distribution transporting compressed hydrogen 100km by truck
Q56: International Trade
F58: 2020 | G58: =IF('LCOGH2 Calc'!C363=MIN('LCOGH2 Calc'!C363:C365),1,0)+IF('LCOGH2 Calc'!C368=MIN('LCOGH2 Calc'!C368:C370),1,0) -> 1 | H58: =IF('LCOGH2 Calc'!D363=MIN('LCOGH2 Calc'!D363:D365),1,0)+IF('LCOGH2 Calc'!D368=MIN('LCOGH2 Calc'!D368:D370),1,0) -> 1 | I58: =IF('LCOGH2 Calc'!E363=MIN('LCOGH2 Calc'!E363:E365),1,0)+IF('LCOGH2 Calc'!E368=MIN('LCOGH2 Calc'!E368:E370),1,0) -> 1 | J58: =IF('LCOGH2 Calc'!F363=MIN('LCOGH2 Calc'!F363:F365),1,0)+IF('LCOGH2 Calc'!F368=MIN('LCOGH2 Calc'!F368:F370),1,0) -> 1 | K58: =IF('LCOGH2 Calc'!G363=MIN('LCOGH2 Calc'!G363:G365),1,0)+IF('LCOGH2 Calc'!G368=MIN('LCOGH2 Calc'!G368:G370),1,0) -> 1 | L58: =IF('LCOGH2 Calc'!H363=MIN('LCOGH2 Calc'!H363:H365),1,0)+IF('LCOGH2 Calc'!H368=MIN('LCOGH2 Calc'!H368:H370),1,0) -> 1 | M58: =IF('LCOGH2 Calc'!I363=MIN('LCOGH2 Calc'!I363:I365),1,0)+IF('LCOGH2 Calc'!I368=MIN('LCOGH2 Calc'!I368:I370),1,0) -> 1 | N58: =IF('LCOGH2 Calc'!J363=MIN('LCOGH2 Calc'!J363:J365),1,0)+IF('LCOGH2 Calc'!J368=MIN('LCOGH2 Calc'!J368:J370),1,0) -> 1 | O58: =IF('LCOGH2 Calc'!K363=MIN('LCOGH2 Calc'!K363:K365),1,0)+IF('LCOGH2 Calc'!K368=MIN('LCOGH2 Calc'!K368:K370),1,0) -> 1 | P58: =IF('LCOGH2 Calc'!L363=MIN('LCOGH2 Calc'!L363:L365),1,0)+IF('LCOGH2 Calc'!L368=MIN('LCOGH2 Calc'!L368:L370),1,0) -> 1 | Q58: =IF('LCOGH2 Calc'!M363=MIN('LCOGH2 Calc'!M363:M365),1,0)+IF('LCOGH2 Calc'!M368=MIN('LCOGH2 Calc'!M368:M370),1,0) -> 1 | R58: =IF('LCOGH2 Calc'!N363=MIN('LCOGH2 Calc'!N363:N365),1,0)+IF('LCOGH2 Calc'!N368=MIN('LCOGH2 Calc'!N368:N370),1,0) -> 1 | S58: =IF('LCOGH2 Calc'!O363=MIN('LCOGH2 Calc'!O363:O365),1,0)+IF('LCOGH2 Calc'!O368=MIN('LCOGH2 Calc'!O368:O370),1,0) -> 1 | T58: =IF('LCOGH2 Calc'!P363=MIN('LCOGH2 Calc'!P363:P365),1,0)+IF('LCOGH2 Calc'!P368=MIN('LCOGH2 Calc'!P368:P370),1,0) -> 1 | U58: =IF('LCOGH2 Calc'!Q363=MIN('LCOGH2 Calc'!Q363:Q365),1,0)+IF('LCOGH2 Calc'!Q368=MIN('LCOGH2 Calc'!Q368:Q370),1,0) -> 1 | V58: =IF('LCOGH2 Calc'!R363=MIN('LCOGH2 Calc'!R363:R365),1,0)+IF('LCOGH2 Calc'!R368=MIN('LCOGH2 Calc'!R368:R370),1,0) -> 1 | W58: =IF('LCOGH2 Calc'!S363=MIN('LCOGH2 Calc'!S363:S365),1,0)+IF('LCOGH2 Calc'!S368=MIN('LCOGH2 Calc'!S368:S370),1,0) -> 1 | X58: =IF('LCOGH2 Calc'!T363=MIN('LCOGH2 Calc'!T363:T365),1,0)+IF('LCOGH2 Calc'!T368=MIN('LCOGH2 Calc'!T368:T370),1,0) -> 1 | Y58: =IF('LCOGH2 Calc'!U363=MIN('LCOGH2 Calc'!U363:U365),1,0)+IF('LCOGH2 Calc'!U368=MIN('LCOGH2 Calc'!U368:U370),1,0) -> 1 | Z58: =IF('LCOGH2 Calc'!V363=MIN('LCOGH2 Calc'!V363:V365),1,0)+IF('LCOGH2 Calc'!V368=MIN('LCOGH2 Calc'!V368:V370),1,0) -> 1 | AA58: =IF('LCOGH2 Calc'!W363=MIN('LCOGH2 Calc'!W363:W365),1,0)+IF('LCOGH2 Calc'!W368=MIN('LCOGH2 Calc'!W368:W370),1,0) -> 1 | AB58: =IF('LCOGH2 Calc'!X363=MIN('LCOGH2 Calc'!X363:X365),1,0)+IF('LCOGH2 Calc'!X368=MIN('LCOGH2 Calc'!X368:X370),1,0) -> 1 | AC58: =IF('LCOGH2 Calc'!Y363=MIN('LCOGH2 Calc'!Y363:Y365),1,0)+IF('LCOGH2 Calc'!Y368=MIN('LCOGH2 Calc'!Y368:Y370),1,0) -> 1 | AD58: =IF('LCOGH2 Calc'!Z363=MIN('LCOGH2 Calc'!Z363:Z365),1,0)+IF('LCOGH2 Calc'!Z368=MIN('LCOGH2 Calc'!Z368:Z370),1,0) -> 1 | AE58: =IF('LCOGH2 Calc'!AA363=MIN('LCOGH2 Calc'!AA363:AA365),1,0)+IF('LCOGH2 Calc'!AA368=MIN('LCOGH2 Calc'!AA368:AA370),1,0) -> 1 | AF58: =IF('LCOGH2 Calc'!AB363=MIN('LCOGH2 Calc'!AB363:AB365),1,0)+IF('LCOGH2 Calc'!AB368=MIN('LCOGH2 Calc'!AB368:AB370),1,0) -> 1 | AG58: =IF('LCOGH2 Calc'!AC363=MIN('LCOGH2 Calc'!AC363:AC365),1,0)+IF('LCOGH2 Calc'!AC368=MIN('LCOGH2 Calc'!AC368:AC370),1,0) -> 1 | AH58: =IF('LCOGH2 Calc'!AD363=MIN('LCOGH2 Calc'!AD363:AD365),1,0)+IF('LCOGH2 Calc'!AD368=MIN('LCOGH2 Calc'!AD368:AD370),1,0) -> 1 | AI58: =IF('LCOGH2 Calc'!AE363=MIN('LCOGH2 Calc'!AE363:AE365),1,0)+IF('LCOGH2 Calc'!AE368=MIN('LCOGH2 Calc'!AE368:AE370),1,0) -> 1 | AJ58: =IF('LCOGH2 Calc'!AF363=MIN('LCOGH2 Calc'!AF363:AF365),1,0)+IF('LCOGH2 Calc'!AF368=MIN('LCOGH2 Calc'!AF368:AF370),1,0) -> 1 | AK58: =IF('LCOGH2 Calc'!AG363=MIN('LCOGH2 Calc'!AG363:AG365),1,0)+IF('LCOGH2 Calc'!AG368=MIN('LCOGH2 Calc'!AG368:AG370),1,0) -> 1 | AL58: 2050
K61: New Zealand Likely to Import Green Hydrogen
I63: 1 | K63: New Zealand Likely to Produce Hydrogen for Domestic Use Only
I65: 2 | K65: New Zealand Likely to Export Green Hydrogen

Sheet HV Quantity Inputs (hidden)
A1: Heavy Vehicle Fleet Inputs
A4: Item | B4: Unit | C4: Notes | D4: 2000-01-01 | E4: =EOMONTH(D4,11)+1 -> 2001-01-01 | F4: 2002-01-01 | G4: 2003-01-01 | H4: 2004-01-01 | I4: 2005-01-01 | J4: 2006-01-01 | K4: 2007-01-01 | L4: 2008-01-01 | M4: 2009-01-01 | N4: 2010-01-01 | O4: 2011-01-01 | P4: 2012-01-01 | Q4: 2013-01-01 | R4: 2014-01-01 | S4: 2015-01-01 | T4: 2016-01-01 | U4: 2017-01-01 | V4: 2018-01-01 | W4: 2019-01-01 | X4: 2020-01-01 | Y4: 2021-01-01 | Z4: 2022-01-01 | AA4: 2023-01-01 | AB4: 2024-01-01 | AC4: 2025-01-01 | AD4: 2026-01-01 | AE4: 2027-01-01 | AF4: 2028-01-01 | AG4: 2029-01-01 | AH4: 2030-01-01
A6: Fleet Composition
A8: Trucks (Used) | B8: Number | C8: Fig 2.1 2018 NZ Vehicle Fleet | D8: 24593 | E8: 26790 | F8: 30004 | G8: 34101 | H8: 39307 | I8: 43563 | J8: 47165 | K8: 50480 | L8: 51642 | M8: 51239 | N8: 50557 | O8: 49425 | P8: 48672 | Q8: 48560 | R8: 48868 | S8: 49320 | T8: 49743 | U8: 50593 | V8: 51135
A9: Trucks (New) | B9: Number | C9: Fig 2.1 2018 NZ Vehicle Fleet | D9: 70872 | E9: 70880 | F9: 71441 | G9: 72482 | H9: 74130 | I9: 75901 | J9: 76775 | K9: 77869 | L9: 79089 | M9: 78627 | N9: 77935 | O9: 77833 | P9: 78593 | Q9: 80661 | R9: 83884 | S9: 86894 | T9: 89790 | U9: 93716 | V9: 97694
A10: Total | D10: =SUM(D8:D9) -> 95465 | E10: 97670 | F10: 101445 | G10: 106583 | H10: 113437 | I10: 119464 | J10: 123940 | K10: 128349 | L10: 130731 | M10: 129866 | N10: 128492 | O10: 127258 | P10: 127265 | Q10: 129221 | R10: 132752 | S10: 136214 | T10: 139533 | U10: 144309 | V10: 148829
A11: Truck Fleet Average Age | B11: Number | C11: Fig 2.1 2018 NZ Vehicle Fleet | D11: 14.32549626 | E11: 14.61257295 | F11: 14.72767509 | G11: 14.76802586 | H11: 14.74884297 | I11: 14.74958146 | J11: 14.93715911 | K11: 15.10968142 | L11: 15.32244456 | M11: 15.80301234 | N11: 16.26777153 | O11: 16.6516054 | P11: 17.0221192 | Q11: 17.28166088 | R11: 17.42096164 | S11: 17.54840912 | T11: 17.71544724 | U11: 17.73295844 | V11: 17.78861647
A13: Buses (Used) | B13: Number | C13: Fig 2.1 2018 NZ Vehicle Fleet | D13: 1120 | E13: 1319 | F13: 1673 | G13: 1952 | H13: 2205 | I13: 2435 | J13: 2664 | K13: 3055 | L13: 3362 | M13: 3440 | N13: 3452 | O13: 3407 | P13: 3417 | Q13: 3460 | R13: 3480 | S13: 3479 | T13: 3497 | U13: 3509 | V13: 3528
A14: Buses (New) | B14: Number | C14: Fig 2.1 2018 NZ Vehicle Fleet | D14: 3461 | E14: 3579 | F14: 3663 | G14: 3796 | H14: 4007 | I14: 4148 | J14: 4219 | K14: 4328 | L14: 4526 | M14: 4828 | N14: 4968 | O14: 5127 | P14: 5251 | Q14: 5472 | R14: 5683 | S14: 5922 | T14: 6527 | U14: 7053 | V14: 7851
A15: Total | D15: =SUM(D13:D14) -> 4581 | E15: 4898 | F15: 5336 | G15: 5748 | H15: 6212 | I15: 6583 | J15: 6883 | K15: 7383 | L15: 7888 | M15: 8268 | N15: 8420 | O15: 8534 | P15: 8668 | Q15: 8932 | R15: 9163 | S15: 9401 | T15: 10024 | U15: 10562 | V15: 11379
A16: Fleet Average Age | B16: Number | C16: Fig 2.1 2018 NZ Vehicle Fleet | D16: 16.03787383 | E16: 16.15802368 | F16: 16.15517241 | G16: 16.09829506 | H16: 15.98341919 | I16: 16.09235911 | J16: 16.44856894 | K16: 16.50758499 | L16: 16.43927485 | M16: 16.31724722 | N16: 16.55831354 | O16: 16.64272322 | P16: 16.75299954 | Q16: 16.78000448 | R16: 16.90096038 | S16: 17.01962557 | T16: 16.61592179 | U16: 16.38288203 | V16: 15.91611741
A18: Electric Bus Additions by Year | B18: Number | C18: Fig 5.1 2018 NZ Vehicle Fleet | E18: 1 | F18: 0 | G18: 5 | H18: 0 | I18: 2 | J18: 0 | K18: 2 | L18: 32 | M18: 24 | N18: 0 | O18: 0 | P18: 0 | Q18: 0 | R18: 0 | S18: 0 | T18: 0 | U18: 1 | V18: 19
A19: Electric Truck Additions by Year
A21: 2018 Average Distance Traveled per Bus and Truck Addition | D21: Truck Distance | E21: Bus Distance
A22: Annual Km Traveled for New Vehicles | C22: Fig 3.4 2018 NZ Vehicle Fleet | D22: 44965.3431 | E22: 40665.50384
A24: 2018 Truck Summary | J24: Load Capacity (kg) | K24: Truck Quantity
D25: Truck Quantity | F25: Retirements Start | G25: Retirements End | H25: Annual Retirements | J25: Truck < 5000 | K25: 25945 | L25: =K25/SUM($K$25:$K$33) -> 0.1743205563
A26: Pre 1985 | B26: Number | C26: Fig 2.5 2018 NZ Vehicle Fleet | D26: 10936 | E26: =D26/SUM($D$26:$D$33) -> 0.07347734068 | F26: 2019 | G26: 2021 | H26: =D26/(G26-F26) -> 5468 | J26: Truck < 7500 | K26: 34318 | L26: 0.2305774851
A27: 1985-1989 | B27: Number | C27: Fig 2.5 2018 NZ Vehicle Fleet | D27: 13196 | E27: 0.08866194108 | F27: 2019 | G27: 2024 | H27: 2639.2 | J27: Truck < 10000 | K27: 18696 | L27: 0.1256156146
A28: 1990-1994 | B28: Number | C28: Fig 2.5 2018 NZ Vehicle Fleet | D28: 21165 | E28: 0.1422044546 | F28: 2022 | G28: 2027 | H28: 4233 | J28: Truck < 12000 | K28: 8456 | L28: 0.05681459334
A29: 1995-1999 | B29: Number | C29: Fig 2.5 2018 NZ Vehicle Fleet | D29: 23045 | E29: 0.1548358921 | F29: 2025 | G29: 2030 | H29: 4609 | J29: Truck < 15000 | K29: 7909 | L29: 0.05313938254
A30: 2000-2004 | B30: Number | C30: Fig 2.5 2018 NZ Vehicle Fleet | D30: 17396 | E30: 0.11688111 | F30: 2030 | G30: 2035 | H30: 3479.2 | J30: Truck < 20000 | K30: 8597 | L30: 0.05776195115
A31: 2005-2009 | B31: Number | C31: Fig 2.5 2018 NZ Vehicle Fleet | D31: 22492 | E31: 0.1511203682 | F31: 2035 | G31: 2040 | H31: 4498.4 | J31: Truck < 25000 | K31: 16687 | L31: 0.1121174455
A32: 2010-2014 | B32: Number | C32: Fig 2.5 2018 NZ Vehicle Fleet | D32: 19572 | E32: 0.131501327 | F32: 2040 | G32: 2045 | H32: 3914.4 | J32: Truck < 30000 | K32: 15184 | L32: 0.1020190143
A33: 2015-2019 | B33: Number | C33: Fig 2.5 2018 NZ Vehicle Fleet | D33: 21033 | E33: 0.1413175664 | F33: 2045 | G33: 2051 | H33: 3505.5 | J33: Truck > 30000 | K33: 13043 | L33: 0.08763395707
A34: Total | B34: Calc | D34: =SUM(D26:D33) -> 148835
A36: 2018 Bus Summary Summary
D37: Bus Quantity | F37: Electric Buses | G37: Non Electric Buses | I37: Retirements Start | J37: Retirements End | K37: Annual Retirements | M37: Load Capacity (kg) | N37: Bus Quantity
A38: Pre 1985 | D38: 917 | F38: 0 | G38: =D38-F38 -> 917 | H38: =G38/SUM($G$38:$G$46) -> 0.04059677705 | I38: 2019 | J38: 2021 | K38: =G38/(J38-I38) -> 458.5 | M38: Bus < 7000 | N38: 2775 | O38: =N38/SUM($N$38:$N$40) -> 0.2438488576
A39: 1985-1989 | D39: 955 | F39: 0 | G39: 955 | H39: 0.04227908624 | I39: 2019 | J39: 2024 | K39: 191 | M39: Bus < 12000 | N39: 2553 | O39: =N39/SUM($N$38:$N$40) -> 0.224340949
A40: 1990-1994 | D40: 1319 | F40: 0 | G40: 1319 | H40: 0.05839383744 | I40: 2022 | J40: 2027 | K40: 263.8 | M40: Bus > 12000 | N40: 6052 | O40: =N40/SUM($N$38:$N$40) -> 0.5318101933
A41: 1995-1999 | D41: 1251 | F41: 0 | G41: 1251 | H41: 0.05538338941 | I41: 2023 | J41: 2028 | K41: 250.2
A42: 2000-2004 | D42: 1065 | F42: =SUM(E18:H18) -> 6 | G42: 1059 | H42: 0.04688330087 | I42: 2025 | J42: 2030 | K42: 211.8
A43: 2005-2009 | D43: 1625 | F43: =SUM(I18:M18) -> 60 | G43: 1565 | H43: 0.06928457588 | I43: 2030 | J43: 2040 | K43: 156.5
A44: 2010-2014 | D44: 1734 | F44: =SUM(N18:R18) -> 0 | G44: 1734 | H44: 0.07676642465 | I44: 2033 | J44: 2040 | K44: 247.7142857
A45: 2015-2019 | D45: 2514 | F45: =SUM(S18:V18) -> 20 | G45: 2494 | H45: 0.1104126085 | I45: 2035 | J45: 2050 | K45: 166.2666667
A46: Total | D46: =SUM(D38:D45) -> 11380 | F46: =SUM(F38:F45) -> 86 | G46: 11294
A49: Capital Expenditure | B49: Change YoY | C49: Base Price 2019 | D49: Applied Price 2019 | E49: 2020 | F49: 2021 | G49: 2022 | H49: 2023 | I49: 2024 | J49: 2025 | K49: 2026 | L49: 2027 | M49: 2028 | N49: 2029 | O49: 2030 | P49: 2031 | Q49: 2032 | R49: 2033 | S49: 2034 | T49: 2035 | U49: 2036 | V49: 2037 | W49: 2038 | X49: 2039 | Y49: 2040 | Z49: 2041 | AA49: 2042 | AB49: 2043 | AC49: 2044 | AD49: 2045 | AE49: 2046 | AF49: 2047 | AG49: 2048 | AH49: 2049 | AI49: 2050
A50: Diesel Bus ICE | B50: 0 | C50: 400000 | D50: =C50 -> 400000 | E50: =D50*(1+$B50) -> 400000 | F50: 400000 | G50: 400000 | H50: 400000 | I50: 400000 | J50: 400000 | K50: 400000 | L50: 400000 | M50: 400000 | N50: 400000 | O50: 400000 | P50: 400000 | Q50: 400000 | R50: 400000 | S50: 400000 | T50: 400000 | U50: 400000 | V50: 400000 | W50: 400000 | X50: 400000 | Y50: 400000 | Z50: 400000 | AA50: 400000 | AB50: 400000 | AC50: 400000 | AD50: 400000 | AE50: 400000 | AF50: 400000 | AG50: 400000 | AH50: 400000 | AI50: 400000
A51: Diesel Truck ICE | B51: 0 | C51: 134000 | D51: =C51 -> 134000 | E51: =D51*(1+$B51) -> 134000 | F51: 134000 | G51: 134000 | H51: 134000 | I51: 134000 | J51: 134000 | K51: 134000 | L51: 134000 | M51: 134000 | N51: 134000 | O51: 134000 | P51: 134000 | Q51: 134000 | R51: 134000 | S51: 134000 | T51: 134000 | U51: 134000 | V51: 134000 | W51: 134000 | X51: 134000 | Y51: 134000 | Z51: 134000 | AA51: 134000 | AB51: 134000 | AC51: 134000 | AD51: 134000 | AE51: 134000 | AF51: 134000 | AG51: 134000 | AH51: 134000 | AI51: 134000
A52: B-EV Electric Bus | B52: ='Hydrogen Model Dashboard'!B31 -> -0.025 | C52: 570000 | D52: =C52*(1-'Heavy Vehicle Demand'!$N$14) -> 570000 | E52: =D52*(1+$B52) -> 555750 | F52: 541856.25 | G52: 528309.8438 | H52: 515102.0977 | I52: 502224.5452 | J52: 489668.9316 | K52: 477427.2083 | L52: 465491.5281 | M52: 453854.2399 | N52: 442507.8839 | O52: 431445.1868 | P52: 420659.0571 | Q52: 410142.5807 | R52: 399889.0162 | S52: 389891.7908 | T52: 380144.496 | U52: 370640.8836 | V52: 361374.8615 | W52: 352340.49 | X52: 343531.9777 | Y52: 334943.6783 | Z52: 326570.0863 | AA52: 318405.8342 | AB52: 310445.6883 | AC52: 302684.5461 | AD52: 295117.4325 | AE52: 287739.4966 | AF52: 280546.0092 | AG52: 273532.359 | AH52: 266694.05 | AI52: 260026.6988
A53: B-EV Truck | B53: ='Hydrogen Model Dashboard'!B31 -> -0.025 | C53: 300000 | D53: =C53*(1-'Heavy Vehicle Demand'!$N$14) -> 300000 | E53: =D53*(1+$B53) -> 292500 | F53: 285187.5 | G53: 278057.8125 | H53: 271106.3672 | I53: 264328.708 | J53: 257720.4903 | K53: 251277.478 | L53: 244995.5411 | M53: 238870.6526 | N53: 232898.8863 | O53: 227076.4141 | P53: 221399.5037 | Q53: 215864.5162 | R53: 210467.9033 | S53: 205206.2057 | T53: 200076.0505 | U53: 195074.1493 | V53: 190197.2955 | W53: 185442.3631 | X53: 180806.3041 | Y53: 176286.1465 | Z53: 171878.9928 | AA53: 167582.018 | AB53: 163392.4675 | AC53: 159307.6558 | AD53: 155324.9644 | AE53: 151441.8403 | AF53: 147655.7943 | AG53: 143964.3995 | AH53: 140365.2895 | AI53: 136856.1572
A54: HFC Bus | B54: ='Hydrogen Model Dashboard'!B28 -> -0.05 | C54: =IF('LCOGH Inputs'!I9="Base",816800,IF('LCOGH Inputs'!I9="High",314000,1000000)) -> 816800 | D54: =C54*(1-'Heavy Vehicle Demand'!$N$12) -> 816800 | E54: =D54*(1+$B54) -> 775960 | F54: 737162 | G54: 700303.9 | H54: 665288.705 | I54: 632024.2697 | J54: 600423.0563 | K54: 570401.9034 | L54: 541881.8083 | M54: 514787.7179 | N54: 489048.332 | O54: 464595.9154 | P54: 441366.1196 | Q54: 419297.8136 | R54: 398332.9229 | S54: 378416.2768 | T54: 359495.463 | U54: 341520.6898 | V54: 324444.6553 | W54: 308222.4226 | X54: 292811.3014 | Y54: 278170.7364 | Z54: 264262.1995 | AA54: 251049.0896 | AB54: 238496.6351 | AC54: 226571.8033 | AD54: 215243.2132 | AE54: 204481.0525 | AF54: 194256.9999 | AG54: 184544.1499 | AH54: 175316.9424 | AI54: 166551.0953
A55: HFC Truck | B55: ='Hydrogen Model Dashboard'!B28 -> -0.05 | C55: =IF('LCOGH Inputs'!I9="Base",358245,IF('LCOGH Inputs'!I9="High",171000,500000)) -> 358245 | D55: =C55*(1-'Heavy Vehicle Demand'!$N$12) -> 358245 | E55: =D55*(1+$B55) -> 340332.75 | F55: 323316.1125 | G55: 307150.3069 | H55: 291792.7915 | I55: 277203.152 | J55: 263342.9944 | K55: 250175.8446 | L55: 237667.0524 | M55: 225783.6998 | N55: 214494.5148 | O55: 203769.7891 | P55: 193581.2996 | Q55: 183902.2346 | R55: 174707.1229 | S55: 165971.7667 | T55: 157673.1784 | U55: 149789.5195 | V55: 142300.0435 | W55: 135185.0413 | X55: 128425.7893 | Y55: 122004.4998 | Z55: 115904.2748 | AA55: 110109.0611 | AB55: 104603.608 | AC55: 99373.42762 | AD55: 94404.75624 | AE55: 89684.51843 | AF55: 85200.29251 | AG55: 80940.27788 | AH55: 76893.26399 | AI55: 73048.60079
A57: Mid-Life Overhaul Costs (Sourced Zen Model)
C58: Change YoY | D58: 2019 | E58: =D58+1 -> 2020 | F58: =E58+1 -> 2021 | G58: 2022 | H58: 2023 | I58: 2024 | J58: 2025 | K58: 2026 | L58: 2027 | M58: 2028 | N58: 2029 | O58: 2030 | P58: 2031 | Q58: 2032 | R58: 2033 | S58: 2034 | T58: 2035 | U58: 2036 | V58: 2037 | W58: 2038 | X58: 2039 | Y58: 2040 | Z58: 2041 | AA58: 2042 | AB58: 2043 | AC58: =AB58+1 -> 2044 | AD58: 2045 | AE58: 2046 | AF58: 2047 | AG58: 2048 | AH58: 2049 | AI58: =AH58+1 -> 2050
A59: Diesel Bus | C59: 0 | D59: 35000 | E59: =D59*(1+$C59) -> 35000 | F59: =E59*(1+$C59) -> 35000 | G59: 35000 | H59: 35000 | I59: 35000 | J59: 35000 | K59: 35000 | L59: 35000 | M59: 35000 | N59: 35000 | O59: 35000 | P59: 35000 | Q59: 35000 | R59: 35000 | S59: 35000 | T59: 35000 | U59: 35000 | V59: 35000 | W59: 35000 | X59: 35000 | Y59: 35000 | Z59: 35000 | AA59: 35000 | AB59: 35000 | AC59: 35000 | AD59: 35000 | AE59: 35000 | AF59: 35000 | AG59: 35000 | AH59: 35000 | AI59: 35000
A60: Diesel Truck | C60: 0 | D60: 35000 | E60: =D60*(1+$C60) -> 35000 | F60: 35000 | G60: 35000 | H60: 35000 | I60: 35000 | J60: 35000 | K60: 35000 | L60: 35000 | M60: 35000 | N60: 35000 | O60: 35000 | P60: 35000 | Q60: 35000 | R60: 35000 | S60: 35000 | T60: 35000 | U60: 35000 | V60: 35000 | W60: 35000 | X60: 35000 | Y60: 35000 | Z60: 35000 | AA60: 35000 | AB60: 35000 | AC60: 35000 | AD60: 35000 | AE60: 35000 | AF60: 35000 | AG60: 35000 | AH60: 35000 | AI60: 35000
A61: B-EV Bus | C61: -0.01 | D61: 75000 | E61: =D61*(1+$C61) -> 74250 | F61: 73507.5 | G61: 72772.425 | H61: 72044.70075 | I61: 71324.25374 | J61: 70611.01121 | K61: 69904.90109 | L61: 69205.85208 | M61: 68513.79356 | N61: 67828.65563 | O61: 67150.36907 | P61: 66478.86538 | Q61: 65814.07672 | R61: 65155.93596 | S61: 64504.3766 | T61: 63859.33283 | U61: 63220.7395 | V61: 62588.53211 | W61: 61962.64679 | X61: 61343.02032 | Y61: 60729.59012 | Z61: 60122.29422 | AA61: 59521.07127 | AB61: 58925.86056 | AC61: 58336.60195 | AD61: 57753.23594 | AE61: 57175.70358 | AF61: 56603.94654 | AG61: 56037.90707 | AH61: 55477.528 | AI61: 54922.75272
A62: B-EV Truck | C62: -0.01 | D62: =75000*C53/C52 -> 39473.68421 | E62: =D62*(1+$C62) -> 39078.94737 | F62: 38688.15789 | G62: 38301.27632 | H62: 37918.26355 | I62: 37539.08092 | J62: 37163.69011 | K62: 36792.05321 | L62: 36424.13267 | M62: 36059.89135 | N62: 35699.29243 | O62: 35342.29951 | P62: 34988.87652 | Q62: 34638.98775 | R62: 34292.59787 | S62: 33949.67189 | T62: 33610.17517 | U62: 33274.07342 | V62: 32941.33269 | W62: 32611.91936 | X62: 32285.80017 | Y62: 31962.94217 | Z62: 31643.31274 | AA62: 31326.87962 | AB62: 31013.61082 | AC62: 30703.47471 | AD62: 30396.43997 | AE62: 30092.47557 | AF62: 29791.55081 | AG62: 29493.6353 | AH62: 29198.69895 | AI62: 28906.71196
A63: HFC Bus | C63: -0.013 | D63: 200000 | E63: =D63*(1+$C63) -> 197400 | F63: 194833.8 | G63: 192300.9606 | H63: 189801.0481 | I63: 187333.6345 | J63: 184898.2972 | K63: 182494.6194 | L63: 180122.1893 | M63: 177780.6009 | N63: 175469.4531 | O63: 173188.3502 | P63: 170936.9016 | Q63: 168714.7219 | R63: 166521.4305 | S63: 164356.6519 | T63: 162220.0154 | U63: 160111.1552 | V63: 158029.7102 | W63: 155975.324 | X63: 153947.6448 | Y63: 151946.3254 | Z63: 149971.0232 | AA63: 148021.3999 | AB63: 146097.1217 | AC63: 144197.8591 | AD63: 142323.2869 | AE63: 140473.0842 | AF63: 138646.9341 | AG63: 136844.5239 | AH63: 135065.5451 | AI63: 133309.693
A64: HFC Truck | C64: -0.013 | D64: =D63*(C55/C54) -> 87719.14789 | E64: =D64*(1+$C64) -> 86578.79897 | F64: 85453.27458 | G64: 84342.38202 | H64: 83245.93105 | I64: 82163.73395 | J64: 81095.6054 | K64: 80041.36253 | L64: 79000.82482 | M64: 77973.8141 | N64: 76960.15452 | O64: 75959.67251 | P64: 74972.19676 | Q64: 73997.55821 | R64: 73035.58995 | S64: 72086.12728 | T64: 71149.00763 | U64: 70224.07053 | V64: 69311.15761 | W64: 68410.11256 | X64: 67520.7811 | Y64: 66643.01094 | Z64: 65776.6518 | AA64: 64921.55533 | AB64: 64077.57511 | AC64: 63244.56663 | AD64: 62422.38727 | AE64: 61610.89623 | AF64: 60809.95458 | AG64: 60019.42517 | AH64: 59239.17264 | AI64: 58469.0634
A67: Vehicle Life | C67: 15
A68: WACC | C68: 0.08
A70: Annual Repayments
A71: Diesel Bus | D71: =-PMT($C$68,$C$67,(D50+D59)) -> 50820.85205 | E71: =-PMT($C$68,$C$67,(E50+E59)) -> 50820.85205 | F71: 50820.85205 | G71: 50820.85205 | H71: 50820.85205 | I71: 50820.85205 | J71: 50820.85205 | K71: 50820.85205 | L71: 50820.85205 | M71: 50820.85205 | N71: 50820.85205 | O71: 50820.85205 | P71: 50820.85205 | Q71: 50820.85205 | R71: 50820.85205 | S71: 50820.85205 | T71: 50820.85205 | U71: 50820.85205 | V71: 50820.85205 | W71: 50820.85205 | X71: 50820.85205 | Y71: 50820.85205 | Z71: 50820.85205 | AA71: 50820.85205 | AB71: 50820.85205 | AC71: 50820.85205 | AD71: 50820.85205 | AE71: 50820.85205 | AF71: 50820.85205 | AG71: 50820.85205 | AH71: 50820.85205 | AI71: 50820.85205
A72: Diesel Truck | D72: 19744.19309 | E72: =-PMT($C$68,$C$67,(E51+E60)) -> 19744.19309 | F72: 19744.19309 | G72: 19744.19309 | H72: 19744.19309 | I72: 19744.19309 | J72: 19744.19309 | K72: 19744.19309 | L72: 19744.19309 | M72: 19744.19309 | N72: 19744.19309 | O72: 19744.19309 | P72: 19744.19309 | Q72: 19744.19309 | R72: 19744.19309 | S72: 19744.19309 | T72: 19744.19309 | U72: 19744.19309 | V72: 19744.19309 | W72: 19744.19309 | X72: 19744.19309 | Y72: 19744.19309 | Z72: 19744.19309 | AA72: 19744.19309 | AB72: 19744.19309 | AC72: 19744.19309 | AD72: 19744.19309 | AE72: 19744.19309 | AF72: 19744.19309 | AG72: 19744.19309 | AH72: 19744.19309 | AI72: 19744.19309
A73: B-EV Bus | D73: 75355.05648 | E73: 73602.61331 | F73: 71892.66688 | G73: 70224.16793 | H73: 68596.09327 | I73: 67007.44518 | J73: 65457.25075 | K73: 63944.56127 | L73: 62468.4516 | M73: 61028.01964 | N73: 59622.38568 | O73: 58250.6919 | P73: 56912.10181 | Q73: 55605.7997 | R73: 54330.99013 | S73: 53086.89745 | T73: 51872.76527 | U73: 50687.85599 | V73: 49531.45035 | W73: 48402.84693 | X73: 47301.36178 | Y73: 46226.32789 | Z73: 45177.09485 | AA73: 44153.02838 | AB73: 43153.50997 | AC73: 42177.93644 | AD73: 41225.71961 | AE73: 40296.28588 | AF73: 39389.07591 | AG73: 38503.54421 | AH73: 37639.15885 | AI73: 36795.4011
A74: B-EV Truck | D74: 39660.55604 | E74: 38738.21753 | F74: 37838.24573 | G74: 36960.08838 | H74: 36103.20698 | I74: 35267.07641 | J74: 34451.18461 | K74: 33655.03225 | L74: 32878.13242 | M74: 32120.01034 | N74: 31380.20299 | O74: 30658.25889 | P74: 29953.73779 | Q74: 29266.21037 | R74: 28595.25796 | S74: 27940.47234 | T74: 27301.45541 | U74: 26677.81894 | V74: 26069.18439 | W74: 25475.1826 | X74: 24895.45357 | Y74: 24329.64626 | Z74: 23777.41834 | AA74: 23238.43599 | AB74: 22712.37367 | AC74: 22198.91392 | AD74: 21697.74716 | AE74: 21208.57152 | AF74: 20731.09258 | AG74: 20265.02327 | AH74: 19810.08361 | AI74: 19366.00058
A75: HFC Bus | D75: 118792.2813 | E75: 113717.2059 | F75: 108884.6452 | G75: 104282.6197 | H75: 99899.74674 | I75: 95725.21109 | J75: 91748.73636 | K75: 87960.55815 | L75: 84351.39848 | M75: 80912.44151 | N75: 77635.31043 | O75: 74512.04551 | P75: 71535.08333 | Q75: 68697.23694 | R75: 65991.67707 | S75: 63411.91426 | T75: 60951.78193 | U75: 58605.42018 | V75: 56367.26057 | W75: =-PMT($C$68,$C$67,(W54+W63)) -> 54232.01149 | X75: 52194.64438 | Y75: 50250.38059 | Z75: 48394.6789 | AA75: 46623.22368 | AB75: 44931.91358 | AC75: 43316.85093 | AD75: 41774.33149 | AE75: 40300.83481 | AF75: 38893.01511 | AG75: 37547.69251 | AH75: 36261.84477 | AI75: 35032.59944
A76: HFC Truck | D76: 52101.78846 | E76: =-PMT($C$68,$C$67,(E55+E64)) -> 49875.88199 | F76: 47756.34148 | G76: 45737.91269 | H76: 43815.60329 | I76: 41984.66974 | J76: 40240.60487 | K76: 38579.12604 | L76: 36996.16399 | M76: 35487.85212 | N76: 34050.51639 | O76: 32680.6657 | P76: 31374.98277 | Q76: 30130.31544 | R76: 28943.6684 | S76: 27812.19543 | T76: 26733.19187 | U76: 25704.0876 | V76: 24722.44033 | W76: 23785.92918 | X76: 22892.34865 | Y76: 22039.60283 | Z76: 21225.69998 | AA76: 20448.74726 | AB76: 19706.94586 | AC76: 18998.58627 | AD76: 18322.04381 | AE76: 17675.77445 | AF76: 17058.31072 | AG76: 16468.25796 | AH76: 15904.29062 | AI76: 15365.14886
A80: Average Fuel Requirement
D81: Economy
A82: Diesel Bus | C82: Litres/Km | D82: 0.3
A83: Diesel Truck | C83: Litres/Km | D83: 0.34
A84: B-EV Bus | C84: KWh/Km | D84: =2.36/1.609 -> 1.466749534
A85: B-EV Truck | C85: KWh/Km | D85: =D84 -> 1.466749534
A86: HFC Bus | C86: kgH2/Km | D86: =1/9.9 -> 0.101010101
A87: HFC Truck | C87: kgH2/Km | D87: =1/9.9 -> 0.101010101
A89: Average Fuel Costs
B90: YoY Change | D90: 2019 | E90: =D90+1 -> 2020 | F90: =E90+1 -> 2021 | G90: 2022 | H90: 2023 | I90: 2024 | J90: 2025 | K90: 2026 | L90: 2027 | M90: 2028 | N90: 2029 | O90: 2030 | P90: 2031 | Q90: 2032 | R90: 2033 | S90: 2034 | T90: 2035 | U90: 2036 | V90: 2037 | W90: 2038 | X90: 2039 | Y90: 2040 | Z90: 2041 | AA90: 2042 | AB90: 2043 | AC90: =AB90+1 -> 2044 | AD90: 2045 | AE90: 2046 | AF90: 2047 | AG90: 2048 | AH90: 2049 | AI90: =AH90+1 -> 2050
A91: Diesel cost $/km | B91: ='Hydrogen Model Dashboard'!B34 -> 0.03 | C91: $/Litre | D91: =1.22*'LCOGH Inputs'!G9 -> 0.9095777778 | E91: =D91*(1+$B$91) -> 0.9368651111 | F91: =E91*(1+$B$91) -> 0.9649710644 | G91: 0.9939201964 | H91: 1.023737802 | I91: 1.054449936 | J91: 1.086083434 | K91: 1.118665937 | L91: 1.152225916 | M91: 1.186792693 | N91: 1.222396474 | O91: 1.259068368 | P91: 1.296840419 | Q91: 1.335745632 | R91: 1.375818001 | S91: 1.417092541 | T91: 1.459605317 | U91: 1.503393476 | V91: 1.548495281 | W91: 1.594950139 | X91: 1.642798643 | Y91: 1.692082603 | Z91: 1.742845081 | AA91: 1.795130433 | AB91: 1.848984346 | AC91: 1.904453876 | AD91: 1.961587493 | AE91: 2.020435117 | AF91: 2.081048171 | AG91: 2.143479616 | AH91: 2.207784005 | AI91: 2.274017525
A92: Power Cost | C92: $/KWh | D92: ='LCOGH Inputs'!$G$50*'LCOGH Inputs'!$G$9 -> 0.08044544444 | E92: =D92*(1+'LCOGH Inputs'!$C$69) -> 0.08024433083 | F92: =E92*(1+'LCOGH Inputs'!$C$69) -> 0.08004372001 | G92: =F92*(1+'LCOGH Inputs'!$C$69) -> 0.07984361071 | H92: =G92*(1+'LCOGH Inputs'!$C$69) -> 0.07964400168 | I92: =H92*(1+'LCOGH Inputs'!$C$69) -> 0.07944489168 | J92: =I92*(1+'LCOGH Inputs'!$C$69) -> 0.07924627945 | K92: =J92*(1+'LCOGH Inputs'!$C$69) -> 0.07904816375 | L92: =K92*(1+'LCOGH Inputs'!$C$69) -> 0.07885054334 | M92: =L92*(1+'LCOGH Inputs'!$C$69) -> 0.07865341698 | N92: =M92*(1+'LCOGH Inputs'!$C$69) -> 0.07845678344 | O92: =N92*(1+'LCOGH Inputs'!$C$69) -> 0.07826064148 | P92: =O92*(1+'LCOGH Inputs'!$C$69) -> 0.07806498988 | Q92: =P92*(1+'LCOGH Inputs'!$C$69) -> 0.0778698274 | R92: =Q92*(1+'LCOGH Inputs'!$C$69) -> 0.07767515283 | S92: =R92*(1+'LCOGH Inputs'!$C$69) -> 0.07748096495 | T92: =S92*(1+'LCOGH Inputs'!$C$69) -> 0.07728726254 | U92: =T92*(1+'LCOGH Inputs'!$C$69) -> 0.07709404438 | V92: =U92*(1+'LCOGH Inputs'!$C$69) -> 0.07690130927 | W92: =V92*(1+'LCOGH Inputs'!$C$69) -> 0.076709056 | X92: =W92*(1+'LCOGH Inputs'!$C$69) -> 0.07651728336 | Y92: =X92*(1+'LCOGH Inputs'!$C$69) -> 0.07632599015 | Z92: =Y92*(1+'LCOGH Inputs'!$C$69) -> 0.07613517517 | AA92: =Z92*(1+'LCOGH Inputs'!$C$69) -> 0.07594483724 | AB92: =AA92*(1+'LCOGH Inputs'!$C$69) -> 0.07575497514 | AC92: =AB92*(1+'LCOGH Inputs'!$C$69) -> 0.0755655877 | AD92: =AC92*(1+'LCOGH Inputs'!$C$69) -> 0.07537667374 | AE92: =AD92*(1+'LCOGH Inputs'!$C$69) -> 0.07518823205 | AF92: =AE92*(1+'LCOGH Inputs'!$C$69) -> 0.07500026147 | AG92: =AF92*(1+'LCOGH Inputs'!$C$69) -> 0.07481276082 | AH92: =AG92*(1+'LCOGH Inputs'!$C$69) -> 0.07462572891 | AI92: =AH92*(1+'LCOGH Inputs'!$C$69) -> 0.07443916459
A93: Hydrogen Cost | C93: $/kgh2 | D93: =IF('H2 Production and Transport'!K18="USD",'LCOGH2 Calc'!C348,'LCOGH2 Calc'!C348*'LCOGH Inputs'!$G$9) -> 3.829409713 | E93: =IF('H2 Production and Transport'!$K$18="USD",'LCOGH2 Calc'!C348,'LCOGH2 Calc'!C348*'LCOGH Inputs'!$G$9) -> 3.829409713 | F93: =IF('H2 Production and Transport'!$K$18="USD",'LCOGH2 Calc'!D348,'LCOGH2 Calc'!D348*'LCOGH Inputs'!$G$9) -> 3.654285467 | G93: =IF('H2 Production and Transport'!$K$18="USD",'LCOGH2 Calc'!E348,'LCOGH2 Calc'!E348*'LCOGH Inputs'!$G$9) -> 3.58506196 | H93: =IF('H2 Production and Transport'!$K$18="USD",'LCOGH2 Calc'!F348,'LCOGH2 Calc'!F348*'LCOGH Inputs'!$G$9) -> 3.517504939 | I93: =IF('H2 Production and Transport'!$K$18="USD",'LCOGH2 Calc'!G348,'LCOGH2 Calc'!G348*'LCOGH Inputs'!$G$9) -> 3.451567716 | J93: =IF('H2 Production and Transport'!$K$18="USD",'LCOGH2 Calc'!H348,'LCOGH2 Calc'!H348*'LCOGH Inputs'!$G$9) -> 3.387205043 | K93: =IF('H2 Production and Transport'!$K$18="USD",'LCOGH2 Calc'!I348,'LCOGH2 Calc'!I348*'LCOGH Inputs'!$G$9) -> 3.324373073 | L93: =IF('H2 Production and Transport'!$K$18="USD",'LCOGH2 Calc'!J348,'LCOGH2 Calc'!J348*'LCOGH Inputs'!$G$9) -> 3.263029306 | M93: =IF('H2 Production and Transport'!$K$18="USD",'LCOGH2 Calc'!K348,'LCOGH2 Calc'!K348*'LCOGH Inputs'!$G$9) -> 3.203132551 | N93: =IF('H2 Production and Transport'!$K$18="USD",'LCOGH2 Calc'!L348,'LCOGH2 Calc'!L348*'LCOGH Inputs'!$G$9) -> 3.144642882 | O93: =IF('H2 Production and Transport'!$K$18="USD",'LCOGH2 Calc'!M348,'LCOGH2 Calc'!M348*'LCOGH Inputs'!$G$9) -> 3.087521595 | P93: =IF('H2 Production and Transport'!$K$18="USD",'LCOGH2 Calc'!N348,'LCOGH2 Calc'!N348*'LCOGH Inputs'!$G$9) -> 3.031731172 | Q93: =IF('H2 Production and Transport'!$K$18="USD",'LCOGH2 Calc'!O348,'LCOGH2 Calc'!O348*'LCOGH Inputs'!$G$9) -> 2.97723524 | R93: =IF('H2 Production and Transport'!$K$18="USD",'LCOGH2 Calc'!P348,'LCOGH2 Calc'!P348*'LCOGH Inputs'!$G$9) -> 2.923998534 | S93: =IF('H2 Production and Transport'!$K$18="USD",'LCOGH2 Calc'!Q348,'LCOGH2 Calc'!Q348*'LCOGH Inputs'!$G$9) -> 2.871986861 | T93: =IF('H2 Production and Transport'!$K$18="USD",'LCOGH2 Calc'!R348,'LCOGH2 Calc'!R348*'LCOGH Inputs'!$G$9) -> 2.821167068 | U93: =IF('H2 Production and Transport'!$K$18="USD",'LCOGH2 Calc'!S348,'LCOGH2 Calc'!S348*'LCOGH Inputs'!$G$9) -> 2.771507006 | V93: =IF('H2 Production and Transport'!$K$18="USD",'LCOGH2 Calc'!T348,'LCOGH2 Calc'!T348*'LCOGH Inputs'!$G$9) -> 2.722975497 | W93: =IF('H2 Production and Transport'!$K$18="USD",'LCOGH2 Calc'!U348,'LCOGH2 Calc'!U348*'LCOGH Inputs'!$G$9) -> 2.675542305 | X93: =IF('H2 Production and Transport'!$K$18="USD",'LCOGH2 Calc'!V348,'LCOGH2 Calc'!V348*'LCOGH Inputs'!$G$9) -> 2.629178106 | Y93: =IF('H2 Production and Transport'!$K$18="USD",'LCOGH2 Calc'!W348,'LCOGH2 Calc'!W348*'LCOGH Inputs'!$G$9) -> 2.583854453 | Z93: =IF('H2 Production and Transport'!$K$18="USD",'LCOGH2 Calc'!X348,'LCOGH2 Calc'!X348*'LCOGH Inputs'!$G$9) -> 2.539543757 | AA93: =IF('H2 Production and Transport'!$K$18="USD",'LCOGH2 Calc'!Y348,'LCOGH2 Calc'!Y348*'LCOGH Inputs'!$G$9) -> 2.496219253 | AB93: =IF('H2 Production and Transport'!$K$18="USD",'LCOGH2 Calc'!Z348,'LCOGH2 Calc'!Z348*'LCOGH Inputs'!$G$9) -> 2.453854974 | AC93: =IF('H2 Production and Transport'!$K$18="USD",'LCOGH2 Calc'!AA348,'LCOGH2 Calc'!AA348*'LCOGH Inputs'!$G$9) -> 2.412425727 | AD93: =IF('H2 Production and Transport'!$K$18="USD",'LCOGH2 Calc'!AB348,'LCOGH2 Calc'!AB348*'LCOGH Inputs'!$G$9) -> 2.371907071 | AE93: =IF('H2 Production and Transport'!$K$18="USD",'LCOGH2 Calc'!AC348,'LCOGH2 Calc'!AC348*'LCOGH Inputs'!$G$9) -> 2.332275286 | AF93: =IF('H2 Production and Transport'!$K$18="USD",'LCOGH2 Calc'!AD348,'LCOGH2 Calc'!AD348*'LCOGH Inputs'!$G$9) -> 2.293507357 | AG93: =IF('H2 Production and Transport'!$K$18="USD",'LCOGH2 Calc'!AE348,'LCOGH2 Calc'!AE348*'LCOGH Inputs'!$G$9) -> 2.255580946 | AH93: =IF('H2 Production and Transport'!$K$18="USD",'LCOGH2 Calc'!AF348,'LCOGH2 Calc'!AF348*'LCOGH Inputs'!$G$9) -> 2.218474376 | AI93: =IF('H2 Production and Transport'!$K$18="USD",'LCOGH2 Calc'!AG348,'LCOGH2 Calc'!AG348*'LCOGH Inputs'!$G$9) -> 2.182166605
A95: Variable Costs
A96: Diesel Bus $/km | D96: =$D$82*D91 -> 0.2728733333 | E96: =$D$82*E91 -> 0.2810595333 | F96: 0.2894913193 | G96: 0.2981760589 | H96: 0.3071213407 | I96: 0.3163349809 | J96: 0.3258250303 | K96: 0.3355997812 | L96: 0.3456677747 | M96: 0.3560378079 | N96: 0.3667189422 | O96: 0.3777205104 | P96: 0.3890521257 | Q96: 0.4007236895 | R96: 0.4127454002 | S96: 0.4251277622 | T96: 0.4378815951 | U96: 0.4510180429 | V96: 0.4645485842 | W96: 0.4784850417 | X96: 0.492839593 | Y96: 0.5076247808 | Z96: 0.5228535242 | AA96: 0.5385391299 | AB96: 0.5546953038 | AC96: 0.5713361629 | AD96: 0.5884762478 | AE96: 0.6061305352 | AF96: 0.6243144513 | AG96: 0.6430438848 | AH96: 0.6623352014 | AI96: 0.6822052574
A97: Diesel Truck $/km | D97: =D91*$D$83 -> 0.3092564444 | E97: =E91*$D$83 -> 0.3185341378 | F97: 0.3280901619 | G97: 0.3379328668 | H97: 0.3480708528 | I97: 0.3585129784 | J97: 0.3692683677 | K97: 0.3803464187 | L97: 0.3917568113 | M97: 0.4035095156 | N97: 0.4156148011 | O97: 0.4280832451 | P97: 0.4409257425 | Q97: 0.4541535148 | R97: 0.4677781202 | S97: 0.4818114638 | T97: 0.4962658077 | U97: 0.511153782 | V97: 0.5264883954 | W97: 0.5422830473 | X97: 0.5585515387 | Y97: 0.5753080849 | Z97: 0.5925673274 | AA97: 0.6103443472 | AB97: 0.6286546777 | AC97: 0.647514318 | AD97: 0.6669397475 | AE97: 0.6869479399 | AF97: 0.7075563781 | AG97: 0.7287830695 | AH97: 0.7506465616 | AI97: 0.7731659584
A98: B-EV Bus $/km | D98: =D92*$D$84 -> 0.1179933181 | E98: =E92*$D$84 -> 0.1176983348 | F98: 0.117404089 | G98: 0.1171105788 | H98: =H92*$D$84 -> 0.1168178023 | I98: 0.1165257578 | J98: 0.1162344434 | K98: 0.1159438573 | L98: 0.1156539977 | M98: 0.1153648627 | N98: 0.1150764505 | O98: 0.1147887594 | P98: 0.1145017875 | Q98: 0.114215533 | R98: 0.1139299942 | S98: 0.1136451692 | T98: 0.1133610563 | U98: 0.1130776537 | V98: 0.1127949595 | W98: 0.1125129721 | X98: 0.1122316897 | Y98: 0.1119511105 | Z98: 0.1116712327 | AA98: 0.1113920546 | AB98: 0.1111135745 | AC98: 0.1108357905 | AD98: 0.1105587011 | AE98: 0.1102823043 | AF98: 0.1100065986 | AG98: 0.1097315821 | AH98: 0.1094572531 | AI98: 0.10918361
A99: B-EV Truck $/km | D99: =D92*$D$85 -> 0.1179933181 | E99: =E92*$D$85 -> 0.1176983348 | F99: 0.117404089 | G99: 0.1171105788 | H99: 0.1168178023 | I99: 0.1165257578 | J99: 0.1162344434 | K99: 0.1159438573 | L99: 0.1156539977 | M99: 0.1153648627 | N99: 0.1150764505 | O99: 0.1147887594 | P99: 0.1145017875 | Q99: 0.114215533 | R99: 0.1139299942 | S99: 0.1136451692 | T99: 0.1133610563 | U99: 0.1130776537 | V99: 0.1127949595 | W99: 0.1125129721 | X99: 0.1122316897 | Y99: 0.1119511105 | Z99: 0.1116712327 | AA99: 0.1113920546 | AB99: 0.1111135745 | AC99: 0.1108357905 | AD99: 0.1105587011 | AE99: 0.1102823043 | AF99: 0.1100065986 | AG99: 0.1097315821 | AH99: 0.1094572531 | AI99: 0.10918361
A100: HFC Bus kg H2/km | D100: =D86*$D$93 -> 0.386809062 | E100: =$D$86*D93 -> 0.386809062 | F100: =$D$86*E93 -> 0.386809062 | G100: =$D$86*F93 -> 0.3691197441 | H100: 0.3621274707 | I100: 0.3553035292 | J100: 0.3486432036 | K100: 0.3421419236 | L100: 0.3357952599 | M100: 0.3295989198 | N100: 0.3235487425 | O100: 0.3176406951 | P100: 0.3118708682 | Q100: 0.306235472 | R100: 0.3007308323 | S100: 0.2953533873 | T100: 0.2900996829 | U100: 0.2849663705 | V100: 0.2799502026 | W100: 0.27504803 | X100: 0.2702567985 | Y100: 0.265573546 | Z100: 0.2609953993 | AA100: 0.2565195714 | AB100: 0.2521433589 | AC100: 0.2478641387 | AD100: 0.2436793664 | AE100: 0.2395865728 | AF100: 0.2355833622 | AG100: 0.2316674098 | AH100: 0.2278364592 | AI100: 0.2240883208
A101: Hydrogen Truck kg H2/km | D101: =D87*$D$93 -> 0.386809062 | E101: =$D$87*D93 -> 0.386809062 | F101: =$D$87*E93 -> 0.386809062 | G101: 0.3691197441 | H101: 0.3621274707 | I101: 0.3553035292 | J101: 0.3486432036 | K101: 0.3421419236 | L101: 0.3357952599 | M101: 0.3295989198 | N101: 0.3235487425 | O101: 0.3176406951 | P101: 0.3118708682 | Q101: 0.306235472 | R101: 0.3007308323 | S101: 0.2953533873 | T101: 0.2900996829 | U101: 0.2849663705 | V101: 0.2799502026 | W101: 0.27504803 | X101: 0.2702567985 | Y101: 0.265573546 | Z101: 0.2609953993 | AA101: 0.2565195714 | AB101: 0.2521433589 | AC101: 0.2478641387 | AD101: 0.2436793664 | AE101: 0.2395865728 | AF101: 0.2355833622 | AG101: 0.2316674098 | AH101: 0.2278364592 | AI101: 0.2240883208
D103: 2019 | E103: =D103+1 -> 2020 | F103: 2021 | G103: 2022 | H103: 2023 | I103: 2024 | J103: 2025 | K103: 2026 | L103: 2027 | M103: 2028 | N103: 2029 | O103: 2030 | P103: 2031 | Q103: 2032 | R103: 2033 | S103: 2034 | T103: 2035 | U103: 2036 | V103: 2037 | W103: 2038 | X103: 2039 | Y103: 2040 | Z103: 2041 | AA103: 2042 | AB103: 2043 | AC103: 2044 | AD103: 2045 | AE103: 2046 | AF103: 2047 | AG103: 2048 | AH103: 2049 | AI103: 2050
A104: Cost of Carbon per Tonne NZD | C104: ='Hydrogen Model Dashboard'!B48 -> 0.045 | D104: 24.5 | E104: 24.5 | F104: =E104*(1+$C$104) -> 25.6025 | G104: =F104*(1+$C$104) -> 26.7546125 | H104: =G104*(1+$C$104) -> 27.95857006 | I104: 29.21670572 | J104: 30.53145747 | K104: 31.90537306 | L104: 33.34111485 | M104: 34.84146501 | N104: 36.40933094 | O104: 38.04775083 | P104: 39.75989962 | Q104: 41.5490951 | R104: 43.41880438 | S104: 45.37265058 | T104: 47.41441986 | U104: 49.54806875 | V104: 51.77773184 | W104: 54.10772978 | X104: 56.54257762 | Y104: 59.08699361 | Z104: 61.74590832 | AA104: 64.5244742 | AB104: 67.42807553 | AC104: 70.46233893 | AD104: 73.63314419 | AE104: 76.94663567 | AF104: 80.40923428 | AG104: 84.02764982 | AH104: 87.80889406 | AI104: 91.7602943
A105: Cost of Carbon per Tonne USD | D105: =D104*'LCOGH Inputs'!$G$9 -> 18.26611111 | E105: =E104*'LCOGH Inputs'!$G$9 -> 18.26611111 | F105: =F104*'LCOGH Inputs'!$G$9 -> 19.08808611 | G105: =G104*'LCOGH Inputs'!$G$9 -> 19.94704999 | H105: =H104*'LCOGH Inputs'!$G$9 -> 20.84466724 | I105: =I104*'LCOGH Inputs'!$G$9 -> 21.78267726 | J105: =J104*'LCOGH Inputs'!$G$9 -> 22.76289774 | K105: =K104*'LCOGH Inputs'!$G$9 -> 23.78722814 | L105: =L104*'LCOGH Inputs'!$G$9 -> 24.8576534 | M105: =M104*'LCOGH Inputs'!$G$9 -> 25.97624781 | N105: =N104*'LCOGH Inputs'!$G$9 -> 27.14517896 | O105: =O104*'LCOGH Inputs'!$G$9 -> 28.36671201 | P105: =P104*'LCOGH Inputs'!$G$9 -> 29.64321405 | Q105: =Q104*'LCOGH Inputs'!$G$9 -> 30.97715868 | R105: =R104*'LCOGH Inputs'!$G$9 -> 32.37113082 | S105: =S104*'LCOGH Inputs'!$G$9 -> 33.82783171 | T105: =T104*'LCOGH Inputs'!$G$9 -> 35.35008414 | U105: =U104*'LCOGH Inputs'!$G$9 -> 36.94083792 | V105: =V104*'LCOGH Inputs'!$G$9 -> 38.60317563 | W105: =W104*'LCOGH Inputs'!$G$9 -> 40.34031853 | X105: =X104*'LCOGH Inputs'!$G$9 -> 42.15563287 | Y105: =Y104*'LCOGH Inputs'!$G$9 -> 44.05263635 | Z105: =Z104*'LCOGH Inputs'!$G$9 -> 46.03500498 | AA105: =AA104*'LCOGH Inputs'!$G$9 -> 48.10658021 | AB105: =AB104*'LCOGH Inputs'!$G$9 -> 50.27137631 | AC105: =AC104*'LCOGH Inputs'!$G$9 -> 52.53358825 | AD105: =AD104*'LCOGH Inputs'!$G$9 -> 54.89759972 | AE105: =AE104*'LCOGH Inputs'!$G$9 -> 57.36799171 | AF105: =AF104*'LCOGH Inputs'!$G$9 -> 59.94955133 | AG105: =AG104*'LCOGH Inputs'!$G$9 -> 62.64728114 | AH105: =AH104*'LCOGH Inputs'!$G$9 -> 65.4664088 | AI105: =AI104*'LCOGH Inputs'!$G$9 -> 68.41239719
A106: Kg of CO2 emitted per km | C106: 1.3
A107: Cost of Carbon per Km Diesel | D107: =IF($C$108="Yes",((D105/1000)*'LCOGH Inputs'!$G$9)*$C$106,0) -> 0.0177039208 | E107: =IF($C$108="Yes",((E105/1000)*'LCOGH Inputs'!$G$9)*$C$106,0) -> 0.0177039208 | F107: =IF($C$108="Yes",((F105/1000)*'LCOGH Inputs'!$G$9)*$C$106,0) -> 0.01850059724 | G107: =IF($C$108="Yes",((G105/1000)*'LCOGH Inputs'!$G$9)*$C$106,0) -> 0.01933312411 | H107: =IF($C$108="Yes",((H105/1000)*'LCOGH Inputs'!$G$9)*$C$106,0) -> 0.0202031147 | I107: =IF($C$108="Yes",((I105/1000)*'LCOGH Inputs'!$G$9)*$C$106,0) -> 0.02111225486 | J107: =IF($C$108="Yes",((J105/1000)*'LCOGH Inputs'!$G$9)*$C$106,0) -> 0.02206230633 | K107: =IF($C$108="Yes",((K105/1000)*'LCOGH Inputs'!$G$9)*$C$106,0) -> 0.02305511011 | L107: =IF($C$108="Yes",((L105/1000)*'LCOGH Inputs'!$G$9)*$C$106,0) -> 0.02409259007 | M107: =IF($C$108="Yes",((M105/1000)*'LCOGH Inputs'!$G$9)*$C$106,0) -> 0.02517675662 | N107: =IF($C$108="Yes",((N105/1000)*'LCOGH Inputs'!$G$9)*$C$106,0) -> 0.02630971067 | O107: =IF($C$108="Yes",((O105/1000)*'LCOGH Inputs'!$G$9)*$C$106,0) -> 0.02749364765 | P107: =IF($C$108="Yes",((P105/1000)*'LCOGH Inputs'!$G$9)*$C$106,0) -> 0.0287308618 | Q107: =IF($C$108="Yes",((Q105/1000)*'LCOGH Inputs'!$G$9)*$C$106,0) -> 0.03002375058 | R107: =IF($C$108="Yes",((R105/1000)*'LCOGH Inputs'!$G$9)*$C$106,0) -> 0.03137481935 | S107: =IF($C$108="Yes",((S105/1000)*'LCOGH Inputs'!$G$9)*$C$106,0) -> 0.03278668622 | T107: =IF($C$108="Yes",((T105/1000)*'LCOGH Inputs'!$G$9)*$C$106,0) -> 0.0342620871 | U107: =IF($C$108="Yes",((U105/1000)*'LCOGH Inputs'!$G$9)*$C$106,0) -> 0.03580388102 | V107: =IF($C$108="Yes",((V105/1000)*'LCOGH Inputs'!$G$9)*$C$106,0) -> 0.03741505567 | W107: =IF($C$108="Yes",((W105/1000)*'LCOGH Inputs'!$G$9)*$C$106,0) -> 0.03909873317 | X107: =IF($C$108="Yes",((X105/1000)*'LCOGH Inputs'!$G$9)*$C$106,0) -> 0.04085817617 | Y107: =IF($C$108="Yes",((Y105/1000)*'LCOGH Inputs'!$G$9)*$C$106,0) -> 0.04269679409 | Z107: =IF($C$108="Yes",((Z105/1000)*'LCOGH Inputs'!$G$9)*$C$106,0) -> 0.04461814983 | AA107: =IF($C$108="Yes",((AA105/1000)*'LCOGH Inputs'!$G$9)*$C$106,0) -> 0.04662596657 | AB107: =IF($C$108="Yes",((AB105/1000)*'LCOGH Inputs'!$G$9)*$C$106,0) -> 0.04872413507 | AC107: =IF($C$108="Yes",((AC105/1000)*'LCOGH Inputs'!$G$9)*$C$106,0) -> 0.05091672114 | AD107: =IF($C$108="Yes",((AD105/1000)*'LCOGH Inputs'!$G$9)*$C$106,0) -> 0.0532079736 | AE107: =IF($C$108="Yes",((AE105/1000)*'LCOGH Inputs'!$G$9)*$C$106,0) -> 0.05560233241 | AF107: =IF($C$108="Yes",((AF105/1000)*'LCOGH Inputs'!$G$9)*$C$106,0) -> 0.05810443737 | AG107: =IF($C$108="Yes",((AG105/1000)*'LCOGH Inputs'!$G$9)*$C$106,0) -> 0.06071913705 | AH107: =IF($C$108="Yes",((AH105/1000)*'LCOGH Inputs'!$G$9)*$C$106,0) -> 0.06345149821 | AI107: =IF($C$108="Yes",((AI105/1000)*'LCOGH Inputs'!$G$9)*$C$106,0) -> 0.06630681563
A108: Include Carbon Price | C108: ='Heavy Vehicle Demand'!N10 -> Yes
A109: Grams of NOx per km | C109: =5.9/1.6 -> 3.6875 | F109: Suitability of Replacement
D111: Load Capacity (kg) | E111: Hydrogen | F111: Diesel | G111: EV | I111: Hydrogen Factor | J111: EV Factor | K111: Total
D112: Truck < 5000 | E112: Yes | F112: Yes | G112: Yes | I112: =IF(E112="Yes",1,0) -> 1 | J112: =IF(G112="Yes",2,0) -> 2 | K112: =SUM(I112:J112) -> 3
D113: Truck < 7500 | E113: Yes | F113: Yes | G113: Yes | I113: =IF(E113="Yes",1,0) -> 1 | J113: =IF(G113="Yes",2,0) -> 2 | K113: =SUM(I113:J113) -> 3
D114: Truck < 10000 | E114: Yes | F114: Yes | G114: Yes | I114: 1 | J114: 2 | K114: 3
D115: Truck < 12000 | E115: Yes | F115: Yes | G115: Yes | I115: 1 | J115: 2 | K115: 3
D116: Truck < 15000 | E116: Yes | F116: Yes | G116: No | I116: 1 | J116: 0 | K116: 1
D117: Truck < 20000 | E117: Yes | F117: Yes | G117: No | I117: 1 | J117: 0 | K117: 1
D118: Truck < 25000 | E118: Yes | F118: Yes | G118: No | I118: 1 | J118: 0 | K118: 1
D119: Truck < 30000 | E119: Yes | F119: Yes | G119: No | I119: 1 | J119: 0 | K119: 1
D120: Truck > 30000 | E120: Yes | F120: Yes | G120: No | I120: 1 | J120: 0 | K120: 1
D121: Bus < 7000 | E121: Yes | F121: Yes | G121: Yes | I121: 1 | J121: 2 | K121: 3
D122: Bus < 12000 | E122: Yes | F122: Yes | G122: Yes | I122: 1 | J122: 2 | K122: 3
D123: Bus > 12000 | E123: Yes | F123: Yes | G123: Yes | I123: 1 | J123: 2 | K123: 3

Sheet LCOGH Plant Assumptions (hidden)
A1: Levelised Cost of Green Hydrogen Per Kilogram Inputs
H3: Weighting of Power Source
A4: No. in Calc Worksheet | B4: WACC | C4: Location | D4: Plant Name | E4: Scale | F4: Base Utilization | G4: Check | H4: Grid Power | I4: Direct Solar | J4: Direct Wind | K4: Capacity Factor | L4: Utilization Adjusted for Capacity Factor | M4: Electricity Cost Escalation | N4: Water Cost Escalation | O4: Improvements in Electrolyser Energy Use | P4: Capital Cost Escalation YoY | Q4: Base Year | R4: Energy Improvement YoY | S4: Currency Units | T4: Output Currency | U4: Grid LCOE | V4: Solar LCOE | W4: Wind LCOE | X4: Base Tariff Electricity 2020 | Y4: Base Water Tariff 2020
B5: [%] | C5: [Text] | D5: [Text] | E5: [Text] | F5: [%] | G5: [Text] | H5: [%] | I5: [%] | J5: [%] | K5: [%] | L5: [%] | M5: [Text] | N5: [Text] | O5: [Text] | P5: [%] | Q5: [Year] | R5: [%] | S5: [Text] | T5: [Text] | U5: LCU/KWh | V5: LCU/KWh | W5: LCU/KWh | X5: LCU/KWh | Y5: LCU/Litre
A6: 1 | B6: 0.08 | C6: ='LCOGH Inputs'!A9 -> New Zealand 1 | D6: NZ Grid Largest Scale | E6: Largest Efficient Scale | F6: =INDEX('LCOGH Inputs'!$N$25:$N$29,MATCH('LCOGH Plant Assumptions'!E6,'LCOGH Inputs'!$A$25:$A$29,0)) -> 0.9 | G6: =IF(SUM(H6:J6)<>1,"Error Invalid Weights","OK") -> OK | H6: 1 | I6: 0 | J6: 0 | K6: 1 | L6: =F6*K6 -> 0.9 | M6: Constant | N6: Constant | O6: Yes | P6: =INDEX('LCOGH Inputs'!$M$25:$M$29,MATCH('LCOGH Plant Assumptions'!E6,'LCOGH Inputs'!$A$25:A29,0)) -> -0.034 | Q6: 2020 | R6: =INDEX('LCOGH Inputs'!$J$25:$J$29,MATCH('LCOGH Plant Assumptions'!E6,'LCOGH Inputs'!$A$25:A29,0)) -> -0.012 | S6: ='LCOGH Inputs'!B9 -> NZD | T6: ='H2 Production and Transport'!$K$18 -> USD | U6: =INDEX('LCOGH Inputs'!$C$50:$G$50,MATCH('LCOGH Plant Assumptions'!E6,'LCOGH Inputs'!$C$49:$G$49,0)) -> 0.1079 | V6: ='LCOGH Inputs'!C56 -> 0.1031104841 | W6: ='LCOGH Inputs'!D56 -> 0.061 | X6: =SUMPRODUCT(H6:J6,U6:W6) -> 0.1079 | Y6: =IF(E6="Largest Efficient Scale",'LCOGH Inputs'!C36/1000,IF(E6="Large",'LCOGH Inputs'!C36/1000,'LCOGH Inputs'!D36/1000)) -> 0.000197
A7: 2 | B7: =B6 -> 0.08 | C7: ='LCOGH Inputs'!A10 -> New Zealand 2 | D7: NZ Grid Medium Scale | E7: Medium | F7: =INDEX('LCOGH Inputs'!$N$25:$N$29,MATCH('LCOGH Plant Assumptions'!E7,'LCOGH Inputs'!$A$25:$A$29,0)) -> 0.9 | G7: =IF(SUM(H7:J7)<>1,"Error Invalid Weights","OK") -> OK | H7: 1 | I7: 0 | J7: 0 | K7: 1 | L7: =F7*K7 -> 0.9 | M7: Constant | N7: Constant | O7: Yes | P7: =INDEX('LCOGH Inputs'!$M$25:$M$29,MATCH('LCOGH Plant Assumptions'!E7,'LCOGH Inputs'!$A$25:A30,0)) -> -0.034 | Q7: 2020 | R7: =INDEX('LCOGH Inputs'!$J$25:$J$29,MATCH('LCOGH Plant Assumptions'!E7,'LCOGH Inputs'!$A$25:A30,0)) -> -0.012 | S7: ='LCOGH Inputs'!B10 -> NZD | T7: ='H2 Production and Transport'!$K$18 -> USD | U7: =INDEX('LCOGH Inputs'!$C$50:$G$50,MATCH('LCOGH Plant Assumptions'!E7,'LCOGH Inputs'!$C$49:$G$49,0)) -> 0.1375 | V7: ='LCOGH Inputs'!C57 -> 0.1031104841 | W7: ='LCOGH Inputs'!D57 -> 0.061 | X7: 0.1375 | Y7: =IF(E7="Largest Efficient Scale",'LCOGH Inputs'!C37/1000,IF(E7="Large",'LCOGH Inputs'!C37/1000,'LCOGH Inputs'!D37/1000)) -> 0.00161 | AC7: Currency | AD7: Currency Value to USD Long Term
A8: 3 | B8: =IF(C8="","",$B$6) -> 0.08 | C8: ='LCOGH Inputs'!A11 -> New Zealand 3 | D8: NZ Grid Micro Scale | E8: Micro | F8: =INDEX('LCOGH Inputs'!$N$25:$N$29,MATCH('LCOGH Plant Assumptions'!E8,'LCOGH Inputs'!$A$25:$A$29,0)) -> 0.9 | G8: =IF(SUM(H8:J8)<>1,"Error Invalid Weights","OK") -> OK | H8: 1 | I8: 0 | J8: 0 | K8: 1 | L8: =F8*K8 -> 0.9 | M8: Constant | N8: Constant | O8: Yes | P8: =INDEX('LCOGH Inputs'!$M$25:$M$29,MATCH('LCOGH Plant Assumptions'!E8,'LCOGH Inputs'!$A$25:A30,0)) -> -0.034 | Q8: 2020 | R8: =INDEX('LCOGH Inputs'!$J$25:$J$29,MATCH('LCOGH Plant Assumptions'!E8,'LCOGH Inputs'!$A$25:A30,0)) -> -0.012 | S8: ='LCOGH Inputs'!B11 -> NZD | T8: ='H2 Production and Transport'!$K$18 -> USD | U8: =INDEX('LCOGH Inputs'!C50:G50,MATCH('LCOGH Plant Assumptions'!E8,'LCOGH Inputs'!C49:G49,0)) -> 0.1783 | V8: ='LCOGH Inputs'!C58 -> 0.1031104841 | W8: ='LCOGH Inputs'!D58 -> 0.061 | X8: =SUMPRODUCT(H8:J8,U8:W8) -> 0.1783 | Y8: =IF(E8="Largest Efficient Scale",'LCOGH Inputs'!C38/1000,IF(E8="Large",'LCOGH Inputs'!C38/1000,'LCOGH Inputs'!D38/1000)) -> 0.00161 | AC8: NZD | AD8: 0.7455555556
A9: 4 | B9: =IF(C9="","",$B$6) -> 0.08 | C9: ='LCOGH Inputs'!A12 -> New Zealand 4 | D9: NZ Wind and Grid Largest Scale | E9: Largest Efficient Scale | F9: =INDEX('LCOGH Inputs'!$N$25:$N$29,MATCH('LCOGH Plant Assumptions'!E9,'LCOGH Inputs'!$A$25:$A$29,0)) -> 0.9 | G9: =IF(SUM(H9:J9)<>1,"Error Invalid Weights","OK") -> OK | H9: =1-J9 -> 0.585 | I9: 0 | J9: ='Hydrogen Model Dashboard'!B11 -> 0.415 | K9: 1 | L9: =F9*K9 -> 0.9 | M9: Constant | N9: Constant | O9: Yes | P9: =INDEX('LCOGH Inputs'!$M$25:$M$29,MATCH('LCOGH Plant Assumptions'!E9,'LCOGH Inputs'!$A$25:A30,0)) -> -0.034 | Q9: 2020 | R9: =INDEX('LCOGH Inputs'!$J$25:$J$29,MATCH('LCOGH Plant Assumptions'!E9,'LCOGH Inputs'!$A$25:A30,0)) -> -0.012 | S9: ='LCOGH Inputs'!B12 -> NZD | T9: ='H2 Production and Transport'!$K$18 -> USD | U9: =INDEX('LCOGH Inputs'!$C$50:$G$50,MATCH('LCOGH Plant Assumptions'!E9,'LCOGH Inputs'!$C$49:$G$49,0)) -> 0.1079 | V9: ='LCOGH Inputs'!C59 -> 0.1031104841 | W9: ='LCOGH Inputs'!D59 -> 0.061 | X9: 0.0884365 | Y9: =IF(E9="Largest Efficient Scale",'LCOGH Inputs'!C39/1000,IF(E9="Large",'LCOGH Inputs'!C39/1000,'LCOGH Inputs'!D39/1000)) -> 0.000197 | AC9: AUD | AD9: 0.7683333333
A10: 9 | B10: =IF(C10="","",$B$6) -> 0.08 | C10: ='LCOGH Inputs'!A13 -> New Zealand 5 | D10: NZ Wind Largest Scale | E10: Largest Efficient Scale | F10: =INDEX('LCOGH Inputs'!$N$25:$N$29,MATCH('LCOGH Plant Assumptions'!E10,'LCOGH Inputs'!$A$25:$A$29,0)) -> 0.9 | G10: =IF(SUM(H10:J10)<>1,"Error Invalid Weights","OK") -> OK | H10: 0 | I10: 0 | J10: 1 | K10: ='Hydrogen Model Dashboard'!B11 -> 0.415 | L10: ='Hydrogen Model Dashboard'!B11 -> 0.415 | M10: Constant | N10: Constant | O10: Yes | P10: =INDEX('LCOGH Inputs'!$M$25:$M$29,MATCH('LCOGH Plant Assumptions'!E10,'LCOGH Inputs'!$A$25:A30,0)) -> -0.034 | Q10: 2020 | R10: =INDEX('LCOGH Inputs'!$J$25:$J$29,MATCH('LCOGH Plant Assumptions'!E10,'LCOGH Inputs'!$A$25:A30,0)) -> -0.012 | S10: ='LCOGH Inputs'!B13 -> NZD | T10: ='H2 Production and Transport'!$K$18 -> USD | U10: =INDEX('LCOGH Inputs'!$C$50:$G$50,MATCH('LCOGH Plant Assumptions'!E10,'LCOGH Inputs'!$C$49:$G$49,0)) -> 0.1079 | V10: ='LCOGH Inputs'!C60 -> 0.103 | W10: ='LCOGH Inputs'!D60 -> 0.061 | X10: 0.061 | Y10: =IF(E10="Largest Efficient Scale",'LCOGH Inputs'!C40/1000,IF(E10="Large",'LCOGH Inputs'!C40/1000,'LCOGH Inputs'!D40/1000)) -> 0.000197 | AC10: CAD | AD10: 0.8159
A11: 5 | B11: 0.08 | C11: ='LCOGH Inputs'!A14 -> Australia 1 | D11: South Australia PV & Grid Scale | E11: Largest Efficient Scale | F11: =INDEX('LCOGH Inputs'!$N$25:$N$29,MATCH('LCOGH Plant Assumptions'!E11,'LCOGH Inputs'!$A$25:$A$29,0)) -> 0.9 | G11: OK | H11: 0.72 | I11: 0.28 | J11: 0 | K11: 1 | L11: =F11*K11 -> 0.9 | M11: Constant | N11: Constant | O11: Yes | P11: =INDEX('LCOGH Inputs'!$M$25:$M$29,MATCH('LCOGH Plant Assumptions'!E11,'LCOGH Inputs'!$A$25:A30,0)) -> -0.034 | Q11: 2020 | R11: =INDEX('LCOGH Inputs'!$J$25:$J$29,MATCH('LCOGH Plant Assumptions'!E11,'LCOGH Inputs'!$A$25:A30,0)) -> -0.012 | S11: ='LCOGH Inputs'!B14 -> AUD | T11: ='H2 Production and Transport'!$K$18 -> USD | U11: ='LCOGH Inputs'!G61 -> 0.1093275488 | V11: ='LCOGH Inputs'!C61 -> 0.04295010846 | W11: ='LCOGH Inputs'!D61 -> 0.09045553145 | X11: 0.09074186551 | Y11: =IF(E11="Largest Efficient Scale",'LCOGH Inputs'!C41/1000,IF(E11="Large",'LCOGH Inputs'!C41/1000,'LCOGH Inputs'!D41/1000)) -> 0.002392 | AC11: USD | AD11: 1
A12: 7 | B12: 0.08 | C12: ='LCOGH Inputs'!A15 -> Australia 2 | D12: South Australia PV Largest Scale | E12: Largest Efficient Scale | F12: =INDEX('LCOGH Inputs'!$N$25:$N$29,MATCH('LCOGH Plant Assumptions'!E12,'LCOGH Inputs'!$A$25:$A$29,0)) -> 0.9 | G12: OK | H12: 0 | I12: 1 | J12: 0 | K12: 0.28 | L12: =F12*K12 -> 0.252 | M12: Constant | N12: Constant | O12: Yes | P12: =INDEX('LCOGH Inputs'!$M$25:$M$29,MATCH('LCOGH Plant Assumptions'!E12,'LCOGH Inputs'!$A$25:A30,0)) -> -0.034 | Q12: 2020 | R12: =INDEX('LCOGH Inputs'!$J$25:$J$29,MATCH('LCOGH Plant Assumptions'!E12,'LCOGH Inputs'!$A$25:A30,0)) -> -0.012 | S12: ='LCOGH Inputs'!B15 -> AUD | T12: ='H2 Production and Transport'!$K$18 -> USD | U12: ='LCOGH Inputs'!G62 -> 0.1093275488 | V12: ='LCOGH Inputs'!C62 -> 0.04295010846 | W12: ='LCOGH Inputs'!D62 -> 0.09045553145 | X12: 0.04295010846 | Y12: =IF(E12="Largest Efficient Scale",'LCOGH Inputs'!C42/1000,IF(E12="Large",'LCOGH Inputs'!C42/1000,'LCOGH Inputs'!D42/1000)) -> 0.002392 | AC12: Spare 1 | AD12: 1
A13: 8 | B13: 0.08 | C13: ='LCOGH Inputs'!A17 -> Lazard 1 | D13: Lazard Solar Low Largest Scale | E13: Largest Efficient Scale | F13: =INDEX('LCOGH Inputs'!$N$25:$N$29,MATCH('LCOGH Plant Assumptions'!E13,'LCOGH Inputs'!$A$25:$A$29,0)) -> 0.9 | G13: OK | H13: 0 | I13: 1 | J13: 0 | K13: 0.3 | L13: =F13*K13 -> 0.27 | M13: Constant | N13: Constant | O13: Yes | P13: =INDEX('LCOGH Inputs'!$M$25:$M$29,MATCH('LCOGH Plant Assumptions'!E13,'LCOGH Inputs'!$A$25:A30,0)) -> -0.034 | Q13: 2020 | R13: =INDEX('LCOGH Inputs'!$J$25:$J$29,MATCH('LCOGH Plant Assumptions'!E13,'LCOGH Inputs'!$A$25:A30,0)) -> -0.012 | S13: ='LCOGH Inputs'!B17 -> USD | T13: ='H2 Production and Transport'!$K$18 -> USD | U13: ='LCOGH Inputs'!G64 -> 0.09 | V13: ='LCOGH Inputs'!C64 -> 0.032 | W13: ='LCOGH Inputs'!D64 -> 0.028 | X13: 0.032 | Y13: =IF(E13="Largest Efficient Scale",'LCOGH Inputs'!C44/1000,IF(E13="Large",'LCOGH Inputs'!C44/1000,'LCOGH Inputs'!D44/1000)) -> 0.002 | AC13: Spare 2 | AD13: 1
A14: 6 | B14: 0.08 | C14: ='LCOGH Inputs'!A16 -> Canada | D14: British Columbia Direct from Grid | E14: Largest Efficient Scale | F14: =INDEX('LCOGH Inputs'!$N$25:$N$29,MATCH('LCOGH Plant Assumptions'!E14,'LCOGH Inputs'!$A$25:$A$29,0)) -> 0.9 | G14: OK | H14: 1 | I14: 0 | J14: 0 | K14: 1 | L14: =F14*K14 -> 0.9 | M14: Constant | N14: Constant | O14: Yes | P14: =INDEX('LCOGH Inputs'!$M$25:$M$29,MATCH('LCOGH Plant Assumptions'!E14,'LCOGH Inputs'!$A$25:A30,0)) -> -0.034 | Q14: 2020 | R14: =INDEX('LCOGH Inputs'!$J$25:$J$29,MATCH('LCOGH Plant Assumptions'!E14,'LCOGH Inputs'!$A$25:A30,0)) -> -0.012 | S14: ='LCOGH Inputs'!B16 -> CAD | T14: ='H2 Production and Transport'!$K$18 -> USD | U14: ='LCOGH Inputs'!G63 -> 0.065 | V14: ='LCOGH Inputs'!C63 -> 0.08 | W14: ='LCOGH Inputs'!D63 -> 0.06 | X14: 0.065 | Y14: =IF(E14="Largest Efficient Scale",'LCOGH Inputs'!C43/1000,IF(E14="Large",'LCOGH Inputs'!C43/1000,'LCOGH Inputs'!D43/1000)) -> 0.002
A15: 10 | B15: 0.08 | C15: ='LCOGH Inputs'!A18 -> International Exporter | D15: =C15 -> International Exporter | E15: Largest Efficient Scale | F15: =INDEX('LCOGH Inputs'!$N$25:$N$29,MATCH('LCOGH Plant Assumptions'!E15,'LCOGH Inputs'!$A$25:$A$29,0)) -> 0.9 | G15: OK | H15: 0 | I15: 1 | J15: 0 | K15: ='Hydrogen Model Dashboard'!B23 -> 0.415 | L15: ='Hydrogen Model Dashboard'!B23 -> 0.415 | M15: Constant | N15: Constant | O15: Yes | P15: =INDEX('LCOGH Inputs'!$M$25:$M$29,MATCH('LCOGH Plant Assumptions'!E15,'LCOGH Inputs'!$A$25:A30,0)) -> -0.034 | Q15: 2020 | R15: =INDEX('LCOGH Inputs'!$J$25:$J$29,MATCH('LCOGH Plant Assumptions'!E15,'LCOGH Inputs'!$A$25:A30,0)) -> -0.012 | S15: ='LCOGH Inputs'!B18 -> NZD | T15: ='H2 Production and Transport'!$K$18 -> USD | U15: ='LCOGH Inputs'!G65 -> 0.09 | V15: ='LCOGH Inputs'!C65 -> 0.061 | W15: ='LCOGH Inputs'!D65 -> 0.061 | X15: 0.061 | Y15: =IF(E15="Largest Efficient Scale",'LCOGH Inputs'!C45/1000,IF(E15="Large",'LCOGH Inputs'!C45/1000,'LCOGH Inputs'!D45/1000)) -> 0.000197
AC16: =X6*$AD$8 -> 0.08044544444
AC17: =X7*$AD$8 -> 0.1025138889
U18: =W6*'LCOGH Inputs'!G9 -> 0.04547888889 | AC18: =X8*$AD$8 -> 0.1329325556
U19: =W10*'LCOGH Inputs'!G9 -> 0.04547888889 | AC19: =X9*$AD$8 -> 0.06593432389
U20: =V12*'LCOGH Inputs'!G10 -> 0.033 | AC20: =X10*$AD$8 -> 0.04547888889
AC21: =X11*$AD$9 -> 0.06972
AC22: =X12*$AD$9 -> 0.033
AC23: =X13 -> 0.032
AC24: =X14*AD10 -> 0.0530335
AC25: =X15 -> 0.061

Sheet NZ Gas Inputs (hidden)
A1: NZ Gas Inputs
A4: Item | B4: Unit | C4: Notes | D4: 2000-01-01 | E4: =EOMONTH(D4,11)+1 -> 2001-01-01 | F4: =EOMONTH(E4,11)+1 -> 2002-01-01 | G4: 2003-01-01 | H4: 2004-01-01 | I4: 2005-01-01 | J4: 2006-01-01 | K4: 2007-01-01 | L4: 2008-01-01 | M4: 2009-01-01 | N4: 2010-01-01 | O4: 2011-01-01 | P4: 2012-01-01 | Q4: 2013-01-01 | R4: 2014-01-01 | S4: 2015-01-01 | T4: 2016-01-01 | U4: 2017-01-01 | V4: 2018-01-01 | W4: 2019-01-01 | Z4: =EOMONTH(W4,11)+1 -> 2020-01-01 | AA4: 2021-01-01 | AB4: 2022-01-01 | AC4: 2023-01-01 | AD4: 2024-01-01 | AE4: 2025-01-01 | AF4: =EOMONTH(AE4,11)+1 -> 2026-01-01 | AG4: 2027-01-01 | AH4: 2028-01-01 | AI4: 2029-01-01 | AJ4: 2030-01-01 | AK4: =EOMONTH(AJ4,11)+1 -> 2031-01-01 | AL4: 2032-01-01 | AM4: 2033-01-01 | AN4: 2034-01-01 | AO4: 2035-01-01 | AP4: 2036-01-01 | AQ4: 2037-01-01 | AR4: 2038-01-01 | AS4: 2039-01-01 | AT4: 2040-01-01 | AU4: 2041-01-01 | AV4: 2042-01-01 | AW4: 2043-01-01 | AX4: 2044-01-01 | AY4: 2045-01-01 | AZ4: 2046-01-01 | BA4: 2047-01-01 | BB4: 2048-01-01 | BC4: 2049-01-01 | BD4: 2050-01-01
A6: Annual Gas Use
A8: Agriculture/ Forestry/ Fishing | B8: Mn Cubic Ft | C8: 2019 NZ Gas Data Tables Annual MM3 | D8: 56.33881271 | E8: 54.50792222 | F8: 52.10471896 | G8: 53.47099128 | H8: 51.80605508 | I8: 56.53601458 | J8: 48.55172343 | K8: 46.94081209 | L8: 46.23273381 | M8: 46.29198247 | N8: 39.62763591 | O8: 45.19662322 | P8: 41.08912435 | Q8: 39.69494974 | R8: 41.91740933 | S8: 43.40697339 | T8: 33.07182241 | U8: 37.21084466 | V8: 34.791263 | W8: 34.0518841
A9: Industrial | B9: Mn Cubic Ft | C9: 2019 NZ Gas Data Tables Annual MM3 | D9: 1693.697869 | E9: 1554.956485 | F9: 1644.257759 | G9: 1165.742348 | H9: 1212.729886 | I9: 937.2360138 | J9: 849.5064853 | K9: 901.0738416 | L9: 923.5654779 | M9: 1108.517481 | N9: 1237.963629 | O9: 1214.970416 | P9: 1334.18742 | Q9: 1385.595541 | R9: 1705.623377 | S9: 1673.68859 | T9: 1616.495717 | U9: 1581.209557 | V9: 1473.61385 | W9: 1586.822096
A10: Commercial | B10: Mn Cubic Ft | C10: 2019 NZ Gas Data Tables Annual MM3 | D10: 169.92986 | E10: 169.8140966 | F10: 173.5484878 | G10: 184.973814 | H10: 207.6577269 | I10: 212.6932363 | J10: 194.8855741 | K10: 170.3562557 | L10: 174.2331936 | M10: 202.2655847 | N10: 184.4543759 | O10: 152.6623499 | P10: 206.9214295 | Q10: 199.2059117 | R10: 228.1395838 | S10: 237.3681187 | T10: 208.1466298 | U10: 206.9049311 | V10: 220.058851 | W10: 342.0339063
A11: Residential | B11: Mn Cubic Ft | C11: 2019 NZ Gas Data Tables Annual MM3 | D11: 195.118461 | E11: 186.4643306 | F11: 175.567579 | G11: 180.1704461 | H11: 192.3662816 | I11: 180.6262019 | J11: 181.0197832 | K11: 146.7743654 | L11: 146.0158979 | M11: 176.2008358 | N11: 161.4512247 | O11: 151.7833484 | P11: 165.0572127 | Q11: 158.4886374 | R11: 169.5859662 | S11: 181.0915941 | T11: 165.1803977 | U11: 175.1102699 | V11: 173.5995504 | W11: 172.4044201
A13: Agriculture/ Forestry/ Fishing | B13: PJ | C13: 2019 NZ Gas Data Tables Annual PJ | D13: 78.68727264 | E13: 76.45336 | F13: 80.08618535 | G13: 61.19809802 | H13: 63.06878404 | I13: 50.47318939 | J13: 49.46995171 | K13: 48.76900912 | L13: 48.32811564 | M13: 57.12344069 | N13: 60.28955482 | O13: 57.95845449 | P13: 66.47426717 | Q13: 69.52796038 | R13: 83.53683999 | S13: 81.10769178 | T13: 78.60282138 | U13: 77.94602838 | V13: 74.31362149 | W13: 84.64377983
A14: Industrial | B14: PJ | C14: 2019 NZ Gas Data Tables Annual PJ | D14: 2.095504481 | E14: 2.119350108 | F14: 2.039344559 | G14: 2.064490957 | H14: 1.962110461 | I14: 2.056341627 | J14: 1.88447 | K14: 1.80841 | L14: 1.73083 | M14: 1.7235 | N14: 1.47076104 | O14: 1.672732467 | P14: 1.562413826 | Q14: 1.547291236 | R14: 1.631844745 | S14: 1.64816278 | T14: 1.284840301 | U14: 1.449734508 | V14: 1.359294645 | W14: 1.349816686
A15: Commercial | B15: PJ | C15: 2019 NZ Gas Data Tables Annual PJ | D15: 6.320487881 | E15: 6.602627825 | F15: 6.792574094 | G15: 7.141755879 | H15: 7.864860538 | I15: 7.73612995 | J15: 7.564222066 | K15: 6.563029967 | L15: 6.522825141 | M15: 7.530563968 | N15: 6.845937271 | O15: 5.650051949 | P15: 7.868186712 | Q15: 7.764940928 | R15: 8.881473998 | S15: 9.012867467 | T15: 8.086496568 | U15: 8.061016115 | V15: 8.597699307 | W15: 13.55822404
A16: Residential | B16: PJ | C16: 2019 NZ Gas Data Tables Annual PJ | D16: 7.25737 | E16: 7.250014 | F16: 6.8716 | G16: 6.9563 | H16: 7.28571 | I16: 6.56978 | J16: 7.02604 | K16: 5.65453 | L16: 5.466445 | M16: 6.5601455 | N16: 5.99218615 | O16: 5.61752 | P16: 6.2763 | Q16: 6.177830555 | R16: 6.601981662 | S16: 6.876047828 | T16: 6.417258452 | U16: 6.822296116 | V16: 6.782534434 | W16: 6.834111214
A18: MWh per PJ | B18: 277778
A20: Gas Use in GWh
A21: Agriculture/ Forestry/ Fishing | B21: GWh | D21: =D13*($B$18)*1/1000 -> 21857.59322 | E21: 21237.06143 | F21: 22246.18039 | G21: 16999.48527 | H21: 17519.12069 | I21: 14020.3416 | J21: 13741.66424 | K21: 13546.95782 | L21: 13424.48731 | M21: 15867.63511 | N21: 16747.11196 | O21: 16099.58357 | P21: 18465.08898 | Q21: 19313.33778 | R21: 23204.69634 | S21: 22529.93241 | T21: 21834.13452 | U21: 21651.69187 | V21: 20642.68915 | W21: 23512.17987 | Z21: =IF($D$27="Historic",W21*(1+B27),W21*(1+C27)) -> 23613.31964 | AA21: =IF($D27="Historic",(1+$B27)*Z21,(1+$C27)*Z21) -> 23714.89446 | AB21: =IF($D27="Historic",(1+$B27)*AA21,(1+$C27)*AA21) -> 23816.90622 | AC21: 23919.35679 | AD21: 24022.24807 | AE21: 24125.58193 | AF21: 24229.3603 | AG21: 24333.58508 | AH21: 24438.25819 | AI21: 24543.38157 | AJ21: 24648.95714 | AK21: 24754.98685 | AL21: 24861.47266 | AM21: 24968.41653 | AN21: 25075.82043 | AO21: 25183.68633 | AP21: 25292.01623 | AQ21: 25400.81212 | AR21: 25510.07601 | AS21: 25619.8099 | AT21: 25730.01583 | AU21: 25840.69581 | AV21: 25951.8519 | AW21: 26063.48613 | AX21: 26175.60057 | AY21: 26288.19727 | AZ21: 26401.27833 | BA21: 26514.84581 | BB21: 26628.90181 | BC21: 26743.44844 | BD21: 26858.48779
A22: Industrial | B22: GWh | D22: =D14*($B$18)*1/1000 -> 582.0850436 | E22: 588.7088344 | F22: 566.4850528 | G22: 573.470169 | H22: 545.0311196 | I22: 571.2064644 | J22: 523.4643077 | K22: 502.336513 | L22: 480.7864957 | M22: 478.750383 | N22: 408.5450601 | O22: 464.6482792 | P22: 434.0041877 | Q22: 429.803465 | R22: 453.2905697 | S22: 457.8233606 | T22: 356.900369 | U22: 402.7043522 | V22: 377.582148 | W22: 374.9493793 | Z22: =IF($D$28="Historic",W22*(1+B28),W22*(1+C28)) -> 365.3730689 | AA22: =IF($D28="Historic",(1+$B28)*Z22,(1+$C28)*Z22) -> 356.0413401 | AB22: =IF($D28="Historic",(1+$B28)*AA22,(1+$C28)*AA22) -> 346.9479463 | AC22: 338.0868002 | AD22: 329.4519703 | AE22: 321.0376762 | AF22: 312.8382856 | AG22: 304.8483096 | AH22: 297.0623999 | AI22: 289.4753444 | AJ22: 282.0820644 | AK22: 274.8776108 | AL22: 267.857161 | AM22: 261.0160153 | AN22: 254.3495944 | AO22: 247.8534358 | AP22: 241.5231908 | AQ22: 235.354622 | AR22: 229.3436001 | AS22: 223.4861015 | AT22: 217.7782049 | AU22: 212.2160896 | AV22: 206.7960322 | AW22: 201.5144046 | AX22: 196.3676712 | AY22: 191.3523869 | AZ22: 186.4651942 | BA22: 181.7028218 | BB22: 177.0620817 | BC22: 172.5398674 | BD22: 168.1331517
A23: Commercial | B23: GWh | D23: =D15*($B$18)*1/1000 -> 1755.692483 | E23: 1834.064752 | F23: 1886.827647 | G23: 1983.822664 | H23: 2184.685231 | I23: 2148.926705 | J23: 2101.174477 | K23: 1823.065338 | L23: 1811.897322 | M23: 2091.824998 | N23: 1901.650763 | O23: 1569.46013 | P23: 2185.609169 | Q23: 2156.929761 | R23: 2467.078084 | S23: 2503.576299 | T23: 2246.250844 | U23: 2239.172934 | V23: 2388.251718 | W23: 3766.176358 | Z23: =IF($D$29="Historic",W23*(1+B29),W23*(1+C29)) -> 3939.107574 | AA23: =IF($D29="Historic",(1+$B29)*Z23,(1+$C29)*Z23) -> 4119.979259 | AB23: 4309.156014 | AC23: 4507.019183 | AD23: 4713.967619 | AE23: 4930.41849 | AF23: 5156.808118 | AG23: 5393.59286 | AH23: 5641.250028 | AI23: 5900.27885 | AJ23: 6171.201478 | AK23: 6454.564038 | AL23: 6750.937734 | AM23: 7060.919997 | AN23: 7385.135691 | AO23: 7724.23837 | AP23: 8078.9116 | AQ23: 8449.870332 | AR23: 8837.862346 | AS23: 9243.669758 | AT23: 9668.110596 | AU23: 10112.04045 | AV23: 10576.3542 | AW23: 11061.9878 | AX23: 11569.9202 | AY23: 12101.17529 | AZ23: 12656.82398 | BA23: 13237.98634 | BB23: 13845.8339 | BC23: 14481.59193 | BD23: 15146.54202
A24: Residential | B24: GWh | D24: =D16*($B$18)*1/1000 -> 2015.937724 | E24: 2013.894389 | F24: 1908.779305 | G24: 1932.307101 | H24: 2023.809952 | I24: 1824.940349 | J24: 1951.679339 | K24: 1570.704034 | L24: 1518.458159 | M24: 1822.264097 | N24: 1664.497484 | O24: 1560.423471 | P24: 1743.418061 | Q24: 1716.065416 | R24: 1833.885262 | S24: 1910.014813 | T24: 1782.573218 | U24: 1895.08377 | V24: 1884.03885 | W24: 1898.365745 | Z24: =IF($D$30="Historic",W24*(1+B30),W24*(1+C30)) -> 1891.667306 | AA24: =IF($D30="Historic",(1+$B30)*Z24,(1+$C30)*Z24) -> 1884.992502 | AB24: 1878.341251 | AC24: 1871.713469 | AD24: 1865.109073 | AE24: 1858.527981 | AF24: 1851.97011 | AG24: 1845.43538 | AH24: 1838.923707 | AI24: 1832.435011 | AJ24: 1825.96921 | AK24: 1819.526224 | AL24: 1813.105973 | AM24: 1806.708375 | AN24: 1800.333352 | AO24: 1793.980823 | AP24: 1787.650709 | AQ24: 1781.342931 | AR24: 1775.05741 | AS24: 1768.794068 | AT24: 1762.552826 | AU24: 1756.333607 | AV24: 1750.136333 | AW24: 1743.960925 | AX24: 1737.807308 | AY24: 1731.675404 | AZ24: 1725.565137 | BA24: 1719.476429 | BB24: 1713.409207 | BC24: 1707.363392 | BD24: 1701.33891
B26: Historic Growth | C26: Custom Growth Expectation | D26: Forward Assumption
A27: Agriculture/ Forestry/ Fishing | B27: =(W21/D21)^(1/COUNT(G21:W21))-1 -> 0.004301590247 | C27: 0.002 | D27: Historic
A28: Industrial | B28: =(W22/D22)^(1/COUNT(G22:W22))-1 -> -0.02554027532 | C28: 0.01 | D28: Historic
A29: Commercial | B29: =(W23/D23)^(1/COUNT(G23:W23))-1 -> 0.04591691929 | C29: 0.01 | D29: Historic
A30: Residential | B30: =(W24/D24)^(1/COUNT(G24:W24))-1 -> -0.003528529297 | C30: 0.002 | D30: Historic
A33: Ratios for Blending based on Usage Type
B34: Volumetric Blending Ratio | C34: Blending ratio as Energy | E34: Blended Amount | F34: =Z4 -> 2020-01-01 | G34: =AA4 -> 2021-01-01 | H34: 2022-01-01 | I34: 2023-01-01 | J34: 2024-01-01 | K34: 2025-01-01 | L34: 2026-01-01 | M34: 2027-01-01 | N34: 2028-01-01 | O34: 2029-01-01 | P34: 2030-01-01 | Q34: 2031-01-01 | R34: 2032-01-01 | S34: 2033-01-01 | T34: 2034-01-01 | U34: 2035-01-01 | V34: 2036-01-01 | W34: 2037-01-01 | X34: 2038-01-01 | Y34: 2039-01-01 | Z34: 2040-01-01 | AA34: 2041-01-01 | AB34: 2042-01-01 | AC34: 2043-01-01 | AD34: 2044-01-01 | AE34: 2045-01-01 | AF34: 2046-01-01 | AG34: 2047-01-01 | AH34: 2048-01-01 | AI34: 2049-01-01 | AJ34: 2050-01-01
A35: Agriculture/ Forestry/ Fishing % | B35: ='Hydrogen Model Dashboard'!B52 -> 0.15 | C35: ='LCOGH Inputs'!$B$126/('LCOGH Inputs'!$B$126+(1/'NZ Gas Inputs'!B35-1)*'LCOGH Inputs'!$B$125) -> 0.04676336869 | E35: GWh | F35: =$C35*Z21 -> 1104.238372 | G35: =$C35*AA21 -> 1108.988353 | H35: 1113.758767 | I35: 1118.549701 | J35: 1123.361243 | K35: 1128.193483 | L35: 1133.046509 | M35: 1137.920411 | N35: 1142.815278 | O35: 1147.731201 | P35: =$C35*AJ21 -> 1152.668271 | Q35: 1157.626577 | R35: 1162.606212 | S35: 1167.607268 | T35: 1172.629836 | U35: 1177.674009 | V35: 1182.73988 | W35: 1187.827542 | X35: 1192.93709 | Y35: 1198.068616 | Z35: =$C35*AT21 -> 1203.222217 | AA35: 1208.397986 | AB35: 1213.596019 | AC35: 1218.816411 | AD35: 1224.05926 | AE35: 1229.324661 | AF35: 1234.612712 | AG35: 1239.92351 | AH35: 1245.257153 | AI35: 1250.613739 | AJ35: =$C35*BD21 -> 1255.993367
A36: Industrial % | B36: ='Hydrogen Model Dashboard'!B52 -> 0.15 | C36: ='LCOGH Inputs'!$B$126/('LCOGH Inputs'!$B$126+(1/'NZ Gas Inputs'!B36-1)*'LCOGH Inputs'!$B$125) -> 0.04676336869 | E36: GWh | F36: 17.08607553 | G36: 16.64969246 | H36: 16.22445473 | I36: 15.81007769 | J36: 15.40628395 | K36: 15.01280322 | L36: 14.62937209 | M36: 14.2557339 | N36: 13.89163853 | O36: 13.53684226 | P36: 13.19110758 | Q36: 12.85420306 | R36: 12.52590318 | S36: 12.20598816 | T36: 11.89424386 | U36: 11.5904616 | V36: 11.29443802 | W36: 11.00597496 | X36: 10.72487933 | Y36: 10.45096296 | Z36: 10.18404249 | AA36: 9.92393924 | AB36: 9.670479099 | AC36: 9.423492401 | AD36: 9.18281381 | AE36: 8.948282217 | AF36: 8.719740626 | AG36: 8.497036049 | AH36: 8.280019409 | AI36: 8.068545434 | AJ36: =$C36*BD22 -> 7.862472562
A37: Commercial % | B37: ='Hydrogen Model Dashboard'!B52 -> 0.15 | C37: ='LCOGH Inputs'!$B$126/('LCOGH Inputs'!$B$126+(1/'NZ Gas Inputs'!B37-1)*'LCOGH Inputs'!$B$125) -> 0.04676336869 | E37: GWh | F37: 184.2059398 | G37: 192.6641091 | H37: 201.5106514 | I37: 210.7633998 | J37: 220.4410058 | K37: 230.5629777 | L37: 241.1497193 | M37: 252.2225715 | N37: 263.8038549 | O37: 275.9169153 | P37: =$C37*AJ23 -> 288.58617 | Q37: 301.8371579 | R37: 315.6965903 | S37: 330.1924051 | T37: 345.3538232 | U37: 361.2114068 | V37: 377.7971218 | W37: 395.1444018 | X37: 413.2882154 | Y37: 432.265137 | Z37: 452.1134204 | AA37: 472.8730758 | AB37: 494.5859507 | AC37: 517.2958139 | AD37: 541.048444 | AE37: 565.8917217 | AF37: 591.8757263 | AG37: 619.0528362 | AH37: 647.4778353 | AI37: 677.2080228 | AJ37: =$C37*BD23 -> 708.303329
A38: Residential % | B38: ='Hydrogen Model Dashboard'!B52 -> 0.15 | C38: ='LCOGH Inputs'!$B$126/('LCOGH Inputs'!$B$126+(1/'NZ Gas Inputs'!B38-1)*'LCOGH Inputs'!$B$125) -> 0.04676336869 | E38: GWh | F38: 88.46073566 | G38: 88.14859936 | H38: 87.83756445 | I38: 87.52762703 | J38: 87.21878323 | K38: 86.9110292 | L38: 86.60436109 | M38: 86.29877506 | N38: 85.99426731 | O38: 85.69083401 | P38: 85.3884714 | Q38: 85.08717567 | R38: 84.78694308 | S38: 84.48776987 | T38: 84.1896523 | U38: 83.89258664 | V38: 83.59656919 | W38: 83.30159625 | X38: 83.00766413 | Y38: 82.71476915 | Z38: 82.42290767 | AA38: 82.13207602 | AB38: 81.84227058 | AC38: 81.55348774 | AD38: 81.26572386 | AE38: 80.97897538 | AF38: 80.69323869 | AG38: 80.40851023 | AH38: 80.12478645 | AI38: 79.84206379 | AJ38: =$C38*BD24 -> 79.56033873
A41: KWh output from kg of H2 | C41: 33.33 | F41: =F34 -> 2020-01-01 | G41: =G34 -> 2021-01-01 | H41: 2022-01-01 | I41: 2023-01-01 | J41: 2024-01-01 | K41: 2025-01-01 | L41: 2026-01-01 | M41: 2027-01-01 | N41: 2028-01-01 | O41: 2029-01-01 | P41: 2030-01-01 | Q41: 2031-01-01 | R41: 2032-01-01 | S41: 2033-01-01 | T41: 2034-01-01 | U41: 2035-01-01 | V41: 2036-01-01 | W41: 2037-01-01 | X41: 2038-01-01 | Y41: 2039-01-01 | Z41: 2040-01-01 | AA41: 2041-01-01 | AB41: 2042-01-01 | AC41: 2043-01-01 | AD41: 2044-01-01 | AE41: 2045-01-01 | AF41: 2046-01-01 | AG41: 2047-01-01 | AH41: 2048-01-01 | AI41: 2049-01-01 | AJ41: 2050-01-01
A42: Hydrogen Cost per kg (On-Site) | B42: Currency Conversion applied | C42: =IF('H2 Production and Transport'!K18="USD",'LCOGH Inputs'!$F$12,1) -> 1.34 | E42: NZD/kg | F42: =$C$42*IF('H2 for Pipeline Blending'!$Q$13="Base",'LCOGH2 Calc'!C348,'LCOGH2 Calc'!C346) -> 5.131409016 | G42: =$C$42*IF('H2 for Pipeline Blending'!$Q$13="Base",'LCOGH2 Calc'!D348,'LCOGH2 Calc'!D346) -> 4.896742525 | H42: =$C$42*IF('H2 for Pipeline Blending'!$Q$13="Base",'LCOGH2 Calc'!E348,'LCOGH2 Calc'!E346) -> 4.803983026 | I42: =$C$42*IF('H2 for Pipeline Blending'!$Q$13="Base",'LCOGH2 Calc'!F348,'LCOGH2 Calc'!F346) -> 4.713456619 | J42: =$C$42*IF('H2 for Pipeline Blending'!$Q$13="Base",'LCOGH2 Calc'!G348,'LCOGH2 Calc'!G346) -> 4.625100739 | K42: =$C$42*IF('H2 for Pipeline Blending'!$Q$13="Base",'LCOGH2 Calc'!H348,'LCOGH2 Calc'!H346) -> 4.538854758 | L42: =$C$42*IF('H2 for Pipeline Blending'!$Q$13="Base",'LCOGH2 Calc'!I348,'LCOGH2 Calc'!I346) -> 4.454659918 | M42: =$C$42*IF('H2 for Pipeline Blending'!$Q$13="Base",'LCOGH2 Calc'!J348,'LCOGH2 Calc'!J346) -> 4.37245927 | N42: =$C$42*IF('H2 for Pipeline Blending'!$Q$13="Base",'LCOGH2 Calc'!K348,'LCOGH2 Calc'!K346) -> 4.292197618 | O42: =$C$42*IF('H2 for Pipeline Blending'!$Q$13="Base",'LCOGH2 Calc'!L348,'LCOGH2 Calc'!L346) -> 4.213821461 | P42: =$C$42*IF('H2 for Pipeline Blending'!$Q$13="Base",'LCOGH2 Calc'!M348,'LCOGH2 Calc'!M346) -> 4.137278937 | Q42: =$C$42*IF('H2 for Pipeline Blending'!$Q$13="Base",'LCOGH2 Calc'!N348,'LCOGH2 Calc'!N346) -> 4.062519771 | R42: =$C$42*IF('H2 for Pipeline Blending'!$Q$13="Base",'LCOGH2 Calc'!O348,'LCOGH2 Calc'!O346) -> 3.989495222 | S42: =$C$42*IF('H2 for Pipeline Blending'!$Q$13="Base",'LCOGH2 Calc'!P348,'LCOGH2 Calc'!P346) -> 3.918158035 | T42: =$C$42*IF('H2 for Pipeline Blending'!$Q$13="Base",'LCOGH2 Calc'!Q348,'LCOGH2 Calc'!Q346) -> 3.848462394 | U42: =$C$42*IF('H2 for Pipeline Blending'!$Q$13="Base",'LCOGH2 Calc'!R348,'LCOGH2 Calc'!R346) -> 3.780363872 | V42: =$C$42*IF('H2 for Pipeline Blending'!$Q$13="Base",'LCOGH2 Calc'!S348,'LCOGH2 Calc'!S346) -> 3.713819388 | W42: =$C$42*IF('H2 for Pipeline Blending'!$Q$13="Base",'LCOGH2 Calc'!T348,'LCOGH2 Calc'!T346) -> 3.648787166 | X42: =$C$42*IF('H2 for Pipeline Blending'!$Q$13="Base",'LCOGH2 Calc'!U348,'LCOGH2 Calc'!U346) -> 3.585226689 | Y42: =$C$42*IF('H2 for Pipeline Blending'!$Q$13="Base",'LCOGH2 Calc'!V348,'LCOGH2 Calc'!V346) -> 3.523098661 | Z42: =$C$42*IF('H2 for Pipeline Blending'!$Q$13="Base",'LCOGH2 Calc'!W348,'LCOGH2 Calc'!W346) -> 3.462364967 | AA42: =$C$42*IF('H2 for Pipeline Blending'!$Q$13="Base",'LCOGH2 Calc'!X348,'LCOGH2 Calc'!X346) -> 3.402988635 | AB42: =$C$42*IF('H2 for Pipeline Blending'!$Q$13="Base",'LCOGH2 Calc'!Y348,'LCOGH2 Calc'!Y346) -> 3.344933799 | AC42: =$C$42*IF('H2 for Pipeline Blending'!$Q$13="Base",'LCOGH2 Calc'!Z348,'LCOGH2 Calc'!Z346) -> 3.288165665 | AD42: =$C$42*IF('H2 for Pipeline Blending'!$Q$13="Base",'LCOGH2 Calc'!AA348,'LCOGH2 Calc'!AA346) -> 3.232650475 | AE42: =$C$42*IF('H2 for Pipeline Blending'!$Q$13="Base",'LCOGH2 Calc'!AB348,'LCOGH2 Calc'!AB346) -> 3.178355475 | AF42: =$C$42*IF('H2 for Pipeline Blending'!$Q$13="Base",'LCOGH2 Calc'!AC348,'LCOGH2 Calc'!AC346) -> 3.125248883 | AG42: =$C$42*IF('H2 for Pipeline Blending'!$Q$13="Base",'LCOGH2 Calc'!AD348,'LCOGH2 Calc'!AD346) -> 3.073299858 | AH42: =$C$42*IF('H2 for Pipeline Blending'!$Q$13="Base",'LCOGH2 Calc'!AE348,'LCOGH2 Calc'!AE346) -> 3.022478468 | AI42: =$C$42*IF('H2 for Pipeline Blending'!$Q$13="Base",'LCOGH2 Calc'!AF348,'LCOGH2 Calc'!AF346) -> 2.972755664 | AJ42: =$C$42*IF('H2 for Pipeline Blending'!$Q$13="Base",'LCOGH2 Calc'!AG348,'LCOGH2 Calc'!AG346) -> 2.924103251
A44: kg of H2 per MWh | C44: =ROUND(1000/C41,0) -> 30
A45: Hydrogen Cost per MWh | B45: NZD/MWh | F45: =F42*$C$44*(1-$C$46) -> 153.9422705 | G45: =G42*$C$44*(1-$C$46) -> 146.9022758 | H45: =H42*$C$44*(1-$C$46) -> 144.1194908 | I45: 141.4036986 | J45: 138.7530222 | K45: 136.1656427 | L45: =L42*$C$44*(1-$C$46) -> 133.6397975 | M45: 131.1737781 | N45: 128.7659285 | O45: 126.4146438 | P45: 124.1183681 | Q45: 121.8755931 | R45: 119.6848567 | S45: 117.5447411 | T45: 115.4538718 | U45: 113.4109161 | V45: 111.4145816 | W45: 109.463615 | X45: 107.5568007 | Y45: 105.6929598 | Z45: 103.870949 | AA45: 102.089659 | AB45: 100.348014 | AC45: 98.64496994 | AD45: 96.97951424 | AE45: 95.35066425 | AF45: 93.7574665 | AG45: 92.19899574 | AH45: 90.67435404 | AI45: 89.18266993 | AJ45: 87.72309754
A46: Subsidy | C46: ='H2 for Pipeline Blending'!Q16 -> 0 | F46: =F45*'LCOGH Inputs'!$G$9 -> 114.772515 | G46: =G45*'LCOGH Inputs'!$G$9 -> 109.5238078 | H46: =H45*'LCOGH Inputs'!$G$9 -> 107.449087 | I46: =I45*'LCOGH Inputs'!$G$9 -> 105.424313 | J46: =J45*'LCOGH Inputs'!$G$9 -> 103.4480865 | K46: =K45*'LCOGH Inputs'!$G$9 -> 101.5190514 | L46: =L45*'LCOGH Inputs'!$G$9 -> 99.63589349 | M46: =M45*'LCOGH Inputs'!$G$9 -> 97.797339 | N46: =N45*'LCOGH Inputs'!$G$9 -> 96.00215339 | O46: =O45*'LCOGH Inputs'!$G$9 -> 94.24914002 | P46: =P45*'LCOGH Inputs'!$G$9 -> 92.5371389 | Q46: =Q45*'LCOGH Inputs'!$G$9 -> 90.86502554 | R46: =R45*'LCOGH Inputs'!$G$9 -> 89.2317098 | S46: =S45*'LCOGH Inputs'!$G$9 -> 87.63613472 | T46: =T45*'LCOGH Inputs'!$G$9 -> 86.07727554 | U46: =U45*'LCOGH Inputs'!$G$9 -> 84.55413859 | V46: =V45*'LCOGH Inputs'!$G$9 -> 83.06576031 | W46: =W45*'LCOGH Inputs'!$G$9 -> 81.61120628 | X46: =X45*'LCOGH Inputs'!$G$9 -> 80.18957028 | Y46: =Y45*'LCOGH Inputs'!$G$9 -> 78.79997339 | Z46: =Z45*'LCOGH Inputs'!$G$9 -> 77.4415631 | AA46: =AA45*'LCOGH Inputs'!$G$9 -> 76.11351247 | AB46: =AB45*'LCOGH Inputs'!$G$9 -> 74.8150193 | AC46: =AC45*'LCOGH Inputs'!$G$9 -> 73.54530536 | AD46: =AD45*'LCOGH Inputs'!$G$9 -> 72.30361561 | AE46: =AE45*'LCOGH Inputs'!$G$9 -> 71.08921745 | AF46: =AF45*'LCOGH Inputs'!$G$9 -> 69.90140002 | AG46: =AG45*'LCOGH Inputs'!$G$9 -> 68.73947349 | AH46: =AH45*'LCOGH Inputs'!$G$9 -> 67.6027684 | AI46: =AI45*'LCOGH Inputs'!$G$9 -> 66.49063502 | AJ46: =AJ45*'LCOGH Inputs'!$G$9 -> 65.40244272
A48: Natural Gas Cost per MWh (Sourced MBIE) | D48: YoY Escalation
A49: Residential | B49: NZD/MWh | C49: =C52 -> 24.24417963 | D49: ='Hydrogen Model Dashboard'!B40 -> 0.03 | F49: =IF($C$60="Yes",(F$58)+($C49)*(1+$D49)^(COUNT($F$41:F$41)),($C49)*(1+$D$49)^(COUNT($F41:F41))) -> 37.07624811 | G49: =IF($C$60="Yes",(G$58)+($C49)*(1+$D49)^(COUNT($F$41:G$41)),($C49)*(1+$D$49)^(COUNT($F41:G41))) -> 38.3701067 | H49: =IF($C$60="Yes",(H$58)+($C49)*(1+$D49)^(COUNT($F$41:H$41)),($C49)*(1+$D$49)^(COUNT($F41:H41))) -> 39.71095174 | I49: =IF($C$60="Yes",(I$58)+($C49)*(1+$D49)^(COUNT($F$41:I$41)),($C49)*(1+$D$49)^(COUNT($F41:I41))) -> 41.10056053 | J49: =IF($C$60="Yes",(J$58)+($C49)*(1+$D49)^(COUNT($F$41:J$41)),($C49)*(1+$D$49)^(COUNT($F41:J41))) -> 42.54078019 | K49: =IF($C$60="Yes",(K$58)+($C49)*(1+$D49)^(COUNT($F$41:K$41)),($C49)*(1+$D$49)^(COUNT($F41:K41))) -> 44.03353056 | L49: =IF($C$60="Yes",(L$58)+($C49)*(1+$D49)^(COUNT($F$41:L$41)),($C49)*(1+$D$49)^(COUNT($F41:L41))) -> 45.58080716 | M49: =IF($C$60="Yes",(M$58)+($C49)*(1+$D49)^(COUNT($F$41:M$41)),($C49)*(1+$D$49)^(COUNT($F41:M41))) -> 47.18468424 | N49: =IF($C$60="Yes",(N$58)+($C49)*(1+$D49)^(COUNT($F$41:N$41)),($C49)*(1+$D$49)^(COUNT($F41:N41))) -> 48.84731801 | O49: =IF($C$60="Yes",(O$58)+($C49)*(1+$D49)^(COUNT($F$41:O$41)),($C49)*(1+$D$49)^(COUNT($F41:O41))) -> 50.57094999 | P49: =IF($C$60="Yes",(P$58)+($C49)*(1+$D49)^(COUNT($F$41:P$41)),($C49)*(1+$D$49)^(COUNT($F41:P41))) -> 52.35791048 | Q49: =IF($C$60="Yes",(Q$58)+($C49)*(1+$D49)^(COUNT($F$41:Q$41)),($C49)*(1+$D$49)^(COUNT($F41:Q41))) -> 54.21062224 | R49: =IF($C$60="Yes",(R$58)+($C49)*(1+$D49)^(COUNT($F$41:R$41)),($C49)*(1+$D$49)^(COUNT($F41:R41))) -> 56.13160419 | S49: =IF($C$60="Yes",(S$58)+($C49)*(1+$D49)^(COUNT($F$41:S$41)),($C49)*(1+$D$49)^(COUNT($F41:S41))) -> 58.12347545 | T49: =IF($C$60="Yes",(T$58)+($C49)*(1+$D49)^(COUNT($F$41:T$41)),($C49)*(1+$D$49)^(COUNT($F41:T41))) -> 60.18895939 | U49: =IF($C$60="Yes",(U$58)+($C49)*(1+$D49)^(COUNT($F$41:U$41)),($C49)*(1+$D$49)^(COUNT($F41:U41))) -> 62.33088794 | V49: =IF($C$60="Yes",(V$58)+($C49)*(1+$D49)^(COUNT($F$41:V$41)),($C49)*(1+$D$49)^(COUNT($F41:V41))) -> 64.55220603 | W49: =IF($C$60="Yes",(W$58)+($C49)*(1+$D49)^(COUNT($F$41:W$41)),($C49)*(1+$D$49)^(COUNT($F41:W41))) -> 66.85597627 | X49: =IF($C$60="Yes",(X$58)+($C49)*(1+$D49)^(COUNT($F$41:X$41)),($C49)*(1+$D$49)^(COUNT($F41:X41))) -> 69.24538381 | Y49: =IF($C$60="Yes",(Y$58)+($C49)*(1+$D49)^(COUNT($F$41:Y$41)),($C49)*(1+$D$49)^(COUNT($F41:Y41))) -> 71.72374135 | Z49: =IF($C$60="Yes",(Z$58)+($C49)*(1+$D49)^(COUNT($F$41:Z$41)),($C49)*(1+$D$49)^(COUNT($F41:Z41))) -> 74.29449443 | AA49: =IF($C$60="Yes",(AA$58)+($C49)*(1+$D49)^(COUNT($F$41:AA$41)),($C49)*(1+$D$49)^(COUNT($F41:AA41))) -> 76.96122694 | AB49: =IF($C$60="Yes",(AB$58)+($C49)*(1+$D49)^(COUNT($F$41:AB$41)),($C49)*(1+$D$49)^(COUNT($F41:AB41))) -> 79.72766683 | AC49: =IF($C$60="Yes",(AC$58)+($C49)*(1+$D49)^(COUNT($F$41:AC$41)),($C49)*(1+$D$49)^(COUNT($F41:AC41))) -> 82.59769205 | AD49: =IF($C$60="Yes",(AD$58)+($C49)*(1+$D49)^(COUNT($F$41:AD$41)),($C49)*(1+$D$49)^(COUNT($F41:AD41))) -> 85.57533681 | AE49: =IF($C$60="Yes",(AE$58)+($C49)*(1+$D49)^(COUNT($F$41:AE$41)),($C49)*(1+$D$49)^(COUNT($F41:AE41))) -> 88.66479804 | AF49: =IF($C$60="Yes",(AF$58)+($C49)*(1+$D49)^(COUNT($F$41:AF$41)),($C49)*(1+$D$49)^(COUNT($F41:AF41))) -> 91.87044216 | AG49: =IF($C$60="Yes",(AG$58)+($C49)*(1+$D49)^(COUNT($F$41:AG$41)),($C49)*(1+$D$49)^(COUNT($F41:AG41))) -> 95.19681211 | AH49: =IF($C$60="Yes",(AH$58)+($C49)*(1+$D49)^(COUNT($F$41:AH$41)),($C49)*(1+$D$49)^(COUNT($F41:AH41))) -> 98.64863471 | AI49: =IF($C$60="Yes",(AI$58)+($C49)*(1+$D49)^(COUNT($F$41:AI$41)),($C49)*(1+$D$49)^(COUNT($F41:AI41))) -> 102.2308283 | AJ49: =IF($C$60="Yes",(AJ$58)+($C49)*(1+$D49)^(COUNT($F$41:AJ$41)),($C49)*(1+$D$49)^(COUNT($F41:AJ41))) -> 105.9485108
A50: Commercial | B50: NZD/MWh | C50: =C49 -> 24.24417963 | D50: =D$49 -> 0.03 | F50: =IF($C$60="Yes",(F$58)+($C50)*(1+$D50)^(COUNT($F$41:F$41)),($C50)*(1+$D$49)^(COUNT($F42:F42))) -> 37.07624811 | G50: =IF($C$60="Yes",(G$58)+($C50)*(1+$D50)^(COUNT($F$41:G$41)),($C50)*(1+$D$49)^(COUNT($F42:G42))) -> 38.3701067 | H50: =IF($C$60="Yes",(H$58)+($C50)*(1+$D50)^(COUNT($F$41:H$41)),($C50)*(1+$D$49)^(COUNT($F42:H42))) -> 39.71095174 | I50: =IF($C$60="Yes",(I$58)+($C50)*(1+$D50)^(COUNT($F$41:I$41)),($C50)*(1+$D$49)^(COUNT($F42:I42))) -> 41.10056053 | J50: =IF($C$60="Yes",(J$58)+($C50)*(1+$D50)^(COUNT($F$41:J$41)),($C50)*(1+$D$49)^(COUNT($F42:J42))) -> 42.54078019 | K50: =IF($C$60="Yes",(K$58)+($C50)*(1+$D50)^(COUNT($F$41:K$41)),($C50)*(1+$D$49)^(COUNT($F42:K42))) -> 44.03353056 | L50: =IF($C$60="Yes",(L$58)+($C50)*(1+$D50)^(COUNT($F$41:L$41)),($C50)*(1+$D$49)^(COUNT($F42:L42))) -> 45.58080716 | M50: =IF($C$60="Yes",(M$58)+($C50)*(1+$D50)^(COUNT($F$41:M$41)),($C50)*(1+$D$49)^(COUNT($F42:M42))) -> 47.18468424 | N50: =IF($C$60="Yes",(N$58)+($C50)*(1+$D50)^(COUNT($F$41:N$41)),($C50)*(1+$D$49)^(COUNT($F42:N42))) -> 48.84731801 | O50: =IF($C$60="Yes",(O$58)+($C50)*(1+$D50)^(COUNT($F$41:O$41)),($C50)*(1+$D$49)^(COUNT($F42:O42))) -> 50.57094999 | P50: =IF($C$60="Yes",(P$58)+($C50)*(1+$D50)^(COUNT($F$41:P$41)),($C50)*(1+$D$49)^(COUNT($F42:P42))) -> 52.35791048 | Q50: =IF($C$60="Yes",(Q$58)+($C50)*(1+$D50)^(COUNT($F$41:Q$41)),($C50)*(1+$D$49)^(COUNT($F42:Q42))) -> 54.21062224 | R50: =IF($C$60="Yes",(R$58)+($C50)*(1+$D50)^(COUNT($F$41:R$41)),($C50)*(1+$D$49)^(COUNT($F42:R42))) -> 56.13160419 | S50: =IF($C$60="Yes",(S$58)+($C50)*(1+$D50)^(COUNT($F$41:S$41)),($C50)*(1+$D$49)^(COUNT($F42:S42))) -> 58.12347545 | T50: =IF($C$60="Yes",(T$58)+($C50)*(1+$D50)^(COUNT($F$41:T$41)),($C50)*(1+$D$49)^(COUNT($F42:T42))) -> 60.18895939 | U50: =IF($C$60="Yes",(U$58)+($C50)*(1+$D50)^(COUNT($F$41:U$41)),($C50)*(1+$D$49)^(COUNT($F42:U42))) -> 62.33088794 | V50: =IF($C$60="Yes",(V$58)+($C50)*(1+$D50)^(COUNT($F$41:V$41)),($C50)*(1+$D$49)^(COUNT($F42:V42))) -> 64.55220603 | W50: =IF($C$60="Yes",(W$58)+($C50)*(1+$D50)^(COUNT($F$41:W$41)),($C50)*(1+$D$49)^(COUNT($F42:W42))) -> 66.85597627 | X50: =IF($C$60="Yes",(X$58)+($C50)*(1+$D50)^(COUNT($F$41:X$41)),($C50)*(1+$D$49)^(COUNT($F42:X42))) -> 69.24538381 | Y50: =IF($C$60="Yes",(Y$58)+($C50)*(1+$D50)^(COUNT($F$41:Y$41)),($C50)*(1+$D$49)^(COUNT($F42:Y42))) -> 71.72374135 | Z50: =IF($C$60="Yes",(Z$58)+($C50)*(1+$D50)^(COUNT($F$41:Z$41)),($C50)*(1+$D$49)^(COUNT($F42:Z42))) -> 74.29449443 | AA50: =IF($C$60="Yes",(AA$58)+($C50)*(1+$D50)^(COUNT($F$41:AA$41)),($C50)*(1+$D$49)^(COUNT($F42:AA42))) -> 76.96122694 | AB50: =IF($C$60="Yes",(AB$58)+($C50)*(1+$D50)^(COUNT($F$41:AB$41)),($C50)*(1+$D$49)^(COUNT($F42:AB42))) -> 79.72766683 | AC50: =IF($C$60="Yes",(AC$58)+($C50)*(1+$D50)^(COUNT($F$41:AC$41)),($C50)*(1+$D$49)^(COUNT($F42:AC42))) -> 82.59769205 | AD50: =IF($C$60="Yes",(AD$58)+($C50)*(1+$D50)^(COUNT($F$41:AD$41)),($C50)*(1+$D$49)^(COUNT($F42:AD42))) -> 85.57533681 | AE50: =IF($C$60="Yes",(AE$58)+($C50)*(1+$D50)^(COUNT($F$41:AE$41)),($C50)*(1+$D$49)^(COUNT($F42:AE42))) -> 88.66479804 | AF50: =IF($C$60="Yes",(AF$58)+($C50)*(1+$D50)^(COUNT($F$41:AF$41)),($C50)*(1+$D$49)^(COUNT($F42:AF42))) -> 91.87044216 | AG50: =IF($C$60="Yes",(AG$58)+($C50)*(1+$D50)^(COUNT($F$41:AG$41)),($C50)*(1+$D$49)^(COUNT($F42:AG42))) -> 95.19681211 | AH50: =IF($C$60="Yes",(AH$58)+($C50)*(1+$D50)^(COUNT($F$41:AH$41)),($C50)*(1+$D$49)^(COUNT($F42:AH42))) -> 98.64863471 | AI50: =IF($C$60="Yes",(AI$58)+($C50)*(1+$D50)^(COUNT($F$41:AI$41)),($C50)*(1+$D$49)^(COUNT($F42:AI42))) -> 102.2308283 | AJ50: =IF($C$60="Yes",(AJ$58)+($C50)*(1+$D50)^(COUNT($F$41:AJ$41)),($C50)*(1+$D$49)^(COUNT($F42:AJ42))) -> 105.9485108
A51: Industrial | B51: NZD/MWh | C51: =C52 -> 24.24417963 | D51: =D$49 -> 0.03 | F51: =IF($C$60="Yes",(F$58)+($C51)*(1+$D51)^(COUNT($F$41:F$41)),($C51)*(1+$D$49)^(COUNT($F43:F43))) -> 37.07624811 | G51: =IF($C$60="Yes",(G$58)+($C51)*(1+$D51)^(COUNT($F$41:G$41)),($C51)*(1+$D$49)^(COUNT($F43:G43))) -> 38.3701067 | H51: =IF($C$60="Yes",(H$58)+($C51)*(1+$D51)^(COUNT($F$41:H$41)),($C51)*(1+$D$49)^(COUNT($F43:H43))) -> 39.71095174 | I51: =IF($C$60="Yes",(I$58)+($C51)*(1+$D51)^(COUNT($F$41:I$41)),($C51)*(1+$D$49)^(COUNT($F43:I43))) -> 41.10056053 | J51: =IF($C$60="Yes",(J$58)+($C51)*(1+$D51)^(COUNT($F$41:J$41)),($C51)*(1+$D$49)^(COUNT($F43:J43))) -> 42.54078019 | K51: =IF($C$60="Yes",(K$58)+($C51)*(1+$D51)^(COUNT($F$41:K$41)),($C51)*(1+$D$49)^(COUNT($F43:K43))) -> 44.03353056 | L51: =IF($C$60="Yes",(L$58)+($C51)*(1+$D51)^(COUNT($F$41:L$41)),($C51)*(1+$D$49)^(COUNT($F43:L43))) -> 45.58080716 | M51: =IF($C$60="Yes",(M$58)+($C51)*(1+$D51)^(COUNT($F$41:M$41)),($C51)*(1+$D$49)^(COUNT($F43:M43))) -> 47.18468424 | N51: =IF($C$60="Yes",(N$58)+($C51)*(1+$D51)^(COUNT($F$41:N$41)),($C51)*(1+$D$49)^(COUNT($F43:N43))) -> 48.84731801 | O51: =IF($C$60="Yes",(O$58)+($C51)*(1+$D51)^(COUNT($F$41:O$41)),($C51)*(1+$D$49)^(COUNT($F43:O43))) -> 50.57094999 | P51: =IF($C$60="Yes",(P$58)+($C51)*(1+$D51)^(COUNT($F$41:P$41)),($C51)*(1+$D$49)^(COUNT($F43:P43))) -> 52.35791048 | Q51: =IF($C$60="Yes",(Q$58)+($C51)*(1+$D51)^(COUNT($F$41:Q$41)),($C51)*(1+$D$49)^(COUNT($F43:Q43))) -> 54.21062224 | R51: =IF($C$60="Yes",(R$58)+($C51)*(1+$D51)^(COUNT($F$41:R$41)),($C51)*(1+$D$49)^(COUNT($F43:R43))) -> 56.13160419 | S51: =IF($C$60="Yes",(S$58)+($C51)*(1+$D51)^(COUNT($F$41:S$41)),($C51)*(1+$D$49)^(COUNT($F43:S43))) -> 58.12347545 | T51: =IF($C$60="Yes",(T$58)+($C51)*(1+$D51)^(COUNT($F$41:T$41)),($C51)*(1+$D$49)^(COUNT($F43:T43))) -> 60.18895939 | U51: =IF($C$60="Yes",(U$58)+($C51)*(1+$D51)^(COUNT($F$41:U$41)),($C51)*(1+$D$49)^(COUNT($F43:U43))) -> 62.33088794 | V51: =IF($C$60="Yes",(V$58)+($C51)*(1+$D51)^(COUNT($F$41:V$41)),($C51)*(1+$D$49)^(COUNT($F43:V43))) -> 64.55220603 | W51: =IF($C$60="Yes",(W$58)+($C51)*(1+$D51)^(COUNT($F$41:W$41)),($C51)*(1+$D$49)^(COUNT($F43:W43))) -> 66.85597627 | X51: =IF($C$60="Yes",(X$58)+($C51)*(1+$D51)^(COUNT($F$41:X$41)),($C51)*(1+$D$49)^(COUNT($F43:X43))) -> 69.24538381 | Y51: =IF($C$60="Yes",(Y$58)+($C51)*(1+$D51)^(COUNT($F$41:Y$41)),($C51)*(1+$D$49)^(COUNT($F43:Y43))) -> 71.72374135 | Z51: =IF($C$60="Yes",(Z$58)+($C51)*(1+$D51)^(COUNT($F$41:Z$41)),($C51)*(1+$D$49)^(COUNT($F43:Z43))) -> 74.29449443 | AA51: =IF($C$60="Yes",(AA$58)+($C51)*(1+$D51)^(COUNT($F$41:AA$41)),($C51)*(1+$D$49)^(COUNT($F43:AA43))) -> 76.96122694 | AB51: =IF($C$60="Yes",(AB$58)+($C51)*(1+$D51)^(COUNT($F$41:AB$41)),($C51)*(1+$D$49)^(COUNT($F43:AB43))) -> 79.72766683 | AC51: =IF($C$60="Yes",(AC$58)+($C51)*(1+$D51)^(COUNT($F$41:AC$41)),($C51)*(1+$D$49)^(COUNT($F43:AC43))) -> 82.59769205 | AD51: =IF($C$60="Yes",(AD$58)+($C51)*(1+$D51)^(COUNT($F$41:AD$41)),($C51)*(1+$D$49)^(COUNT($F43:AD43))) -> 85.57533681 | AE51: =IF($C$60="Yes",(AE$58)+($C51)*(1+$D51)^(COUNT($F$41:AE$41)),($C51)*(1+$D$49)^(COUNT($F43:AE43))) -> 88.66479804 | AF51: =IF($C$60="Yes",(AF$58)+($C51)*(1+$D51)^(COUNT($F$41:AF$41)),($C51)*(1+$D$49)^(COUNT($F43:AF43))) -> 91.87044216 | AG51: =IF($C$60="Yes",(AG$58)+($C51)*(1+$D51)^(COUNT($F$41:AG$41)),($C51)*(1+$D$49)^(COUNT($F43:AG43))) -> 95.19681211 | AH51: =IF($C$60="Yes",(AH$58)+($C51)*(1+$D51)^(COUNT($F$41:AH$41)),($C51)*(1+$D$49)^(COUNT($F43:AH43))) -> 98.64863471 | AI51: =IF($C$60="Yes",(AI$58)+($C51)*(1+$D51)^(COUNT($F$41:AI$41)),($C51)*(1+$D$49)^(COUNT($F43:AI43))) -> 102.2308283 | AJ51: =IF($C$60="Yes",(AJ$58)+($C51)*(1+$D51)^(COUNT($F$41:AJ$41)),($C51)*(1+$D$49)^(COUNT($F43:AJ43))) -> 105.9485108
A52: Wholesale | B52: NZD/MWh | C52: =0.0242441796347564*1000 -> 24.24417963 | D52: =D$49 -> 0.03 | F52: =IF($C$60="Yes",(F$58)+($C52)*(1+$D52)^(COUNT($F$41:F$41)),($C52)*(1+$D$49)^(COUNT($F44:F44))) -> 37.07624811 | G52: =IF($C$60="Yes",(G$58)+($C52)*(1+$D52)^(COUNT($F$41:G$41)),($C52)*(1+$D$49)^(COUNT($F44:G44))) -> 38.3701067 | H52: =IF($C$60="Yes",(H$58)+($C52)*(1+$D52)^(COUNT($F$41:H$41)),($C52)*(1+$D$49)^(COUNT($F44:H44))) -> 39.71095174 | I52: =IF($C$60="Yes",(I$58)+($C52)*(1+$D52)^(COUNT($F$41:I$41)),($C52)*(1+$D$49)^(COUNT($F44:I44))) -> 41.10056053 | J52: =IF($C$60="Yes",(J$58)+($C52)*(1+$D52)^(COUNT($F$41:J$41)),($C52)*(1+$D$49)^(COUNT($F44:J44))) -> 42.54078019 | K52: =IF($C$60="Yes",(K$58)+($C52)*(1+$D52)^(COUNT($F$41:K$41)),($C52)*(1+$D$49)^(COUNT($F44:K44))) -> 44.03353056 | L52: =IF($C$60="Yes",(L$58)+($C52)*(1+$D52)^(COUNT($F$41:L$41)),($C52)*(1+$D$49)^(COUNT($F44:L44))) -> 45.58080716 | M52: =IF($C$60="Yes",(M$58)+($C52)*(1+$D52)^(COUNT($F$41:M$41)),($C52)*(1+$D$49)^(COUNT($F44:M44))) -> 47.18468424 | N52: =IF($C$60="Yes",(N$58)+($C52)*(1+$D52)^(COUNT($F$41:N$41)),($C52)*(1+$D$49)^(COUNT($F44:N44))) -> 48.84731801 | O52: =IF($C$60="Yes",(O$58)+($C52)*(1+$D52)^(COUNT($F$41:O$41)),($C52)*(1+$D$49)^(COUNT($F44:O44))) -> 50.57094999 | P52: =IF($C$60="Yes",(P$58)+($C52)*(1+$D52)^(COUNT($F$41:P$41)),($C52)*(1+$D$49)^(COUNT($F44:P44))) -> 52.35791048 | Q52: =IF($C$60="Yes",(Q$58)+($C52)*(1+$D52)^(COUNT($F$41:Q$41)),($C52)*(1+$D$49)^(COUNT($F44:Q44))) -> 54.21062224 | R52: =IF($C$60="Yes",(R$58)+($C52)*(1+$D52)^(COUNT($F$41:R$41)),($C52)*(1+$D$49)^(COUNT($F44:R44))) -> 56.13160419 | S52: =IF($C$60="Yes",(S$58)+($C52)*(1+$D52)^(COUNT($F$41:S$41)),($C52)*(1+$D$49)^(COUNT($F44:S44))) -> 58.12347545 | T52: =IF($C$60="Yes",(T$58)+($C52)*(1+$D52)^(COUNT($F$41:T$41)),($C52)*(1+$D$49)^(COUNT($F44:T44))) -> 60.18895939 | U52: =IF($C$60="Yes",(U$58)+($C52)*(1+$D52)^(COUNT($F$41:U$41)),($C52)*(1+$D$49)^(COUNT($F44:U44))) -> 62.33088794 | V52: =IF($C$60="Yes",(V$58)+($C52)*(1+$D52)^(COUNT($F$41:V$41)),($C52)*(1+$D$49)^(COUNT($F44:V44))) -> 64.55220603 | W52: =IF($C$60="Yes",(W$58)+($C52)*(1+$D52)^(COUNT($F$41:W$41)),($C52)*(1+$D$49)^(COUNT($F44:W44))) -> 66.85597627 | X52: =IF($C$60="Yes",(X$58)+($C52)*(1+$D52)^(COUNT($F$41:X$41)),($C52)*(1+$D$49)^(COUNT($F44:X44))) -> 69.24538381 | Y52: =IF($C$60="Yes",(Y$58)+($C52)*(1+$D52)^(COUNT($F$41:Y$41)),($C52)*(1+$D$49)^(COUNT($F44:Y44))) -> 71.72374135 | Z52: =IF($C$60="Yes",(Z$58)+($C52)*(1+$D52)^(COUNT($F$41:Z$41)),($C52)*(1+$D$49)^(COUNT($F44:Z44))) -> 74.29449443 | AA52: =IF($C$60="Yes",(AA$58)+($C52)*(1+$D52)^(COUNT($F$41:AA$41)),($C52)*(1+$D$49)^(COUNT($F44:AA44))) -> 76.96122694 | AB52: =IF($C$60="Yes",(AB$58)+($C52)*(1+$D52)^(COUNT($F$41:AB$41)),($C52)*(1+$D$49)^(COUNT($F44:AB44))) -> 79.72766683 | AC52: =IF($C$60="Yes",(AC$58)+($C52)*(1+$D52)^(COUNT($F$41:AC$41)),($C52)*(1+$D$49)^(COUNT($F44:AC44))) -> 82.59769205 | AD52: =IF($C$60="Yes",(AD$58)+($C52)*(1+$D52)^(COUNT($F$41:AD$41)),($C52)*(1+$D$49)^(COUNT($F44:AD44))) -> 85.57533681 | AE52: =IF($C$60="Yes",(AE$58)+($C52)*(1+$D52)^(COUNT($F$41:AE$41)),($C52)*(1+$D$49)^(COUNT($F44:AE44))) -> 88.66479804 | AF52: =IF($C$60="Yes",(AF$58)+($C52)*(1+$D52)^(COUNT($F$41:AF$41)),($C52)*(1+$D$49)^(COUNT($F44:AF44))) -> 91.87044216 | AG52: =IF($C$60="Yes",(AG$58)+($C52)*(1+$D52)^(COUNT($F$41:AG$41)),($C52)*(1+$D$49)^(COUNT($F44:AG44))) -> 95.19681211 | AH52: =IF($C$60="Yes",(AH$58)+($C52)*(1+$D52)^(COUNT($F$41:AH$41)),($C52)*(1+$D$49)^(COUNT($F44:AH44))) -> 98.64863471 | AI52: =IF($C$60="Yes",(AI$58)+($C52)*(1+$D52)^(COUNT($F$41:AI$41)),($C52)*(1+$D$49)^(COUNT($F44:AI44))) -> 102.2308283 | AJ52: =IF($C$60="Yes",(AJ$58)+($C52)*(1+$D52)^(COUNT($F$41:AJ$41)),($C52)*(1+$D$49)^(COUNT($F44:AJ44))) -> 105.9485108
F53: =F52*'LCOGH Inputs'!$G$9 -> 27.64240276 | G53: =G52*'LCOGH Inputs'!$G$9 -> 28.60704621 | H53: =H52*'LCOGH Inputs'!$G$9 -> 29.60672069 | I53: =I52*'LCOGH Inputs'!$G$9 -> 30.64275124 | J53: =J52*'LCOGH Inputs'!$G$9 -> 31.716515 | K53: =K52*'LCOGH Inputs'!$G$9 -> 32.82944334 | L53: =L52*'LCOGH Inputs'!$G$9 -> 33.983024 | M53: =M52*'LCOGH Inputs'!$G$9 -> 35.17880347 | N53: =N52*'LCOGH Inputs'!$G$9 -> 36.41838931 | O53: =O52*'LCOGH Inputs'!$G$9 -> 37.70345271 | P53: =P52*'LCOGH Inputs'!$G$9 -> 39.03573104 | Q53: =Q52*'LCOGH Inputs'!$G$9 -> 40.41703058 | R53: =R52*'LCOGH Inputs'!$G$9 -> 41.84922935 | S53: =S52*'LCOGH Inputs'!$G$9 -> 43.33428003 | T53: =T52*'LCOGH Inputs'!$G$9 -> 44.87421306 | U53: =U52*'LCOGH Inputs'!$G$9 -> 46.47113978 | V53: =V52*'LCOGH Inputs'!$G$9 -> 48.12725583 | W53: =W52*'LCOGH Inputs'!$G$9 -> 49.84484453 | X53: =X52*'LCOGH Inputs'!$G$9 -> 51.6262806 | Y53: =Y52*'LCOGH Inputs'!$G$9 -> 53.47403383 | Z53: =Z52*'LCOGH Inputs'!$G$9 -> 55.39067307 | AA53: =AA52*'LCOGH Inputs'!$G$9 -> 57.37887031 | AB53: =AB52*'LCOGH Inputs'!$G$9 -> 59.44140493 | AC53: =AC52*'LCOGH Inputs'!$G$9 -> 61.58116818 | AD53: =AD52*'LCOGH Inputs'!$G$9 -> 63.80116777 | AE53: =AE52*'LCOGH Inputs'!$G$9 -> 66.10453276 | AF53: =AF52*'LCOGH Inputs'!$G$9 -> 68.49451854 | AG53: =AG52*'LCOGH Inputs'!$G$9 -> 70.97451214 | AH53: =AH52*'LCOGH Inputs'!$G$9 -> 73.54803766 | AI53: =AI52*'LCOGH Inputs'!$G$9 -> 76.218762 | AJ53: =AJ52*'LCOGH Inputs'!$G$9 -> 78.99050081
A55: Pounds of carbon emitted per kWh of gas | C55: =0.92 -> 0.92 | F55: 2020-01-01 | G55: 2021-01-01 | H55: 2022-01-01 | I55: 2023-01-01 | J55: 2024-01-01 | K55: 2025-01-01 | L55: 2026-01-01 | M55: 2027-01-01 | N55: 2028-01-01 | O55: 2029-01-01 | P55: 2030-01-01 | Q55: 2031-01-01 | R55: 2032-01-01 | S55: 2033-01-01 | T55: 2034-01-01 | U55: 2035-01-01 | V55: 2036-01-01 | W55: 2037-01-01 | X55: 2038-01-01 | Y55: 2039-01-01 | Z55: 2040-01-01 | AA55: 2041-01-01 | AB55: 2042-01-01 | AC55: 2043-01-01 | AD55: 2044-01-01 | AE55: 2045-01-01 | AF55: 2046-01-01 | AG55: 2047-01-01 | AH55: 2048-01-01 | AI55: 2049-01-01 | AJ55: 2050-01-01
A56: Carbon cost per tonne | C56: ='HV Quantity Inputs'!C104 -> 0.045 | F56: 24.5 | G56: =F56*1.045 -> 25.6025 | H56: =G56*(1+$C$56) -> 26.7546125 | I56: =H56*(1+$C$56) -> 27.95857006 | J56: 29.21670572 | K56: 30.53145747 | L56: 31.90537306 | M56: 33.34111485 | N56: 34.84146501 | O56: 36.40933094 | P56: 38.04775083 | Q56: 39.75989962 | R56: 41.5490951 | S56: 43.41880438 | T56: 45.37265058 | U56: 47.41441986 | V56: 49.54806875 | W56: 51.77773184 | X56: 54.10772978 | Y56: 56.54257762 | Z56: 59.08699361 | AA56: 61.74590832 | AB56: 64.5244742 | AC56: 67.42807553 | AD56: 70.46233893 | AE56: 73.63314419 | AF56: 76.94663567 | AG56: 80.40923428 | AH56: 84.02764982 | AI56: 87.80889406 | AJ56: 91.7602943
A57: Carbon cost per pound of gas | F57: =F56/1000/2.2 -> 0.01113636364 | G57: =G56/1000/2.2 -> 0.0116375 | H57: 0.0121611875 | I57: 0.01270844094 | J57: 0.01328032078 | K57: 0.01387793521 | L57: 0.0145024423 | M57: 0.0151550522 | N57: 0.01583702955 | O57: 0.01654969588 | P57: 0.0172944322 | Q57: 0.01807268165 | R57: 0.01888595232 | S57: 0.01973582017 | T57: 0.02062393208 | U57: 0.02155200903 | V57: 0.02252184943 | W57: 0.02353533266 | X57: 0.02459442263 | Y57: 0.02570117164 | Z57: 0.02685772437 | AA57: 0.02806632196 | AB57: 0.02932930645 | AC57: 0.03064912524 | AD57: 0.03202833588 | AE57: 0.03346961099 | AF57: 0.03497574349 | AG57: 0.03654965194 | AH57: 0.03819438628 | AI57: 0.03991313367 | AJ57: 0.04170922468
A58: Cost per MWh of Gas | F58: =(1/$C$55)*F57*1000 -> 12.10474308 | G58: =(1/$C$55)*G57*1000 -> 12.64945652 | H58: 13.21868207 | I58: 13.81352276 | J58: 14.43513128 | K58: 15.08471219 | L58: 15.76352424 | M58: 16.47288283 | N58: 17.21416256 | O58: 17.98879987 | P58: 18.79829587 | Q58: 19.64421918 | R58: 20.52820904 | S58: 21.45197845 | T58: 22.41731748 | U58: 23.42609677 | V58: 24.48027112 | W58: 25.58188332 | X58: 26.73306807 | Y58: 27.93605613 | Z58: 29.19317866 | AA58: 30.5068717 | AB58: 31.87968093 | AC58: 33.31426657 | AD58: 34.81340856 | AE58: 36.38001195 | AF58: 38.01711249 | AG58: 39.72788255 | AH58: 41.51563726 | AI58: 43.38384094 | AJ58: 45.33611378
A60: Carbon Adjusted Price per MWh | C60: ='H2 for Pipeline Blending'!Q10 -> Yes
A62: Amount of Gas Blended
A63: Agriculture/ Forestry/ Fishing | C63: GWh | F63: =IF(F$45<F$52+'Hydrogen Model Dashboard'!$B$44,F35,0) -> 0 | G63: =IF(G$45<G$52+'Hydrogen Model Dashboard'!$B$44,G35,0) -> 0 | H63: =IF(H$45<H$52+'Hydrogen Model Dashboard'!$B$44,H35,0) -> 0 | I63: =IF(I$45<I$52+'Hydrogen Model Dashboard'!$B$44,I35,0) -> 0 | J63: =IF(J$45<J$52+'Hydrogen Model Dashboard'!$B$44,J35,0) -> 0 | K63: =IF(K$45<K$52+'Hydrogen Model Dashboard'!$B$44,K35,0) -> 0 | L63: =IF(L$45<L$52+'Hydrogen Model Dashboard'!$B$44,L35,0) -> 0 | M63: =IF(M$45<M$52+'Hydrogen Model Dashboard'!$B$44,M35,0) -> 0 | N63: =IF(N$45<N$52+'Hydrogen Model Dashboard'!$B$44,N35,0) -> 0 | O63: =IF(O$45<O$52+'Hydrogen Model Dashboard'!$B$44,O35,0) -> 0 | P63: =IF(P$45<P$52+'Hydrogen Model Dashboard'!$B$44,P35,0) -> 0 | Q63: =IF(Q$45<Q$52+'Hydrogen Model Dashboard'!$B$44,Q35,0) -> 0 | R63: =IF(R$45<R$52+'Hydrogen Model Dashboard'!$B$44,R35,0) -> 0 | S63: =IF(S$45<S$52+'Hydrogen Model Dashboard'!$B$44,S35,0) -> 0 | T63: =IF(T$45<T$52+'Hydrogen Model Dashboard'!$B$44,T35,0) -> 0 | U63: =IF(U$45<U$52+'Hydrogen Model Dashboard'!$B$44,U35,0) -> 0 | V63: =IF(V$45<V$52+'Hydrogen Model Dashboard'!$B$44,V35,0) -> 0 | W63: =IF(W$45<W$52+'Hydrogen Model Dashboard'!$B$44,W35,0) -> 0 | X63: =IF(X$45<X$52+'Hydrogen Model Dashboard'!$B$44,X35,0) -> 0 | Y63: =IF(Y$45<Y$52+'Hydrogen Model Dashboard'!$B$44,Y35,0) -> 0 | Z63: =IF(Z$45<Z$52+'Hydrogen Model Dashboard'!$B$44,Z35,0) -> 0 | AA63: =IF(AA$45<AA$52+'Hydrogen Model Dashboard'!$B$44,AA35,0) -> 0 | AB63: =IF(AB$45<AB$52+'Hydrogen Model Dashboard'!$B$44,AB35,0) -> 0 | AC63: =IF(AC$45<AC$52+'Hydrogen Model Dashboard'!$B$44,AC35,0) -> 0 | AD63: =IF(AD$45<AD$52+'Hydrogen Model Dashboard'!$B$44,AD35,0) -> 0 | AE63: =IF(AE$45<AE$52+'Hydrogen Model Dashboard'!$B$44,AE35,0) -> 0 | AF63: =IF(AF$45<AF$52+'Hydrogen Model Dashboard'!$B$44,AF35,0) -> 0 | AG63: =IF(AG$45<AG$52+'Hydrogen Model Dashboard'!$B$44,AG35,0) -> 1239.92351 | AH63: =IF(AH$45<AH$52+'Hydrogen Model Dashboard'!$B$44,AH35,0) -> 1245.257153 | AI63: =IF(AI$45<AI$52+'Hydrogen Model Dashboard'!$B$44,AI35,0) -> 1250.613739 | AJ63: =IF(AJ$45<AJ$52+'Hydrogen Model Dashboard'!$B$44,AJ35,0) -> 1255.993367
A64: Industrial | C64: GWh | F64: =IF(F$45<F$51+'Hydrogen Model Dashboard'!$B$44,F36,0) -> 0 | G64: =IF(G$45<G$51+'Hydrogen Model Dashboard'!$B$44,G36,0) -> 0 | H64: =IF(H$45<H$51+'Hydrogen Model Dashboard'!$B$44,H36,0) -> 0 | I64: =IF(I$45<I$51+'Hydrogen Model Dashboard'!$B$44,I36,0) -> 0 | J64: =IF(J$45<J$51+'Hydrogen Model Dashboard'!$B$44,J36,0) -> 0 | K64: =IF(K$45<K$51+'Hydrogen Model Dashboard'!$B$44,K36,0) -> 0 | L64: =IF(L$45<L$51+'Hydrogen Model Dashboard'!$B$44,L36,0) -> 0 | M64: =IF(M$45<M$51+'Hydrogen Model Dashboard'!$B$44,M36,0) -> 0 | N64: =IF(N$45<N$51+'Hydrogen Model Dashboard'!$B$44,N36,0) -> 0 | O64: =IF(O$45<O$51+'Hydrogen Model Dashboard'!$B$44,O36,0) -> 0 | P64: =IF(P$45<P$51+'Hydrogen Model Dashboard'!$B$44,P36,0) -> 0 | Q64: =IF(Q$45<Q$51+'Hydrogen Model Dashboard'!$B$44,Q36,0) -> 0 | R64: =IF(R$45<R$51+'Hydrogen Model Dashboard'!$B$44,R36,0) -> 0 | S64: =IF(S$45<S$51+'Hydrogen Model Dashboard'!$B$44,S36,0) -> 0 | T64: =IF(T$45<T$51+'Hydrogen Model Dashboard'!$B$44,T36,0) -> 0 | U64: =IF(U$45<U$51+'Hydrogen Model Dashboard'!$B$44,U36,0) -> 0 | V64: =IF(V$45<V$51+'Hydrogen Model Dashboard'!$B$44,V36,0) -> 0 | W64: =IF(W$45<W$51+'Hydrogen Model Dashboard'!$B$44,W36,0) -> 0 | X64: =IF(X$45<X$51+'Hydrogen Model Dashboard'!$B$44,X36,0) -> 0 | Y64: =IF(Y$45<Y$51+'Hydrogen Model Dashboard'!$B$44,Y36,0) -> 0 | Z64: =IF(Z$45<Z$51+'Hydrogen Model Dashboard'!$B$44,Z36,0) -> 0 | AA64: =IF(AA$45<AA$51+'Hydrogen Model Dashboard'!$B$44,AA36,0) -> 0 | AB64: =IF(AB$45<AB$51+'Hydrogen Model Dashboard'!$B$44,AB36,0) -> 0 | AC64: =IF(AC$45<AC$51+'Hydrogen Model Dashboard'!$B$44,AC36,0) -> 0 | AD64: =IF(AD$45<AD$51+'Hydrogen Model Dashboard'!$B$44,AD36,0) -> 0 | AE64: =IF(AE$45<AE$51+'Hydrogen Model Dashboard'!$B$44,AE36,0) -> 0 | AF64: =IF(AF$45<AF$51+'Hydrogen Model Dashboard'!$B$44,AF36,0) -> 0 | AG64: =IF(AG$45<AG$51+'Hydrogen Model Dashboard'!$B$44,AG36,0) -> 8.497036049 | AH64: =IF(AH$45<AH$51+'Hydrogen Model Dashboard'!$B$44,AH36,0) -> 8.280019409 | AI64: =IF(AI$45<AI$51+'Hydrogen Model Dashboard'!$B$44,AI36,0) -> 8.068545434 | AJ64: =IF(AJ$45<AJ$51+'Hydrogen Model Dashboard'!$B$44,AJ36,0) -> 7.862472562
A65: Commercial | C65: GWh | F65: =IF(F$45<F$50+'Hydrogen Model Dashboard'!$B$44,F37,0) -> 0 | G65: =IF(G$45<G$50+'Hydrogen Model Dashboard'!$B$44,G37,0) -> 0 | H65: =IF(H$45<H$50+'Hydrogen Model Dashboard'!$B$44,H37,0) -> 0 | I65: =IF(I$45<I$50+'Hydrogen Model Dashboard'!$B$44,I37,0) -> 0 | J65: =IF(J$45<J$50+'Hydrogen Model Dashboard'!$B$44,J37,0) -> 0 | K65: =IF(K$45<K$50+'Hydrogen Model Dashboard'!$B$44,K37,0) -> 0 | L65: =IF(L$45<L$50+'Hydrogen Model Dashboard'!$B$44,L37,0) -> 0 | M65: =IF(M$45<M$50+'Hydrogen Model Dashboard'!$B$44,M37,0) -> 0 | N65: =IF(N$45<N$50+'Hydrogen Model Dashboard'!$B$44,N37,0) -> 0 | O65: =IF(O$45<O$50+'Hydrogen Model Dashboard'!$B$44,O37,0) -> 0 | P65: =IF(P$45<P$50+'Hydrogen Model Dashboard'!$B$44,P37,0) -> 0 | Q65: =IF(Q$45<Q$50+'Hydrogen Model Dashboard'!$B$44,Q37,0) -> 0 | R65: =IF(R$45<R$50+'Hydrogen Model Dashboard'!$B$44,R37,0) -> 0 | S65: =IF(S$45<S$50+'Hydrogen Model Dashboard'!$B$44,S37,0) -> 0 | T65: =IF(T$45<T$50+'Hydrogen Model Dashboard'!$B$44,T37,0) -> 0 | U65: =IF(U$45<U$50+'Hydrogen Model Dashboard'!$B$44,U37,0) -> 0 | V65: =IF(V$45<V$50+'Hydrogen Model Dashboard'!$B$44,V37,0) -> 0 | W65: =IF(W$45<W$50+'Hydrogen Model Dashboard'!$B$44,W37,0) -> 0 | X65: =IF(X$45<X$50+'Hydrogen Model Dashboard'!$B$44,X37,0) -> 0 | Y65: =IF(Y$45<Y$50+'Hydrogen Model Dashboard'!$B$44,Y37,0) -> 0 | Z65: =IF(Z$45<Z$50+'Hydrogen Model Dashboard'!$B$44,Z37,0) -> 0 | AA65: =IF(AA$45<AA$50+'Hydrogen Model Dashboard'!$B$44,AA37,0) -> 0 | AB65: =IF(AB$45<AB$50+'Hydrogen Model Dashboard'!$B$44,AB37,0) -> 0 | AC65: =IF(AC$45<AC$50+'Hydrogen Model Dashboard'!$B$44,AC37,0) -> 0 | AD65: =IF(AD$45<AD$50+'Hydrogen Model Dashboard'!$B$44,AD37,0) -> 0 | AE65: =IF(AE$45<AE$50+'Hydrogen Model Dashboard'!$B$44,AE37,0) -> 0 | AF65: =IF(AF$45<AF$50+'Hydrogen Model Dashboard'!$B$44,AF37,0) -> 0 | AG65: =IF(AG$45<AG$50+'Hydrogen Model Dashboard'!$B$44,AG37,0) -> 619.0528362 | AH65: =IF(AH$45<AH$50+'Hydrogen Model Dashboard'!$B$44,AH37,0) -> 647.4778353 | AI65: =IF(AI$45<AI$50+'Hydrogen Model Dashboard'!$B$44,AI37,0) -> 677.2080228 | AJ65: =IF(AJ$45<AJ$50+'Hydrogen Model Dashboard'!$B$44,AJ37,0) -> 708.303329
A66: Residential | C66: GWh | F66: =IF(F$45<F$49+'Hydrogen Model Dashboard'!$B$44,F38,0) -> 0 | G66: =IF(G$45<G$49+'Hydrogen Model Dashboard'!$B$44,G38,0) -> 0 | H66: =IF(H$45<H$49+'Hydrogen Model Dashboard'!$B$44,H38,0) -> 0 | I66: =IF(I$45<I$49+'Hydrogen Model Dashboard'!$B$44,I38,0) -> 0 | J66: =IF(J$45<J$49+'Hydrogen Model Dashboard'!$B$44,J38,0) -> 0 | K66: =IF(K$45<K$49+'Hydrogen Model Dashboard'!$B$44,K38,0) -> 0 | L66: =IF(L$45<L$49+'Hydrogen Model Dashboard'!$B$44,L38,0) -> 0 | M66: =IF(M$45<M$49+'Hydrogen Model Dashboard'!$B$44,M38,0) -> 0 | N66: =IF(N$45<N$49+'Hydrogen Model Dashboard'!$B$44,N38,0) -> 0 | O66: =IF(O$45<O$49+'Hydrogen Model Dashboard'!$B$44,O38,0) -> 0 | P66: =IF(P$45<P$49+'Hydrogen Model Dashboard'!$B$44,P38,0) -> 0 | Q66: =IF(Q$45<Q$49+'Hydrogen Model Dashboard'!$B$44,Q38,0) -> 0 | R66: =IF(R$45<R$49+'Hydrogen Model Dashboard'!$B$44,R38,0) -> 0 | S66: =IF(S$45<S$49+'Hydrogen Model Dashboard'!$B$44,S38,0) -> 0 | T66: =IF(T$45<T$49+'Hydrogen Model Dashboard'!$B$44,T38,0) -> 0 | U66: =IF(U$45<U$49+'Hydrogen Model Dashboard'!$B$44,U38,0) -> 0 | V66: =IF(V$45<V$49+'Hydrogen Model Dashboard'!$B$44,V38,0) -> 0 | W66: =IF(W$45<W$49+'Hydrogen Model Dashboard'!$B$44,W38,0) -> 0 | X66: =IF(X$45<X$49+'Hydrogen Model Dashboard'!$B$44,X38,0) -> 0 | Y66: =IF(Y$45<Y$49+'Hydrogen Model Dashboard'!$B$44,Y38,0) -> 0 | Z66: =IF(Z$45<Z$49+'Hydrogen Model Dashboard'!$B$44,Z38,0) -> 0 | AA66: =IF(AA$45<AA$49+'Hydrogen Model Dashboard'!$B$44,AA38,0) -> 0 | AB66: =IF(AB$45<AB$49+'Hydrogen Model Dashboard'!$B$44,AB38,0) -> 0 | AC66: =IF(AC$45<AC$49+'Hydrogen Model Dashboard'!$B$44,AC38,0) -> 0 | AD66: =IF(AD$45<AD$49+'Hydrogen Model Dashboard'!$B$44,AD38,0) -> 0 | AE66: =IF(AE$45<AE$49+'Hydrogen Model Dashboard'!$B$44,AE38,0) -> 0 | AF66: =IF(AF$45<AF$49+'Hydrogen Model Dashboard'!$B$44,AF38,0) -> 0 | AG66: =IF(AG$45<AG$49+'Hydrogen Model Dashboard'!$B$44,AG38,0) -> 80.40851023 | AH66: =IF(AH$45<AH$49+'Hydrogen Model Dashboard'!$B$44,AH38,0) -> 80.12478645 | AI66: =IF(AI$45<AI$49+'Hydrogen Model Dashboard'!$B$44,AI38,0) -> 79.84206379 | AJ66: =IF(AJ$45<AJ$49+'Hydrogen Model Dashboard'!$B$44,AJ38,0) -> 79.56033873
A67: Total Potential to Blend | C67: GWh | F67: =SUM(F35:F38) -> 1393.991123 | G67: 1406.450754 | H67: 1419.331437 | I67: 1432.650805 | J67: 1446.427316 | K67: 1460.680293 | L67: 1475.429961 | M67: 1490.697491 | N67: 1506.505039 | O67: 1522.875793 | P67: 1539.83402 | Q67: 1557.405114 | R67: 1575.615649 | S67: 1594.493431 | T67: 1614.067555 | U67: 1634.368464 | V67: 1655.428009 | W67: 1677.279515 | X67: 1699.957849 | Y67: 1723.499485 | Z67: 1747.942587 | AA67: 1773.327077 | AB67: 1799.694719 | AC67: 1827.089205 | AD67: 1855.556242 | AE67: 1885.143641 | AF67: 1915.901418 | AG67: 1947.881893 | AH67: 1981.139795 | AI67: 2015.732371 | AJ67: 2051.719507
A69: Tonnes of Hydrogen Required | C69: Tonnes | F69: =$C$44*SUM(F63:F66)*1000 -> 0 | G69: =$C$44*SUM(G63:G66)*1000 -> 0 | H69: =$C$44*SUM(H63:H66)*1000 -> 0 | I69: =$C$44*SUM(I63:I66)*1000 -> 0 | J69: 0 | K69: 0 | L69: 0 | M69: 0 | N69: 0 | O69: 0 | P69: 0 | Q69: 0 | R69: 0 | S69: 0 | T69: 0 | U69: 0 | V69: 0 | W69: 0 | X69: 0 | Y69: 0 | Z69: 0 | AA69: 0 | AB69: 0 | AC69: 0 | AD69: =$C$44*SUM(AD63:AD66)*1000 -> 0 | AE69: =$C$44*SUM(AE63:AE66)*1000 -> 0 | AF69: 0 | AG69: 58436456.79 | AH69: 59434193.84 | AI69: 60471971.14 | AJ69: 61551585.22
A71: Gap in Price to Blend vs Wholesale | F71: =F45-F52 -> 116.8660224 | G71: =G45-G52 -> 108.5321691 | H71: =H45-H52 -> 104.408539 | I71: 100.303138 | J71: 96.21224199 | K71: 92.13211218 | L71: 88.05899037 | M71: 83.98909385 | N71: 79.91861053 | O71: 75.84369385 | P71: 71.76045764 | Q71: 67.66497089 | R71: 63.55325246 | S71: 59.42126561 | T71: 55.26491242 | U71: 51.08002821 | V71: 46.86237561 | W71: 42.60763871 | X71: 38.31141687 | Y71: 33.96921849 | Z71: 29.57645459 | AA71: 25.1284321 | AB71: 20.62034714 | AC71: 16.04727789 | AD71: 11.40417743 | AE71: 6.685866208 | AF71: 1.887024338 | AG71: -2.997816374 | AH71: -7.974280672 | AI71: -13.04815838 | AJ71: -18.22541324
A73: Avoided Tonnes of Carbon | F73: =SUM(F63:F66) -> 0 | G73: =G47-G54 -> 0 | H73: 0 | I73: 0 | J73: 0 | K73: 0 | L73: 0 | M73: 0 | N73: 0 | O73: 0 | P73: 0 | Q73: =Q47-Q54 -> 0 | R73: 0 | S73: 0 | T73: 0 | U73: 0 | V73: 0 | W73: 0 | X73: 0 | Y73: 0 | Z73: 0 | AA73: 0 | AB73: 0 | AC73: 0 | AD73: 0 | AE73: =AE47-AE54 -> 0 | AF73: 0 | AG73: 0 | AH73: 0 | AI73: 0 | AJ73: 0
A74: Tonnes Avoided Carbon per MWh of H2 | C74: =C55/2.2*1000/1000 -> 0.4181818182 | F74: =$C$74*SUM(F63:F66)*1000 -> 0 | G74: =$C$74*SUM(G63:G66)*1000 -> 0 | H74: =$C$74*SUM(H63:H66)*1000 -> 0 | I74: 0 | J74: 0 | K74: 0 | L74: 0 | M74: 0 | N74: 0 | O74: 0 | P74: 0 | Q74: 0 | R74: 0 | S74: 0 | T74: 0 | U74: 0 | V74: 0 | W74: 0 | X74: 0 | Y74: 0 | Z74: 0 | AA74: 0 | AB74: 0 | AC74: 0 | AD74: 0 | AE74: 0 | AF74: 0 | AG74: 814568.7916 | AH74: 828476.6413 | AI74: 842942.628 | AJ74: 857991.794
C76: =C55/2.2 -> 0.4181818182
C78: =C76*1000/1000 -> 0.4181818182

Sheet LCOE&S Inputs (hidden)
A1: Levelized Cost of Energy and Storage Assumptions
A6: Isolated Systems Medium | B6: Data sourced from Lazard LCOE estimates, DNV GL and Castalia Past Project Experience
A8: Scale | C8: Fixed Average Annual O&M Costs | D8: Capacity | E8: Lifetime | F8: Capital Cost per MW | G8: Variable O&M costs | H8: Diesel Cost/Litre | I8: Change in Fuel Cost YoY | J8: Heat Rate | K8: Capacity Factor | L8: Capital Cost Change YoY | M8: BTU per Litre of Diesel | N8: Litres per MMBTU | O8: Fuel Costs | P8: BTU/kWh to MMBtu/MWh
C9: [$/MWh] | D9: [MW] | E9: [Number] | F9: [$/MW] | G9: [$/MWh] | H9: [$/Litre] | I9: [$] | J9: BTU/KWh | K9: [%] | L9: [%] | M9: [BTU per Litre] | N9: [Litres per MMBTu] | O9: [$/MMBTu] | P9: BTU/kWh to MMBtu/MWh
A10: Diesel Generator 95% Capacity | C10: 1 | D10: 1 | E10: 20 | F10: =650*1000 -> 650000 | G10: 10 | H10: =0.91*'LCOGH Inputs'!G9 -> 0.6784555556 | I10: 0.01 | J10: 9500 | K10: 0.95 | L10: -0.005 | M10: 34210 | N10: =1000000/M10 -> 29.23121894 | O10: =H10*N10 -> 19.83208289 | P10: =1/1000 -> 0.001
A11: Diesel Generator 70% Capacity | C11: 1 | D11: 1 | E11: 20 | F11: =650*1000 -> 650000 | G11: 10 | H11: =0.91*'LCOGH Inputs'!G9 -> 0.6784555556 | I11: 0.01 | J11: 9500 | K11: 0.826 | L11: -0.005 | M11: 34210 | N11: =1000000/M11 -> 29.23121894 | O11: =H11*N11 -> 19.83208289 | P11: =1/1000 -> 0.001
C13: Fixed Average Annual O&M Costs | D13: Capacity | E13: Lifetime | F13: Capital Cost per MW | G13: Capacity Factor | H13: Capital Cost Change YoY
C14: [$/Year] | D14: [MW] | E14: [Number] | F14: [$/MW] | G14: [%] | H14: [%]
A15: Solar 17% Capacity | C15: =19*1000 -> 19000 | D15: 1 | E15: 20 | F15: =(1600)*1000 -> 1600000 | G15: 0.174 | H15: -0.015
C18: Capex per MW | D18: MW | E18: O&M Costs | F18: Lifetime | G18: HHV Efficiency | H18: Hours of Utilization | I18: Capex Change YoY
C19: [$/MW] | D19: [MW] | E19: [% CAPEX] | F19: [Years] | G19: [%] | H19: [Hours] | I19: [%]
A20: Hydrogen Fuel Cell (PEM) | C20: =2400*1000 -> 2400000 | D20: 1 | E20: 0.05 | F20: 20 | G20: 0.45 | H20: 24 | I20: -0.01
C23: Battery Power Capacity Needed | D23: Battery Storage Required | E23: Battery Efficiency | F23: Lifetime | G23: Days of Operation | H23: Cycles per Day | I23: Variable O&M | J23: Fixed O&M | K23: Charging Cost (Solar) | L23: Unit Cost for Capacity | M23: Unit Cost for Storage | N23: Capex Change YoY | O23: Charging Cost Change YoY
C24: [MW] | D24: [MWh] | E24: [%] | F24: [Number] | G24: [Number] | H24: [Number] | I24: [$/MWh] | J24: [% Capex] | K24: [$/MWh] | L24: [$/MW] | M24: [$/MWh] | N24: [%] | O24: [%]
A25: Lithium Ion + Solar | C25: 1 | D25: =(1-$G$15)*D15*24 -> 19.824 | E25: 0.87 | F25: 15 | G25: 365 | H25: 1 | I25: 3 | J25: 0.03 | K25: 105 | L25: =AVERAGE(58000,255000) -> 156500 | M25: =AVERAGE(226000,534000) -> 380000 | N25: -0.015 | O25: -0.005
A26: Other Battery + Solar | C26: 1 | D26: =(1-$G$15)*D15*24 -> 19.824 | E26: 0.87 | F26: 15 | G26: 365 | H26: 1 | I26: 3 | J26: 0.03 | K26: 105 | L26: =AVERAGE(58000,255000) -> 156500 | M26: =AVERAGE(226000,534000) -> 380000 | N26: -0.015 | O26: -0.005
A29: Isolated Systems Micro | D29: Data sourced from Lazard LCOE estimates, DNV GL and Castalia Past Project Experience
C31: Fixed Average Annual O&M Costs | D31: Capacity | E31: Lifetime | F31: Capital Cost per MW | G31: Variable O&M costs | H31: Diesel Cost/Litre | I31: Change in Fuel Cost YoY | J31: Heat Rate | K31: Capacity Factor | L31: Capital Cost Change YoY | M31: BTU per Litre of Diesel | N31: Litres per MMBTU | O31: Fuel Costs | P31: BTU/kWh to MMBtu/MWh
C32: [$/MWh] | D32: [MW] | E32: [Number] | F32: [$/MW] | G32: [$/MWh] | H32: [$/Litre] | I32: [$] | J32: BTU/KWh | K32: [%] | L32: [%] | M32: [BTU per Litre] | N32: [Litres per MMBTu] | O32: [$/MMBTu] | P32: BTU/kWh to MMBtu/MWh
A33: Diesel Generator 95% Capacity | C33: 1 | D33: 0.2 | E33: 20 | F33: =650*1000 -> 650000 | G33: 10 | H33: =0.91*'LCOGH Inputs'!G9 -> 0.6784555556 | I33: 0.01 | J33: 9500 | K33: 0.95 | L33: -0.005 | M33: 34210 | N33: =1000000/M33 -> 29.23121894 | O33: =H33*N33 -> 19.83208289 | P33: =1/1000 -> 0.001
A34: Diesel Generator 70% Capacity | C34: 1 | D34: 0.2 | E34: 20 | F34: =650*1000 -> 650000 | G34: 10 | H34: =0.91*'LCOGH Inputs'!G9 -> 0.6784555556 | I34: 0.01 | J34: 9500 | K34: 0.826 | L34: -0.005 | M34: 34210 | N34: =1000000/M34 -> 29.23121894 | O34: =H34*N34 -> 19.83208289 | P34: =1/1000 -> 0.001
C36: Fixed Average Annual O&M Costs | D36: Capacity | E36: Lifetime | F36: Capital Cost per MW | G36: Capacity Factor | H36: Capital Cost Change YoY
C37: [$/Year] | D37: [MW] | E37: [Number] | F37: [$/MW] | G37: [%] | H37: [%]
A38: Solar 17% Capacity | C38: =C15/5 -> 3800 | D38: 0.2 | E38: 20 | F38: =(1600)*1000 -> 1600000 | G38: 0.174 | H38: -0.015
C41: Capex per MW | D41: MW | E41: O&M Costs | F41: Lifetime | G41: HHV Efficiency | H41: Hours of Utilization | I41: Capex Change YoY
C42: [$/MW] | D42: [MW] | E42: [% CAPEX] | F42: [Years] | G42: [%] | H42: [Hours] | I42: [%]
A43: Hydrogen Fuel Cell (PEM) | C43: =2400*1000 -> 2400000 | D43: 0.2 | E43: 0.05 | F43: 20 | G43: 0.45 | H43: 24 | I43: -0.01
C46: Battery Power Capacity Needed | D46: Battery Storage Required | E46: Battery Efficiency | F46: Lifetime | G46: Days of Operation | H46: Cycles per Day | I46: Variable O&M | J46: Fixed O&M | K46: Charging Cost (Solar) | L46: Unit Cost for Capacity | M46: Unit Cost for Storage | N46: Capex Change YoY | O46: Charging Cost Change YoY
C47: [MW] | D47: [MWh] | E47: [%] | F47: [Number] | G47: [Number] | H47: [Number] | I47: [$/MWh] | J47: [% Capex] | K47: [$/MWh] | L47: [$/MW] | M47: [$/MWh] | N47: [%] | O47: [%]
A48: Lithium Ion + Solar | C48: 0.2 | D48: =(1-$G$38)*D38*24 -> 3.9648 | E48: 0.87 | F48: 15 | G48: 365 | H48: 1 | I48: 3 | J48: 0.03 | K48: 104 | L48: =AVERAGE(227000,356000) -> 291500 | M48: =AVERAGE(271000,661000) -> 466000 | N48: -0.015 | O48: -0.005
A49: Other Battery + Solar | C49: 0.2 | D49: =(1-$G$38)*D38*24 -> 3.9648 | E49: 0.87 | F49: 15 | G49: 365 | H49: 1 | I49: 3 | J49: 0.03 | K49: 104 | L49: =AVERAGE(227000,356000) -> 291500 | M49: =AVERAGE(271000,661000) -> 466000 | N49: -0.015 | O49: -0.005
A52: Storage plus Generation (Load Shifting) | D52: Data sourced from Lazard LCOE estimates, DNV GL and Castalia Past Project Experience
A54: Scale | C54: Benchmark Technology $/MWh | D54: Change YoY
C55: [$] | D55: [KW]
A56: Alternative Power | C56: 90 | D56: -0.0025
A57: Hydro from Dams | C57: 80 | D57: -0.0025
C59: Capex per MW | D59: MW | E59: O&M Costs | F59: Lifetime | G59: HHV Efficiency | H59: Hours of Utilization | I59: Capex Change YoY
C60: [$/MW] | D60: [MW] | E60: [% CAPEX] | F60: [Years] | G60: [%] | H60: [Hours] | I60: [%]
A61: Hydrogen Fuel Cell (PEM) | C61: =1500*1000 -> 1500000 | D61: 100 | E61: 0.05 | F61: 20 | G61: 0.55 | H61: 6.9 | I61: =IF('LCOGH Inputs'!I9="Base",-0.01,IF('LCOGH Inputs'!I9="High",-0.02,0)) -> -0.01
C63: Battery Power Capacity Needed | D63: Battery Storage Required | E63: Battery Efficiency | F63: Lifetime | G63: Days of Operation | H63: Cycles per Day | I63: Variable O&M | J63: Fixed O&M | K63: Charging Cost (Solar) | L63: Unit Cost for Capacity | M63: Unit Cost for Storage | N63: Capex Change YoY | O63: Charging Cost Change YoY
C64: [MW] | D64: [MWh] | E64: [%] | F64: [Number] | G64: [Number] | H64: [Number] | I64: [$/MWh] | J64: [% Capex] | K64: [$/MWh] | L64: [$/MW] | M64: [$/MWh] | N64: [%] | O64: [%]
A65: Lithium Ion + Solar | C65: 100 | D65: 690 | E65: 0.87 | F65: 15 | G65: 350 | H65: 1 | I65: 3 | J65: 0.03 | K65: 60 | L65: 55000 | M65: 296000 | N65: -0.01 | O65: -0.005
A66: Other Battery + Solar | C66: 100 | D66: 690 | E66: 0.87 | F66: 15 | G66: 350 | H66: 1 | I66: 3 | J66: 0.03 | K66: 60 | L66: 55000 | M66: 296000 | N66: -0.01 | O66: -0.005
A70: Other
A72: Hydrogen Cost USD/kg
B74: 2020 | C74: =B74+1 -> 2021 | D74: =C74+1 -> 2022 | E74: 2023 | F74: 2024 | G74: 2025 | H74: 2026 | I74: 2027 | J74: 2028 | K74: 2029 | L74: 2030 | M74: 2031 | N74: 2032 | O74: 2033 | P74: 2034 | Q74: 2035 | R74: 2036 | S74: 2037 | T74: 2038 | U74: 2039 | V74: 2040 | W74: 2041 | X74: 2042 | Y74: 2043 | Z74: 2044 | AA74: 2045 | AB74: 2046 | AC74: 2047 | AD74: 2048 | AE74: 2049 | AF74: 2050
A75: Efficient Cost | B75: =IF('H2 Production and Transport'!$K$18="USD",'LCOGH2 Calc'!C348,'LCOGH2 Calc'!C348*'LCOGH Inputs'!$G$9) -> 3.829409713 | C75: =IF('H2 Production and Transport'!$K$18="USD",'LCOGH2 Calc'!D348,'LCOGH2 Calc'!D348*'LCOGH Inputs'!$G$9) -> 3.654285467 | D75: =IF('H2 Production and Transport'!$K$18="USD",'LCOGH2 Calc'!E348,'LCOGH2 Calc'!E348*'LCOGH Inputs'!$G$9) -> 3.58506196 | E75: =IF('H2 Production and Transport'!$K$18="USD",'LCOGH2 Calc'!F348,'LCOGH2 Calc'!F348*'LCOGH Inputs'!$G$9) -> 3.517504939 | F75: =IF('H2 Production and Transport'!$K$18="USD",'LCOGH2 Calc'!G348,'LCOGH2 Calc'!G348*'LCOGH Inputs'!$G$9) -> 3.451567716 | G75: =IF('H2 Production and Transport'!$K$18="USD",'LCOGH2 Calc'!H348,'LCOGH2 Calc'!H348*'LCOGH Inputs'!$G$9) -> 3.387205043 | H75: =IF('H2 Production and Transport'!$K$18="USD",'LCOGH2 Calc'!I348,'LCOGH2 Calc'!I348*'LCOGH Inputs'!$G$9) -> 3.324373073 | I75: =IF('H2 Production and Transport'!$K$18="USD",'LCOGH2 Calc'!J348,'LCOGH2 Calc'!J348*'LCOGH Inputs'!$G$9) -> 3.263029306 | J75: =IF('H2 Production and Transport'!$K$18="USD",'LCOGH2 Calc'!K348,'LCOGH2 Calc'!K348*'LCOGH Inputs'!$G$9) -> 3.203132551 | K75: =IF('H2 Production and Transport'!$K$18="USD",'LCOGH2 Calc'!L348,'LCOGH2 Calc'!L348*'LCOGH Inputs'!$G$9) -> 3.144642882 | L75: =IF('H2 Production and Transport'!$K$18="USD",'LCOGH2 Calc'!M348,'LCOGH2 Calc'!M348*'LCOGH Inputs'!$G$9) -> 3.087521595 | M75: =IF('H2 Production and Transport'!$K$18="USD",'LCOGH2 Calc'!N348,'LCOGH2 Calc'!N348*'LCOGH Inputs'!$G$9) -> 3.031731172 | N75: =IF('H2 Production and Transport'!$K$18="USD",'LCOGH2 Calc'!O348,'LCOGH2 Calc'!O348*'LCOGH Inputs'!$G$9) -> 2.97723524 | O75: =IF('H2 Production and Transport'!$K$18="USD",'LCOGH2 Calc'!P348,'LCOGH2 Calc'!P348*'LCOGH Inputs'!$G$9) -> 2.923998534 | P75: =IF('H2 Production and Transport'!$K$18="USD",'LCOGH2 Calc'!Q348,'LCOGH2 Calc'!Q348*'LCOGH Inputs'!$G$9) -> 2.871986861 | Q75: =IF('H2 Production and Transport'!$K$18="USD",'LCOGH2 Calc'!R348,'LCOGH2 Calc'!R348*'LCOGH Inputs'!$G$9) -> 2.821167068 | R75: =IF('H2 Production and Transport'!$K$18="USD",'LCOGH2 Calc'!S348,'LCOGH2 Calc'!S348*'LCOGH Inputs'!$G$9) -> 2.771507006 | S75: =IF('H2 Production and Transport'!$K$18="USD",'LCOGH2 Calc'!T348,'LCOGH2 Calc'!T348*'LCOGH Inputs'!$G$9) -> 2.722975497 | T75: =IF('H2 Production and Transport'!$K$18="USD",'LCOGH2 Calc'!U348,'LCOGH2 Calc'!U348*'LCOGH Inputs'!$G$9) -> 2.675542305 | U75: =IF('H2 Production and Transport'!$K$18="USD",'LCOGH2 Calc'!V348,'LCOGH2 Calc'!V348*'LCOGH Inputs'!$G$9) -> 2.629178106 | V75: =IF('H2 Production and Transport'!$K$18="USD",'LCOGH2 Calc'!W348,'LCOGH2 Calc'!W348*'LCOGH Inputs'!$G$9) -> 2.583854453 | W75: =IF('H2 Production and Transport'!$K$18="USD",'LCOGH2 Calc'!X348,'LCOGH2 Calc'!X348*'LCOGH Inputs'!$G$9) -> 2.539543757 | X75: =IF('H2 Production and Transport'!$K$18="USD",'LCOGH2 Calc'!Y348,'LCOGH2 Calc'!Y348*'LCOGH Inputs'!$G$9) -> 2.496219253 | Y75: =IF('H2 Production and Transport'!$K$18="USD",'LCOGH2 Calc'!Z348,'LCOGH2 Calc'!Z348*'LCOGH Inputs'!$G$9) -> 2.453854974 | Z75: =IF('H2 Production and Transport'!$K$18="USD",'LCOGH2 Calc'!AA348,'LCOGH2 Calc'!AA348*'LCOGH Inputs'!$G$9) -> 2.412425727 | AA75: =IF('H2 Production and Transport'!$K$18="USD",'LCOGH2 Calc'!AB348,'LCOGH2 Calc'!AB348*'LCOGH Inputs'!$G$9) -> 2.371907071 | AB75: =IF('H2 Production and Transport'!$K$18="USD",'LCOGH2 Calc'!AC348,'LCOGH2 Calc'!AC348*'LCOGH Inputs'!$G$9) -> 2.332275286 | AC75: =IF('H2 Production and Transport'!$K$18="USD",'LCOGH2 Calc'!AD348,'LCOGH2 Calc'!AD348*'LCOGH Inputs'!$G$9) -> 2.293507357 | AD75: =IF('H2 Production and Transport'!$K$18="USD",'LCOGH2 Calc'!AE348,'LCOGH2 Calc'!AE348*'LCOGH Inputs'!$G$9) -> 2.255580946 | AE75: =IF('H2 Production and Transport'!$K$18="USD",'LCOGH2 Calc'!AF348,'LCOGH2 Calc'!AF348*'LCOGH Inputs'!$G$9) -> 2.218474376 | AF75: =IF('H2 Production and Transport'!$K$18="USD",'LCOGH2 Calc'!AG348,'LCOGH2 Calc'!AG348*'LCOGH Inputs'!$G$9) -> 2.182166605
A76: Micro Scale Onsite Wind Production | B76: 41.00780823 | C76: 37.35210225 | D76: 36.20080108 | E76: 35.08796546 | F76: 34.01229763 | G76: 32.97254379 | H76: 31.96749262 | I76: 30.99597389 | J76: 30.05685697 | K76: 29.14904957 | L76: 28.27149639 | M76: 27.42317788 | N76: 26.60310903 | O76: 25.8103382 | P76: 25.04394596 | Q76: 24.30304404 | R76: 23.58677423 | S76: 22.89430739 | T76: 22.22484246 | U76: 21.57760547 | V76: 20.95184869 | W76: 20.34684967 | X76: 19.76191043 | Y76: 19.19635659 | Z76: 18.64953662 | AA76: 18.12082101 | AB76: 17.60960157 | AC76: 17.11529066 | AD76: 16.63732054 | AE76: 16.17514265 | AF76: 15.72822702
A79: Energy output | B79: kg of H2 per MWh | C79: WACC
A80: [KWh per kg H2] | B80: [kg per MWh] | C80: [%]
A81: =39.4 -> 39.4 | B81: =1000/A81 -> 25.38071066 | C81: 0.08
A84: Hydrogen Storage (Sourced Zen - converted to USD)
B87: Small Scale | C87: Large Scale
A88: Daily Storage Capacity kg | B88: 500 | C88: =1000*18 -> 18000
A89: Life of Storage/Dispensary | B89: 20 | C89: 20
A90: Balance of Plant and Storage CAPEX | B90: =1500000*'LCOGH Inputs'!G11 -> 1223850 | C90: =1550000*18*'LCOGH Inputs'!G11 -> 22763610
A91: Cost of Energy per KWh | B91: =0.105197 -> 0.105197 | C91: =0.0808624741763049 -> 0.08086247418
A92: Fixed opex % Capex | B92: 0.05 | C92: 0.05
A93: KWh per kg of compression | B93: 7 | C93: 1
A94: Days of Operation | B94: 365 | C94: 365
A95: Capex Escalation | B95: -0.01 | C95: -0.015
A96: Power Cost Escalation | B96: -0.0025 | C96: -0.0025
A98: Small Scale Storage & Dispensing | B98: 2020 | C98: =B98+1 -> 2021 | D98: 2022 | E98: 2023 | F98: 2024 | G98: 2025 | H98: 2026 | I98: 2027 | J98: 2028 | K98: 2029 | L98: 2030 | M98: 2031 | N98: 2032 | O98: 2033 | P98: 2034 | Q98: 2035 | R98: 2036 | S98: 2037 | T98: 2038 | U98: 2039 | V98: 2040 | W98: 2041 | X98: 2042 | Y98: 2043 | Z98: 2044 | AA98: 2045 | AB98: 2046 | AC98: 2047 | AD98: 2048 | AE98: 2049 | AF98: 2050
A99: CAPEX | B99: =B90 -> 1223850 | C99: =$B$90*(1+$B$95)^COUNT($C$98:C98) -> 1211611.5 | D99: =$B$90*(1+$B$95)^COUNT($C$98:D98) -> 1199495.385 | E99: =$B$90*(1+$B$95)^COUNT($C$98:E98) -> 1187500.431 | F99: =$B$90*(1+$B$95)^COUNT($C$98:F98) -> 1175625.427 | G99: =$B$90*(1+$B$95)^COUNT($C$98:G98) -> 1163869.173 | H99: =$B$90*(1+$B$95)^COUNT($C$98:H98) -> 1152230.481 | I99: =$B$90*(1+$B$95)^COUNT($C$98:I98) -> 1140708.176 | J99: =$B$90*(1+$B$95)^COUNT($C$98:J98) -> 1129301.094 | K99: =$B$90*(1+$B$95)^COUNT($C$98:K98) -> 1118008.083 | L99: =$B$90*(1+$B$95)^COUNT($C$98:L98) -> 1106828.002 | M99: =$B$90*(1+$B$95)^COUNT($C$98:M98) -> 1095759.722 | N99: =$B$90*(1+$B$95)^COUNT($C$98:N98) -> 1084802.125 | O99: =$B$90*(1+$B$95)^COUNT($C$98:O98) -> 1073954.104 | P99: =$B$90*(1+$B$95)^COUNT($C$98:P98) -> 1063214.563 | Q99: =$B$90*(1+$B$95)^COUNT($C$98:Q98) -> 1052582.417 | R99: =$B$90*(1+$B$95)^COUNT($C$98:R98) -> 1042056.593 | S99: =$B$90*(1+$B$95)^COUNT($C$98:S98) -> 1031636.027 | T99: =$B$90*(1+$B$95)^COUNT($C$98:T98) -> 1021319.667 | U99: =$B$90*(1+$B$95)^COUNT($C$98:U98) -> 1011106.47 | V99: =$B$90*(1+$B$95)^COUNT($C$98:V98) -> 1000995.406 | W99: =$B$90*(1+$B$95)^COUNT($C$98:W98) -> 990985.4515 | X99: =$B$90*(1+$B$95)^COUNT($C$98:X98) -> 981075.597 | Y99: =$B$90*(1+$B$95)^COUNT($C$98:Y98) -> 971264.841 | Z99: =$B$90*(1+$B$95)^COUNT($C$98:Z98) -> 961552.1926 | AA99: =$B$90*(1+$B$95)^COUNT($C$98:AA98) -> 951936.6707 | AB99: =$B$90*(1+$B$95)^COUNT($C$98:AB98) -> 942417.304 | AC99: =$B$90*(1+$B$95)^COUNT($C$98:AC98) -> 932993.131 | AD99: =$B$90*(1+$B$95)^COUNT($C$98:AD98) -> 923663.1996 | AE99: =$B$90*(1+$B$95)^COUNT($C$98:AE98) -> 914426.5676 | AF99: =$B$90*(1+$B$95)^COUNT($C$98:AF98) -> 905282.302
A100: Fixed OPEX | B100: =$B$92*B99 -> 61192.5 | C100: =$B$92*C99 -> 60580.575 | D100: 59974.76925 | E100: 59375.02156 | F100: 58781.27134 | G100: 58193.45863 | H100: 57611.52404 | I100: 57035.4088 | J100: 56465.05471 | K100: 55900.40417 | L100: 55341.40012 | M100: 54787.98612 | N100: 54240.10626 | O100: 53697.7052 | P100: 53160.72815 | Q100: 52629.12087 | R100: 52102.82966 | S100: 51581.80136 | T100: 51065.98335 | U100: 50555.32351 | V100: 50049.77028 | W100: 49549.27258 | X100: 49053.77985 | Y100: 48563.24205 | Z100: 48077.60963 | AA100: 47596.83354 | AB100: 47120.8652 | AC100: 46649.65655 | AD100: 46183.15998 | AE100: 45721.32838 | AF100: 45264.1151
A101: Electricity Cost | B101: =B93*B88*B91*B94 -> 134389.1675 | C101: =B101*(1+$B$96) -> 134053.1946 | D101: 133718.0616 | E101: 133383.7664 | F101: 133050.307 | G101: 132717.6813 | H101: 132385.8871 | I101: 132054.9223 | J101: 131724.785 | K101: 131395.4731 | L101: 131066.9844 | M101: 130739.3169 | N101: 130412.4686 | O101: 130086.4375 | P101: 129761.2214 | Q101: 129436.8183 | R101: 129113.2263 | S101: 128790.4432 | T101: 128468.4671 | U101: 128147.2959 | V101: 127826.9277 | W101: 127507.3604 | X101: 127188.592 | Y101: 126870.6205 | Z101: 126553.4439 | AA101: 126237.0603 | AB101: 125921.4677 | AC101: 125606.664 | AD101: 125292.6473 | AE101: 124979.4157 | AF101: 124666.9672
A102: Annual Capex | B102: =-PMT($C$81,$B$89,B99) -> 124651.8258 | C102: 123405.3075 | D102: 122171.2544 | E102: 120949.5419 | F102: 119740.0465 | G102: 118542.646 | H102: 117357.2195 | I102: 116183.6474 | J102: 115021.8109 | K102: 113871.5928 | L102: 112732.8768 | M102: 111605.5481 | N102: 110489.4926 | O102: 109384.5977 | P102: 108290.7517 | Q102: 107207.8442 | R102: 106135.7657 | S102: 105074.4081 | T102: 104023.664 | U102: 102983.4274 | V102: 101953.5931 | W102: 100934.0571 | X102: 99924.71658 | Y102: 98925.46941 | Z102: 97936.21472 | AA102: 96956.85257 | AB102: 95987.28404 | AC102: 95027.4112 | AD102: 94077.13709 | AE102: 93136.36572 | AF102: 92205.00206
A103: Total Annual Cost | B103: =SUM(B100:B102) -> 320233.4933 | C103: =SUM(C100:C102) -> 318039.0771 | D103: 315864.0853 | E103: 313708.3299 | F103: 311571.6248 | G103: 309453.7859 | H103: 307354.6306 | I103: 305273.9785 | J103: 303211.6506 | K103: 301167.47 | L103: 299141.2614 | M103: 297132.8511 | N103: 295142.0675 | O103: 293168.7403 | P103: 291212.7012 | Q103: 289273.7834 | R103: 287351.8217 | S103: 285446.6526 | T103: 283558.1144 | U103: 281686.0468 | V103: 279830.291 | W103: 277990.6901 | X103: 276167.0884 | Y103: 274359.332 | Z103: 272567.2683 | AA103: 270790.7464 | AB103: 269029.6169 | AC103: 267283.7318 | AD103: 265552.9444 | AE103: 263837.1098 | AF103: 262136.0844
A105: Large Scale Storage & Dispensing
B106: 2020 | C106: =B106+1 -> 2021 | D106: 2022 | E106: 2023 | F106: 2024 | G106: 2025 | H106: 2026 | I106: 2027 | J106: 2028 | K106: 2029 | L106: 2030 | M106: 2031 | N106: 2032 | O106: 2033 | P106: 2034 | Q106: 2035 | R106: 2036 | S106: 2037 | T106: 2038 | U106: 2039 | V106: 2040 | W106: 2041 | X106: 2042 | Y106: 2043 | Z106: 2044 | AA106: 2045 | AB106: 2046 | AC106: 2047 | AD106: 2048 | AE106: 2049 | AF106: 2050
A107: CAPEX | B107: =C90 -> 22763610 | C107: =$C$90*(1+$C$95)^COUNT($C$98:C98) -> 22422155.85 | D107: =$C$90*(1+$C$95)^COUNT($C$98:D98) -> 22085823.51 | E107: =$C$90*(1+$C$95)^COUNT($C$98:E98) -> 21754536.16 | F107: =$C$90*(1+$C$95)^COUNT($C$98:F98) -> 21428218.12 | G107: =$C$90*(1+$C$95)^COUNT($C$98:G98) -> 21106794.85 | H107: =$C$90*(1+$C$95)^COUNT($C$98:H98) -> 20790192.92 | I107: =$C$90*(1+$C$95)^COUNT($C$98:I98) -> 20478340.03 | J107: =$C$90*(1+$C$95)^COUNT($C$98:J98) -> 20171164.93 | K107: =$C$90*(1+$C$95)^COUNT($C$98:K98) -> 19868597.45 | L107: =$C$90*(1+$C$95)^COUNT($C$98:L98) -> 19570568.49 | M107: =$C$90*(1+$C$95)^COUNT($C$98:M98) -> 19277009.97 | N107: =$C$90*(1+$C$95)^COUNT($C$98:N98) -> 18987854.82 | O107: =$C$90*(1+$C$95)^COUNT($C$98:O98) -> 18703036.99 | P107: =$C$90*(1+$C$95)^COUNT($C$98:P98) -> 18422491.44 | Q107: =$C$90*(1+$C$95)^COUNT($C$98:Q98) -> 18146154.07 | R107: =$C$90*(1+$C$95)^COUNT($C$98:R98) -> 17873961.76 | S107: =$C$90*(1+$C$95)^COUNT($C$98:S98) -> 17605852.33 | T107: =$C$90*(1+$C$95)^COUNT($C$98:T98) -> 17341764.54 | U107: =$C$90*(1+$C$95)^COUNT($C$98:U98) -> 17081638.08 | V107: =$C$90*(1+$C$95)^COUNT($C$98:V98) -> 16825413.51 | W107: =$C$90*(1+$C$95)^COUNT($C$98:W98) -> 16573032.3 | X107: =$C$90*(1+$C$95)^COUNT($C$98:X98) -> 16324436.82 | Y107: =$C$90*(1+$C$95)^COUNT($C$98:Y98) -> 16079570.27 | Z107: =$C$90*(1+$C$95)^COUNT($C$98:Z98) -> 15838376.71 | AA107: =$C$90*(1+$C$95)^COUNT($C$98:AA98) -> 15600801.06 | AB107: =$C$90*(1+$C$95)^COUNT($C$98:AB98) -> 15366789.05 | AC107: =$C$90*(1+$C$95)^COUNT($C$98:AC98) -> 15136287.21 | AD107: =$C$90*(1+$C$95)^COUNT($C$98:AD98) -> 14909242.9 | AE107: =$C$90*(1+$C$95)^COUNT($C$98:AE98) -> 14685604.26 | AF107: =$C$90*(1+$C$95)^COUNT($C$98:AF98) -> 14465320.19
A108: Fixed OPEX | B108: =$C$92*B107 -> 1138180.5 | C108: 1121107.793 | D108: 1104291.176 | E108: 1087726.808 | F108: 1071410.906 | G108: 1055339.742 | H108: 1039509.646 | I108: 1023917.001 | J108: 1008558.246 | K108: 993429.8727 | L108: 978528.4246 | M108: 963850.4983 | N108: 949392.7408 | O108: 935151.8497 | P108: 921124.5719 | Q108: 907307.7034 | R108: 893698.0878 | S108: 880292.6165 | T108: 867088.2272 | U108: 854081.9038 | V108: 841270.6753 | W108: 828651.6151 | X108: 816221.8409 | Y108: 803978.5133 | Z108: 791918.8356 | AA108: 780040.0531 | AB108: 768339.4523 | AC108: 756814.3605 | AD108: 745462.1451 | AE108: 734280.2129 | AF108: 723266.0097
A109: Electricity Cost | B109: =C93*C88*C91*C94 -> 531266.4553 | C109: =B109*(1+$C$96) -> 529938.2892 | D109: 528613.4435 | E109: 527291.9099 | F109: 525973.6801 | G109: 524658.7459 | H109: 523347.099 | I109: 522038.7313 | J109: 520733.6345 | K109: 519431.8004 | L109: 518133.2209 | M109: 516837.8878 | N109: 515545.7931 | O109: 514256.9286 | P109: 512971.2863 | Q109: 511688.8581 | R109: 510409.6359 | S109: 509133.6118 | T109: 507860.7778 | U109: 506591.1259 | V109: 505324.6481 | W109: 504061.3364 | X109: 502801.1831 | Y109: 501544.1801 | Z109: 500290.3197 | AA109: 499039.5939 | AB109: 497791.9949 | AC109: 496547.5149 | AD109: 495306.1461 | AE109: 494067.8808 | AF109: 492832.7111
A110: Annual Capex | B110: =-PMT($C$81,$C$89,B107) -> 2318523.959 | C110: 2283746.1 | D110: 2249489.908 | E110: 2215747.56 | F110: 2182511.346 | G110: 2149773.676 | H110: 2117527.071 | I110: 2085764.165 | J110: 2054477.702 | K110: 2023660.537 | L110: 1993305.629 | M110: 1963406.044 | N110: 1933954.954 | O110: 1904945.629 | P110: 1876371.445 | Q110: 1848225.873 | R110: 1820502.485 | S110: 1793194.948 | T110: 1766297.024 | U110: 1739802.568 | V110: 1713705.53 | W110: 1687999.947 | X110: 1662679.948 | Y110: 1637739.749 | Z110: 1613173.652 | AA110: 1588976.048 | AB110: 1565141.407 | AC110: 1541664.286 | AD110: 1518539.321 | AE110: 1495761.232 | AF110: 1473324.813
A111: Total Annual Cost | B111: =SUM(B108:B110) -> 3987970.915 | C111: =SUM(C108:C110) -> 3934792.182 | D111: 3882394.527 | E111: 3830766.278 | F111: 3779895.932 | G111: 3729772.164 | H111: 3680383.816 | I111: 3631719.898 | J111: 3583769.583 | K111: 3536522.21 | L111: 3489967.274 | M111: 3444094.431 | N111: 3398893.488 | O111: 3354354.408 | P111: 3310467.303 | Q111: 3267222.435 | R111: 3224610.209 | S111: 3182621.176 | T111: 3141246.029 | U111: 3100475.598 | V111: 3060300.853 | W111: 3020712.899 | X111: 2981702.972 | Y111: 2943262.442 | Z111: 2905382.808 | AA111: 2868055.694 | AB111: 2831272.854 | AC111: 2795026.161 | AD111: 2759307.613 | AE111: 2724109.325 | AF111: 2689423.534
A113: Micro Scale (Inferred)
A114: Total Annual Cost | B114: =B103/5 -> 64046.69865 | C114: =C103/5 -> 63607.81542 | D114: 63172.81706 | E114: 62741.66598 | F114: 62314.32497 | G114: 61890.75718 | H114: 61470.92613 | I114: 61054.7957 | J114: 60642.33012 | K114: 60233.494 | L114: 59828.25227 | M114: 59426.57022 | N114: 59028.4135 | O114: 58633.74807 | P114: 58242.54024 | Q114: 57854.75667 | R114: 57470.36433 | S114: 57089.33053 | T114: 56711.62289 | U114: 56337.20936 | V114: 55966.05821 | W114: 55598.13802 | X114: 55233.41768 | Y114: 54871.86639 | Z114: 54513.45366 | AA114: 54158.14929 | AB114: 53805.92338 | AC114: 53456.74635 | AD114: 53110.58888 | AE114: 52767.42197 | AF114: 52427.21687

Sheet LCOGH2 Calc (hidden)
A1: Levelised Cost of Green Hydrogen Per Kilogram Calculations
A4: Area No. | B4: WACC | C4: Location | D4: Plant Name | E4: Year | F4: ='LCOGH Plant Assumptions'!E4 -> Scale | G4: Fixed O&M costs per year | H4: Daily Production Capacity | I4: All-In Capex | J4: Variable O&M Units per Year | K4: Variable O&M cost unit rate | L4: Electricity Escalation Method | M4: Water Escalation Method | N4: Base Cost per KWh of Power | O4: Escalated Cost per KWh | P4: Electricity Consumption per kg of H2 | Q4: Escalated Electricity Consumption | R4: Base Water Tariff per Litre | S4: Escalated Water Tariff per Litre | T4: Litres of Water per kg of H2 | U4: Lifetime | V4: Utilization Factor | W4: Annual output based on Utilization | X4: Escalated Capex | Y4: Annualized capital cost | Z4: Domestic Currency | AA4: USD to NZD | AB4: LCU to NZD | AC4: LCU to USD | AD4: Output Currency | AE4: Capital cost recovery factor per kg | AF4: Water Cost per kg | AG4: Electricity Cost per kg | AH4: Other Costs per kg | AI4: Total Variable and other costs per kg | AJ4: Total LCOGH | AK4: Cost per MJ
A5: [Number] | B5: [%] | C5: [Text] | D5: [Text] | E5: [Year] | F5: [Text] | G5: [$/Year] | H5: [kg/day] | I5: [$] | J5: [Units/Year] | K5: [$] | L5: [Text] | M5: [Text] | N5: [LCU/KWh] | O5: [LCU/KWh] | P5: [KWh/kg] | Q5: [KWh/kg] | R5: [LCU/Litre] | S5: [LCU/Litre] | T5: [Litres/kg] | U5: [Years] | V5: [%] | W5: [kg/Year] | X5: [$] | Y5: [$/Year] | Z5: [Text] | AA5: [$/NZD] | AB5: [LCU/NZD] | AC5: [USD/LCU] | AD5: [Text] | AE5: ='H2 Transport'!BL5 -> [USD/kg] | AF5: =AE5 -> [USD/kg] | AG5: =AF5 -> [USD/kg] | AH5: =AG5 -> [USD/kg] | AI5: =AH5 -> [USD/kg] | AJ5: =AI5 -> [USD/kg] | AK5: =CONCATENATE("[",AD6,"/MJ]") -> [USD/MJ]
A6: ='LCOGH Plant Assumptions'!$A$6 -> 1 | B6: ='LCOGH Plant Assumptions'!$B$6 -> 0.08 | C6: =INDEX('LCOGH Plant Assumptions'!$C$6:$C$15,MATCH('LCOGH2 Calc'!A6,'LCOGH Plant Assumptions'!$A$6:$A$15,0)) -> New Zealand 1 | D6: =IF('LCOGH Plant Assumptions'!D6="","",'LCOGH Plant Assumptions'!D6) -> NZ Grid Largest Scale | E6: ='LCOGH Plant Assumptions'!Q6 -> 2020 | F6: ='LCOGH Plant Assumptions'!$E$6 -> Largest Efficient Scale | G6: =INDEX('LCOGH Inputs'!$C$25:$C$29,MATCH('LCOGH2 Calc'!F6,'LCOGH Inputs'!$A$25:$A$29,0)) -> 3937500 | H6: =INDEX('LCOGH Inputs'!$D$25:$D$29,MATCH('LCOGH2 Calc'!F6,'LCOGH Inputs'!$A$25:$A$29,0)) -> 120440 | I6: =INDEX('LCOGH Inputs'!$G$25:$G$29,MATCH('LCOGH2 Calc'!F6,'LCOGH Inputs'!$A$25:$A$29,0)) -> 198750000 | J6: =INDEX('LCOGH Inputs'!$K$25:$K$29,MATCH('LCOGH2 Calc'!F6,'LCOGH Inputs'!$A$25:$A$29,0)) -> 0 | K6: =INDEX('LCOGH Inputs'!$L$25:$L$29,MATCH('LCOGH2 Calc'!F6,'LCOGH Inputs'!$A$25:$A$29,0)) -> 70000 | L6: ='LCOGH Plant Assumptions'!$M$6 -> Constant | M6: ='LCOGH Plant Assumptions'!$N$6 -> Constant | N6: ='LCOGH Plant Assumptions'!$X$6 -> 0.1079 | O6: =IF(L6="Path",O7,N6) -> 0.1079 | P6: =INDEX('LCOGH Inputs'!$I$25:$I$29,MATCH('LCOGH2 Calc'!F6,'LCOGH Inputs'!$A$25:$A$29,0)) -> 55 | Q6: =P6 -> 55 | R6: ='LCOGH Plant Assumptions'!$Y$6 -> 0.000197 | S6: =R6 -> 0.000197 | T6: =INDEX('LCOGH Inputs'!$H$25:$H$29,MATCH('LCOGH2 Calc'!F6,'LCOGH Inputs'!$A$25:$A$29,0)) -> 18 | U6: 20 | V6: ='LCOGH Plant Assumptions'!$L$6 -> 0.9 | W6: =V6*H6*365 -> 39564540 | X6: =IF(E6=2020,I6,I6*(1+'LCOGH Plant Assumptions'!$P$6)^(1+COUNT(W$6:W6))) -> 198750000 | Y6: =PMT($B$6,U6,-X6) -> 20243126.5 | Z6: ='LCOGH Plant Assumptions'!$S$6 -> NZD | AA6: ='LCOGH Inputs'!$E$9 -> 1.341281669 | AB6: =INDEX('LCOGH Inputs'!$F$9:$F$14,MATCH('LCOGH2 Calc'!Z6,'LCOGH Inputs'!$D$9:$D$14,0)) -> 1 | AC6: =INDEX('LCOGH Inputs'!$G$9:$G$14,MATCH('LCOGH2 Calc'!Z6,'LCOGH Inputs'!$D$9:$D$14,0)) -> 0.7455555556 | AD6: ='LCOGH Plant Assumptions'!$T$6 -> USD | AE6: =IF(AD6="NZD",AA6*Y6/W6,Y6/W6) -> 0.5116482209 | AF6: =IF(AD6="NZD",T6*S6*AB6,T6*S6*AC6) -> 0.00264374 | AG6: =IF(AD6="NZD",O6*Q6*AB6,O6*Q6*AC6) -> 4.424499444 | AH6: =IF(AD6="NZD",AA6*((J6*K6)+G6)/W6,((J6*K6)+G6)/W6) -> 0.09952093466 | AI6: =SUM(AF6:AH6) -> 4.526664119 | AJ6: =AE6+AI6 -> 5.03831234 | AK6: =AJ6/'LCOGH Inputs'!$B$135 -> 0.04198593617 | AL6: =D6&E6 -> NZ Grid Largest Scale2020
A7: ='LCOGH Plant Assumptions'!$A$6 -> 1 | B7: ='LCOGH Plant Assumptions'!$B$6 -> 0.08 | C7: =INDEX('LCOGH Plant Assumptions'!$C$6:$C$15,MATCH('LCOGH2 Calc'!A7,'LCOGH Plant Assumptions'!$A$6:$A$15,0)) -> New Zealand 1 | D7: =D6 -> NZ Grid Largest Scale | E7: =E6+1 -> 2021 | F7: ='LCOGH Plant Assumptions'!$E$6 -> Largest Efficient Scale | G7: =INDEX('LCOGH Inputs'!$C$25:$C$29,MATCH('LCOGH2 Calc'!F7,'LCOGH Inputs'!$A$25:$A$29,0)) -> 3937500 | H7: =INDEX('LCOGH Inputs'!$D$25:$D$29,MATCH('LCOGH2 Calc'!F7,'LCOGH Inputs'!$A$25:$A$29,0)) -> 120440 | I7: =INDEX('LCOGH Inputs'!$G$25:$G$29,MATCH('LCOGH2 Calc'!F7,'LCOGH Inputs'!$A$25:$A$29,0)) -> 198750000 | J7: =INDEX('LCOGH Inputs'!$K$25:$K$29,MATCH('LCOGH2 Calc'!F7,'LCOGH Inputs'!$A$25:$A$29,0)) -> 0 | K7: =INDEX('LCOGH Inputs'!$L$25:$L$29,MATCH('LCOGH2 Calc'!F7,'LCOGH Inputs'!$A$25:$A$29,0)) -> 70000 | L7: ='LCOGH Plant Assumptions'!$M$6 -> Constant | M7: ='LCOGH Plant Assumptions'!$N$6 -> Constant | N7: ='LCOGH Plant Assumptions'!$X$6 -> 0.1079 | O7: =IF(L7="Path",INDEX('LCOGH Inputs'!$I$69:$AL$69,MATCH('LCOGH2 Calc'!E7,'LCOGH Inputs'!$I$68:$AL$68,0)),N7*(1+'LCOGH Inputs'!$C$69)^(COUNT('LCOGH2 Calc'!N$7:N7))) -> 0.10763025 | P7: =INDEX('LCOGH Inputs'!$I$25:$I$29,MATCH('LCOGH2 Calc'!F7,'LCOGH Inputs'!$A$25:$A$29,0)) -> 55 | Q7: =IF('LCOGH Plant Assumptions'!$O$6="Yes",P6*(1+'LCOGH Plant Assumptions'!$R$6)^(1+COUNT(P$6:P6)),P6) -> 53.68792 | R7: ='LCOGH Plant Assumptions'!$Y$6 -> 0.000197 | S7: =IF(M7="Path",INDEX('LCOGH Inputs'!$I$36:$AL$36,MATCH('LCOGH2 Calc'!E7,'LCOGH Inputs'!$I$35:$AL$35,0)),R7*(1+'LCOGH Inputs'!$G$36)^(COUNT('LCOGH2 Calc'!R$7:R7))) -> 0.00019897 | T7: =INDEX('LCOGH Inputs'!$H$25:$H$29,MATCH('LCOGH2 Calc'!F7,'LCOGH Inputs'!$A$25:$A$29,0)) -> 18 | U7: 20 | V7: ='LCOGH Plant Assumptions'!$L$6 -> 0.9 | W7: =V7*H7*365 -> 39564540 | X7: =IF(E7=2020,I7,I7*(1+'LCOGH Plant Assumptions'!$P$6)^(1+COUNT(W$6:W7))) -> 179158953.3 | Y7: 18247735.13 | Z7: ='LCOGH Plant Assumptions'!$S$6 -> NZD | AA7: ='LCOGH Inputs'!$E$9 -> 1.341281669 | AB7: =INDEX('LCOGH Inputs'!$F$9:$F$14,MATCH('LCOGH2 Calc'!Z7,'LCOGH Inputs'!$D$9:$D$14,0)) -> 1 | AC7: =INDEX('LCOGH Inputs'!$G$9:$G$14,MATCH('LCOGH2 Calc'!Z7,'LCOGH Inputs'!$D$9:$D$14,0)) -> 0.7455555556 | AD7: ='LCOGH Plant Assumptions'!$T$6 -> USD | AE7: =IF(AD7="NZD",AA7*Y7/W7,Y7/W7) -> 0.4612143886 | AF7: =IF(AD7="NZD",T7*S7*AB7,T7*S7*AC7) -> 0.0026701774 | AG7: =IF(AD7="NZD",O7*Q7*AB7,O7*Q7*AC7) -> 4.308151214 | AH7: =IF(AD7="NZD",AA7*((J7*K7)+G7)/W7,((J7*K7)+G7)/W7) -> 0.09952093466 | AI7: =SUM(AF7:AH7) -> 4.410342326 | AJ7: 4.871556715 | AK7: =AJ7/'LCOGH Inputs'!$B$135 -> 0.04059630596 | AL7: =D7&E7 -> NZ Grid Largest Scale2021
A8: ='LCOGH Plant Assumptions'!$A$6 -> 1 | B8: ='LCOGH Plant Assumptions'!$B$6 -> 0.08 | C8: =INDEX('LCOGH Plant Assumptions'!$C$6:$C$15,MATCH('LCOGH2 Calc'!A8,'LCOGH Plant Assumptions'!$A$6:$A$15,0)) -> New Zealand 1 | D8: =D7 -> NZ Grid Largest Scale | E8: =E7+1 -> 2022 | F8: ='LCOGH Plant Assumptions'!$E$6 -> Largest Efficient Scale | G8: =INDEX('LCOGH Inputs'!$C$25:$C$29,MATCH('LCOGH2 Calc'!F8,'LCOGH Inputs'!$A$25:$A$29,0)) -> 3937500 | H8: =INDEX('LCOGH Inputs'!$D$25:$D$29,MATCH('LCOGH2 Calc'!F8,'LCOGH Inputs'!$A$25:$A$29,0)) -> 120440 | I8: =INDEX('LCOGH Inputs'!$G$25:$G$29,MATCH('LCOGH2 Calc'!F8,'LCOGH Inputs'!$A$25:$A$29,0)) -> 198750000 | J8: =INDEX('LCOGH Inputs'!$K$25:$K$29,MATCH('LCOGH2 Calc'!F8,'LCOGH Inputs'!$A$25:$A$29,0)) -> 0 | K8: =INDEX('LCOGH Inputs'!$L$25:$L$29,MATCH('LCOGH2 Calc'!F8,'LCOGH Inputs'!$A$25:$A$29,0)) -> 70000 | L8: ='LCOGH Plant Assumptions'!$M$6 -> Constant | M8: ='LCOGH Plant Assumptions'!$N$6 -> Constant | N8: ='LCOGH Plant Assumptions'!$X$6 -> 0.1079 | O8: =IF(L8="Path",INDEX('LCOGH Inputs'!$I$69:$AL$69,MATCH('LCOGH2 Calc'!E8,'LCOGH Inputs'!$I$68:$AL$68,0)),N8*(1+'LCOGH Inputs'!$C$69)^(COUNT('LCOGH2 Calc'!N$7:N8))) -> 0.1073611744 | P8: =INDEX('LCOGH Inputs'!$I$25:$I$29,MATCH('LCOGH2 Calc'!F8,'LCOGH Inputs'!$A$25:$A$29,0)) -> 55 | Q8: =IF('LCOGH Plant Assumptions'!$O$6="Yes",P7*(1+'LCOGH Plant Assumptions'!$R$6)^(1+COUNT(P$6:P7)),P7) -> 53.04366496 | R8: ='LCOGH Plant Assumptions'!$Y$6 -> 0.000197 | S8: =IF(M8="Path",INDEX('LCOGH Inputs'!$I$36:$AL$36,MATCH('LCOGH2 Calc'!E8,'LCOGH Inputs'!$I$35:$AL$35,0)),R8*(1+'LCOGH Inputs'!$G$36)^(COUNT('LCOGH2 Calc'!R$7:R8))) -> 0.0002009597 | T8: =INDEX('LCOGH Inputs'!$H$25:$H$29,MATCH('LCOGH2 Calc'!F8,'LCOGH Inputs'!$A$25:$A$29,0)) -> 18 | U8: 20 | V8: ='LCOGH Plant Assumptions'!$L$6 -> 0.9 | W8: 39564540 | X8: =IF(E8=2020,I8,I8*(1+'LCOGH Plant Assumptions'!$P$6)^(1+COUNT(W$6:W8))) -> 173067548.9 | Y8: 17627312.13 | Z8: ='LCOGH Plant Assumptions'!$S$6 -> NZD | AA8: ='LCOGH Inputs'!$E$9 -> 1.341281669 | AB8: =INDEX('LCOGH Inputs'!$F$9:$F$14,MATCH('LCOGH2 Calc'!Z8,'LCOGH Inputs'!$D$9:$D$14,0)) -> 1 | AC8: =INDEX('LCOGH Inputs'!$G$9:$G$14,MATCH('LCOGH2 Calc'!Z8,'LCOGH Inputs'!$D$9:$D$14,0)) -> 0.7455555556 | AD8: ='LCOGH Plant Assumptions'!$T$6 -> USD | AE8: 0.4455330994 | AF8: 0.002696879174 | AG8: 4.245812266 | AH8: 0.09952093466 | AI8: 4.34803008 | AJ8: 4.793563179 | AK8: =AJ8/'LCOGH Inputs'!$B$135 -> 0.03994635983 | AL8: NZ Grid Largest Scale2022
A9: ='LCOGH Plant Assumptions'!$A$6 -> 1 | B9: ='LCOGH Plant Assumptions'!$B$6 -> 0.08 | C9: =INDEX('LCOGH Plant Assumptions'!$C$6:$C$15,MATCH('LCOGH2 Calc'!A9,'LCOGH Plant Assumptions'!$A$6:$A$15,0)) -> New Zealand 1 | D9: NZ Grid Largest Scale | E9: 2023 | F9: ='LCOGH Plant Assumptions'!$E$6 -> Largest Efficient Scale | G9: =INDEX('LCOGH Inputs'!$C$25:$C$29,MATCH('LCOGH2 Calc'!F9,'LCOGH Inputs'!$A$25:$A$29,0)) -> 3937500 | H9: =INDEX('LCOGH Inputs'!$D$25:$D$29,MATCH('LCOGH2 Calc'!F9,'LCOGH Inputs'!$A$25:$A$29,0)) -> 120440 | I9: =INDEX('LCOGH Inputs'!$G$25:$G$29,MATCH('LCOGH2 Calc'!F9,'LCOGH Inputs'!$A$25:$A$29,0)) -> 198750000 | J9: =INDEX('LCOGH Inputs'!$K$25:$K$29,MATCH('LCOGH2 Calc'!F9,'LCOGH Inputs'!$A$25:$A$29,0)) -> 0 | K9: =INDEX('LCOGH Inputs'!$L$25:$L$29,MATCH('LCOGH2 Calc'!F9,'LCOGH Inputs'!$A$25:$A$29,0)) -> 70000 | L9: ='LCOGH Plant Assumptions'!$M$6 -> Constant | M9: ='LCOGH Plant Assumptions'!$N$6 -> Constant | N9: ='LCOGH Plant Assumptions'!$X$6 -> 0.1079 | O9: =IF(L9="Path",INDEX('LCOGH Inputs'!$I$69:$AL$69,MATCH('LCOGH2 Calc'!E9,'LCOGH Inputs'!$I$68:$AL$68,0)),N9*(1+'LCOGH Inputs'!$C$69)^(COUNT('LCOGH2 Calc'!N$7:N9))) -> 0.1070927714 | P9: =INDEX('LCOGH Inputs'!$I$25:$I$29,MATCH('LCOGH2 Calc'!F9,'LCOGH Inputs'!$A$25:$A$29,0)) -> 55 | Q9: =IF('LCOGH Plant Assumptions'!$O$6="Yes",P8*(1+'LCOGH Plant Assumptions'!$R$6)^(1+COUNT(P$6:P8)),P8) -> 52.40714098 | R9: ='LCOGH Plant Assumptions'!$Y$6 -> 0.000197 | S9: =IF(M9="Path",INDEX('LCOGH Inputs'!$I$36:$AL$36,MATCH('LCOGH2 Calc'!E9,'LCOGH Inputs'!$I$35:$AL$35,0)),R9*(1+'LCOGH Inputs'!$G$36)^(COUNT('LCOGH2 Calc'!R$7:R9))) -> 0.000202969297 | T9: =INDEX('LCOGH Inputs'!$H$25:$H$29,MATCH('LCOGH2 Calc'!F9,'LCOGH Inputs'!$A$25:$A$29,0)) -> 18 | U9: 20 | V9: ='LCOGH Plant Assumptions'!$L$6 -> 0.9 | W9: 39564540 | X9: =IF(E9=2020,I9,I9*(1+'LCOGH Plant Assumptions'!$P$6)^(1+COUNT(W$6:W9))) -> 167183252.3 | Y9: 17027983.52 | Z9: ='LCOGH Plant Assumptions'!$S$6 -> NZD | AA9: ='LCOGH Inputs'!$E$9 -> 1.341281669 | AB9: =INDEX('LCOGH Inputs'!$F$9:$F$14,MATCH('LCOGH2 Calc'!Z9,'LCOGH Inputs'!$D$9:$D$14,0)) -> 1 | AC9: =INDEX('LCOGH Inputs'!$G$9:$G$14,MATCH('LCOGH2 Calc'!Z9,'LCOGH Inputs'!$D$9:$D$14,0)) -> 0.7455555556 | AD9: ='LCOGH Plant Assumptions'!$T$6 -> USD | AE9: 0.430384974 | AF9: 0.002723847966 | AG9: 4.184375363 | AH9: 0.09952093466 | AI9: 4.286620145 | AJ9: 4.717005119 | AK9: =AJ9/'LCOGH Inputs'!$B$135 -> 0.03930837599 | AL9: NZ Grid Largest Scale2023
A10: ='LCOGH Plant Assumptions'!$A$6 -> 1 | B10: ='LCOGH Plant Assumptions'!$B$6 -> 0.08 | C10: =INDEX('LCOGH Plant Assumptions'!$C$6:$C$15,MATCH('LCOGH2 Calc'!A10,'LCOGH Plant Assumptions'!$A$6:$A$15,0)) -> New Zealand 1 | D10: NZ Grid Largest Scale | E10: 2024 | F10: ='LCOGH Plant Assumptions'!$E$6 -> Largest Efficient Scale | G10: =INDEX('LCOGH Inputs'!$C$25:$C$29,MATCH('LCOGH2 Calc'!F10,'LCOGH Inputs'!$A$25:$A$29,0)) -> 3937500 | H10: =INDEX('LCOGH Inputs'!$D$25:$D$29,MATCH('LCOGH2 Calc'!F10,'LCOGH Inputs'!$A$25:$A$29,0)) -> 120440 | I10: =INDEX('LCOGH Inputs'!$G$25:$G$29,MATCH('LCOGH2 Calc'!F10,'LCOGH Inputs'!$A$25:$A$29,0)) -> 198750000 | J10: =INDEX('LCOGH Inputs'!$K$25:$K$29,MATCH('LCOGH2 Calc'!F10,'LCOGH Inputs'!$A$25:$A$29,0)) -> 0 | K10: =INDEX('LCOGH Inputs'!$L$25:$L$29,MATCH('LCOGH2 Calc'!F10,'LCOGH Inputs'!$A$25:$A$29,0)) -> 70000 | L10: ='LCOGH Plant Assumptions'!$M$6 -> Constant | M10: ='LCOGH Plant Assumptions'!$N$6 -> Constant | N10: ='LCOGH Plant Assumptions'!$X$6 -> 0.1079 | O10: =IF(L10="Path",INDEX('LCOGH Inputs'!$I$69:$AL$69,MATCH('LCOGH2 Calc'!E10,'LCOGH Inputs'!$I$68:$AL$68,0)),N10*(1+'LCOGH Inputs'!$C$69)^(COUNT('LCOGH2 Calc'!N$7:N10))) -> 0.1068250395 | P10: =INDEX('LCOGH Inputs'!$I$25:$I$29,MATCH('LCOGH2 Calc'!F10,'LCOGH Inputs'!$A$25:$A$29,0)) -> 55 | Q10: =IF('LCOGH Plant Assumptions'!$O$6="Yes",P9*(1+'LCOGH Plant Assumptions'!$R$6)^(1+COUNT(P$6:P9)),P9) -> 51.77825529 | R10: ='LCOGH Plant Assumptions'!$Y$6 -> 0.000197 | S10: =IF(M10="Path",INDEX('LCOGH Inputs'!$I$36:$AL$36,MATCH('LCOGH2 Calc'!E10,'LCOGH Inputs'!$I$35:$AL$35,0)),R10*(1+'LCOGH Inputs'!$G$36)^(COUNT('LCOGH2 Calc'!R$7:R10))) -> 0.00020499899 | T10: =INDEX('LCOGH Inputs'!$H$25:$H$29,MATCH('LCOGH2 Calc'!F10,'LCOGH Inputs'!$A$25:$A$29,0)) -> 18 | U10: 20 | V10: ='LCOGH Plant Assumptions'!$L$6 -> 0.9 | W10: 39564540 | X10: =IF(E10=2020,I10,I10*(1+'LCOGH Plant Assumptions'!$P$6)^(1+COUNT(W$6:W10))) -> 161499021.7 | Y10: 16449032.08 | Z10: ='LCOGH Plant Assumptions'!$S$6 -> NZD | AA10: ='LCOGH Inputs'!$E$9 -> 1.341281669 | AB10: =INDEX('LCOGH Inputs'!$F$9:$F$14,MATCH('LCOGH2 Calc'!Z10,'LCOGH Inputs'!$D$9:$D$14,0)) -> 1 | AC10: =INDEX('LCOGH Inputs'!$G$9:$G$14,MATCH('LCOGH2 Calc'!Z10,'LCOGH Inputs'!$D$9:$D$14,0)) -> 0.7455555556 | AD10: ='LCOGH Plant Assumptions'!$T$6 -> USD | AE10: 0.4157518849 | AF10: 0.002751086445 | AG10: =IF(AD10="NZD",O10*Q10*AB10,O10*Q10*AC10) -> 4.123827451 | AH10: 0.09952093466 | AI10: 4.226099472 | AJ10: 4.641851357 | AK10: =AJ10/'LCOGH Inputs'!$B$135 -> 0.03868209464 | AL10: NZ Grid Largest Scale2024
A11: ='LCOGH Plant Assumptions'!$A$6 -> 1 | B11: ='LCOGH Plant Assumptions'!$B$6 -> 0.08 | C11: =INDEX('LCOGH Plant Assumptions'!$C$6:$C$15,MATCH('LCOGH2 Calc'!A11,'LCOGH Plant Assumptions'!$A$6:$A$15,0)) -> New Zealand 1 | D11: NZ Grid Largest Scale | E11: 2025 | F11: ='LCOGH Plant Assumptions'!$E$6 -> Largest Efficient Scale | G11: =INDEX('LCOGH Inputs'!$C$25:$C$29,MATCH('LCOGH2 Calc'!F11,'LCOGH Inputs'!$A$25:$A$29,0)) -> 3937500 | H11: =INDEX('LCOGH Inputs'!$D$25:$D$29,MATCH('LCOGH2 Calc'!F11,'LCOGH Inputs'!$A$25:$A$29,0)) -> 120440 | I11: =INDEX('LCOGH Inputs'!$G$25:$G$29,MATCH('LCOGH2 Calc'!F11,'LCOGH Inputs'!$A$25:$A$29,0)) -> 198750000 | J11: =INDEX('LCOGH Inputs'!$K$25:$K$29,MATCH('LCOGH2 Calc'!F11,'LCOGH Inputs'!$A$25:$A$29,0)) -> 0 | K11: =INDEX('LCOGH Inputs'!$L$25:$L$29,MATCH('LCOGH2 Calc'!F11,'LCOGH Inputs'!$A$25:$A$29,0)) -> 70000 | L11: ='LCOGH Plant Assumptions'!$M$6 -> Constant | M11: ='LCOGH Plant Assumptions'!$N$6 -> Constant | N11: ='LCOGH Plant Assumptions'!$X$6 -> 0.1079 | O11: =IF(L11="Path",INDEX('LCOGH Inputs'!$I$69:$AL$69,MATCH('LCOGH2 Calc'!E11,'LCOGH Inputs'!$I$68:$AL$68,0)),N11*(1+'LCOGH Inputs'!$C$69)^(COUNT('LCOGH2 Calc'!N$7:N11))) -> 0.1065579769 | P11: =INDEX('LCOGH Inputs'!$I$25:$I$29,MATCH('LCOGH2 Calc'!F11,'LCOGH Inputs'!$A$25:$A$29,0)) -> 55 | Q11: =IF('LCOGH Plant Assumptions'!$O$6="Yes",P10*(1+'LCOGH Plant Assumptions'!$R$6)^(1+COUNT(P$6:P10)),P10) -> 51.15691623 | R11: ='LCOGH Plant Assumptions'!$Y$6 -> 0.000197 | S11: =IF(M11="Path",INDEX('LCOGH Inputs'!$I$36:$AL$36,MATCH('LCOGH2 Calc'!E11,'LCOGH Inputs'!$I$35:$AL$35,0)),R11*(1+'LCOGH Inputs'!$G$36)^(COUNT('LCOGH2 Calc'!R$7:R11))) -> 0.0002070489799 | T11: =INDEX('LCOGH Inputs'!$H$25:$H$29,MATCH('LCOGH2 Calc'!F11,'LCOGH Inputs'!$A$25:$A$29,0)) -> 18 | U11: 20 | V11: ='LCOGH Plant Assumptions'!$L$6 -> 0.9 | W11: 39564540 | X11: =IF(E11=2020,I11,I11*(1+'LCOGH Plant Assumptions'!$P$6)^(1+COUNT(W$6:W11))) -> 156008054.9 | Y11: 15889764.99 | Z11: ='LCOGH Plant Assumptions'!$S$6 -> NZD | AA11: ='LCOGH Inputs'!$E$9 -> 1.341281669 | AB11: =INDEX('LCOGH Inputs'!$F$9:$F$14,MATCH('LCOGH2 Calc'!Z11,'LCOGH Inputs'!$D$9:$D$14,0)) -> 1 | AC11: =INDEX('LCOGH Inputs'!$G$9:$G$14,MATCH('LCOGH2 Calc'!Z11,'LCOGH Inputs'!$D$9:$D$14,0)) -> 0.7455555556 | AD11: ='LCOGH Plant Assumptions'!$T$6 -> USD | AE11: 0.4016163208 | AF11: 0.00277859731 | AG11: 4.064155668 | AH11: 0.09952093466 | AI11: 4.1664552 | AJ11: 4.568071521 | AK11: =AJ11/'LCOGH Inputs'!$B$135 -> 0.03806726267 | AL11: NZ Grid Largest Scale2025
A12: ='LCOGH Plant Assumptions'!$A$6 -> 1 | B12: ='LCOGH Plant Assumptions'!$B$6 -> 0.08 | C12: =INDEX('LCOGH Plant Assumptions'!$C$6:$C$15,MATCH('LCOGH2 Calc'!A12,'LCOGH Plant Assumptions'!$A$6:$A$15,0)) -> New Zealand 1 | D12: NZ Grid Largest Scale | E12: 2026 | F12: ='LCOGH Plant Assumptions'!$E$6 -> Largest Efficient Scale | G12: =INDEX('LCOGH Inputs'!$C$25:$C$29,MATCH('LCOGH2 Calc'!F12,'LCOGH Inputs'!$A$25:$A$29,0)) -> 3937500 | H12: =INDEX('LCOGH Inputs'!$D$25:$D$29,MATCH('LCOGH2 Calc'!F12,'LCOGH Inputs'!$A$25:$A$29,0)) -> 120440 | I12: =INDEX('LCOGH Inputs'!$G$25:$G$29,MATCH('LCOGH2 Calc'!F12,'LCOGH Inputs'!$A$25:$A$29,0)) -> 198750000 | J12: =INDEX('LCOGH Inputs'!$K$25:$K$29,MATCH('LCOGH2 Calc'!F12,'LCOGH Inputs'!$A$25:$A$29,0)) -> 0 | K12: =INDEX('LCOGH Inputs'!$L$25:$L$29,MATCH('LCOGH2 Calc'!F12,'LCOGH Inputs'!$A$25:$A$29,0)) -> 70000 | L12: ='LCOGH Plant Assumptions'!$M$6 -> Constant | M12: ='LCOGH Plant Assumptions'!$N$6 -> Constant | N12: ='LCOGH Plant Assumptions'!$X$6 -> 0.1079 | O12: =IF(L12="Path",INDEX('LCOGH Inputs'!$I$69:$AL$69,MATCH('LCOGH2 Calc'!E12,'LCOGH Inputs'!$I$68:$AL$68,0)),N12*(1+'LCOGH Inputs'!$C$69)^(COUNT('LCOGH2 Calc'!N$7:N12))) -> 0.106291582 | P12: =INDEX('LCOGH Inputs'!$I$25:$I$29,MATCH('LCOGH2 Calc'!F12,'LCOGH Inputs'!$A$25:$A$29,0)) -> 55 | Q12: =IF('LCOGH Plant Assumptions'!$O$6="Yes",P11*(1+'LCOGH Plant Assumptions'!$R$6)^(1+COUNT(P$6:P11)),P11) -> 50.54303323 | R12: ='LCOGH Plant Assumptions'!$Y$6 -> 0.000197 | S12: =IF(M12="Path",INDEX('LCOGH Inputs'!$I$36:$AL$36,MATCH('LCOGH2 Calc'!E12,'LCOGH Inputs'!$I$35:$AL$35,0)),R12*(1+'LCOGH Inputs'!$G$36)^(COUNT('LCOGH2 Calc'!R$7:R12))) -> 0.0002091194697 | T12: =INDEX('LCOGH Inputs'!$H$25:$H$29,MATCH('LCOGH2 Calc'!F12,'LCOGH Inputs'!$A$25:$A$29,0)) -> 18 | U12: 20 | V12: ='LCOGH Plant Assumptions'!$L$6 -> 0.9 | W12: 39564540 | X12: =IF(E12=2020,I12,I12*(1+'LCOGH Plant Assumptions'!$P$6)^(1+COUNT(W$6:W12))) -> 150703781.1 | Y12: 15349512.98 | Z12: ='LCOGH Plant Assumptions'!$S$6 -> NZD | AA12: ='LCOGH Inputs'!$E$9 -> 1.341281669 | AB12: =INDEX('LCOGH Inputs'!$F$9:$F$14,MATCH('LCOGH2 Calc'!Z12,'LCOGH Inputs'!$D$9:$D$14,0)) -> 1 | AC12: =INDEX('LCOGH Inputs'!$G$9:$G$14,MATCH('LCOGH2 Calc'!Z12,'LCOGH Inputs'!$D$9:$D$14,0)) -> 0.7455555556 | AD12: ='LCOGH Plant Assumptions'!$T$6 -> USD | AE12: 0.3879613659 | AF12: 0.002806383283 | AG12: 4.005347335 | AH12: 0.09952093466 | AI12: 4.107674653 | AJ12: 4.495636019 | AK12: =AJ12/'LCOGH Inputs'!$B$135 -> 0.03746363349 | AL12: NZ Grid Largest Scale2026
A13: ='LCOGH Plant Assumptions'!$A$6 -> 1 | B13: ='LCOGH Plant Assumptions'!$B$6 -> 0.08 | C13: =INDEX('LCOGH Plant Assumptions'!$C$6:$C$15,MATCH('LCOGH2 Calc'!A13,'LCOGH Plant Assumptions'!$A$6:$A$15,0)) -> New Zealand 1 | D13: NZ Grid Largest Scale | E13: 2027 | F13: ='LCOGH Plant Assumptions'!$E$6 -> Largest Efficient Scale | G13: =INDEX('LCOGH Inputs'!$C$25:$C$29,MATCH('LCOGH2 Calc'!F13,'LCOGH Inputs'!$A$25:$A$29,0)) -> 3937500 | H13: =INDEX('LCOGH Inputs'!$D$25:$D$29,MATCH('LCOGH2 Calc'!F13,'LCOGH Inputs'!$A$25:$A$29,0)) -> 120440 | I13: =INDEX('LCOGH Inputs'!$G$25:$G$29,MATCH('LCOGH2 Calc'!F13,'LCOGH Inputs'!$A$25:$A$29,0)) -> 198750000 | J13: =INDEX('LCOGH Inputs'!$K$25:$K$29,MATCH('LCOGH2 Calc'!F13,'LCOGH Inputs'!$A$25:$A$29,0)) -> 0 | K13: =INDEX('LCOGH Inputs'!$L$25:$L$29,MATCH('LCOGH2 Calc'!F13,'LCOGH Inputs'!$A$25:$A$29,0)) -> 70000 | L13: ='LCOGH Plant Assumptions'!$M$6 -> Constant | M13: ='LCOGH Plant Assumptions'!$N$6 -> Constant | N13: ='LCOGH Plant Assumptions'!$X$6 -> 0.1079 | O13: =IF(L13="Path",INDEX('LCOGH Inputs'!$I$69:$AL$69,MATCH('LCOGH2 Calc'!E13,'LCOGH Inputs'!$I$68:$AL$68,0)),N13*(1+'LCOGH Inputs'!$C$69)^(COUNT('LCOGH2 Calc'!N$7:N13))) -> 0.106025853 | P13: =INDEX('LCOGH Inputs'!$I$25:$I$29,MATCH('LCOGH2 Calc'!F13,'LCOGH Inputs'!$A$25:$A$29,0)) -> 55 | Q13: =IF('LCOGH Plant Assumptions'!$O$6="Yes",P12*(1+'LCOGH Plant Assumptions'!$R$6)^(1+COUNT(P$6:P12)),P12) -> 49.93651683 | R13: ='LCOGH Plant Assumptions'!$Y$6 -> 0.000197 | S13: =IF(M13="Path",INDEX('LCOGH Inputs'!$I$36:$AL$36,MATCH('LCOGH2 Calc'!E13,'LCOGH Inputs'!$I$35:$AL$35,0)),R13*(1+'LCOGH Inputs'!$G$36)^(COUNT('LCOGH2 Calc'!R$7:R13))) -> 0.0002112106644 | T13: =INDEX('LCOGH Inputs'!$H$25:$H$29,MATCH('LCOGH2 Calc'!F13,'LCOGH Inputs'!$A$25:$A$29,0)) -> 18 | U13: 20 | V13: ='LCOGH Plant Assumptions'!$L$6 -> 0.9 | W13: 39564540 | X13: =IF(E13=2020,I13,I13*(1+'LCOGH Plant Assumptions'!$P$6)^(1+COUNT(W$6:W13))) -> 145579852.5 | Y13: 14827629.54 | Z13: ='LCOGH Plant Assumptions'!$S$6 -> NZD | AA13: ='LCOGH Inputs'!$E$9 -> 1.341281669 | AB13: =INDEX('LCOGH Inputs'!$F$9:$F$14,MATCH('LCOGH2 Calc'!Z13,'LCOGH Inputs'!$D$9:$D$14,0)) -> 1 | AC13: =INDEX('LCOGH Inputs'!$G$9:$G$14,MATCH('LCOGH2 Calc'!Z13,'LCOGH Inputs'!$D$9:$D$14,0)) -> 0.7455555556 | AD13: ='LCOGH Plant Assumptions'!$T$6 -> USD | AE13: 0.3747706795 | AF13: 0.002834447116 | AG13: 3.947389959 | AH13: 0.09952093466 | AI13: 4.049745341 | AJ13: 4.424516021 | AK13: =AJ13/'LCOGH Inputs'!$B$135 -> 0.03687096684 | AL13: NZ Grid Largest Scale2027
A14: ='LCOGH Plant Assumptions'!$A$6 -> 1 | B14: ='LCOGH Plant Assumptions'!$B$6 -> 0.08 | C14: =INDEX('LCOGH Plant Assumptions'!$C$6:$C$15,MATCH('LCOGH2 Calc'!A14,'LCOGH Plant Assumptions'!$A$6:$A$15,0)) -> New Zealand 1 | D14: NZ Grid Largest Scale | E14: 2028 | F14: ='LCOGH Plant Assumptions'!$E$6 -> Largest Efficient Scale | G14: =INDEX('LCOGH Inputs'!$C$25:$C$29,MATCH('LCOGH2 Calc'!F14,'LCOGH Inputs'!$A$25:$A$29,0)) -> 3937500 | H14: =INDEX('LCOGH Inputs'!$D$25:$D$29,MATCH('LCOGH2 Calc'!F14,'LCOGH Inputs'!$A$25:$A$29,0)) -> 120440 | I14: =INDEX('LCOGH Inputs'!$G$25:$G$29,MATCH('LCOGH2 Calc'!F14,'LCOGH Inputs'!$A$25:$A$29,0)) -> 198750000 | J14: =INDEX('LCOGH Inputs'!$K$25:$K$29,MATCH('LCOGH2 Calc'!F14,'LCOGH Inputs'!$A$25:$A$29,0)) -> 0 | K14: =INDEX('LCOGH Inputs'!$L$25:$L$29,MATCH('LCOGH2 Calc'!F14,'LCOGH Inputs'!$A$25:$A$29,0)) -> 70000 | L14: ='LCOGH Plant Assumptions'!$M$6 -> Constant | M14: ='LCOGH Plant Assumptions'!$N$6 -> Constant | N14: ='LCOGH Plant Assumptions'!$X$6 -> 0.1079 | O14: =IF(L14="Path",INDEX('LCOGH Inputs'!$I$69:$AL$69,MATCH('LCOGH2 Calc'!E14,'LCOGH Inputs'!$I$68:$AL$68,0)),N14*(1+'LCOGH Inputs'!$C$69)^(COUNT('LCOGH2 Calc'!N$7:N14))) -> 0.1057607884 | P14: =INDEX('LCOGH Inputs'!$I$25:$I$29,MATCH('LCOGH2 Calc'!F14,'LCOGH Inputs'!$A$25:$A$29,0)) -> 55 | Q14: =IF('LCOGH Plant Assumptions'!$O$6="Yes",P13*(1+'LCOGH Plant Assumptions'!$R$6)^(1+COUNT(P$6:P13)),P13) -> 49.33727863 | R14: ='LCOGH Plant Assumptions'!$Y$6 -> 0.000197 | S14: =IF(M14="Path",INDEX('LCOGH Inputs'!$I$36:$AL$36,MATCH('LCOGH2 Calc'!E14,'LCOGH Inputs'!$I$35:$AL$35,0)),R14*(1+'LCOGH Inputs'!$G$36)^(COUNT('LCOGH2 Calc'!R$7:R14))) -> 0.000213322771 | T14: =INDEX('LCOGH Inputs'!$H$25:$H$29,MATCH('LCOGH2 Calc'!F14,'LCOGH Inputs'!$A$25:$A$29,0)) -> 18 | U14: 20 | V14: ='LCOGH Plant Assumptions'!$L$6 -> 0.9 | W14: 39564540 | X14: =IF(E14=2020,I14,I14*(1+'LCOGH Plant Assumptions'!$P$6)^(1+COUNT(W$6:W14))) -> 140630137.5 | Y14: 14323490.13 | Z14: ='LCOGH Plant Assumptions'!$S$6 -> NZD | AA14: ='LCOGH Inputs'!$E$9 -> 1.341281669 | AB14: =INDEX('LCOGH Inputs'!$F$9:$F$14,MATCH('LCOGH2 Calc'!Z14,'LCOGH Inputs'!$D$9:$D$14,0)) -> 1 | AC14: =INDEX('LCOGH Inputs'!$G$9:$G$14,MATCH('LCOGH2 Calc'!Z14,'LCOGH Inputs'!$D$9:$D$14,0)) -> 0.7455555556 | AD14: ='LCOGH Plant Assumptions'!$T$6 -> USD | AE14: 0.3620284764 | AF14: 0.002862791587 | AG14: 3.890271227 | AH14: 0.09952093466 | AI14: 3.992654953 | AJ14: 4.354683429 | AK14: =AJ14/'LCOGH Inputs'!$B$135 -> 0.03628902858 | AL14: NZ Grid Largest Scale2028
A15: ='LCOGH Plant Assumptions'!$A$6 -> 1 | B15: ='LCOGH Plant Assumptions'!$B$6 -> 0.08 | C15: =INDEX('LCOGH Plant Assumptions'!$C$6:$C$15,MATCH('LCOGH2 Calc'!A15,'LCOGH Plant Assumptions'!$A$6:$A$15,0)) -> New Zealand 1 | D15: NZ Grid Largest Scale | E15: 2029 | F15: ='LCOGH Plant Assumptions'!$E$6 -> Largest Efficient Scale | G15: =INDEX('LCOGH Inputs'!$C$25:$C$29,MATCH('LCOGH2 Calc'!F15,'LCOGH Inputs'!$A$25:$A$29,0)) -> 3937500 | H15: =INDEX('LCOGH Inputs'!$D$25:$D$29,MATCH('LCOGH2 Calc'!F15,'LCOGH Inputs'!$A$25:$A$29,0)) -> 120440 | I15: =INDEX('LCOGH Inputs'!$G$25:$G$29,MATCH('LCOGH2 Calc'!F15,'LCOGH Inputs'!$A$25:$A$29,0)) -> 198750000 | J15: =INDEX('LCOGH Inputs'!$K$25:$K$29,MATCH('LCOGH2 Calc'!F15,'LCOGH Inputs'!$A$25:$A$29,0)) -> 0 | K15: =INDEX('LCOGH Inputs'!$L$25:$L$29,MATCH('LCOGH2 Calc'!F15,'LCOGH Inputs'!$A$25:$A$29,0)) -> 70000 | L15: ='LCOGH Plant Assumptions'!$M$6 -> Constant | M15: ='LCOGH Plant Assumptions'!$N$6 -> Constant | N15: ='LCOGH Plant Assumptions'!$X$6 -> 0.1079 | O15: =IF(L15="Path",INDEX('LCOGH Inputs'!$I$69:$AL$69,MATCH('LCOGH2 Calc'!E15,'LCOGH Inputs'!$I$68:$AL$68,0)),N15*(1+'LCOGH Inputs'!$C$69)^(COUNT('LCOGH2 Calc'!N$7:N15))) -> 0.1054963864 | P15: =INDEX('LCOGH Inputs'!$I$25:$I$29,MATCH('LCOGH2 Calc'!F15,'LCOGH Inputs'!$A$25:$A$29,0)) -> 55 | Q15: =IF('LCOGH Plant Assumptions'!$O$6="Yes",P14*(1+'LCOGH Plant Assumptions'!$R$6)^(1+COUNT(P$6:P14)),P14) -> 48.74523129 | R15: ='LCOGH Plant Assumptions'!$Y$6 -> 0.000197 | S15: =IF(M15="Path",INDEX('LCOGH Inputs'!$I$36:$AL$36,MATCH('LCOGH2 Calc'!E15,'LCOGH Inputs'!$I$35:$AL$35,0)),R15*(1+'LCOGH Inputs'!$G$36)^(COUNT('LCOGH2 Calc'!R$7:R15))) -> 0.0002154559987 | T15: =INDEX('LCOGH Inputs'!$H$25:$H$29,MATCH('LCOGH2 Calc'!F15,'LCOGH Inputs'!$A$25:$A$29,0)) -> 18 | U15: 20 | V15: ='LCOGH Plant Assumptions'!$L$6 -> 0.9 | W15: 39564540 | X15: =IF(E15=2020,I15,I15*(1+'LCOGH Plant Assumptions'!$P$6)^(1+COUNT(W$6:W15))) -> 135848712.9 | Y15: 13836491.47 | Z15: ='LCOGH Plant Assumptions'!$S$6 -> NZD | AA15: ='LCOGH Inputs'!$E$9 -> 1.341281669 | AB15: =INDEX('LCOGH Inputs'!$F$9:$F$14,MATCH('LCOGH2 Calc'!Z15,'LCOGH Inputs'!$D$9:$D$14,0)) -> 1 | AC15: =INDEX('LCOGH Inputs'!$G$9:$G$14,MATCH('LCOGH2 Calc'!Z15,'LCOGH Inputs'!$D$9:$D$14,0)) -> 0.7455555556 | AD15: ='LCOGH Plant Assumptions'!$T$6 -> USD | AE15: 0.3497195082 | AF15: 0.002891419503 | AG15: 3.833979002 | AH15: 0.09952093466 | AI15: 3.936391356 | AJ15: 4.286110864 | AK15: =AJ15/'LCOGH Inputs'!$B$135 -> 0.03571759054 | AL15: NZ Grid Largest Scale2029
A16: ='LCOGH Plant Assumptions'!$A$6 -> 1 | B16: ='LCOGH Plant Assumptions'!$B$6 -> 0.08 | C16: =INDEX('LCOGH Plant Assumptions'!$C$6:$C$15,MATCH('LCOGH2 Calc'!A16,'LCOGH Plant Assumptions'!$A$6:$A$15,0)) -> New Zealand 1 | D16: NZ Grid Largest Scale | E16: 2030 | F16: ='LCOGH Plant Assumptions'!$E$6 -> Largest Efficient Scale | G16: =INDEX('LCOGH Inputs'!$C$25:$C$29,MATCH('LCOGH2 Calc'!F16,'LCOGH Inputs'!$A$25:$A$29,0)) -> 3937500 | H16: =INDEX('LCOGH Inputs'!$D$25:$D$29,MATCH('LCOGH2 Calc'!F16,'LCOGH Inputs'!$A$25:$A$29,0)) -> 120440 | I16: =INDEX('LCOGH Inputs'!$G$25:$G$29,MATCH('LCOGH2 Calc'!F16,'LCOGH Inputs'!$A$25:$A$29,0)) -> 198750000 | J16: =INDEX('LCOGH Inputs'!$K$25:$K$29,MATCH('LCOGH2 Calc'!F16,'LCOGH Inputs'!$A$25:$A$29,0)) -> 0 | K16: =INDEX('LCOGH Inputs'!$L$25:$L$29,MATCH('LCOGH2 Calc'!F16,'LCOGH Inputs'!$A$25:$A$29,0)) -> 70000 | L16: ='LCOGH Plant Assumptions'!$M$6 -> Constant | M16: ='LCOGH Plant Assumptions'!$N$6 -> Constant | N16: ='LCOGH Plant Assumptions'!$X$6 -> 0.1079 | O16: =IF(L16="Path",INDEX('LCOGH Inputs'!$I$69:$AL$69,MATCH('LCOGH2 Calc'!E16,'LCOGH Inputs'!$I$68:$AL$68,0)),N16*(1+'LCOGH Inputs'!$C$69)^(COUNT('LCOGH2 Calc'!N$7:N16))) -> 0.1052326454 | P16: =INDEX('LCOGH Inputs'!$I$25:$I$29,MATCH('LCOGH2 Calc'!F16,'LCOGH Inputs'!$A$25:$A$29,0)) -> 55 | Q16: =IF('LCOGH Plant Assumptions'!$O$6="Yes",P15*(1+'LCOGH Plant Assumptions'!$R$6)^(1+COUNT(P$6:P15)),P15) -> 48.16028851 | R16: ='LCOGH Plant Assumptions'!$Y$6 -> 0.000197 | S16: =IF(M16="Path",INDEX('LCOGH Inputs'!$I$36:$AL$36,MATCH('LCOGH2 Calc'!E16,'LCOGH Inputs'!$I$35:$AL$35,0)),R16*(1+'LCOGH Inputs'!$G$36)^(COUNT('LCOGH2 Calc'!R$7:R16))) -> 0.0002176105587 | T16: =INDEX('LCOGH Inputs'!$H$25:$H$29,MATCH('LCOGH2 Calc'!F16,'LCOGH Inputs'!$A$25:$A$29,0)) -> 18 | U16: 20 | V16: ='LCOGH Plant Assumptions'!$L$6 -> 0.9 | W16: 39564540 | X16: =IF(E16=2020,I16,I16*(1+'LCOGH Plant Assumptions'!$P$6)^(1+COUNT(W$6:W16))) -> 131229856.6 | Y16: 13366050.76 | Z16: ='LCOGH Plant Assumptions'!$S$6 -> NZD | AA16: ='LCOGH Inputs'!$E$9 -> 1.341281669 | AB16: =INDEX('LCOGH Inputs'!$F$9:$F$14,MATCH('LCOGH2 Calc'!Z16,'LCOGH Inputs'!$D$9:$D$14,0)) -> 1 | AC16: =INDEX('LCOGH Inputs'!$G$9:$G$14,MATCH('LCOGH2 Calc'!Z16,'LCOGH Inputs'!$D$9:$D$14,0)) -> 0.7455555556 | AD16: ='LCOGH Plant Assumptions'!$T$6 -> USD | AE16: 0.3378290449 | AF16: 0.002920333698 | AG16: 3.778501326 | AH16: 0.09952093466 | AI16: 3.880942594 | AJ16: 4.218771639 | AK16: =AJ16/'LCOGH Inputs'!$B$135 -> 0.03515643033 | AL16: NZ Grid Largest Scale2030
A17: ='LCOGH Plant Assumptions'!$A$6 -> 1 | B17: ='LCOGH Plant Assumptions'!$B$6 -> 0.08 | C17: =INDEX('LCOGH Plant Assumptions'!$C$6:$C$15,MATCH('LCOGH2 Calc'!A17,'LCOGH Plant Assumptions'!$A$6:$A$15,0)) -> New Zealand 1 | D17: NZ Grid Largest Scale | E17: 2031 | F17: ='LCOGH Plant Assumptions'!$E$6 -> Largest Efficient Scale | G17: =INDEX('LCOGH Inputs'!$C$25:$C$29,MATCH('LCOGH2 Calc'!F17,'LCOGH Inputs'!$A$25:$A$29,0)) -> 3937500 | H17: =INDEX('LCOGH Inputs'!$D$25:$D$29,MATCH('LCOGH2 Calc'!F17,'LCOGH Inputs'!$A$25:$A$29,0)) -> 120440 | I17: =INDEX('LCOGH Inputs'!$G$25:$G$29,MATCH('LCOGH2 Calc'!F17,'LCOGH Inputs'!$A$25:$A$29,0)) -> 198750000 | J17: =INDEX('LCOGH Inputs'!$K$25:$K$29,MATCH('LCOGH2 Calc'!F17,'LCOGH Inputs'!$A$25:$A$29,0)) -> 0 | K17: =INDEX('LCOGH Inputs'!$L$25:$L$29,MATCH('LCOGH2 Calc'!F17,'LCOGH Inputs'!$A$25:$A$29,0)) -> 70000 | L17: ='LCOGH Plant Assumptions'!$M$6 -> Constant | M17: ='LCOGH Plant Assumptions'!$N$6 -> Constant | N17: ='LCOGH Plant Assumptions'!$X$6 -> 0.1079 | O17: =IF(L17="Path",INDEX('LCOGH Inputs'!$I$69:$AL$69,MATCH('LCOGH2 Calc'!E17,'LCOGH Inputs'!$I$68:$AL$68,0)),N17*(1+'LCOGH Inputs'!$C$69)^(COUNT('LCOGH2 Calc'!N$7:N17))) -> 0.1049695638 | P17: =INDEX('LCOGH Inputs'!$I$25:$I$29,MATCH('LCOGH2 Calc'!F17,'LCOGH Inputs'!$A$25:$A$29,0)) -> 55 | Q17: =IF('LCOGH Plant Assumptions'!$O$6="Yes",P16*(1+'LCOGH Plant Assumptions'!$R$6)^(1+COUNT(P$6:P16)),P16) -> 47.58236505 | R17: ='LCOGH Plant Assumptions'!$Y$6 -> 0.000197 | S17: =IF(M17="Path",INDEX('LCOGH Inputs'!$I$36:$AL$36,MATCH('LCOGH2 Calc'!E17,'LCOGH Inputs'!$I$35:$AL$35,0)),R17*(1+'LCOGH Inputs'!$G$36)^(COUNT('LCOGH2 Calc'!R$7:R17))) -> 0.0002197866643 | T17: =INDEX('LCOGH Inputs'!$H$25:$H$29,MATCH('LCOGH2 Calc'!F17,'LCOGH Inputs'!$A$25:$A$29,0)) -> 18 | U17: 20 | V17: ='LCOGH Plant Assumptions'!$L$6 -> 0.9 | W17: 39564540 | X17: =IF(E17=2020,I17,I17*(1+'LCOGH Plant Assumptions'!$P$6)^(1+COUNT(W$6:W17))) -> 126768041.5 | Y17: 12911605.03 | Z17: ='LCOGH Plant Assumptions'!$S$6 -> NZD | AA17: ='LCOGH Inputs'!$E$9 -> 1.341281669 | AB17: =INDEX('LCOGH Inputs'!$F$9:$F$14,MATCH('LCOGH2 Calc'!Z17,'LCOGH Inputs'!$D$9:$D$14,0)) -> 1 | AC17: =INDEX('LCOGH Inputs'!$G$9:$G$14,MATCH('LCOGH2 Calc'!Z17,'LCOGH Inputs'!$D$9:$D$14,0)) -> 0.7455555556 | AD17: ='LCOGH Plant Assumptions'!$T$6 -> USD | AE17: 0.3263428574 | AF17: 0.002949537035 | AG17: 3.723826412 | AH17: 0.09952093466 | AI17: 3.826296883 | AJ17: 4.152639741 | AK17: =AJ17/'LCOGH Inputs'!$B$135 -> 0.03460533117 | AL17: NZ Grid Largest Scale2031
A18: ='LCOGH Plant Assumptions'!$A$6 -> 1 | B18: ='LCOGH Plant Assumptions'!$B$6 -> 0.08 | C18: =INDEX('LCOGH Plant Assumptions'!$C$6:$C$15,MATCH('LCOGH2 Calc'!A18,'LCOGH Plant Assumptions'!$A$6:$A$15,0)) -> New Zealand 1 | D18: NZ Grid Largest Scale | E18: 2032 | F18: ='LCOGH Plant Assumptions'!$E$6 -> Largest Efficient Scale | G18: =INDEX('LCOGH Inputs'!$C$25:$C$29,MATCH('LCOGH2 Calc'!F18,'LCOGH Inputs'!$A$25:$A$29,0)) -> 3937500 | H18: =INDEX('LCOGH Inputs'!$D$25:$D$29,MATCH('LCOGH2 Calc'!F18,'LCOGH Inputs'!$A$25:$A$29,0)) -> 120440 | I18: =INDEX('LCOGH Inputs'!$G$25:$G$29,MATCH('LCOGH2 Calc'!F18,'LCOGH Inputs'!$A$25:$A$29,0)) -> 198750000 | J18: =INDEX('LCOGH Inputs'!$K$25:$K$29,MATCH('LCOGH2 Calc'!F18,'LCOGH Inputs'!$A$25:$A$29,0)) -> 0 | K18: =INDEX('LCOGH Inputs'!$L$25:$L$29,MATCH('LCOGH2 Calc'!F18,'LCOGH Inputs'!$A$25:$A$29,0)) -> 70000 | L18: ='LCOGH Plant Assumptions'!$M$6 -> Constant | M18: ='LCOGH Plant Assumptions'!$N$6 -> Constant | N18: ='LCOGH Plant Assumptions'!$X$6 -> 0.1079 | O18: =IF(L18="Path",INDEX('LCOGH Inputs'!$I$69:$AL$69,MATCH('LCOGH2 Calc'!E18,'LCOGH Inputs'!$I$68:$AL$68,0)),N18*(1+'LCOGH Inputs'!$C$69)^(COUNT('LCOGH2 Calc'!N$7:N18))) -> 0.1047071399 | P18: =INDEX('LCOGH Inputs'!$I$25:$I$29,MATCH('LCOGH2 Calc'!F18,'LCOGH Inputs'!$A$25:$A$29,0)) -> 55 | Q18: =IF('LCOGH Plant Assumptions'!$O$6="Yes",P17*(1+'LCOGH Plant Assumptions'!$R$6)^(1+COUNT(P$6:P17)),P17) -> 47.01137667 | R18: ='LCOGH Plant Assumptions'!$Y$6 -> 0.000197 | S18: =IF(M18="Path",INDEX('LCOGH Inputs'!$I$36:$AL$36,MATCH('LCOGH2 Calc'!E18,'LCOGH Inputs'!$I$35:$AL$35,0)),R18*(1+'LCOGH Inputs'!$G$36)^(COUNT('LCOGH2 Calc'!R$7:R18))) -> 0.0002219845309 | T18: =INDEX('LCOGH Inputs'!$H$25:$H$29,MATCH('LCOGH2 Calc'!F18,'LCOGH Inputs'!$A$25:$A$29,0)) -> 18 | U18: 20 | V18: ='LCOGH Plant Assumptions'!$L$6 -> 0.9 | W18: 39564540 | X18: =IF(E18=2020,I18,I18*(1+'LCOGH Plant Assumptions'!$P$6)^(1+COUNT(W$6:W18))) -> 122457928.1 | Y18: 12472610.46 | Z18: ='LCOGH Plant Assumptions'!$S$6 -> NZD | AA18: ='LCOGH Inputs'!$E$9 -> 1.341281669 | AB18: =INDEX('LCOGH Inputs'!$F$9:$F$14,MATCH('LCOGH2 Calc'!Z18,'LCOGH Inputs'!$D$9:$D$14,0)) -> 1 | AC18: =INDEX('LCOGH Inputs'!$G$9:$G$14,MATCH('LCOGH2 Calc'!Z18,'LCOGH Inputs'!$D$9:$D$14,0)) -> 0.7455555556 | AD18: ='LCOGH Plant Assumptions'!$T$6 -> USD | AE18: 0.3152472002 | AF18: 0.002979032405 | AG18: 3.669942644 | AH18: 0.09952093466 | AI18: 3.772442611 | AJ18: 4.087689811 | AK18: =AJ18/'LCOGH Inputs'!$B$135 -> 0.03406408176 | AL18: NZ Grid Largest Scale2032
A19: ='LCOGH Plant Assumptions'!$A$6 -> 1 | B19: ='LCOGH Plant Assumptions'!$B$6 -> 0.08 | C19: =INDEX('LCOGH Plant Assumptions'!$C$6:$C$15,MATCH('LCOGH2 Calc'!A19,'LCOGH Plant Assumptions'!$A$6:$A$15,0)) -> New Zealand 1 | D19: NZ Grid Largest Scale | E19: 2033 | F19: ='LCOGH Plant Assumptions'!$E$6 -> Largest Efficient Scale | G19: =INDEX('LCOGH Inputs'!$C$25:$C$29,MATCH('LCOGH2 Calc'!F19,'LCOGH Inputs'!$A$25:$A$29,0)) -> 3937500 | H19: =INDEX('LCOGH Inputs'!$D$25:$D$29,MATCH('LCOGH2 Calc'!F19,'LCOGH Inputs'!$A$25:$A$29,0)) -> 120440 | I19: =INDEX('LCOGH Inputs'!$G$25:$G$29,MATCH('LCOGH2 Calc'!F19,'LCOGH Inputs'!$A$25:$A$29,0)) -> 198750000 | J19: =INDEX('LCOGH Inputs'!$K$25:$K$29,MATCH('LCOGH2 Calc'!F19,'LCOGH Inputs'!$A$25:$A$29,0)) -> 0 | K19: =INDEX('LCOGH Inputs'!$L$25:$L$29,MATCH('LCOGH2 Calc'!F19,'LCOGH Inputs'!$A$25:$A$29,0)) -> 70000 | L19: ='LCOGH Plant Assumptions'!$M$6 -> Constant | M19: ='LCOGH Plant Assumptions'!$N$6 -> Constant | N19: ='LCOGH Plant Assumptions'!$X$6 -> 0.1079 | O19: =IF(L19="Path",INDEX('LCOGH Inputs'!$I$69:$AL$69,MATCH('LCOGH2 Calc'!E19,'LCOGH Inputs'!$I$68:$AL$68,0)),N19*(1+'LCOGH Inputs'!$C$69)^(COUNT('LCOGH2 Calc'!N$7:N19))) -> 0.1044453721 | P19: =INDEX('LCOGH Inputs'!$I$25:$I$29,MATCH('LCOGH2 Calc'!F19,'LCOGH Inputs'!$A$25:$A$29,0)) -> 55 | Q19: =IF('LCOGH Plant Assumptions'!$O$6="Yes",P18*(1+'LCOGH Plant Assumptions'!$R$6)^(1+COUNT(P$6:P18)),P18) -> 46.44724015 | R19: ='LCOGH Plant Assumptions'!$Y$6 -> 0.000197 | S19: =IF(M19="Path",INDEX('LCOGH Inputs'!$I$36:$AL$36,MATCH('LCOGH2 Calc'!E19,'LCOGH Inputs'!$I$35:$AL$35,0)),R19*(1+'LCOGH Inputs'!$G$36)^(COUNT('LCOGH2 Calc'!R$7:R19))) -> 0.0002242043762 | T19: =INDEX('LCOGH Inputs'!$H$25:$H$29,MATCH('LCOGH2 Calc'!F19,'LCOGH Inputs'!$A$25:$A$29,0)) -> 18 | U19: 20 | V19: ='LCOGH Plant Assumptions'!$L$6 -> 0.9 | W19: 39564540 | X19: =IF(E19=2020,I19,I19*(1+'LCOGH Plant Assumptions'!$P$6)^(1+COUNT(W$6:W19))) -> 118294358.5 | Y19: 12048541.71 | Z19: ='LCOGH Plant Assumptions'!$S$6 -> NZD | AA19: ='LCOGH Inputs'!$E$9 -> 1.341281669 | AB19: =INDEX('LCOGH Inputs'!$F$9:$F$14,MATCH('LCOGH2 Calc'!Z19,'LCOGH Inputs'!$D$9:$D$14,0)) -> 1 | AC19: =INDEX('LCOGH Inputs'!$G$9:$G$14,MATCH('LCOGH2 Calc'!Z19,'LCOGH Inputs'!$D$9:$D$14,0)) -> 0.7455555556 | AD19: ='LCOGH Plant Assumptions'!$T$6 -> USD | AE19: 0.3045287954 | AF19: 0.003008822729 | AG19: 3.616838574 | AH19: 0.09952093466 | AI19: 3.719368331 | AJ19: 4.023897126 | AK19: =AJ19/'LCOGH Inputs'!$B$135 -> 0.03353247605 | AL19: NZ Grid Largest Scale2033
A20: ='LCOGH Plant Assumptions'!$A$6 -> 1 | B20: ='LCOGH Plant Assumptions'!$B$6 -> 0.08 | C20: =INDEX('LCOGH Plant Assumptions'!$C$6:$C$15,MATCH('LCOGH2 Calc'!A20,'LCOGH Plant Assumptions'!$A$6:$A$15,0)) -> New Zealand 1 | D20: NZ Grid Largest Scale | E20: 2034 | F20: ='LCOGH Plant Assumptions'!$E$6 -> Largest Efficient Scale | G20: =INDEX('LCOGH Inputs'!$C$25:$C$29,MATCH('LCOGH2 Calc'!F20,'LCOGH Inputs'!$A$25:$A$29,0)) -> 3937500 | H20: =INDEX('LCOGH Inputs'!$D$25:$D$29,MATCH('LCOGH2 Calc'!F20,'LCOGH Inputs'!$A$25:$A$29,0)) -> 120440 | I20: =INDEX('LCOGH Inputs'!$G$25:$G$29,MATCH('LCOGH2 Calc'!F20,'LCOGH Inputs'!$A$25:$A$29,0)) -> 198750000 | J20: =INDEX('LCOGH Inputs'!$K$25:$K$29,MATCH('LCOGH2 Calc'!F20,'LCOGH Inputs'!$A$25:$A$29,0)) -> 0 | K20: =INDEX('LCOGH Inputs'!$L$25:$L$29,MATCH('LCOGH2 Calc'!F20,'LCOGH Inputs'!$A$25:$A$29,0)) -> 70000 | L20: ='LCOGH Plant Assumptions'!$M$6 -> Constant | M20: ='LCOGH Plant Assumptions'!$N$6 -> Constant | N20: ='LCOGH Plant Assumptions'!$X$6 -> 0.1079 | O20: =IF(L20="Path",INDEX('LCOGH Inputs'!$I$69:$AL$69,MATCH('LCOGH2 Calc'!E20,'LCOGH Inputs'!$I$68:$AL$68,0)),N20*(1+'LCOGH Inputs'!$C$69)^(COUNT('LCOGH2 Calc'!N$7:N20))) -> 0.1041842586 | P20: =INDEX('LCOGH Inputs'!$I$25:$I$29,MATCH('LCOGH2 Calc'!F20,'LCOGH Inputs'!$A$25:$A$29,0)) -> 55 | Q20: =IF('LCOGH Plant Assumptions'!$O$6="Yes",P19*(1+'LCOGH Plant Assumptions'!$R$6)^(1+COUNT(P$6:P19)),P19) -> 45.88987327 | R20: ='LCOGH Plant Assumptions'!$Y$6 -> 0.000197 | S20: =IF(M20="Path",INDEX('LCOGH Inputs'!$I$36:$AL$36,MATCH('LCOGH2 Calc'!E20,'LCOGH Inputs'!$I$35:$AL$35,0)),R20*(1+'LCOGH Inputs'!$G$36)^(COUNT('LCOGH2 Calc'!R$7:R20))) -> 0.00022644642 | T20: =INDEX('LCOGH Inputs'!$H$25:$H$29,MATCH('LCOGH2 Calc'!F20,'LCOGH Inputs'!$A$25:$A$29,0)) -> 18 | U20: 20 | V20: ='LCOGH Plant Assumptions'!$L$6 -> 0.9 | W20: 39564540 | X20: =IF(E20=2020,I20,I20*(1+'LCOGH Plant Assumptions'!$P$6)^(1+COUNT(W$6:W20))) -> 114272350.3 | Y20: 11638891.29 | Z20: ='LCOGH Plant Assumptions'!$S$6 -> NZD | AA20: ='LCOGH Inputs'!$E$9 -> 1.341281669 | AB20: =INDEX('LCOGH Inputs'!$F$9:$F$14,MATCH('LCOGH2 Calc'!Z20,'LCOGH Inputs'!$D$9:$D$14,0)) -> 1 | AC20: =INDEX('LCOGH Inputs'!$G$9:$G$14,MATCH('LCOGH2 Calc'!Z20,'LCOGH Inputs'!$D$9:$D$14,0)) -> 0.7455555556 | AD20: ='LCOGH Plant Assumptions'!$T$6 -> USD | AE20: 0.2941748164 | AF20: 0.003038910957 | AG20: 3.564502919 | AH20: 0.09952093466 | AI20: 3.667062765 | AJ20: 3.961237581 | AK20: =AJ20/'LCOGH Inputs'!$B$135 -> 0.03301031318 | AL20: NZ Grid Largest Scale2034
A21: ='LCOGH Plant Assumptions'!$A$6 -> 1 | B21: ='LCOGH Plant Assumptions'!$B$6 -> 0.08 | C21: =INDEX('LCOGH Plant Assumptions'!$C$6:$C$15,MATCH('LCOGH2 Calc'!A21,'LCOGH Plant Assumptions'!$A$6:$A$15,0)) -> New Zealand 1 | D21: NZ Grid Largest Scale | E21: 2035 | F21: ='LCOGH Plant Assumptions'!$E$6 -> Largest Efficient Scale | G21: =INDEX('LCOGH Inputs'!$C$25:$C$29,MATCH('LCOGH2 Calc'!F21,'LCOGH Inputs'!$A$25:$A$29,0)) -> 3937500 | H21: =INDEX('LCOGH Inputs'!$D$25:$D$29,MATCH('LCOGH2 Calc'!F21,'LCOGH Inputs'!$A$25:$A$29,0)) -> 120440 | I21: =INDEX('LCOGH Inputs'!$G$25:$G$29,MATCH('LCOGH2 Calc'!F21,'LCOGH Inputs'!$A$25:$A$29,0)) -> 198750000 | J21: =INDEX('LCOGH Inputs'!$K$25:$K$29,MATCH('LCOGH2 Calc'!F21,'LCOGH Inputs'!$A$25:$A$29,0)) -> 0 | K21: =INDEX('LCOGH Inputs'!$L$25:$L$29,MATCH('LCOGH2 Calc'!F21,'LCOGH Inputs'!$A$25:$A$29,0)) -> 70000 | L21: ='LCOGH Plant Assumptions'!$M$6 -> Constant | M21: ='LCOGH Plant Assumptions'!$N$6 -> Constant | N21: ='LCOGH Plant Assumptions'!$X$6 -> 0.1079 | O21: =IF(L21="Path",INDEX('LCOGH Inputs'!$I$69:$AL$69,MATCH('LCOGH2 Calc'!E21,'LCOGH Inputs'!$I$68:$AL$68,0)),N21*(1+'LCOGH Inputs'!$C$69)^(COUNT('LCOGH2 Calc'!N$7:N21))) -> 0.103923798 | P21: =INDEX('LCOGH Inputs'!$I$25:$I$29,MATCH('LCOGH2 Calc'!F21,'LCOGH Inputs'!$A$25:$A$29,0)) -> 55 | Q21: =IF('LCOGH Plant Assumptions'!$O$6="Yes",P20*(1+'LCOGH Plant Assumptions'!$R$6)^(1+COUNT(P$6:P20)),P20) -> 45.33919479 | R21: ='LCOGH Plant Assumptions'!$Y$6 -> 0.000197 | S21: =IF(M21="Path",INDEX('LCOGH Inputs'!$I$36:$AL$36,MATCH('LCOGH2 Calc'!E21,'LCOGH Inputs'!$I$35:$AL$35,0)),R21*(1+'LCOGH Inputs'!$G$36)^(COUNT('LCOGH2 Calc'!R$7:R21))) -> 0.0002287108842 | T21: =INDEX('LCOGH Inputs'!$H$25:$H$29,MATCH('LCOGH2 Calc'!F21,'LCOGH Inputs'!$A$25:$A$29,0)) -> 18 | U21: 20 | V21: ='LCOGH Plant Assumptions'!$L$6 -> 0.9 | W21: 39564540 | X21: =IF(E21=2020,I21,I21*(1+'LCOGH Plant Assumptions'!$P$6)^(1+COUNT(W$6:W21))) -> 110387090.4 | Y21: 11243168.99 | Z21: ='LCOGH Plant Assumptions'!$S$6 -> NZD | AA21: ='LCOGH Inputs'!$E$9 -> 1.341281669 | AB21: =INDEX('LCOGH Inputs'!$F$9:$F$14,MATCH('LCOGH2 Calc'!Z21,'LCOGH Inputs'!$D$9:$D$14,0)) -> 1 | AC21: =INDEX('LCOGH Inputs'!$G$9:$G$14,MATCH('LCOGH2 Calc'!Z21,'LCOGH Inputs'!$D$9:$D$14,0)) -> 0.7455555556 | AD21: ='LCOGH Plant Assumptions'!$T$6 -> USD | AE21: 0.2841728726 | AF21: 0.003069300066 | AG21: 3.512924562 | AH21: 0.09952093466 | AI21: 3.615514797 | AJ21: 3.899687669 | AK21: =AJ21/'LCOGH Inputs'!$B$135 -> 0.03249739725 | AL21: NZ Grid Largest Scale2035
A22: ='LCOGH Plant Assumptions'!$A$6 -> 1 | B22: ='LCOGH Plant Assumptions'!$B$6 -> 0.08 | C22: =INDEX('LCOGH Plant Assumptions'!$C$6:$C$15,MATCH('LCOGH2 Calc'!A22,'LCOGH Plant Assumptions'!$A$6:$A$15,0)) -> New Zealand 1 | D22: NZ Grid Largest Scale | E22: 2036 | F22: ='LCOGH Plant Assumptions'!$E$6 -> Largest Efficient Scale | G22: =INDEX('LCOGH Inputs'!$C$25:$C$29,MATCH('LCOGH2 Calc'!F22,'LCOGH Inputs'!$A$25:$A$29,0)) -> 3937500 | H22: =INDEX('LCOGH Inputs'!$D$25:$D$29,MATCH('LCOGH2 Calc'!F22,'LCOGH Inputs'!$A$25:$A$29,0)) -> 120440 | I22: =INDEX('LCOGH Inputs'!$G$25:$G$29,MATCH('LCOGH2 Calc'!F22,'LCOGH Inputs'!$A$25:$A$29,0)) -> 198750000 | J22: =INDEX('LCOGH Inputs'!$K$25:$K$29,MATCH('LCOGH2 Calc'!F22,'LCOGH Inputs'!$A$25:$A$29,0)) -> 0 | K22: =INDEX('LCOGH Inputs'!$L$25:$L$29,MATCH('LCOGH2 Calc'!F22,'LCOGH Inputs'!$A$25:$A$29,0)) -> 70000 | L22: ='LCOGH Plant Assumptions'!$M$6 -> Constant | M22: ='LCOGH Plant Assumptions'!$N$6 -> Constant | N22: ='LCOGH Plant Assumptions'!$X$6 -> 0.1079 | O22: =IF(L22="Path",INDEX('LCOGH Inputs'!$I$69:$AL$69,MATCH('LCOGH2 Calc'!E22,'LCOGH Inputs'!$I$68:$AL$68,0)),N22*(1+'LCOGH Inputs'!$C$69)^(COUNT('LCOGH2 Calc'!N$7:N22))) -> 0.1036639885 | P22: =INDEX('LCOGH Inputs'!$I$25:$I$29,MATCH('LCOGH2 Calc'!F22,'LCOGH Inputs'!$A$25:$A$29,0)) -> 55 | Q22: =IF('LCOGH Plant Assumptions'!$O$6="Yes",P21*(1+'LCOGH Plant Assumptions'!$R$6)^(1+COUNT(P$6:P21)),P21) -> 44.79512445 | R22: ='LCOGH Plant Assumptions'!$Y$6 -> 0.000197 | S22: =IF(M22="Path",INDEX('LCOGH Inputs'!$I$36:$AL$36,MATCH('LCOGH2 Calc'!E22,'LCOGH Inputs'!$I$35:$AL$35,0)),R22*(1+'LCOGH Inputs'!$G$36)^(COUNT('LCOGH2 Calc'!R$7:R22))) -> 0.000230997993 | T22: =INDEX('LCOGH Inputs'!$H$25:$H$29,MATCH('LCOGH2 Calc'!F22,'LCOGH Inputs'!$A$25:$A$29,0)) -> 18 | U22: 20 | V22: ='LCOGH Plant Assumptions'!$L$6 -> 0.9 | W22: 39564540 | X22: =IF(E22=2020,I22,I22*(1+'LCOGH Plant Assumptions'!$P$6)^(1+COUNT(W$6:W22))) -> 106633929.4 | Y22: 10860901.24 | Z22: ='LCOGH Plant Assumptions'!$S$6 -> NZD | AA22: ='LCOGH Inputs'!$E$9 -> 1.341281669 | AB22: =INDEX('LCOGH Inputs'!$F$9:$F$14,MATCH('LCOGH2 Calc'!Z22,'LCOGH Inputs'!$D$9:$D$14,0)) -> 1 | AC22: =INDEX('LCOGH Inputs'!$G$9:$G$14,MATCH('LCOGH2 Calc'!Z22,'LCOGH Inputs'!$D$9:$D$14,0)) -> 0.7455555556 | AD22: ='LCOGH Plant Assumptions'!$T$6 -> USD | AE22: 0.2745109949 | AF22: 0.003099993067 | AG22: 3.462092544 | AH22: 0.09952093466 | AI22: 3.564713471 | AJ22: 3.839224466 | AK22: =AJ22/'LCOGH Inputs'!$B$135 -> 0.03199353722 | AL22: NZ Grid Largest Scale2036
A23: ='LCOGH Plant Assumptions'!$A$6 -> 1 | B23: ='LCOGH Plant Assumptions'!$B$6 -> 0.08 | C23: =INDEX('LCOGH Plant Assumptions'!$C$6:$C$15,MATCH('LCOGH2 Calc'!A23,'LCOGH Plant Assumptions'!$A$6:$A$15,0)) -> New Zealand 1 | D23: NZ Grid Largest Scale | E23: 2037 | F23: ='LCOGH Plant Assumptions'!$E$6 -> Largest Efficient Scale | G23: =INDEX('LCOGH Inputs'!$C$25:$C$29,MATCH('LCOGH2 Calc'!F23,'LCOGH Inputs'!$A$25:$A$29,0)) -> 3937500 | H23: =INDEX('LCOGH Inputs'!$D$25:$D$29,MATCH('LCOGH2 Calc'!F23,'LCOGH Inputs'!$A$25:$A$29,0)) -> 120440 | I23: =INDEX('LCOGH Inputs'!$G$25:$G$29,MATCH('LCOGH2 Calc'!F23,'LCOGH Inputs'!$A$25:$A$29,0)) -> 198750000 | J23: =INDEX('LCOGH Inputs'!$K$25:$K$29,MATCH('LCOGH2 Calc'!F23,'LCOGH Inputs'!$A$25:$A$29,0)) -> 0 | K23: =INDEX('LCOGH Inputs'!$L$25:$L$29,MATCH('LCOGH2 Calc'!F23,'LCOGH Inputs'!$A$25:$A$29,0)) -> 70000 | L23: ='LCOGH Plant Assumptions'!$M$6 -> Constant | M23: ='LCOGH Plant Assumptions'!$N$6 -> Constant | N23: ='LCOGH Plant Assumptions'!$X$6 -> 0.1079 | O23: =IF(L23="Path",INDEX('LCOGH Inputs'!$I$69:$AL$69,MATCH('LCOGH2 Calc'!E23,'LCOGH Inputs'!$I$68:$AL$68,0)),N23*(1+'LCOGH Inputs'!$C$69)^(COUNT('LCOGH2 Calc'!N$7:N23))) -> 0.1034048285 | P23: =INDEX('LCOGH Inputs'!$I$25:$I$29,MATCH('LCOGH2 Calc'!F23,'LCOGH Inputs'!$A$25:$A$29,0)) -> 55 | Q23: =IF('LCOGH Plant Assumptions'!$O$6="Yes",P22*(1+'LCOGH Plant Assumptions'!$R$6)^(1+COUNT(P$6:P22)),P22) -> 44.25758296 | R23: ='LCOGH Plant Assumptions'!$Y$6 -> 0.000197 | S23: =IF(M23="Path",INDEX('LCOGH Inputs'!$I$36:$AL$36,MATCH('LCOGH2 Calc'!E23,'LCOGH Inputs'!$I$35:$AL$35,0)),R23*(1+'LCOGH Inputs'!$G$36)^(COUNT('LCOGH2 Calc'!R$7:R23))) -> 0.000233307973 | T23: =INDEX('LCOGH Inputs'!$H$25:$H$29,MATCH('LCOGH2 Calc'!F23,'LCOGH Inputs'!$A$25:$A$29,0)) -> 18 | U23: 20 | V23: ='LCOGH Plant Assumptions'!$L$6 -> 0.9 | W23: 39564540 | X23: =IF(E23=2020,I23,I23*(1+'LCOGH Plant Assumptions'!$P$6)^(1+COUNT(W$6:W23))) -> 103008375.8 | Y23: 10491630.6 | Z23: ='LCOGH Plant Assumptions'!$S$6 -> NZD | AA23: ='LCOGH Inputs'!$E$9 -> 1.341281669 | AB23: =INDEX('LCOGH Inputs'!$F$9:$F$14,MATCH('LCOGH2 Calc'!Z23,'LCOGH Inputs'!$D$9:$D$14,0)) -> 1 | AC23: =INDEX('LCOGH Inputs'!$G$9:$G$14,MATCH('LCOGH2 Calc'!Z23,'LCOGH Inputs'!$D$9:$D$14,0)) -> 0.7455555556 | AD23: ='LCOGH Plant Assumptions'!$T$6 -> USD | AE23: 0.2651776211 | AF23: 0.003130992997 | AG23: 3.411996065 | AH23: 0.09952093466 | AI23: 3.514647992 | AJ23: 3.779825613 | AK23: =AJ23/'LCOGH Inputs'!$B$135 -> 0.03149854678 | AL23: NZ Grid Largest Scale2037
A24: ='LCOGH Plant Assumptions'!$A$6 -> 1 | B24: ='LCOGH Plant Assumptions'!$B$6 -> 0.08 | C24: =INDEX('LCOGH Plant Assumptions'!$C$6:$C$15,MATCH('LCOGH2 Calc'!A24,'LCOGH Plant Assumptions'!$A$6:$A$15,0)) -> New Zealand 1 | D24: NZ Grid Largest Scale | E24: 2038 | F24: ='LCOGH Plant Assumptions'!$E$6 -> Largest Efficient Scale | G24: =INDEX('LCOGH Inputs'!$C$25:$C$29,MATCH('LCOGH2 Calc'!F24,'LCOGH Inputs'!$A$25:$A$29,0)) -> 3937500 | H24: =INDEX('LCOGH Inputs'!$D$25:$D$29,MATCH('LCOGH2 Calc'!F24,'LCOGH Inputs'!$A$25:$A$29,0)) -> 120440 | I24: =INDEX('LCOGH Inputs'!$G$25:$G$29,MATCH('LCOGH2 Calc'!F24,'LCOGH Inputs'!$A$25:$A$29,0)) -> 198750000 | J24: =INDEX('LCOGH Inputs'!$K$25:$K$29,MATCH('LCOGH2 Calc'!F24,'LCOGH Inputs'!$A$25:$A$29,0)) -> 0 | K24: =INDEX('LCOGH Inputs'!$L$25:$L$29,MATCH('LCOGH2 Calc'!F24,'LCOGH Inputs'!$A$25:$A$29,0)) -> 70000 | L24: ='LCOGH Plant Assumptions'!$M$6 -> Constant | M24: ='LCOGH Plant Assumptions'!$N$6 -> Constant | N24: ='LCOGH Plant Assumptions'!$X$6 -> 0.1079 | O24: =IF(L24="Path",INDEX('LCOGH Inputs'!$I$69:$AL$69,MATCH('LCOGH2 Calc'!E24,'LCOGH Inputs'!$I$68:$AL$68,0)),N24*(1+'LCOGH Inputs'!$C$69)^(COUNT('LCOGH2 Calc'!N$7:N24))) -> 0.1031463165 | P24: =INDEX('LCOGH Inputs'!$I$25:$I$29,MATCH('LCOGH2 Calc'!F24,'LCOGH Inputs'!$A$25:$A$29,0)) -> 55 | Q24: =IF('LCOGH Plant Assumptions'!$O$6="Yes",P23*(1+'LCOGH Plant Assumptions'!$R$6)^(1+COUNT(P$6:P23)),P23) -> 43.72649196 | R24: ='LCOGH Plant Assumptions'!$Y$6 -> 0.000197 | S24: =IF(M24="Path",INDEX('LCOGH Inputs'!$I$36:$AL$36,MATCH('LCOGH2 Calc'!E24,'LCOGH Inputs'!$I$35:$AL$35,0)),R24*(1+'LCOGH Inputs'!$G$36)^(COUNT('LCOGH2 Calc'!R$7:R24))) -> 0.0002356410527 | T24: =INDEX('LCOGH Inputs'!$H$25:$H$29,MATCH('LCOGH2 Calc'!F24,'LCOGH Inputs'!$A$25:$A$29,0)) -> 18 | U24: 20 | V24: ='LCOGH Plant Assumptions'!$L$6 -> 0.9 | W24: 39564540 | X24: =IF(E24=2020,I24,I24*(1+'LCOGH Plant Assumptions'!$P$6)^(1+COUNT(W$6:W24))) -> 99506090.98 | Y24: 10134915.16 | Z24: ='LCOGH Plant Assumptions'!$S$6 -> NZD | AA24: ='LCOGH Inputs'!$E$9 -> 1.341281669 | AB24: =INDEX('LCOGH Inputs'!$F$9:$F$14,MATCH('LCOGH2 Calc'!Z24,'LCOGH Inputs'!$D$9:$D$14,0)) -> 1 | AC24: =INDEX('LCOGH Inputs'!$G$9:$G$14,MATCH('LCOGH2 Calc'!Z24,'LCOGH Inputs'!$D$9:$D$14,0)) -> 0.7455555556 | AD24: ='LCOGH Plant Assumptions'!$T$6 -> USD | AE24: 0.256161582 | AF24: 0.003162302927 | AG24: 3.362624482 | AH24: 0.09952093466 | AI24: 3.465307719 | AJ24: 3.721469301 | AK24: =AJ24/'LCOGH Inputs'!$B$135 -> 0.03101224418 | AL24: NZ Grid Largest Scale2038
A25: ='LCOGH Plant Assumptions'!$A$6 -> 1 | B25: ='LCOGH Plant Assumptions'!$B$6 -> 0.08 | C25: =INDEX('LCOGH Plant Assumptions'!$C$6:$C$15,MATCH('LCOGH2 Calc'!A25,'LCOGH Plant Assumptions'!$A$6:$A$15,0)) -> New Zealand 1 | D25: NZ Grid Largest Scale | E25: 2039 | F25: ='LCOGH Plant Assumptions'!$E$6 -> Largest Efficient Scale | G25: =INDEX('LCOGH Inputs'!$C$25:$C$29,MATCH('LCOGH2 Calc'!F25,'LCOGH Inputs'!$A$25:$A$29,0)) -> 3937500 | H25: =INDEX('LCOGH Inputs'!$D$25:$D$29,MATCH('LCOGH2 Calc'!F25,'LCOGH Inputs'!$A$25:$A$29,0)) -> 120440 | I25: =INDEX('LCOGH Inputs'!$G$25:$G$29,MATCH('LCOGH2 Calc'!F25,'LCOGH Inputs'!$A$25:$A$29,0)) -> 198750000 | J25: =INDEX('LCOGH Inputs'!$K$25:$K$29,MATCH('LCOGH2 Calc'!F25,'LCOGH Inputs'!$A$25:$A$29,0)) -> 0 | K25: =INDEX('LCOGH Inputs'!$L$25:$L$29,MATCH('LCOGH2 Calc'!F25,'LCOGH Inputs'!$A$25:$A$29,0)) -> 70000 | L25: ='LCOGH Plant Assumptions'!$M$6 -> Constant | M25: ='LCOGH Plant Assumptions'!$N$6 -> Constant | N25: ='LCOGH Plant Assumptions'!$X$6 -> 0.1079 | O25: =IF(L25="Path",INDEX('LCOGH Inputs'!$I$69:$AL$69,MATCH('LCOGH2 Calc'!E25,'LCOGH Inputs'!$I$68:$AL$68,0)),N25*(1+'LCOGH Inputs'!$C$69)^(COUNT('LCOGH2 Calc'!N$7:N25))) -> 0.1028884507 | P25: =INDEX('LCOGH Inputs'!$I$25:$I$29,MATCH('LCOGH2 Calc'!F25,'LCOGH Inputs'!$A$25:$A$29,0)) -> 55 | Q25: =IF('LCOGH Plant Assumptions'!$O$6="Yes",P24*(1+'LCOGH Plant Assumptions'!$R$6)^(1+COUNT(P$6:P24)),P24) -> 43.20177406 | R25: ='LCOGH Plant Assumptions'!$Y$6 -> 0.000197 | S25: =IF(M25="Path",INDEX('LCOGH Inputs'!$I$36:$AL$36,MATCH('LCOGH2 Calc'!E25,'LCOGH Inputs'!$I$35:$AL$35,0)),R25*(1+'LCOGH Inputs'!$G$36)^(COUNT('LCOGH2 Calc'!R$7:R25))) -> 0.0002379974632 | T25: =INDEX('LCOGH Inputs'!$H$25:$H$29,MATCH('LCOGH2 Calc'!F25,'LCOGH Inputs'!$A$25:$A$29,0)) -> 18 | U25: 20 | V25: ='LCOGH Plant Assumptions'!$L$6 -> 0.9 | W25: 39564540 | X25: =IF(E25=2020,I25,I25*(1+'LCOGH Plant Assumptions'!$P$6)^(1+COUNT(W$6:W25))) -> 96122883.88 | Y25: 9790328.042 | Z25: ='LCOGH Plant Assumptions'!$S$6 -> NZD | AA25: ='LCOGH Inputs'!$E$9 -> 1.341281669 | AB25: =INDEX('LCOGH Inputs'!$F$9:$F$14,MATCH('LCOGH2 Calc'!Z25,'LCOGH Inputs'!$D$9:$D$14,0)) -> 1 | AC25: =INDEX('LCOGH Inputs'!$G$9:$G$14,MATCH('LCOGH2 Calc'!Z25,'LCOGH Inputs'!$D$9:$D$14,0)) -> 0.7455555556 | AD25: ='LCOGH Plant Assumptions'!$T$6 -> USD | AE25: 0.2474520882 | AF25: 0.003193925957 | AG25: 3.313967305 | AH25: 0.09952093466 | AI25: 3.416682166 | AJ25: 3.664134254 | AK25: =AJ25/'LCOGH Inputs'!$B$135 -> 0.03053445212 | AL25: NZ Grid Largest Scale2039
A26: ='LCOGH Plant Assumptions'!$A$6 -> 1 | B26: ='LCOGH Plant Assumptions'!$B$6 -> 0.08 | C26: =INDEX('LCOGH Plant Assumptions'!$C$6:$C$15,MATCH('LCOGH2 Calc'!A26,'LCOGH Plant Assumptions'!$A$6:$A$15,0)) -> New Zealand 1 | D26: NZ Grid Largest Scale | E26: 2040 | F26: ='LCOGH Plant Assumptions'!$E$6 -> Largest Efficient Scale | G26: =INDEX('LCOGH Inputs'!$C$25:$C$29,MATCH('LCOGH2 Calc'!F26,'LCOGH Inputs'!$A$25:$A$29,0)) -> 3937500 | H26: =INDEX('LCOGH Inputs'!$D$25:$D$29,MATCH('LCOGH2 Calc'!F26,'LCOGH Inputs'!$A$25:$A$29,0)) -> 120440 | I26: =INDEX('LCOGH Inputs'!$G$25:$G$29,MATCH('LCOGH2 Calc'!F26,'LCOGH Inputs'!$A$25:$A$29,0)) -> 198750000 | J26: =INDEX('LCOGH Inputs'!$K$25:$K$29,MATCH('LCOGH2 Calc'!F26,'LCOGH Inputs'!$A$25:$A$29,0)) -> 0 | K26: =INDEX('LCOGH Inputs'!$L$25:$L$29,MATCH('LCOGH2 Calc'!F26,'LCOGH Inputs'!$A$25:$A$29,0)) -> 70000 | L26: ='LCOGH Plant Assumptions'!$M$6 -> Constant | M26: ='LCOGH Plant Assumptions'!$N$6 -> Constant | N26: ='LCOGH Plant Assumptions'!$X$6 -> 0.1079 | O26: =IF(L26="Path",INDEX('LCOGH Inputs'!$I$69:$AL$69,MATCH('LCOGH2 Calc'!E26,'LCOGH Inputs'!$I$68:$AL$68,0)),N26*(1+'LCOGH Inputs'!$C$69)^(COUNT('LCOGH2 Calc'!N$7:N26))) -> 0.1026312295 | P26: =INDEX('LCOGH Inputs'!$I$25:$I$29,MATCH('LCOGH2 Calc'!F26,'LCOGH Inputs'!$A$25:$A$29,0)) -> 55 | Q26: =IF('LCOGH Plant Assumptions'!$O$6="Yes",P25*(1+'LCOGH Plant Assumptions'!$R$6)^(1+COUNT(P$6:P25)),P25) -> 42.68335277 | R26: ='LCOGH Plant Assumptions'!$Y$6 -> 0.000197 | S26: =IF(M26="Path",INDEX('LCOGH Inputs'!$I$36:$AL$36,MATCH('LCOGH2 Calc'!E26,'LCOGH Inputs'!$I$35:$AL$35,0)),R26*(1+'LCOGH Inputs'!$G$36)^(COUNT('LCOGH2 Calc'!R$7:R26))) -> 0.0002403774379 | T26: =INDEX('LCOGH Inputs'!$H$25:$H$29,MATCH('LCOGH2 Calc'!F26,'LCOGH Inputs'!$A$25:$A$29,0)) -> 18 | U26: 20 | V26: ='LCOGH Plant Assumptions'!$L$6 -> 0.9 | W26: 39564540 | X26: =IF(E26=2020,I26,I26*(1+'LCOGH Plant Assumptions'!$P$6)^(1+COUNT(W$6:W26))) -> 92854705.83 | Y26: 9457456.889 | Z26: ='LCOGH Plant Assumptions'!$S$6 -> NZD | AA26: ='LCOGH Inputs'!$E$9 -> 1.341281669 | AB26: =INDEX('LCOGH Inputs'!$F$9:$F$14,MATCH('LCOGH2 Calc'!Z26,'LCOGH Inputs'!$D$9:$D$14,0)) -> 1 | AC26: =INDEX('LCOGH Inputs'!$G$9:$G$14,MATCH('LCOGH2 Calc'!Z26,'LCOGH Inputs'!$D$9:$D$14,0)) -> 0.7455555556 | AD26: ='LCOGH Plant Assumptions'!$T$6 -> USD | AE26: 0.2390387172 | AF26: 0.003225865216 | AG26: 3.266014198 | AH26: 0.09952093466 | AI26: 3.368760998 | AJ26: 3.607799715 | AK26: =AJ26/'LCOGH Inputs'!$B$135 -> 0.03006499763 | AL26: NZ Grid Largest Scale2040
A27: ='LCOGH Plant Assumptions'!$A$6 -> 1 | B27: ='LCOGH Plant Assumptions'!$B$6 -> 0.08 | C27: =INDEX('LCOGH Plant Assumptions'!$C$6:$C$15,MATCH('LCOGH2 Calc'!A27,'LCOGH Plant Assumptions'!$A$6:$A$15,0)) -> New Zealand 1 | D27: NZ Grid Largest Scale | E27: 2041 | F27: ='LCOGH Plant Assumptions'!$E$6 -> Largest Efficient Scale | G27: =INDEX('LCOGH Inputs'!$C$25:$C$29,MATCH('LCOGH2 Calc'!F27,'LCOGH Inputs'!$A$25:$A$29,0)) -> 3937500 | H27: =INDEX('LCOGH Inputs'!$D$25:$D$29,MATCH('LCOGH2 Calc'!F27,'LCOGH Inputs'!$A$25:$A$29,0)) -> 120440 | I27: =INDEX('LCOGH Inputs'!$G$25:$G$29,MATCH('LCOGH2 Calc'!F27,'LCOGH Inputs'!$A$25:$A$29,0)) -> 198750000 | J27: =INDEX('LCOGH Inputs'!$K$25:$K$29,MATCH('LCOGH2 Calc'!F27,'LCOGH Inputs'!$A$25:$A$29,0)) -> 0 | K27: =INDEX('LCOGH Inputs'!$L$25:$L$29,MATCH('LCOGH2 Calc'!F27,'LCOGH Inputs'!$A$25:$A$29,0)) -> 70000 | L27: ='LCOGH Plant Assumptions'!$M$6 -> Constant | M27: ='LCOGH Plant Assumptions'!$N$6 -> Constant | N27: ='LCOGH Plant Assumptions'!$X$6 -> 0.1079 | O27: =IF(L27="Path",INDEX('LCOGH Inputs'!$I$69:$AL$69,MATCH('LCOGH2 Calc'!E27,'LCOGH Inputs'!$I$68:$AL$68,0)),N27*(1+'LCOGH Inputs'!$C$69)^(COUNT('LCOGH2 Calc'!N$7:N27))) -> 0.1023746515 | P27: =INDEX('LCOGH Inputs'!$I$25:$I$29,MATCH('LCOGH2 Calc'!F27,'LCOGH Inputs'!$A$25:$A$29,0)) -> 55 | Q27: =IF('LCOGH Plant Assumptions'!$O$6="Yes",P26*(1+'LCOGH Plant Assumptions'!$R$6)^(1+COUNT(P$6:P26)),P26) -> 42.17115254 | R27: ='LCOGH Plant Assumptions'!$Y$6 -> 0.000197 | S27: =IF(M27="Path",INDEX('LCOGH Inputs'!$I$36:$AL$36,MATCH('LCOGH2 Calc'!E27,'LCOGH Inputs'!$I$35:$AL$35,0)),R27*(1+'LCOGH Inputs'!$G$36)^(COUNT('LCOGH2 Calc'!R$7:R27))) -> 0.0002427812122 | T27: =INDEX('LCOGH Inputs'!$H$25:$H$29,MATCH('LCOGH2 Calc'!F27,'LCOGH Inputs'!$A$25:$A$29,0)) -> 18 | U27: 20 | V27: ='LCOGH Plant Assumptions'!$L$6 -> 0.9 | W27: 39564540 | X27: =IF(E27=2020,I27,I27*(1+'LCOGH Plant Assumptions'!$P$6)^(1+COUNT(W$6:W27))) -> 89697645.83 | Y27: 9135903.354 | Z27: ='LCOGH Plant Assumptions'!$S$6 -> NZD | AA27: ='LCOGH Inputs'!$E$9 -> 1.341281669 | AB27: =INDEX('LCOGH Inputs'!$F$9:$F$14,MATCH('LCOGH2 Calc'!Z27,'LCOGH Inputs'!$D$9:$D$14,0)) -> 1 | AC27: =INDEX('LCOGH Inputs'!$G$9:$G$14,MATCH('LCOGH2 Calc'!Z27,'LCOGH Inputs'!$D$9:$D$14,0)) -> 0.7455555556 | AD27: ='LCOGH Plant Assumptions'!$T$6 -> USD | AE27: 0.2309114008 | AF27: 0.003258123868 | AG27: 3.218754973 | AH27: 0.09952093466 | AI27: 3.321534031 | AJ27: 3.552445432 | AK27: =AJ27/'LCOGH Inputs'!$B$135 -> 0.02960371194 | AL27: NZ Grid Largest Scale2041
A28: ='LCOGH Plant Assumptions'!$A$6 -> 1 | B28: ='LCOGH Plant Assumptions'!$B$6 -> 0.08 | C28: =INDEX('LCOGH Plant Assumptions'!$C$6:$C$15,MATCH('LCOGH2 Calc'!A28,'LCOGH Plant Assumptions'!$A$6:$A$15,0)) -> New Zealand 1 | D28: NZ Grid Largest Scale | E28: 2042 | F28: ='LCOGH Plant Assumptions'!$E$6 -> Largest Efficient Scale | G28: =INDEX('LCOGH Inputs'!$C$25:$C$29,MATCH('LCOGH2 Calc'!F28,'LCOGH Inputs'!$A$25:$A$29,0)) -> 3937500 | H28: =INDEX('LCOGH Inputs'!$D$25:$D$29,MATCH('LCOGH2 Calc'!F28,'LCOGH Inputs'!$A$25:$A$29,0)) -> 120440 | I28: =INDEX('LCOGH Inputs'!$G$25:$G$29,MATCH('LCOGH2 Calc'!F28,'LCOGH Inputs'!$A$25:$A$29,0)) -> 198750000 | J28: =INDEX('LCOGH Inputs'!$K$25:$K$29,MATCH('LCOGH2 Calc'!F28,'LCOGH Inputs'!$A$25:$A$29,0)) -> 0 | K28: =INDEX('LCOGH Inputs'!$L$25:$L$29,MATCH('LCOGH2 Calc'!F28,'LCOGH Inputs'!$A$25:$A$29,0)) -> 70000 | L28: ='LCOGH Plant Assumptions'!$M$6 -> Constant | M28: ='LCOGH Plant Assumptions'!$N$6 -> Constant | N28: ='LCOGH Plant Assumptions'!$X$6 -> 0.1079 | O28: =IF(L28="Path",INDEX('LCOGH Inputs'!$I$69:$AL$69,MATCH('LCOGH2 Calc'!E28,'LCOGH Inputs'!$I$68:$AL$68,0)),N28*(1+'LCOGH Inputs'!$C$69)^(COUNT('LCOGH2 Calc'!N$7:N28))) -> 0.1021187148 | P28: =INDEX('LCOGH Inputs'!$I$25:$I$29,MATCH('LCOGH2 Calc'!F28,'LCOGH Inputs'!$A$25:$A$29,0)) -> 55 | Q28: =IF('LCOGH Plant Assumptions'!$O$6="Yes",P27*(1+'LCOGH Plant Assumptions'!$R$6)^(1+COUNT(P$6:P27)),P27) -> 41.6650987 | R28: ='LCOGH Plant Assumptions'!$Y$6 -> 0.000197 | S28: =IF(M28="Path",INDEX('LCOGH Inputs'!$I$36:$AL$36,MATCH('LCOGH2 Calc'!E28,'LCOGH Inputs'!$I$35:$AL$35,0)),R28*(1+'LCOGH Inputs'!$G$36)^(COUNT('LCOGH2 Calc'!R$7:R28))) -> 0.0002452090244 | T28: =INDEX('LCOGH Inputs'!$H$25:$H$29,MATCH('LCOGH2 Calc'!F28,'LCOGH Inputs'!$A$25:$A$29,0)) -> 18 | U28: 20 | V28: ='LCOGH Plant Assumptions'!$L$6 -> 0.9 | W28: 39564540 | X28: =IF(E28=2020,I28,I28*(1+'LCOGH Plant Assumptions'!$P$6)^(1+COUNT(W$6:W28))) -> 86647925.88 | Y28: 8825282.64 | Z28: ='LCOGH Plant Assumptions'!$S$6 -> NZD | AA28: ='LCOGH Inputs'!$E$9 -> 1.341281669 | AB28: =INDEX('LCOGH Inputs'!$F$9:$F$14,MATCH('LCOGH2 Calc'!Z28,'LCOGH Inputs'!$D$9:$D$14,0)) -> 1 | AC28: =INDEX('LCOGH Inputs'!$G$9:$G$14,MATCH('LCOGH2 Calc'!Z28,'LCOGH Inputs'!$D$9:$D$14,0)) -> 0.7455555556 | AD28: ='LCOGH Plant Assumptions'!$T$6 -> USD | AE28: 0.2230604132 | AF28: 0.003290705107 | AG28: 3.172179589 | AH28: 0.09952093466 | AI28: 3.274991228 | AJ28: 3.498051641 | AK28: =AJ28/'LCOGH Inputs'!$B$135 -> 0.02915043035 | AL28: NZ Grid Largest Scale2042
A29: ='LCOGH Plant Assumptions'!$A$6 -> 1 | B29: ='LCOGH Plant Assumptions'!$B$6 -> 0.08 | C29: =INDEX('LCOGH Plant Assumptions'!$C$6:$C$15,MATCH('LCOGH2 Calc'!A29,'LCOGH Plant Assumptions'!$A$6:$A$15,0)) -> New Zealand 1 | D29: NZ Grid Largest Scale | E29: 2043 | F29: ='LCOGH Plant Assumptions'!$E$6 -> Largest Efficient Scale | G29: =INDEX('LCOGH Inputs'!$C$25:$C$29,MATCH('LCOGH2 Calc'!F29,'LCOGH Inputs'!$A$25:$A$29,0)) -> 3937500 | H29: =INDEX('LCOGH Inputs'!$D$25:$D$29,MATCH('LCOGH2 Calc'!F29,'LCOGH Inputs'!$A$25:$A$29,0)) -> 120440 | I29: =INDEX('LCOGH Inputs'!$G$25:$G$29,MATCH('LCOGH2 Calc'!F29,'LCOGH Inputs'!$A$25:$A$29,0)) -> 198750000 | J29: =INDEX('LCOGH Inputs'!$K$25:$K$29,MATCH('LCOGH2 Calc'!F29,'LCOGH Inputs'!$A$25:$A$29,0)) -> 0 | K29: =INDEX('LCOGH Inputs'!$L$25:$L$29,MATCH('LCOGH2 Calc'!F29,'LCOGH Inputs'!$A$25:$A$29,0)) -> 70000 | L29: ='LCOGH Plant Assumptions'!$M$6 -> Constant | M29: ='LCOGH Plant Assumptions'!$N$6 -> Constant | N29: ='LCOGH Plant Assumptions'!$X$6 -> 0.1079 | O29: =IF(L29="Path",INDEX('LCOGH Inputs'!$I$69:$AL$69,MATCH('LCOGH2 Calc'!E29,'LCOGH Inputs'!$I$68:$AL$68,0)),N29*(1+'LCOGH Inputs'!$C$69)^(COUNT('LCOGH2 Calc'!N$7:N29))) -> 0.1018634181 | P29: =INDEX('LCOGH Inputs'!$I$25:$I$29,MATCH('LCOGH2 Calc'!F29,'LCOGH Inputs'!$A$25:$A$29,0)) -> 55 | Q29: =IF('LCOGH Plant Assumptions'!$O$6="Yes",P28*(1+'LCOGH Plant Assumptions'!$R$6)^(1+COUNT(P$6:P28)),P28) -> 41.16511752 | R29: ='LCOGH Plant Assumptions'!$Y$6 -> 0.000197 | S29: =IF(M29="Path",INDEX('LCOGH Inputs'!$I$36:$AL$36,MATCH('LCOGH2 Calc'!E29,'LCOGH Inputs'!$I$35:$AL$35,0)),R29*(1+'LCOGH Inputs'!$G$36)^(COUNT('LCOGH2 Calc'!R$7:R29))) -> 0.0002476611146 | T29: =INDEX('LCOGH Inputs'!$H$25:$H$29,MATCH('LCOGH2 Calc'!F29,'LCOGH Inputs'!$A$25:$A$29,0)) -> 18 | U29: 20 | V29: ='LCOGH Plant Assumptions'!$L$6 -> 0.9 | W29: 39564540 | X29: =IF(E29=2020,I29,I29*(1+'LCOGH Plant Assumptions'!$P$6)^(1+COUNT(W$6:W29))) -> 83701896.4 | Y29: 8525223.031 | Z29: ='LCOGH Plant Assumptions'!$S$6 -> NZD | AA29: ='LCOGH Inputs'!$E$9 -> 1.341281669 | AB29: =INDEX('LCOGH Inputs'!$F$9:$F$14,MATCH('LCOGH2 Calc'!Z29,'LCOGH Inputs'!$D$9:$D$14,0)) -> 1 | AC29: =INDEX('LCOGH Inputs'!$G$9:$G$14,MATCH('LCOGH2 Calc'!Z29,'LCOGH Inputs'!$D$9:$D$14,0)) -> 0.7455555556 | AD29: ='LCOGH Plant Assumptions'!$T$6 -> USD | AE29: 0.2154763591 | AF29: 0.003323612158 | AG29: 3.12627815 | AH29: 0.09952093466 | AI29: 3.229122697 | AJ29: 3.444599056 | AK29: =AJ29/'LCOGH Inputs'!$B$135 -> 0.02870499213 | AL29: NZ Grid Largest Scale2043
A30: ='LCOGH Plant Assumptions'!$A$6 -> 1 | B30: ='LCOGH Plant Assumptions'!$B$6 -> 0.08 | C30: =INDEX('LCOGH Plant Assumptions'!$C$6:$C$15,MATCH('LCOGH2 Calc'!A30,'LCOGH Plant Assumptions'!$A$6:$A$15,0)) -> New Zealand 1 | D30: NZ Grid Largest Scale | E30: 2044 | F30: ='LCOGH Plant Assumptions'!$E$6 -> Largest Efficient Scale | G30: =INDEX('LCOGH Inputs'!$C$25:$C$29,MATCH('LCOGH2 Calc'!F30,'LCOGH Inputs'!$A$25:$A$29,0)) -> 3937500 | H30: =INDEX('LCOGH Inputs'!$D$25:$D$29,MATCH('LCOGH2 Calc'!F30,'LCOGH Inputs'!$A$25:$A$29,0)) -> 120440 | I30: =INDEX('LCOGH Inputs'!$G$25:$G$29,MATCH('LCOGH2 Calc'!F30,'LCOGH Inputs'!$A$25:$A$29,0)) -> 198750000 | J30: =INDEX('LCOGH Inputs'!$K$25:$K$29,MATCH('LCOGH2 Calc'!F30,'LCOGH Inputs'!$A$25:$A$29,0)) -> 0 | K30: =INDEX('LCOGH Inputs'!$L$25:$L$29,MATCH('LCOGH2 Calc'!F30,'LCOGH Inputs'!$A$25:$A$29,0)) -> 70000 | L30: ='LCOGH Plant Assumptions'!$M$6 -> Constant | M30: ='LCOGH Plant Assumptions'!$N$6 -> Constant | N30: ='LCOGH Plant Assumptions'!$X$6 -> 0.1079 | O30: =IF(L30="Path",INDEX('LCOGH Inputs'!$I$69:$AL$69,MATCH('LCOGH2 Calc'!E30,'LCOGH Inputs'!$I$68:$AL$68,0)),N30*(1+'LCOGH Inputs'!$C$69)^(COUNT('LCOGH2 Calc'!N$7:N30))) -> 0.1016087595 | P30: =INDEX('LCOGH Inputs'!$I$25:$I$29,MATCH('LCOGH2 Calc'!F30,'LCOGH Inputs'!$A$25:$A$29,0)) -> 55 | Q30: =IF('LCOGH Plant Assumptions'!$O$6="Yes",P29*(1+'LCOGH Plant Assumptions'!$R$6)^(1+COUNT(P$6:P29)),P29) -> 40.67113611 | R30: ='LCOGH Plant Assumptions'!$Y$6 -> 0.000197 | S30: =IF(M30="Path",INDEX('LCOGH Inputs'!$I$36:$AL$36,MATCH('LCOGH2 Calc'!E30,'LCOGH Inputs'!$I$35:$AL$35,0)),R30*(1+'LCOGH Inputs'!$G$36)^(COUNT('LCOGH2 Calc'!R$7:R30))) -> 0.0002501377258 | T30: =INDEX('LCOGH Inputs'!$H$25:$H$29,MATCH('LCOGH2 Calc'!F30,'LCOGH Inputs'!$A$25:$A$29,0)) -> 18 | U30: 20 | V30: ='LCOGH Plant Assumptions'!$L$6 -> 0.9 | W30: 39564540 | X30: =IF(E30=2020,I30,I30*(1+'LCOGH Plant Assumptions'!$P$6)^(1+COUNT(W$6:W30))) -> 80856031.92 | Y30: 8235365.448 | Z30: ='LCOGH Plant Assumptions'!$S$6 -> NZD | AA30: ='LCOGH Inputs'!$E$9 -> 1.341281669 | AB30: =INDEX('LCOGH Inputs'!$F$9:$F$14,MATCH('LCOGH2 Calc'!Z30,'LCOGH Inputs'!$D$9:$D$14,0)) -> 1 | AC30: =INDEX('LCOGH Inputs'!$G$9:$G$14,MATCH('LCOGH2 Calc'!Z30,'LCOGH Inputs'!$D$9:$D$14,0)) -> 0.7455555556 | AD30: ='LCOGH Plant Assumptions'!$T$6 -> USD | AE30: 0.2081501629 | AF30: 0.00335684828 | AG30: 3.081040905 | AH30: 0.09952093466 | AI30: 3.183918688 | AJ30: 3.392068851 | AK30: =AJ30/'LCOGH Inputs'!$B$135 -> 0.02826724042 | AL30: NZ Grid Largest Scale2044
A31: ='LCOGH Plant Assumptions'!$A$6 -> 1 | B31: ='LCOGH Plant Assumptions'!$B$6 -> 0.08 | C31: =INDEX('LCOGH Plant Assumptions'!$C$6:$C$15,MATCH('LCOGH2 Calc'!A31,'LCOGH Plant Assumptions'!$A$6:$A$15,0)) -> New Zealand 1 | D31: NZ Grid Largest Scale | E31: 2045 | F31: ='LCOGH Plant Assumptions'!$E$6 -> Largest Efficient Scale | G31: =INDEX('LCOGH Inputs'!$C$25:$C$29,MATCH('LCOGH2 Calc'!F31,'LCOGH Inputs'!$A$25:$A$29,0)) -> 3937500 | H31: =INDEX('LCOGH Inputs'!$D$25:$D$29,MATCH('LCOGH2 Calc'!F31,'LCOGH Inputs'!$A$25:$A$29,0)) -> 120440 | I31: =INDEX('LCOGH Inputs'!$G$25:$G$29,MATCH('LCOGH2 Calc'!F31,'LCOGH Inputs'!$A$25:$A$29,0)) -> 198750000 | J31: =INDEX('LCOGH Inputs'!$K$25:$K$29,MATCH('LCOGH2 Calc'!F31,'LCOGH Inputs'!$A$25:$A$29,0)) -> 0 | K31: =INDEX('LCOGH Inputs'!$L$25:$L$29,MATCH('LCOGH2 Calc'!F31,'LCOGH Inputs'!$A$25:$A$29,0)) -> 70000 | L31: ='LCOGH Plant Assumptions'!$M$6 -> Constant | M31: ='LCOGH Plant Assumptions'!$N$6 -> Constant | N31: ='LCOGH Plant Assumptions'!$X$6 -> 0.1079 | O31: =IF(L31="Path",INDEX('LCOGH Inputs'!$I$69:$AL$69,MATCH('LCOGH2 Calc'!E31,'LCOGH Inputs'!$I$68:$AL$68,0)),N31*(1+'LCOGH Inputs'!$C$69)^(COUNT('LCOGH2 Calc'!N$7:N31))) -> 0.1013547376 | P31: =INDEX('LCOGH Inputs'!$I$25:$I$29,MATCH('LCOGH2 Calc'!F31,'LCOGH Inputs'!$A$25:$A$29,0)) -> 55 | Q31: =IF('LCOGH Plant Assumptions'!$O$6="Yes",P30*(1+'LCOGH Plant Assumptions'!$R$6)^(1+COUNT(P$6:P30)),P30) -> 40.18308248 | R31: ='LCOGH Plant Assumptions'!$Y$6 -> 0.000197 | S31: =IF(M31="Path",INDEX('LCOGH Inputs'!$I$36:$AL$36,MATCH('LCOGH2 Calc'!E31,'LCOGH Inputs'!$I$35:$AL$35,0)),R31*(1+'LCOGH Inputs'!$G$36)^(COUNT('LCOGH2 Calc'!R$7:R31))) -> 0.000252639103 | T31: =INDEX('LCOGH Inputs'!$H$25:$H$29,MATCH('LCOGH2 Calc'!F31,'LCOGH Inputs'!$A$25:$A$29,0)) -> 18 | U31: 20 | V31: ='LCOGH Plant Assumptions'!$L$6 -> 0.9 | W31: 39564540 | X31: =IF(E31=2020,I31,I31*(1+'LCOGH Plant Assumptions'!$P$6)^(1+COUNT(W$6:W31))) -> 78106926.83 | Y31: 7955363.022 | Z31: ='LCOGH Plant Assumptions'!$S$6 -> NZD | AA31: ='LCOGH Inputs'!$E$9 -> 1.341281669 | AB31: =INDEX('LCOGH Inputs'!$F$9:$F$14,MATCH('LCOGH2 Calc'!Z31,'LCOGH Inputs'!$D$9:$D$14,0)) -> 1 | AC31: =INDEX('LCOGH Inputs'!$G$9:$G$14,MATCH('LCOGH2 Calc'!Z31,'LCOGH Inputs'!$D$9:$D$14,0)) -> 0.7455555556 | AD31: ='LCOGH Plant Assumptions'!$T$6 -> USD | AE31: 0.2010730574 | AF31: 0.003390416763 | AG31: 3.036458243 | AH31: 0.09952093466 | AI31: 3.139369595 | AJ31: 3.340442652 | AK31: =AJ31/'LCOGH Inputs'!$B$135 -> 0.0278370221 | AL31: NZ Grid Largest Scale2045
A32: ='LCOGH Plant Assumptions'!$A$6 -> 1 | B32: ='LCOGH Plant Assumptions'!$B$6 -> 0.08 | C32: =INDEX('LCOGH Plant Assumptions'!$C$6:$C$15,MATCH('LCOGH2 Calc'!A32,'LCOGH Plant Assumptions'!$A$6:$A$15,0)) -> New Zealand 1 | D32: NZ Grid Largest Scale | E32: =E31+1 -> 2046 | F32: ='LCOGH Plant Assumptions'!$E$6 -> Largest Efficient Scale | G32: =INDEX('LCOGH Inputs'!$C$25:$C$29,MATCH('LCOGH2 Calc'!F32,'LCOGH Inputs'!$A$25:$A$29,0)) -> 3937500 | H32: =INDEX('LCOGH Inputs'!$D$25:$D$29,MATCH('LCOGH2 Calc'!F32,'LCOGH Inputs'!$A$25:$A$29,0)) -> 120440 | I32: =INDEX('LCOGH Inputs'!$G$25:$G$29,MATCH('LCOGH2 Calc'!F32,'LCOGH Inputs'!$A$25:$A$29,0)) -> 198750000 | J32: =INDEX('LCOGH Inputs'!$K$25:$K$29,MATCH('LCOGH2 Calc'!F32,'LCOGH Inputs'!$A$25:$A$29,0)) -> 0 | K32: =INDEX('LCOGH Inputs'!$L$25:$L$29,MATCH('LCOGH2 Calc'!F32,'LCOGH Inputs'!$A$25:$A$29,0)) -> 70000 | L32: ='LCOGH Plant Assumptions'!$M$6 -> Constant | M32: ='LCOGH Plant Assumptions'!$N$6 -> Constant | N32: ='LCOGH Plant Assumptions'!$X$6 -> 0.1079 | O32: =IF(L32="Path",INDEX('LCOGH Inputs'!$I$69:$AL$69,MATCH('LCOGH2 Calc'!E32,'LCOGH Inputs'!$I$68:$AL$68,0)),N32*(1+'LCOGH Inputs'!$C$69)^(COUNT('LCOGH2 Calc'!N$7:N32))) -> 0.1011013508 | P32: =INDEX('LCOGH Inputs'!$I$25:$I$29,MATCH('LCOGH2 Calc'!F32,'LCOGH Inputs'!$A$25:$A$29,0)) -> 55 | Q32: =IF('LCOGH Plant Assumptions'!$O$6="Yes",P31*(1+'LCOGH Plant Assumptions'!$R$6)^(1+COUNT(P$6:P31)),P31) -> 39.70088549 | R32: ='LCOGH Plant Assumptions'!$Y$6 -> 0.000197 | S32: =IF(M32="Path",INDEX('LCOGH Inputs'!$I$36:$AL$36,MATCH('LCOGH2 Calc'!E32,'LCOGH Inputs'!$I$35:$AL$35,0)),R32*(1+'LCOGH Inputs'!$G$36)^(COUNT('LCOGH2 Calc'!R$7:R32))) -> 0.000255165494 | T32: =INDEX('LCOGH Inputs'!$H$25:$H$29,MATCH('LCOGH2 Calc'!F32,'LCOGH Inputs'!$A$25:$A$29,0)) -> 18 | U32: 20 | V32: ='LCOGH Plant Assumptions'!$L$6 -> 0.9 | W32: 39564540 | X32: =IF(E32=2020,I32,I32*(1+'LCOGH Plant Assumptions'!$P$6)^(1+COUNT(W$6:W32))) -> 75451291.32 | Y32: 7684880.68 | Z32: ='LCOGH Plant Assumptions'!$S$6 -> NZD | AA32: ='LCOGH Inputs'!$E$9 -> 1.341281669 | AB32: =INDEX('LCOGH Inputs'!$F$9:$F$14,MATCH('LCOGH2 Calc'!Z32,'LCOGH Inputs'!$D$9:$D$14,0)) -> 1 | AC32: =INDEX('LCOGH Inputs'!$G$9:$G$14,MATCH('LCOGH2 Calc'!Z32,'LCOGH Inputs'!$D$9:$D$14,0)) -> 0.7455555556 | AD32: ='LCOGH Plant Assumptions'!$T$6 -> USD | AE32: 0.1942365734 | AF32: 0.00342432093 | AG32: 2.992520692 | AH32: 0.09952093466 | AI32: 3.095465948 | AJ32: 3.289702521 | AK32: =AJ32/'LCOGH Inputs'!$B$135 -> 0.02741418768 | AL32: NZ Grid Largest Scale2046
A33: ='LCOGH Plant Assumptions'!$A$6 -> 1 | B33: ='LCOGH Plant Assumptions'!$B$6 -> 0.08 | C33: =INDEX('LCOGH Plant Assumptions'!$C$6:$C$15,MATCH('LCOGH2 Calc'!A33,'LCOGH Plant Assumptions'!$A$6:$A$15,0)) -> New Zealand 1 | D33: NZ Grid Largest Scale | E33: 2047 | F33: ='LCOGH Plant Assumptions'!$E$6 -> Largest Efficient Scale | G33: =INDEX('LCOGH Inputs'!$C$25:$C$29,MATCH('LCOGH2 Calc'!F33,'LCOGH Inputs'!$A$25:$A$29,0)) -> 3937500 | H33: =INDEX('LCOGH Inputs'!$D$25:$D$29,MATCH('LCOGH2 Calc'!F33,'LCOGH Inputs'!$A$25:$A$29,0)) -> 120440 | I33: =INDEX('LCOGH Inputs'!$G$25:$G$29,MATCH('LCOGH2 Calc'!F33,'LCOGH Inputs'!$A$25:$A$29,0)) -> 198750000 | J33: =INDEX('LCOGH Inputs'!$K$25:$K$29,MATCH('LCOGH2 Calc'!F33,'LCOGH Inputs'!$A$25:$A$29,0)) -> 0 | K33: =INDEX('LCOGH Inputs'!$L$25:$L$29,MATCH('LCOGH2 Calc'!F33,'LCOGH Inputs'!$A$25:$A$29,0)) -> 70000 | L33: ='LCOGH Plant Assumptions'!$M$6 -> Constant | M33: ='LCOGH Plant Assumptions'!$N$6 -> Constant | N33: ='LCOGH Plant Assumptions'!$X$6 -> 0.1079 | O33: =IF(L33="Path",INDEX('LCOGH Inputs'!$I$69:$AL$69,MATCH('LCOGH2 Calc'!E33,'LCOGH Inputs'!$I$68:$AL$68,0)),N33*(1+'LCOGH Inputs'!$C$69)^(COUNT('LCOGH2 Calc'!N$7:N33))) -> 0.1008485974 | P33: =INDEX('LCOGH Inputs'!$I$25:$I$29,MATCH('LCOGH2 Calc'!F33,'LCOGH Inputs'!$A$25:$A$29,0)) -> 55 | Q33: =IF('LCOGH Plant Assumptions'!$O$6="Yes",P32*(1+'LCOGH Plant Assumptions'!$R$6)^(1+COUNT(P$6:P32)),P32) -> 39.22447486 | R33: ='LCOGH Plant Assumptions'!$Y$6 -> 0.000197 | S33: =IF(M33="Path",INDEX('LCOGH Inputs'!$I$36:$AL$36,MATCH('LCOGH2 Calc'!E33,'LCOGH Inputs'!$I$35:$AL$35,0)),R33*(1+'LCOGH Inputs'!$G$36)^(COUNT('LCOGH2 Calc'!R$7:R33))) -> 0.000257717149 | T33: =INDEX('LCOGH Inputs'!$H$25:$H$29,MATCH('LCOGH2 Calc'!F33,'LCOGH Inputs'!$A$25:$A$29,0)) -> 18 | U33: 20 | V33: ='LCOGH Plant Assumptions'!$L$6 -> 0.9 | W33: 39564540 | X33: =IF(E33=2020,I33,I33*(1+'LCOGH Plant Assumptions'!$P$6)^(1+COUNT(W$6:W33))) -> 72885947.42 | Y33: 7423594.736 | Z33: ='LCOGH Plant Assumptions'!$S$6 -> NZD | AA33: ='LCOGH Inputs'!$E$9 -> 1.341281669 | AB33: =INDEX('LCOGH Inputs'!$F$9:$F$14,MATCH('LCOGH2 Calc'!Z33,'LCOGH Inputs'!$D$9:$D$14,0)) -> 1 | AC33: =INDEX('LCOGH Inputs'!$G$9:$G$14,MATCH('LCOGH2 Calc'!Z33,'LCOGH Inputs'!$D$9:$D$14,0)) -> 0.7455555556 | AD33: ='LCOGH Plant Assumptions'!$T$6 -> USD | AE33: 0.1876325299 | AF33: 0.003458564139 | AG33: 2.949218918 | AH33: 0.09952093466 | AI33: 3.052198417 | AJ33: 3.239830947 | AK33: =AJ33/'LCOGH Inputs'!$B$135 -> 0.02699859122 | AL33: NZ Grid Largest Scale2047
A34: ='LCOGH Plant Assumptions'!$A$6 -> 1 | B34: ='LCOGH Plant Assumptions'!$B$6 -> 0.08 | C34: =INDEX('LCOGH Plant Assumptions'!$C$6:$C$15,MATCH('LCOGH2 Calc'!A34,'LCOGH Plant Assumptions'!$A$6:$A$15,0)) -> New Zealand 1 | D34: NZ Grid Largest Scale | E34: 2048 | F34: ='LCOGH Plant Assumptions'!$E$6 -> Largest Efficient Scale | G34: =INDEX('LCOGH Inputs'!$C$25:$C$29,MATCH('LCOGH2 Calc'!F34,'LCOGH Inputs'!$A$25:$A$29,0)) -> 3937500 | H34: =INDEX('LCOGH Inputs'!$D$25:$D$29,MATCH('LCOGH2 Calc'!F34,'LCOGH Inputs'!$A$25:$A$29,0)) -> 120440 | I34: =INDEX('LCOGH Inputs'!$G$25:$G$29,MATCH('LCOGH2 Calc'!F34,'LCOGH Inputs'!$A$25:$A$29,0)) -> 198750000 | J34: =INDEX('LCOGH Inputs'!$K$25:$K$29,MATCH('LCOGH2 Calc'!F34,'LCOGH Inputs'!$A$25:$A$29,0)) -> 0 | K34: =INDEX('LCOGH Inputs'!$L$25:$L$29,MATCH('LCOGH2 Calc'!F34,'LCOGH Inputs'!$A$25:$A$29,0)) -> 70000 | L34: ='LCOGH Plant Assumptions'!$M$6 -> Constant | M34: ='LCOGH Plant Assumptions'!$N$6 -> Constant | N34: ='LCOGH Plant Assumptions'!$X$6 -> 0.1079 | O34: =IF(L34="Path",INDEX('LCOGH Inputs'!$I$69:$AL$69,MATCH('LCOGH2 Calc'!E34,'LCOGH Inputs'!$I$68:$AL$68,0)),N34*(1+'LCOGH Inputs'!$C$69)^(COUNT('LCOGH2 Calc'!N$7:N34))) -> 0.1005964759 | P34: =INDEX('LCOGH Inputs'!$I$25:$I$29,MATCH('LCOGH2 Calc'!F34,'LCOGH Inputs'!$A$25:$A$29,0)) -> 55 | Q34: =IF('LCOGH Plant Assumptions'!$O$6="Yes",P33*(1+'LCOGH Plant Assumptions'!$R$6)^(1+COUNT(P$6:P33)),P33) -> 38.75378116 | R34: ='LCOGH Plant Assumptions'!$Y$6 -> 0.000197 | S34: =IF(M34="Path",INDEX('LCOGH Inputs'!$I$36:$AL$36,MATCH('LCOGH2 Calc'!E34,'LCOGH Inputs'!$I$35:$AL$35,0)),R34*(1+'LCOGH Inputs'!$G$36)^(COUNT('LCOGH2 Calc'!R$7:R34))) -> 0.0002602943205 | T34: =INDEX('LCOGH Inputs'!$H$25:$H$29,MATCH('LCOGH2 Calc'!F34,'LCOGH Inputs'!$A$25:$A$29,0)) -> 18 | U34: 20 | V34: ='LCOGH Plant Assumptions'!$L$6 -> 0.9 | W34: 39564540 | X34: =IF(E34=2020,I34,I34*(1+'LCOGH Plant Assumptions'!$P$6)^(1+COUNT(W$6:W34))) -> 70407825.2 | Y34: 7171192.515 | Z34: ='LCOGH Plant Assumptions'!$S$6 -> NZD | AA34: ='LCOGH Inputs'!$E$9 -> 1.341281669 | AB34: =INDEX('LCOGH Inputs'!$F$9:$F$14,MATCH('LCOGH2 Calc'!Z34,'LCOGH Inputs'!$D$9:$D$14,0)) -> 1 | AC34: =INDEX('LCOGH Inputs'!$G$9:$G$14,MATCH('LCOGH2 Calc'!Z34,'LCOGH Inputs'!$D$9:$D$14,0)) -> 0.7455555556 | AD34: ='LCOGH Plant Assumptions'!$T$6 -> USD | AE34: 0.1812530239 | AF34: 0.003493149781 | AG34: 2.90654372 | AH34: =IF(AD34="NZD",AA34*((J34*K34)+G34)/W34,((J34*K34)+G34)/W34) -> 0.09952093466 | AI34: 3.009557805 | AJ34: 3.190810829 | AK34: =AJ34/'LCOGH Inputs'!$B$135 -> 0.02659009024 | AL34: NZ Grid Largest Scale2048
A35: ='LCOGH Plant Assumptions'!$A$6 -> 1 | B35: ='LCOGH Plant Assumptions'!$B$6 -> 0.08 | C35: =INDEX('LCOGH Plant Assumptions'!$C$6:$C$15,MATCH('LCOGH2 Calc'!A35,'LCOGH Plant Assumptions'!$A$6:$A$15,0)) -> New Zealand 1 | D35: NZ Grid Largest Scale | E35: 2049 | F35: ='LCOGH Plant Assumptions'!$E$6 -> Largest Efficient Scale | G35: =INDEX('LCOGH Inputs'!$C$25:$C$29,MATCH('LCOGH2 Calc'!F35,'LCOGH Inputs'!$A$25:$A$29,0)) -> 3937500 | H35: =INDEX('LCOGH Inputs'!$D$25:$D$29,MATCH('LCOGH2 Calc'!F35,'LCOGH Inputs'!$A$25:$A$29,0)) -> 120440 | I35: =INDEX('LCOGH Inputs'!$G$25:$G$29,MATCH('LCOGH2 Calc'!F35,'LCOGH Inputs'!$A$25:$A$29,0)) -> 198750000 | J35: =INDEX('LCOGH Inputs'!$K$25:$K$29,MATCH('LCOGH2 Calc'!F35,'LCOGH Inputs'!$A$25:$A$29,0)) -> 0 | K35: =INDEX('LCOGH Inputs'!$L$25:$L$29,MATCH('LCOGH2 Calc'!F35,'LCOGH Inputs'!$A$25:$A$29,0)) -> 70000 | L35: ='LCOGH Plant Assumptions'!$M$6 -> Constant | M35: ='LCOGH Plant Assumptions'!$N$6 -> Constant | N35: ='LCOGH Plant Assumptions'!$X$6 -> 0.1079 | O35: =IF(L35="Path",INDEX('LCOGH Inputs'!$I$69:$AL$69,MATCH('LCOGH2 Calc'!E35,'LCOGH Inputs'!$I$68:$AL$68,0)),N35*(1+'LCOGH Inputs'!$C$69)^(COUNT('LCOGH2 Calc'!N$7:N35))) -> 0.1003449847 | P35: =INDEX('LCOGH Inputs'!$I$25:$I$29,MATCH('LCOGH2 Calc'!F35,'LCOGH Inputs'!$A$25:$A$29,0)) -> 55 | Q35: =IF('LCOGH Plant Assumptions'!$O$6="Yes",P34*(1+'LCOGH Plant Assumptions'!$R$6)^(1+COUNT(P$6:P34)),P34) -> 38.28873579 | R35: ='LCOGH Plant Assumptions'!$Y$6 -> 0.000197 | S35: =IF(M35="Path",INDEX('LCOGH Inputs'!$I$36:$AL$36,MATCH('LCOGH2 Calc'!E35,'LCOGH Inputs'!$I$35:$AL$35,0)),R35*(1+'LCOGH Inputs'!$G$36)^(COUNT('LCOGH2 Calc'!R$7:R35))) -> 0.0002628972637 | T35: =INDEX('LCOGH Inputs'!$H$25:$H$29,MATCH('LCOGH2 Calc'!F35,'LCOGH Inputs'!$A$25:$A$29,0)) -> 18 | U35: 20 | V35: ='LCOGH Plant Assumptions'!$L$6 -> 0.9 | W35: 39564540 | X35: =IF(E35=2020,I35,I35*(1+'LCOGH Plant Assumptions'!$P$6)^(1+COUNT(W$6:W35))) -> 68013959.15 | Y35: 6927371.97 | Z35: ='LCOGH Plant Assumptions'!$S$6 -> NZD | AA35: ='LCOGH Inputs'!$E$9 -> 1.341281669 | AB35: =INDEX('LCOGH Inputs'!$F$9:$F$14,MATCH('LCOGH2 Calc'!Z35,'LCOGH Inputs'!$D$9:$D$14,0)) -> 1 | AC35: =INDEX('LCOGH Inputs'!$G$9:$G$14,MATCH('LCOGH2 Calc'!Z35,'LCOGH Inputs'!$D$9:$D$14,0)) -> 0.7455555556 | AD35: ='LCOGH Plant Assumptions'!$T$6 -> USD | AE35: 0.1750904211 | AF35: 0.003528081279 | AG35: 2.864486033 | AH35: 0.09952093466 | AI35: 2.967535048 | AJ35: 3.14262547 | AK35: =AJ35/'LCOGH Inputs'!$B$135 -> 0.02618854558 | AL35: NZ Grid Largest Scale2049
A36: ='LCOGH Plant Assumptions'!$A$6 -> 1 | B36: ='LCOGH Plant Assumptions'!$B$6 -> 0.08 | C36: =INDEX('LCOGH Plant Assumptions'!$C$6:$C$15,MATCH('LCOGH2 Calc'!A36,'LCOGH Plant Assumptions'!$A$6:$A$15,0)) -> New Zealand 1 | D36: NZ Grid Largest Scale | E36: 2050 | F36: ='LCOGH Plant Assumptions'!$E$6 -> Largest Efficient Scale | G36: =INDEX('LCOGH Inputs'!$C$25:$C$29,MATCH('LCOGH2 Calc'!F36,'LCOGH Inputs'!$A$25:$A$29,0)) -> 3937500 | H36: =INDEX('LCOGH Inputs'!$D$25:$D$29,MATCH('LCOGH2 Calc'!F36,'LCOGH Inputs'!$A$25:$A$29,0)) -> 120440 | I36: =INDEX('LCOGH Inputs'!$G$25:$G$29,MATCH('LCOGH2 Calc'!F36,'LCOGH Inputs'!$A$25:$A$29,0)) -> 198750000 | J36: =INDEX('LCOGH Inputs'!$K$25:$K$29,MATCH('LCOGH2 Calc'!F36,'LCOGH Inputs'!$A$25:$A$29,0)) -> 0 | K36: =INDEX('LCOGH Inputs'!$L$25:$L$29,MATCH('LCOGH2 Calc'!F36,'LCOGH Inputs'!$A$25:$A$29,0)) -> 70000 | L36: ='LCOGH Plant Assumptions'!$M$6 -> Constant | M36: ='LCOGH Plant Assumptions'!$N$6 -> Constant | N36: ='LCOGH Plant Assumptions'!$X$6 -> 0.1079 | O36: =IF(L36="Path",INDEX('LCOGH Inputs'!$I$69:$AL$69,MATCH('LCOGH2 Calc'!E36,'LCOGH Inputs'!$I$68:$AL$68,0)),N36*(1+'LCOGH Inputs'!$C$69)^(COUNT('LCOGH2 Calc'!N$7:N36))) -> 0.1000941222 | P36: =INDEX('LCOGH Inputs'!$I$25:$I$29,MATCH('LCOGH2 Calc'!F36,'LCOGH Inputs'!$A$25:$A$29,0)) -> 55 | Q36: =IF('LCOGH Plant Assumptions'!$O$6="Yes",P35*(1+'LCOGH Plant Assumptions'!$R$6)^(1+COUNT(P$6:P35)),P35) -> 37.82927096 | R36: ='LCOGH Plant Assumptions'!$Y$6 -> 0.000197 | S36: =IF(M36="Path",INDEX('LCOGH Inputs'!$I$36:$AL$36,MATCH('LCOGH2 Calc'!E36,'LCOGH Inputs'!$I$35:$AL$35,0)),R36*(1+'LCOGH Inputs'!$G$36)^(COUNT('LCOGH2 Calc'!R$7:R36))) -> 0.0002655262363 | T36: =INDEX('LCOGH Inputs'!$H$25:$H$29,MATCH('LCOGH2 Calc'!F36,'LCOGH Inputs'!$A$25:$A$29,0)) -> 18 | U36: 20 | V36: ='LCOGH Plant Assumptions'!$L$6 -> 0.9 | W36: 39564540 | X36: =IF(E36=2020,I36,I36*(1+'LCOGH Plant Assumptions'!$P$6)^(1+COUNT(W$6:W36))) -> 65701484.54 | Y36: 6691841.323 | Z36: ='LCOGH Plant Assumptions'!$S$6 -> NZD | AA36: ='LCOGH Inputs'!$E$9 -> 1.341281669 | AB36: =INDEX('LCOGH Inputs'!$F$9:$F$14,MATCH('LCOGH2 Calc'!Z36,'LCOGH Inputs'!$D$9:$D$14,0)) -> 1 | AC36: =INDEX('LCOGH Inputs'!$G$9:$G$14,MATCH('LCOGH2 Calc'!Z36,'LCOGH Inputs'!$D$9:$D$14,0)) -> 0.7455555556 | AD36: ='LCOGH Plant Assumptions'!$T$6 -> USD | AE36: 0.1691373468 | AF36: 0.003563362091 | AG36: 2.82303692 | AH36: 0.09952093466 | AI36: 2.926121216 | AJ36: 3.095258563 | AK36: =AJ36/'LCOGH Inputs'!$B$135 -> 0.02579382136 | AL36: NZ Grid Largest Scale2050
A38: ='LCOGH Plant Assumptions'!$A$7 -> 2 | B38: ='LCOGH Plant Assumptions'!$B$7 -> 0.08 | C38: =INDEX('LCOGH Plant Assumptions'!$C$6:$C$15,MATCH('LCOGH2 Calc'!A38,'LCOGH Plant Assumptions'!$A$6:$A$15,0)) -> New Zealand 2 | D38: =IF('LCOGH Plant Assumptions'!$D$7="","",'LCOGH Plant Assumptions'!$D$7) -> NZ Grid Medium Scale | E38: 2020 | F38: ='LCOGH Plant Assumptions'!$E$7 -> Medium | G38: =INDEX('LCOGH Inputs'!$C$25:$C$29,MATCH('LCOGH2 Calc'!F38,'LCOGH Inputs'!$A$25:$A$29,0)) -> 421875 | H38: =INDEX('LCOGH Inputs'!$D$25:$D$29,MATCH('LCOGH2 Calc'!F38,'LCOGH Inputs'!$A$25:$A$29,0)) -> 4010 | I38: =INDEX('LCOGH Inputs'!$G$25:$G$29,MATCH('LCOGH2 Calc'!F38,'LCOGH Inputs'!$A$25:$A$29,0)) -> 9187500 | J38: =INDEX('LCOGH Inputs'!$K$25:$K$29,MATCH('LCOGH2 Calc'!F38,'LCOGH Inputs'!$A$25:$A$29,0)) -> 0 | K38: =INDEX('LCOGH Inputs'!$L$25:$L$29,MATCH('LCOGH2 Calc'!F38,'LCOGH Inputs'!$A$25:$A$29,0)) -> 70000 | L38: ='LCOGH Plant Assumptions'!$M$7 -> Constant | M38: ='LCOGH Plant Assumptions'!$N$7 -> Constant | N38: ='LCOGH Plant Assumptions'!$X$7 -> 0.1375 | O38: =IF(L38="Path",O39,N38) -> 0.1375 | P38: =INDEX('LCOGH Inputs'!$I$25:$I$29,MATCH('LCOGH2 Calc'!F38,'LCOGH Inputs'!$A$25:$A$29,0)) -> 55 | Q38: =P38 -> 55 | R38: ='LCOGH Plant Assumptions'!$Y$7 -> 0.00161 | S38: =R38 -> 0.00161 | T38: =INDEX('LCOGH Inputs'!$H$25:$H$29,MATCH('LCOGH2 Calc'!F38,'LCOGH Inputs'!$A$25:$A$29,0)) -> 18 | U38: 20 | V38: ='LCOGH Plant Assumptions'!$L$7 -> 0.9 | W38: =V38*H38*365 -> 1317285 | X38: =IF(E38=2020,I38,I38*(1+'LCOGH Plant Assumptions'!$P$7)^(1+COUNT(W$38:W38))) -> 9187500 | Y38: =PMT($B$6,U38,-X38) -> 935767.1686 | Z38: ='LCOGH Plant Assumptions'!$S$7 -> NZD | AA38: ='LCOGH Inputs'!$E$9 -> 1.341281669 | AB38: =INDEX('LCOGH Inputs'!$F$9:$F$14,MATCH('LCOGH2 Calc'!Z38,'LCOGH Inputs'!$D$9:$D$14,0)) -> 1 | AC38: =INDEX('LCOGH Inputs'!$G$9:$G$14,MATCH('LCOGH2 Calc'!Z38,'LCOGH Inputs'!$D$9:$D$14,0)) -> 0.7455555556 | AD38: ='LCOGH Plant Assumptions'!$T$7 -> USD | AE38: =IF(AD38="NZD",AA38*Y38/W38,Y38/W38) -> 0.7103756352 | AF38: =IF(AD38="NZD",T38*S38*AB38,T38*S38*AC38) -> 0.0216062 | AG38: =IF(AD38="NZD",O38*Q38*AB38,O38*Q38*AC38) -> 5.638263889 | AH38: =IF(AD38="NZD",AA38*((J38*K38)+G38)/W38,((J38*K38)+G38)/W38) -> 0.3202609914 | AI38: 5.98013108 | AJ38: =AE38+AI38 -> 6.690506715 | AK38: =AJ38/'LCOGH Inputs'!$B$135 -> 0.05575422263 | AL38: NZ Grid Medium Scale2020
A39: ='LCOGH Plant Assumptions'!$A$7 -> 2 | B39: ='LCOGH Plant Assumptions'!$B$7 -> 0.08 | C39: =INDEX('LCOGH Plant Assumptions'!$C$6:$C$15,MATCH('LCOGH2 Calc'!A39,'LCOGH Plant Assumptions'!$A$6:$A$15,0)) -> New Zealand 2 | D39: =IF('LCOGH Plant Assumptions'!$D$7="","",'LCOGH Plant Assumptions'!$D$7) -> NZ Grid Medium Scale | E39: 2021 | F39: ='LCOGH Plant Assumptions'!$E$7 -> Medium | G39: =INDEX('LCOGH Inputs'!$C$25:$C$29,MATCH('LCOGH2 Calc'!F39,'LCOGH Inputs'!$A$25:$A$29,0)) -> 421875 | H39: =INDEX('LCOGH Inputs'!$D$25:$D$29,MATCH('LCOGH2 Calc'!F39,'LCOGH Inputs'!$A$25:$A$29,0)) -> 4010 | I39: =INDEX('LCOGH Inputs'!$G$25:$G$29,MATCH('LCOGH2 Calc'!F39,'LCOGH Inputs'!$A$25:$A$29,0)) -> 9187500 | J39: =INDEX('LCOGH Inputs'!$K$25:$K$29,MATCH('LCOGH2 Calc'!F39,'LCOGH Inputs'!$A$25:$A$29,0)) -> 0 | K39: =INDEX('LCOGH Inputs'!$L$25:$L$29,MATCH('LCOGH2 Calc'!F39,'LCOGH Inputs'!$A$25:$A$29,0)) -> 70000 | L39: ='LCOGH Plant Assumptions'!$M$7 -> Constant | M39: ='LCOGH Plant Assumptions'!$N$7 -> Constant | N39: ='LCOGH Plant Assumptions'!$X$7 -> 0.1375 | O39: =IF(L39="Path",INDEX('LCOGH Inputs'!$I$70:$AL$70,MATCH('LCOGH2 Calc'!E39,'LCOGH Inputs'!$I$68:$AL$68,0)),N39*(1+'LCOGH Inputs'!$C$70)^(COUNT('LCOGH2 Calc'!N$39:N39))) -> 0.13715625 | P39: =INDEX('LCOGH Inputs'!$I$25:$I$29,MATCH('LCOGH2 Calc'!F39,'LCOGH Inputs'!$A$25:$A$29,0)) -> 55 | Q39: =IF('LCOGH Plant Assumptions'!$O$7="Yes",P38*(1+'LCOGH Plant Assumptions'!$R$7)^(1+COUNT(P$38:P38)),P38) -> 53.68792 | R39: ='LCOGH Plant Assumptions'!$Y$7 -> 0.00161 | S39: =IF(M39="Path",INDEX('LCOGH Inputs'!$I$37:$AL$37,MATCH('LCOGH2 Calc'!E39,'LCOGH Inputs'!$I$35:$AL$35,0)),R39*(1+'LCOGH Inputs'!$G$37)^(COUNT('LCOGH2 Calc'!R$39:R39))) -> 0.0016261 | T39: =INDEX('LCOGH Inputs'!$H$25:$H$29,MATCH('LCOGH2 Calc'!F39,'LCOGH Inputs'!$A$25:$A$29,0)) -> 18 | U39: 20 | V39: ='LCOGH Plant Assumptions'!$L$7 -> 0.9 | W39: 1317285 | X39: =IF(E39=2020,I39,I39*(1+'LCOGH Plant Assumptions'!$P$7)^(1+COUNT(W$38:W39))) -> 8281876.144 | Y39: =PMT($B$6,U39,-X39) -> 843527.3785 | Z39: ='LCOGH Plant Assumptions'!$S$7 -> NZD | AA39: ='LCOGH Inputs'!$E$9 -> 1.341281669 | AB39: =INDEX('LCOGH Inputs'!$F$9:$F$14,MATCH('LCOGH2 Calc'!Z39,'LCOGH Inputs'!$D$9:$D$14,0)) -> 1 | AC39: =INDEX('LCOGH Inputs'!$G$9:$G$14,MATCH('LCOGH2 Calc'!Z39,'LCOGH Inputs'!$D$9:$D$14,0)) -> 0.7455555556 | AD39: ='LCOGH Plant Assumptions'!$T$7 -> USD | AE39: =IF(AD39="NZD",AA39*Y39/W39,Y39/W39) -> 0.6403529825 | AF39: =IF(AD39="NZD",T39*S39*AB39,T39*S39*AC39) -> 0.021822262 | AG39: =IF(AD39="NZD",O39*Q39*AB39,O39*Q39*AC39) -> 5.489998072 | AH39: =IF(AD39="NZD",AA39*((J39*K39)+G39)/W39,((J39*K39)+G39)/W39) -> 0.3202609914 | AI39: 5.832081325 | AJ39: 6.472434308 | AK39: =AJ39/'LCOGH Inputs'!$B$135 -> 0.05393695256 | AL39: NZ Grid Medium Scale2021
A40: ='LCOGH Plant Assumptions'!$A$7 -> 2 | B40: ='LCOGH Plant Assumptions'!$B$7 -> 0.08 | C40: =INDEX('LCOGH Plant Assumptions'!$C$6:$C$15,MATCH('LCOGH2 Calc'!A40,'LCOGH Plant Assumptions'!$A$6:$A$15,0)) -> New Zealand 2 | D40: =IF('LCOGH Plant Assumptions'!$D$7="","",'LCOGH Plant Assumptions'!$D$7) -> NZ Grid Medium Scale | E40: 2022 | F40: ='LCOGH Plant Assumptions'!$E$7 -> Medium | G40: =INDEX('LCOGH Inputs'!$C$25:$C$29,MATCH('LCOGH2 Calc'!F40,'LCOGH Inputs'!$A$25:$A$29,0)) -> 421875 | H40: =INDEX('LCOGH Inputs'!$D$25:$D$29,MATCH('LCOGH2 Calc'!F40,'LCOGH Inputs'!$A$25:$A$29,0)) -> 4010 | I40: =INDEX('LCOGH Inputs'!$G$25:$G$29,MATCH('LCOGH2 Calc'!F40,'LCOGH Inputs'!$A$25:$A$29,0)) -> 9187500 | J40: =INDEX('LCOGH Inputs'!$K$25:$K$29,MATCH('LCOGH2 Calc'!F40,'LCOGH Inputs'!$A$25:$A$29,0)) -> 0 | K40: =INDEX('LCOGH Inputs'!$L$25:$L$29,MATCH('LCOGH2 Calc'!F40,'LCOGH Inputs'!$A$25:$A$29,0)) -> 70000 | L40: ='LCOGH Plant Assumptions'!$M$7 -> Constant | M40: ='LCOGH Plant Assumptions'!$N$7 -> Constant | N40: ='LCOGH Plant Assumptions'!$X$7 -> 0.1375 | O40: =IF(L40="Path",INDEX('LCOGH Inputs'!$I$70:$AL$70,MATCH('LCOGH2 Calc'!E40,'LCOGH Inputs'!$I$68:$AL$68,0)),N40*(1+'LCOGH Inputs'!$C$70)^(COUNT('LCOGH2 Calc'!N$39:N40))) -> 0.1368133594 | P40: =INDEX('LCOGH Inputs'!$I$25:$I$29,MATCH('LCOGH2 Calc'!F40,'LCOGH Inputs'!$A$25:$A$29,0)) -> 55 | Q40: =IF('LCOGH Plant Assumptions'!$O$7="Yes",P39*(1+'LCOGH Plant Assumptions'!$R$7)^(1+COUNT(P$38:P39)),P39) -> 53.04366496 | R40: ='LCOGH Plant Assumptions'!$Y$7 -> 0.00161 | S40: =IF(M40="Path",INDEX('LCOGH Inputs'!$I$37:$AL$37,MATCH('LCOGH2 Calc'!E40,'LCOGH Inputs'!$I$35:$AL$35,0)),R40*(1+'LCOGH Inputs'!$G$37)^(COUNT('LCOGH2 Calc'!R$39:R40))) -> 0.001642361 | T40: =INDEX('LCOGH Inputs'!$H$25:$H$29,MATCH('LCOGH2 Calc'!F40,'LCOGH Inputs'!$A$25:$A$29,0)) -> 18 | U40: 20 | V40: ='LCOGH Plant Assumptions'!$L$7 -> 0.9 | W40: 1317285 | X40: =IF(E40=2020,I40,I40*(1+'LCOGH Plant Assumptions'!$P$7)^(1+COUNT(W$38:W40))) -> 8000292.356 | Y40: 814847.4476 | Z40: ='LCOGH Plant Assumptions'!$S$7 -> NZD | AA40: ='LCOGH Inputs'!$E$9 -> 1.341281669 | AB40: =INDEX('LCOGH Inputs'!$F$9:$F$14,MATCH('LCOGH2 Calc'!Z40,'LCOGH Inputs'!$D$9:$D$14,0)) -> 1 | AC40: =INDEX('LCOGH Inputs'!$G$9:$G$14,MATCH('LCOGH2 Calc'!Z40,'LCOGH Inputs'!$D$9:$D$14,0)) -> 0.7455555556 | AD40: ='LCOGH Plant Assumptions'!$T$7 -> USD | AE40: 0.6185809811 | AF40: 0.02204048462 | AG40: 5.4105578 | AH40: 0.3202609914 | AI40: 5.752859276 | AJ40: 6.371440257 | AK40: =AJ40/'LCOGH Inputs'!$B$135 -> 0.05309533547 | AL40: NZ Grid Medium Scale2022
A41: ='LCOGH Plant Assumptions'!$A$7 -> 2 | B41: ='LCOGH Plant Assumptions'!$B$7 -> 0.08 | C41: =INDEX('LCOGH Plant Assumptions'!$C$6:$C$15,MATCH('LCOGH2 Calc'!A41,'LCOGH Plant Assumptions'!$A$6:$A$15,0)) -> New Zealand 2 | D41: =IF('LCOGH Plant Assumptions'!$D$7="","",'LCOGH Plant Assumptions'!$D$7) -> NZ Grid Medium Scale | E41: 2023 | F41: ='LCOGH Plant Assumptions'!$E$7 -> Medium | G41: =INDEX('LCOGH Inputs'!$C$25:$C$29,MATCH('LCOGH2 Calc'!F41,'LCOGH Inputs'!$A$25:$A$29,0)) -> 421875 | H41: =INDEX('LCOGH Inputs'!$D$25:$D$29,MATCH('LCOGH2 Calc'!F41,'LCOGH Inputs'!$A$25:$A$29,0)) -> 4010 | I41: =INDEX('LCOGH Inputs'!$G$25:$G$29,MATCH('LCOGH2 Calc'!F41,'LCOGH Inputs'!$A$25:$A$29,0)) -> 9187500 | J41: =INDEX('LCOGH Inputs'!$K$25:$K$29,MATCH('LCOGH2 Calc'!F41,'LCOGH Inputs'!$A$25:$A$29,0)) -> 0 | K41: =INDEX('LCOGH Inputs'!$L$25:$L$29,MATCH('LCOGH2 Calc'!F41,'LCOGH Inputs'!$A$25:$A$29,0)) -> 70000 | L41: ='LCOGH Plant Assumptions'!$M$7 -> Constant | M41: ='LCOGH Plant Assumptions'!$N$7 -> Constant | N41: ='LCOGH Plant Assumptions'!$X$7 -> 0.1375 | O41: =IF(L41="Path",INDEX('LCOGH Inputs'!$I$70:$AL$70,MATCH('LCOGH2 Calc'!E41,'LCOGH Inputs'!$I$68:$AL$68,0)),N41*(1+'LCOGH Inputs'!$C$70)^(COUNT('LCOGH2 Calc'!N$39:N41))) -> 0.136471326 | P41: =INDEX('LCOGH Inputs'!$I$25:$I$29,MATCH('LCOGH2 Calc'!F41,'LCOGH Inputs'!$A$25:$A$29,0)) -> 55 | Q41: =IF('LCOGH Plant Assumptions'!$O$7="Yes",P40*(1+'LCOGH Plant Assumptions'!$R$7)^(1+COUNT(P$38:P40)),P40) -> 52.40714098 | R41: ='LCOGH Plant Assumptions'!$Y$7 -> 0.00161 | S41: =IF(M41="Path",INDEX('LCOGH Inputs'!$I$37:$AL$37,MATCH('LCOGH2 Calc'!E41,'LCOGH Inputs'!$I$35:$AL$35,0)),R41*(1+'LCOGH Inputs'!$G$37)^(COUNT('LCOGH2 Calc'!R$39:R41))) -> 0.00165878461 | T41: =INDEX('LCOGH Inputs'!$H$25:$H$29,MATCH('LCOGH2 Calc'!F41,'LCOGH Inputs'!$A$25:$A$29,0)) -> 18 | U41: 20 | V41: ='LCOGH Plant Assumptions'!$L$7 -> 0.9 | W41: 1317285 | X41: =IF(E41=2020,I41,I41*(1+'LCOGH Plant Assumptions'!$P$7)^(1+COUNT(W$38:W41))) -> 7728282.415 | Y41: 787142.6344 | Z41: ='LCOGH Plant Assumptions'!$S$7 -> NZD | AA41: ='LCOGH Inputs'!$E$9 -> 1.341281669 | AB41: =INDEX('LCOGH Inputs'!$F$9:$F$14,MATCH('LCOGH2 Calc'!Z41,'LCOGH Inputs'!$D$9:$D$14,0)) -> 1 | AC41: =INDEX('LCOGH Inputs'!$G$9:$G$14,MATCH('LCOGH2 Calc'!Z41,'LCOGH Inputs'!$D$9:$D$14,0)) -> 0.7455555556 | AD41: ='LCOGH Plant Assumptions'!$T$7 -> USD | AE41: 0.5975492277 | AF41: 0.02226088947 | AG41: 5.332267028 | AH41: 0.3202609914 | AI41: 5.674788909 | AJ41: 6.272338137 | AK41: =AJ41/'LCOGH Inputs'!$B$135 -> 0.05226948447 | AL41: NZ Grid Medium Scale2023
A42: ='LCOGH Plant Assumptions'!$A$7 -> 2 | B42: ='LCOGH Plant Assumptions'!$B$7 -> 0.08 | C42: =INDEX('LCOGH Plant Assumptions'!$C$6:$C$15,MATCH('LCOGH2 Calc'!A42,'LCOGH Plant Assumptions'!$A$6:$A$15,0)) -> New Zealand 2 | D42: =IF('LCOGH Plant Assumptions'!$D$7="","",'LCOGH Plant Assumptions'!$D$7) -> NZ Grid Medium Scale | E42: 2024 | F42: ='LCOGH Plant Assumptions'!$E$7 -> Medium | G42: =INDEX('LCOGH Inputs'!$C$25:$C$29,MATCH('LCOGH2 Calc'!F42,'LCOGH Inputs'!$A$25:$A$29,0)) -> 421875 | H42: =INDEX('LCOGH Inputs'!$D$25:$D$29,MATCH('LCOGH2 Calc'!F42,'LCOGH Inputs'!$A$25:$A$29,0)) -> 4010 | I42: =INDEX('LCOGH Inputs'!$G$25:$G$29,MATCH('LCOGH2 Calc'!F42,'LCOGH Inputs'!$A$25:$A$29,0)) -> 9187500 | J42: =INDEX('LCOGH Inputs'!$K$25:$K$29,MATCH('LCOGH2 Calc'!F42,'LCOGH Inputs'!$A$25:$A$29,0)) -> 0 | K42: =INDEX('LCOGH Inputs'!$L$25:$L$29,MATCH('LCOGH2 Calc'!F42,'LCOGH Inputs'!$A$25:$A$29,0)) -> 70000 | L42: ='LCOGH Plant Assumptions'!$M$7 -> Constant | M42: ='LCOGH Plant Assumptions'!$N$7 -> Constant | N42: ='LCOGH Plant Assumptions'!$X$7 -> 0.1375 | O42: =IF(L42="Path",INDEX('LCOGH Inputs'!$I$70:$AL$70,MATCH('LCOGH2 Calc'!E42,'LCOGH Inputs'!$I$68:$AL$68,0)),N42*(1+'LCOGH Inputs'!$C$70)^(COUNT('LCOGH2 Calc'!N$39:N42))) -> 0.1361301477 | P42: =INDEX('LCOGH Inputs'!$I$25:$I$29,MATCH('LCOGH2 Calc'!F42,'LCOGH Inputs'!$A$25:$A$29,0)) -> 55 | Q42: =IF('LCOGH Plant Assumptions'!$O$7="Yes",P41*(1+'LCOGH Plant Assumptions'!$R$7)^(1+COUNT(P$38:P41)),P41) -> 51.77825529 | R42: ='LCOGH Plant Assumptions'!$Y$7 -> 0.00161 | S42: =IF(M42="Path",INDEX('LCOGH Inputs'!$I$37:$AL$37,MATCH('LCOGH2 Calc'!E42,'LCOGH Inputs'!$I$35:$AL$35,0)),R42*(1+'LCOGH Inputs'!$G$37)^(COUNT('LCOGH2 Calc'!R$39:R42))) -> 0.001675372456 | T42: =INDEX('LCOGH Inputs'!$H$25:$H$29,MATCH('LCOGH2 Calc'!F42,'LCOGH Inputs'!$A$25:$A$29,0)) -> 18 | U42: 20 | V42: ='LCOGH Plant Assumptions'!$L$7 -> 0.9 | W42: 1317285 | X42: =IF(E42=2020,I42,I42*(1+'LCOGH Plant Assumptions'!$P$7)^(1+COUNT(W$38:W42))) -> 7465520.813 | Y42: 760379.7849 | Z42: ='LCOGH Plant Assumptions'!$S$7 -> NZD | AA42: ='LCOGH Inputs'!$E$9 -> 1.341281669 | AB42: =INDEX('LCOGH Inputs'!$F$9:$F$14,MATCH('LCOGH2 Calc'!Z42,'LCOGH Inputs'!$D$9:$D$14,0)) -> 1 | AC42: =INDEX('LCOGH Inputs'!$G$9:$G$14,MATCH('LCOGH2 Calc'!Z42,'LCOGH Inputs'!$D$9:$D$14,0)) -> 0.7455555556 | AD42: ='LCOGH Plant Assumptions'!$T$7 -> USD | AE42: 0.577232554 | AF42: 0.02248349836 | AG42: 5.255109125 | AH42: 0.3202609914 | AI42: 5.597853614 | AJ42: 6.175086168 | AK42: =AJ42/'LCOGH Inputs'!$B$135 -> 0.0514590514 | AL42: NZ Grid Medium Scale2024
A43: ='LCOGH Plant Assumptions'!$A$7 -> 2 | B43: ='LCOGH Plant Assumptions'!$B$7 -> 0.08 | C43: =INDEX('LCOGH Plant Assumptions'!$C$6:$C$15,MATCH('LCOGH2 Calc'!A43,'LCOGH Plant Assumptions'!$A$6:$A$15,0)) -> New Zealand 2 | D43: =IF('LCOGH Plant Assumptions'!$D$7="","",'LCOGH Plant Assumptions'!$D$7) -> NZ Grid Medium Scale | E43: 2025 | F43: ='LCOGH Plant Assumptions'!$E$7 -> Medium | G43: =INDEX('LCOGH Inputs'!$C$25:$C$29,MATCH('LCOGH2 Calc'!F43,'LCOGH Inputs'!$A$25:$A$29,0)) -> 421875 | H43: =INDEX('LCOGH Inputs'!$D$25:$D$29,MATCH('LCOGH2 Calc'!F43,'LCOGH Inputs'!$A$25:$A$29,0)) -> 4010 | I43: =INDEX('LCOGH Inputs'!$G$25:$G$29,MATCH('LCOGH2 Calc'!F43,'LCOGH Inputs'!$A$25:$A$29,0)) -> 9187500 | J43: =INDEX('LCOGH Inputs'!$K$25:$K$29,MATCH('LCOGH2 Calc'!F43,'LCOGH Inputs'!$A$25:$A$29,0)) -> 0 | K43: =INDEX('LCOGH Inputs'!$L$25:$L$29,MATCH('LCOGH2 Calc'!F43,'LCOGH Inputs'!$A$25:$A$29,0)) -> 70000 | L43: ='LCOGH Plant Assumptions'!$M$7 -> Constant | M43: ='LCOGH Plant Assumptions'!$N$7 -> Constant | N43: ='LCOGH Plant Assumptions'!$X$7 -> 0.1375 | O43: =IF(L43="Path",INDEX('LCOGH Inputs'!$I$70:$AL$70,MATCH('LCOGH2 Calc'!E43,'LCOGH Inputs'!$I$68:$AL$68,0)),N43*(1+'LCOGH Inputs'!$C$70)^(COUNT('LCOGH2 Calc'!N$39:N43))) -> 0.1357898223 | P43: =INDEX('LCOGH Inputs'!$I$25:$I$29,MATCH('LCOGH2 Calc'!F43,'LCOGH Inputs'!$A$25:$A$29,0)) -> 55 | Q43: =IF('LCOGH Plant Assumptions'!$O$7="Yes",P42*(1+'LCOGH Plant Assumptions'!$R$7)^(1+COUNT(P$38:P42)),P42) -> 51.15691623 | R43: ='LCOGH Plant Assumptions'!$Y$7 -> 0.00161 | S43: =IF(M43="Path",INDEX('LCOGH Inputs'!$I$37:$AL$37,MATCH('LCOGH2 Calc'!E43,'LCOGH Inputs'!$I$35:$AL$35,0)),R43*(1+'LCOGH Inputs'!$G$37)^(COUNT('LCOGH2 Calc'!R$39:R43))) -> 0.001692126181 | T43: =INDEX('LCOGH Inputs'!$H$25:$H$29,MATCH('LCOGH2 Calc'!F43,'LCOGH Inputs'!$A$25:$A$29,0)) -> 18 | U43: 20 | V43: ='LCOGH Plant Assumptions'!$L$7 -> 0.9 | W43: 1317285 | X43: =IF(E43=2020,I43,I43*(1+'LCOGH Plant Assumptions'!$P$7)^(1+COUNT(W$38:W43))) -> 7211693.106 | Y43: 734526.8722 | Z43: ='LCOGH Plant Assumptions'!$S$7 -> NZD | AA43: ='LCOGH Inputs'!$E$9 -> 1.341281669 | AB43: =INDEX('LCOGH Inputs'!$F$9:$F$14,MATCH('LCOGH2 Calc'!Z43,'LCOGH Inputs'!$D$9:$D$14,0)) -> 1 | AC43: =INDEX('LCOGH Inputs'!$G$9:$G$14,MATCH('LCOGH2 Calc'!Z43,'LCOGH Inputs'!$D$9:$D$14,0)) -> 0.7455555556 | AD43: ='LCOGH Plant Assumptions'!$T$7 -> USD | AE43: 0.5576066471 | AF43: 0.02270833334 | AG43: 5.179067695 | AH43: 0.3202609914 | AI43: 5.52203702 | AJ43: 6.079643667 | AK43: =AJ43/'LCOGH Inputs'!$B$135 -> 0.05066369723 | AL43: NZ Grid Medium Scale2025
A44: ='LCOGH Plant Assumptions'!$A$7 -> 2 | B44: ='LCOGH Plant Assumptions'!$B$7 -> 0.08 | C44: =INDEX('LCOGH Plant Assumptions'!$C$6:$C$15,MATCH('LCOGH2 Calc'!A44,'LCOGH Plant Assumptions'!$A$6:$A$15,0)) -> New Zealand 2 | D44: =IF('LCOGH Plant Assumptions'!$D$7="","",'LCOGH Plant Assumptions'!$D$7) -> NZ Grid Medium Scale | E44: 2026 | F44: ='LCOGH Plant Assumptions'!$E$7 -> Medium | G44: =INDEX('LCOGH Inputs'!$C$25:$C$29,MATCH('LCOGH2 Calc'!F44,'LCOGH Inputs'!$A$25:$A$29,0)) -> 421875 | H44: =INDEX('LCOGH Inputs'!$D$25:$D$29,MATCH('LCOGH2 Calc'!F44,'LCOGH Inputs'!$A$25:$A$29,0)) -> 4010 | I44: =INDEX('LCOGH Inputs'!$G$25:$G$29,MATCH('LCOGH2 Calc'!F44,'LCOGH Inputs'!$A$25:$A$29,0)) -> 9187500 | J44: =INDEX('LCOGH Inputs'!$K$25:$K$29,MATCH('LCOGH2 Calc'!F44,'LCOGH Inputs'!$A$25:$A$29,0)) -> 0 | K44: =INDEX('LCOGH Inputs'!$L$25:$L$29,MATCH('LCOGH2 Calc'!F44,'LCOGH Inputs'!$A$25:$A$29,0)) -> 70000 | L44: ='LCOGH Plant Assumptions'!$M$7 -> Constant | M44: ='LCOGH Plant Assumptions'!$N$7 -> Constant | N44: ='LCOGH Plant Assumptions'!$X$7 -> 0.1375 | O44: =IF(L44="Path",INDEX('LCOGH Inputs'!$I$70:$AL$70,MATCH('LCOGH2 Calc'!E44,'LCOGH Inputs'!$I$68:$AL$68,0)),N44*(1+'LCOGH Inputs'!$C$70)^(COUNT('LCOGH2 Calc'!N$39:N44))) -> 0.1354503477 | P44: =INDEX('LCOGH Inputs'!$I$25:$I$29,MATCH('LCOGH2 Calc'!F44,'LCOGH Inputs'!$A$25:$A$29,0)) -> 55 | Q44: =IF('LCOGH Plant Assumptions'!$O$7="Yes",P43*(1+'LCOGH Plant Assumptions'!$R$7)^(1+COUNT(P$38:P43)),P43) -> 50.54303323 | R44: ='LCOGH Plant Assumptions'!$Y$7 -> 0.00161 | S44: =IF(M44="Path",INDEX('LCOGH Inputs'!$I$37:$AL$37,MATCH('LCOGH2 Calc'!E44,'LCOGH Inputs'!$I$35:$AL$35,0)),R44*(1+'LCOGH Inputs'!$G$37)^(COUNT('LCOGH2 Calc'!R$39:R44))) -> 0.001709047442 | T44: =INDEX('LCOGH Inputs'!$H$25:$H$29,MATCH('LCOGH2 Calc'!F44,'LCOGH Inputs'!$A$25:$A$29,0)) -> 18 | U44: 20 | V44: ='LCOGH Plant Assumptions'!$L$7 -> 0.9 | W44: 1317285 | X44: =IF(E44=2020,I44,I44*(1+'LCOGH Plant Assumptions'!$P$7)^(1+COUNT(W$38:W44))) -> 6966495.54 | Y44: 709552.9585 | Z44: ='LCOGH Plant Assumptions'!$S$7 -> NZD | AA44: ='LCOGH Inputs'!$E$9 -> 1.341281669 | AB44: =INDEX('LCOGH Inputs'!$F$9:$F$14,MATCH('LCOGH2 Calc'!Z44,'LCOGH Inputs'!$D$9:$D$14,0)) -> 1 | AC44: =INDEX('LCOGH Inputs'!$G$9:$G$14,MATCH('LCOGH2 Calc'!Z44,'LCOGH Inputs'!$D$9:$D$14,0)) -> 0.7455555556 | AD44: ='LCOGH Plant Assumptions'!$T$7 -> USD | AE44: 0.5386480211 | AF44: 0.02293541668 | AG44: 5.104126586 | AH44: 0.3202609914 | AI44: 5.447322994 | AJ44: 5.985971015 | AK44: =AJ44/'LCOGH Inputs'!$B$135 -> 0.04988309179 | AL44: NZ Grid Medium Scale2026
A45: ='LCOGH Plant Assumptions'!$A$7 -> 2 | B45: ='LCOGH Plant Assumptions'!$B$7 -> 0.08 | C45: =INDEX('LCOGH Plant Assumptions'!$C$6:$C$15,MATCH('LCOGH2 Calc'!A45,'LCOGH Plant Assumptions'!$A$6:$A$15,0)) -> New Zealand 2 | D45: =IF('LCOGH Plant Assumptions'!$D$7="","",'LCOGH Plant Assumptions'!$D$7) -> NZ Grid Medium Scale | E45: 2027 | F45: ='LCOGH Plant Assumptions'!$E$7 -> Medium | G45: =INDEX('LCOGH Inputs'!$C$25:$C$29,MATCH('LCOGH2 Calc'!F45,'LCOGH Inputs'!$A$25:$A$29,0)) -> 421875 | H45: =INDEX('LCOGH Inputs'!$D$25:$D$29,MATCH('LCOGH2 Calc'!F45,'LCOGH Inputs'!$A$25:$A$29,0)) -> 4010 | I45: =INDEX('LCOGH Inputs'!$G$25:$G$29,MATCH('LCOGH2 Calc'!F45,'LCOGH Inputs'!$A$25:$A$29,0)) -> 9187500 | J45: =INDEX('LCOGH Inputs'!$K$25:$K$29,MATCH('LCOGH2 Calc'!F45,'LCOGH Inputs'!$A$25:$A$29,0)) -> 0 | K45: =INDEX('LCOGH Inputs'!$L$25:$L$29,MATCH('LCOGH2 Calc'!F45,'LCOGH Inputs'!$A$25:$A$29,0)) -> 70000 | L45: ='LCOGH Plant Assumptions'!$M$7 -> Constant | M45: ='LCOGH Plant Assumptions'!$N$7 -> Constant | N45: ='LCOGH Plant Assumptions'!$X$7 -> 0.1375 | O45: =IF(L45="Path",INDEX('LCOGH Inputs'!$I$70:$AL$70,MATCH('LCOGH2 Calc'!E45,'LCOGH Inputs'!$I$68:$AL$68,0)),N45*(1+'LCOGH Inputs'!$C$70)^(COUNT('LCOGH2 Calc'!N$39:N45))) -> 0.1351117219 | P45: =INDEX('LCOGH Inputs'!$I$25:$I$29,MATCH('LCOGH2 Calc'!F45,'LCOGH Inputs'!$A$25:$A$29,0)) -> 55 | Q45: =IF('LCOGH Plant Assumptions'!$O$7="Yes",P44*(1+'LCOGH Plant Assumptions'!$R$7)^(1+COUNT(P$38:P44)),P44) -> 49.93651683 | R45: ='LCOGH Plant Assumptions'!$Y$7 -> 0.00161 | S45: =IF(M45="Path",INDEX('LCOGH Inputs'!$I$37:$AL$37,MATCH('LCOGH2 Calc'!E45,'LCOGH Inputs'!$I$35:$AL$35,0)),R45*(1+'LCOGH Inputs'!$G$37)^(COUNT('LCOGH2 Calc'!R$39:R45))) -> 0.001726137917 | T45: =INDEX('LCOGH Inputs'!$H$25:$H$29,MATCH('LCOGH2 Calc'!F45,'LCOGH Inputs'!$A$25:$A$29,0)) -> 18 | U45: 20 | V45: ='LCOGH Plant Assumptions'!$L$7 -> 0.9 | W45: 1317285 | X45: =IF(E45=2020,I45,I45*(1+'LCOGH Plant Assumptions'!$P$7)^(1+COUNT(W$38:W45))) -> 6729634.692 | Y45: 685428.1579 | Z45: ='LCOGH Plant Assumptions'!$S$7 -> NZD | AA45: ='LCOGH Inputs'!$E$9 -> 1.341281669 | AB45: =INDEX('LCOGH Inputs'!$F$9:$F$14,MATCH('LCOGH2 Calc'!Z45,'LCOGH Inputs'!$D$9:$D$14,0)) -> 1 | AC45: =INDEX('LCOGH Inputs'!$G$9:$G$14,MATCH('LCOGH2 Calc'!Z45,'LCOGH Inputs'!$D$9:$D$14,0)) -> 0.7455555556 | AD45: ='LCOGH Plant Assumptions'!$T$7 -> USD | AE45: 0.5203339884 | AF45: 0.02316477084 | AG45: 5.030269874 | AH45: =IF(AD45="NZD",AA45*((J45*K45)+G45)/W45,((J45*K45)+G45)/W45) -> 0.3202609914 | AI45: 5.373695636 | AJ45: 5.894029625 | AK45: =AJ45/'LCOGH Inputs'!$B$135 -> 0.04911691354 | AL45: NZ Grid Medium Scale2027
A46: ='LCOGH Plant Assumptions'!$A$7 -> 2 | B46: ='LCOGH Plant Assumptions'!$B$7 -> 0.08 | C46: =INDEX('LCOGH Plant Assumptions'!$C$6:$C$15,MATCH('LCOGH2 Calc'!A46,'LCOGH Plant Assumptions'!$A$6:$A$15,0)) -> New Zealand 2 | D46: =IF('LCOGH Plant Assumptions'!$D$7="","",'LCOGH Plant Assumptions'!$D$7) -> NZ Grid Medium Scale | E46: 2028 | F46: ='LCOGH Plant Assumptions'!$E$7 -> Medium | G46: =INDEX('LCOGH Inputs'!$C$25:$C$29,MATCH('LCOGH2 Calc'!F46,'LCOGH Inputs'!$A$25:$A$29,0)) -> 421875 | H46: =INDEX('LCOGH Inputs'!$D$25:$D$29,MATCH('LCOGH2 Calc'!F46,'LCOGH Inputs'!$A$25:$A$29,0)) -> 4010 | I46: =INDEX('LCOGH Inputs'!$G$25:$G$29,MATCH('LCOGH2 Calc'!F46,'LCOGH Inputs'!$A$25:$A$29,0)) -> 9187500 | J46: =INDEX('LCOGH Inputs'!$K$25:$K$29,MATCH('LCOGH2 Calc'!F46,'LCOGH Inputs'!$A$25:$A$29,0)) -> 0 | K46: =INDEX('LCOGH Inputs'!$L$25:$L$29,MATCH('LCOGH2 Calc'!F46,'LCOGH Inputs'!$A$25:$A$29,0)) -> 70000 | L46: ='LCOGH Plant Assumptions'!$M$7 -> Constant | M46: ='LCOGH Plant Assumptions'!$N$7 -> Constant | N46: ='LCOGH Plant Assumptions'!$X$7 -> 0.1375 | O46: =IF(L46="Path",INDEX('LCOGH Inputs'!$I$70:$AL$70,MATCH('LCOGH2 Calc'!E46,'LCOGH Inputs'!$I$68:$AL$68,0)),N46*(1+'LCOGH Inputs'!$C$70)^(COUNT('LCOGH2 Calc'!N$39:N46))) -> 0.1347739426 | P46: =INDEX('LCOGH Inputs'!$I$25:$I$29,MATCH('LCOGH2 Calc'!F46,'LCOGH Inputs'!$A$25:$A$29,0)) -> 55 | Q46: =IF('LCOGH Plant Assumptions'!$O$7="Yes",P45*(1+'LCOGH Plant Assumptions'!$R$7)^(1+COUNT(P$38:P45)),P45) -> 49.33727863 | R46: ='LCOGH Plant Assumptions'!$Y$7 -> 0.00161 | S46: =IF(M46="Path",INDEX('LCOGH Inputs'!$I$37:$AL$37,MATCH('LCOGH2 Calc'!E46,'LCOGH Inputs'!$I$35:$AL$35,0)),R46*(1+'LCOGH Inputs'!$G$37)^(COUNT('LCOGH2 Calc'!R$39:R46))) -> 0.001743399296 | T46: =INDEX('LCOGH Inputs'!$H$25:$H$29,MATCH('LCOGH2 Calc'!F46,'LCOGH Inputs'!$A$25:$A$29,0)) -> 18 | U46: 20 | V46: ='LCOGH Plant Assumptions'!$L$7 -> 0.9 | W46: 1317285 | X46: =IF(E46=2020,I46,I46*(1+'LCOGH Plant Assumptions'!$P$7)^(1+COUNT(W$38:W46))) -> 6500827.112 | Y46: 662123.6006 | Z46: ='LCOGH Plant Assumptions'!$S$7 -> NZD | AA46: ='LCOGH Inputs'!$E$9 -> 1.341281669 | AB46: =INDEX('LCOGH Inputs'!$F$9:$F$14,MATCH('LCOGH2 Calc'!Z46,'LCOGH Inputs'!$D$9:$D$14,0)) -> 1 | AC46: =INDEX('LCOGH Inputs'!$G$9:$G$14,MATCH('LCOGH2 Calc'!Z46,'LCOGH Inputs'!$D$9:$D$14,0)) -> 0.7455555556 | AD46: ='LCOGH Plant Assumptions'!$T$7 -> USD | AE46: 0.5026426328 | AF46: 0.02339641855 | AG46: 4.957481869 | AH46: 0.3202609914 | AI46: 5.301139279 | AJ46: 5.803781912 | AK46: =AJ46/'LCOGH Inputs'!$B$135 -> 0.04836484927 | AL46: NZ Grid Medium Scale2028
A47: ='LCOGH Plant Assumptions'!$A$7 -> 2 | B47: ='LCOGH Plant Assumptions'!$B$7 -> 0.08 | C47: =INDEX('LCOGH Plant Assumptions'!$C$6:$C$15,MATCH('LCOGH2 Calc'!A47,'LCOGH Plant Assumptions'!$A$6:$A$15,0)) -> New Zealand 2 | D47: =IF('LCOGH Plant Assumptions'!$D$7="","",'LCOGH Plant Assumptions'!$D$7) -> NZ Grid Medium Scale | E47: 2029 | F47: ='LCOGH Plant Assumptions'!$E$7 -> Medium | G47: =INDEX('LCOGH Inputs'!$C$25:$C$29,MATCH('LCOGH2 Calc'!F47,'LCOGH Inputs'!$A$25:$A$29,0)) -> 421875 | H47: =INDEX('LCOGH Inputs'!$D$25:$D$29,MATCH('LCOGH2 Calc'!F47,'LCOGH Inputs'!$A$25:$A$29,0)) -> 4010 | I47: =INDEX('LCOGH Inputs'!$G$25:$G$29,MATCH('LCOGH2 Calc'!F47,'LCOGH Inputs'!$A$25:$A$29,0)) -> 9187500 | J47: =INDEX('LCOGH Inputs'!$K$25:$K$29,MATCH('LCOGH2 Calc'!F47,'LCOGH Inputs'!$A$25:$A$29,0)) -> 0 | K47: =INDEX('LCOGH Inputs'!$L$25:$L$29,MATCH('LCOGH2 Calc'!F47,'LCOGH Inputs'!$A$25:$A$29,0)) -> 70000 | L47: ='LCOGH Plant Assumptions'!$M$7 -> Constant | M47: ='LCOGH Plant Assumptions'!$N$7 -> Constant | N47: ='LCOGH Plant Assumptions'!$X$7 -> 0.1375 | O47: =IF(L47="Path",INDEX('LCOGH Inputs'!$I$70:$AL$70,MATCH('LCOGH2 Calc'!E47,'LCOGH Inputs'!$I$68:$AL$68,0)),N47*(1+'LCOGH Inputs'!$C$70)^(COUNT('LCOGH2 Calc'!N$39:N47))) -> 0.1344370077 | P47: =INDEX('LCOGH Inputs'!$I$25:$I$29,MATCH('LCOGH2 Calc'!F47,'LCOGH Inputs'!$A$25:$A$29,0)) -> 55 | Q47: =IF('LCOGH Plant Assumptions'!$O$7="Yes",P46*(1+'LCOGH Plant Assumptions'!$R$7)^(1+COUNT(P$38:P46)),P46) -> 48.74523129 | R47: ='LCOGH Plant Assumptions'!$Y$7 -> 0.00161 | S47: =IF(M47="Path",INDEX('LCOGH Inputs'!$I$37:$AL$37,MATCH('LCOGH2 Calc'!E47,'LCOGH Inputs'!$I$35:$AL$35,0)),R47*(1+'LCOGH Inputs'!$G$37)^(COUNT('LCOGH2 Calc'!R$39:R47))) -> 0.001760833289 | T47: =INDEX('LCOGH Inputs'!$H$25:$H$29,MATCH('LCOGH2 Calc'!F47,'LCOGH Inputs'!$A$25:$A$29,0)) -> 18 | U47: 20 | V47: ='LCOGH Plant Assumptions'!$L$7 -> 0.9 | W47: 1317285 | X47: =IF(E47=2020,I47,I47*(1+'LCOGH Plant Assumptions'!$P$7)^(1+COUNT(W$38:W47))) -> 6279798.99 | Y47: 639611.3981 | Z47: ='LCOGH Plant Assumptions'!$S$7 -> NZD | AA47: ='LCOGH Inputs'!$E$9 -> 1.341281669 | AB47: =INDEX('LCOGH Inputs'!$F$9:$F$14,MATCH('LCOGH2 Calc'!Z47,'LCOGH Inputs'!$D$9:$D$14,0)) -> 1 | AC47: =INDEX('LCOGH Inputs'!$G$9:$G$14,MATCH('LCOGH2 Calc'!Z47,'LCOGH Inputs'!$D$9:$D$14,0)) -> 0.7455555556 | AD47: ='LCOGH Plant Assumptions'!$T$7 -> USD | AE47: 0.4855527833 | AF47: 0.02363038274 | AG47: 4.885747107 | AH47: 0.3202609914 | AI47: 5.229638481 | AJ47: 5.715191264 | AK47: =AJ47/'LCOGH Inputs'!$B$135 -> 0.04762659387 | AL47: NZ Grid Medium Scale2029
A48: ='LCOGH Plant Assumptions'!$A$7 -> 2 | B48: ='LCOGH Plant Assumptions'!$B$7 -> 0.08 | C48: =INDEX('LCOGH Plant Assumptions'!$C$6:$C$15,MATCH('LCOGH2 Calc'!A48,'LCOGH Plant Assumptions'!$A$6:$A$15,0)) -> New Zealand 2 | D48: =IF('LCOGH Plant Assumptions'!$D$7="","",'LCOGH Plant Assumptions'!$D$7) -> NZ Grid Medium Scale | E48: 2030 | F48: ='LCOGH Plant Assumptions'!$E$7 -> Medium | G48: =INDEX('LCOGH Inputs'!$C$25:$C$29,MATCH('LCOGH2 Calc'!F48,'LCOGH Inputs'!$A$25:$A$29,0)) -> 421875 | H48: =INDEX('LCOGH Inputs'!$D$25:$D$29,MATCH('LCOGH2 Calc'!F48,'LCOGH Inputs'!$A$25:$A$29,0)) -> 4010 | I48: =INDEX('LCOGH Inputs'!$G$25:$G$29,MATCH('LCOGH2 Calc'!F48,'LCOGH Inputs'!$A$25:$A$29,0)) -> 9187500 | J48: =INDEX('LCOGH Inputs'!$K$25:$K$29,MATCH('LCOGH2 Calc'!F48,'LCOGH Inputs'!$A$25:$A$29,0)) -> 0 | K48: =INDEX('LCOGH Inputs'!$L$25:$L$29,MATCH('LCOGH2 Calc'!F48,'LCOGH Inputs'!$A$25:$A$29,0)) -> 70000 | L48: ='LCOGH Plant Assumptions'!$M$7 -> Constant | M48: ='LCOGH Plant Assumptions'!$N$7 -> Constant | N48: ='LCOGH Plant Assumptions'!$X$7 -> 0.1375 | O48: =IF(L48="Path",INDEX('LCOGH Inputs'!$I$70:$AL$70,MATCH('LCOGH2 Calc'!E48,'LCOGH Inputs'!$I$68:$AL$68,0)),N48*(1+'LCOGH Inputs'!$C$70)^(COUNT('LCOGH2 Calc'!N$39:N48))) -> 0.1341009152 | P48: =INDEX('LCOGH Inputs'!$I$25:$I$29,MATCH('LCOGH2 Calc'!F48,'LCOGH Inputs'!$A$25:$A$29,0)) -> 55 | Q48: =IF('LCOGH Plant Assumptions'!$O$7="Yes",P47*(1+'LCOGH Plant Assumptions'!$R$7)^(1+COUNT(P$38:P47)),P47) -> 48.16028851 | R48: ='LCOGH Plant Assumptions'!$Y$7 -> 0.00161 | S48: =IF(M48="Path",INDEX('LCOGH Inputs'!$I$37:$AL$37,MATCH('LCOGH2 Calc'!E48,'LCOGH Inputs'!$I$35:$AL$35,0)),R48*(1+'LCOGH Inputs'!$G$37)^(COUNT('LCOGH2 Calc'!R$39:R48))) -> 0.001778441622 | T48: =INDEX('LCOGH Inputs'!$H$25:$H$29,MATCH('LCOGH2 Calc'!F48,'LCOGH Inputs'!$A$25:$A$29,0)) -> 18 | U48: 20 | V48: ='LCOGH Plant Assumptions'!$L$7 -> 0.9 | W48: 1317285 | X48: =IF(E48=2020,I48,I48*(1+'LCOGH Plant Assumptions'!$P$7)^(1+COUNT(W$38:W48))) -> 6066285.825 | Y48: 617864.6106 | Z48: ='LCOGH Plant Assumptions'!$S$7 -> NZD | AA48: ='LCOGH Inputs'!$E$9 -> 1.341281669 | AB48: =INDEX('LCOGH Inputs'!$F$9:$F$14,MATCH('LCOGH2 Calc'!Z48,'LCOGH Inputs'!$D$9:$D$14,0)) -> 1 | AC48: =INDEX('LCOGH Inputs'!$G$9:$G$14,MATCH('LCOGH2 Calc'!Z48,'LCOGH Inputs'!$D$9:$D$14,0)) -> 0.7455555556 | AD48: ='LCOGH Plant Assumptions'!$T$7 -> USD | AE48: 0.4690439887 | AF48: 0.02386668657 | AG48: 4.815050346 | AH48: 0.3202609914 | AI48: 5.159178024 | AJ48: 5.628222012 | AK48: =AJ48/'LCOGH Inputs'!$B$135 -> 0.0469018501 | AL48: NZ Grid Medium Scale2030
A49: ='LCOGH Plant Assumptions'!$A$7 -> 2 | B49: ='LCOGH Plant Assumptions'!$B$7 -> 0.08 | C49: =INDEX('LCOGH Plant Assumptions'!$C$6:$C$15,MATCH('LCOGH2 Calc'!A49,'LCOGH Plant Assumptions'!$A$6:$A$15,0)) -> New Zealand 2 | D49: =IF('LCOGH Plant Assumptions'!$D$7="","",'LCOGH Plant Assumptions'!$D$7) -> NZ Grid Medium Scale | E49: 2031 | F49: ='LCOGH Plant Assumptions'!$E$7 -> Medium | G49: =INDEX('LCOGH Inputs'!$C$25:$C$29,MATCH('LCOGH2 Calc'!F49,'LCOGH Inputs'!$A$25:$A$29,0)) -> 421875 | H49: =INDEX('LCOGH Inputs'!$D$25:$D$29,MATCH('LCOGH2 Calc'!F49,'LCOGH Inputs'!$A$25:$A$29,0)) -> 4010 | I49: =INDEX('LCOGH Inputs'!$G$25:$G$29,MATCH('LCOGH2 Calc'!F49,'LCOGH Inputs'!$A$25:$A$29,0)) -> 9187500 | J49: =INDEX('LCOGH Inputs'!$K$25:$K$29,MATCH('LCOGH2 Calc'!F49,'LCOGH Inputs'!$A$25:$A$29,0)) -> 0 | K49: =INDEX('LCOGH Inputs'!$L$25:$L$29,MATCH('LCOGH2 Calc'!F49,'LCOGH Inputs'!$A$25:$A$29,0)) -> 70000 | L49: ='LCOGH Plant Assumptions'!$M$7 -> Constant | M49: ='LCOGH Plant Assumptions'!$N$7 -> Constant | N49: ='LCOGH Plant Assumptions'!$X$7 -> 0.1375 | O49: =IF(L49="Path",INDEX('LCOGH Inputs'!$I$70:$AL$70,MATCH('LCOGH2 Calc'!E49,'LCOGH Inputs'!$I$68:$AL$68,0)),N49*(1+'LCOGH Inputs'!$C$70)^(COUNT('LCOGH2 Calc'!N$39:N49))) -> 0.1337656629 | P49: =INDEX('LCOGH Inputs'!$I$25:$I$29,MATCH('LCOGH2 Calc'!F49,'LCOGH Inputs'!$A$25:$A$29,0)) -> 55 | Q49: =IF('LCOGH Plant Assumptions'!$O$7="Yes",P48*(1+'LCOGH Plant Assumptions'!$R$7)^(1+COUNT(P$38:P48)),P48) -> 47.58236505 | R49: ='LCOGH Plant Assumptions'!$Y$7 -> 0.00161 | S49: =IF(M49="Path",INDEX('LCOGH Inputs'!$I$37:$AL$37,MATCH('LCOGH2 Calc'!E49,'LCOGH Inputs'!$I$35:$AL$35,0)),R49*(1+'LCOGH Inputs'!$G$37)^(COUNT('LCOGH2 Calc'!R$39:R49))) -> 0.001796226038 | T49: =INDEX('LCOGH Inputs'!$H$25:$H$29,MATCH('LCOGH2 Calc'!F49,'LCOGH Inputs'!$A$25:$A$29,0)) -> 18 | U49: 20 | V49: ='LCOGH Plant Assumptions'!$L$7 -> 0.9 | W49: 1317285 | X49: =IF(E49=2020,I49,I49*(1+'LCOGH Plant Assumptions'!$P$7)^(1+COUNT(W$38:W49))) -> 5860032.107 | Y49: 596857.2138 | Z49: ='LCOGH Plant Assumptions'!$S$7 -> NZD | AA49: ='LCOGH Inputs'!$E$9 -> 1.341281669 | AB49: =INDEX('LCOGH Inputs'!$F$9:$F$14,MATCH('LCOGH2 Calc'!Z49,'LCOGH Inputs'!$D$9:$D$14,0)) -> 1 | AC49: =INDEX('LCOGH Inputs'!$G$9:$G$14,MATCH('LCOGH2 Calc'!Z49,'LCOGH Inputs'!$D$9:$D$14,0)) -> 0.7455555556 | AD49: ='LCOGH Plant Assumptions'!$T$7 -> USD | AE49: 0.453096493 | AF49: 0.02410535343 | AG49: 4.745376567 | AH49: 0.3202609914 | AI49: 5.089742912 | AJ49: 5.542839405 | AK49: =AJ49/'LCOGH Inputs'!$B$135 -> 0.04619032838 | AL49: NZ Grid Medium Scale2031
A50: ='LCOGH Plant Assumptions'!$A$7 -> 2 | B50: ='LCOGH Plant Assumptions'!$B$7 -> 0.08 | C50: =INDEX('LCOGH Plant Assumptions'!$C$6:$C$15,MATCH('LCOGH2 Calc'!A50,'LCOGH Plant Assumptions'!$A$6:$A$15,0)) -> New Zealand 2 | D50: =IF('LCOGH Plant Assumptions'!$D$7="","",'LCOGH Plant Assumptions'!$D$7) -> NZ Grid Medium Scale | E50: 2032 | F50: ='LCOGH Plant Assumptions'!$E$7 -> Medium | G50: =INDEX('LCOGH Inputs'!$C$25:$C$29,MATCH('LCOGH2 Calc'!F50,'LCOGH Inputs'!$A$25:$A$29,0)) -> 421875 | H50: =INDEX('LCOGH Inputs'!$D$25:$D$29,MATCH('LCOGH2 Calc'!F50,'LCOGH Inputs'!$A$25:$A$29,0)) -> 4010 | I50: =INDEX('LCOGH Inputs'!$G$25:$G$29,MATCH('LCOGH2 Calc'!F50,'LCOGH Inputs'!$A$25:$A$29,0)) -> 9187500 | J50: =INDEX('LCOGH Inputs'!$K$25:$K$29,MATCH('LCOGH2 Calc'!F50,'LCOGH Inputs'!$A$25:$A$29,0)) -> 0 | K50: =INDEX('LCOGH Inputs'!$L$25:$L$29,MATCH('LCOGH2 Calc'!F50,'LCOGH Inputs'!$A$25:$A$29,0)) -> 70000 | L50: ='LCOGH Plant Assumptions'!$M$7 -> Constant | M50: ='LCOGH Plant Assumptions'!$N$7 -> Constant | N50: ='LCOGH Plant Assumptions'!$X$7 -> 0.1375 | O50: =IF(L50="Path",INDEX('LCOGH Inputs'!$I$70:$AL$70,MATCH('LCOGH2 Calc'!E50,'LCOGH Inputs'!$I$68:$AL$68,0)),N50*(1+'LCOGH Inputs'!$C$70)^(COUNT('LCOGH2 Calc'!N$39:N50))) -> 0.1334312487 | P50: =INDEX('LCOGH Inputs'!$I$25:$I$29,MATCH('LCOGH2 Calc'!F50,'LCOGH Inputs'!$A$25:$A$29,0)) -> 55 | Q50: =IF('LCOGH Plant Assumptions'!$O$7="Yes",P49*(1+'LCOGH Plant Assumptions'!$R$7)^(1+COUNT(P$38:P49)),P49) -> 47.01137667 | R50: ='LCOGH Plant Assumptions'!$Y$7 -> 0.00161 | S50: =IF(M50="Path",INDEX('LCOGH Inputs'!$I$37:$AL$37,MATCH('LCOGH2 Calc'!E50,'LCOGH Inputs'!$I$35:$AL$35,0)),R50*(1+'LCOGH Inputs'!$G$37)^(COUNT('LCOGH2 Calc'!R$39:R50))) -> 0.001814188299 | T50: =INDEX('LCOGH Inputs'!$H$25:$H$29,MATCH('LCOGH2 Calc'!F50,'LCOGH Inputs'!$A$25:$A$29,0)) -> 18 | U50: 20 | V50: ='LCOGH Plant Assumptions'!$L$7 -> 0.9 | W50: 1317285 | X50: =IF(E50=2020,I50,I50*(1+'LCOGH Plant Assumptions'!$P$7)^(1+COUNT(W$38:W50))) -> 5660791.015 | Y50: 576564.0686 | Z50: ='LCOGH Plant Assumptions'!$S$7 -> NZD | AA50: ='LCOGH Inputs'!$E$9 -> 1.341281669 | AB50: =INDEX('LCOGH Inputs'!$F$9:$F$14,MATCH('LCOGH2 Calc'!Z50,'LCOGH Inputs'!$D$9:$D$14,0)) -> 1 | AC50: =INDEX('LCOGH Inputs'!$G$9:$G$14,MATCH('LCOGH2 Calc'!Z50,'LCOGH Inputs'!$D$9:$D$14,0)) -> 0.7455555556 | AD50: ='LCOGH Plant Assumptions'!$T$7 -> USD | AE50: 0.4376912123 | AF50: 0.02434640697 | AG50: 4.676710968 | AH50: 0.3202609914 | AI50: 5.021318367 | AJ50: 5.459009579 | AK50: =AJ50/'LCOGH Inputs'!$B$135 -> 0.04549174649 | AL50: NZ Grid Medium Scale2032
A51: ='LCOGH Plant Assumptions'!$A$7 -> 2 | B51: ='LCOGH Plant Assumptions'!$B$7 -> 0.08 | C51: =INDEX('LCOGH Plant Assumptions'!$C$6:$C$15,MATCH('LCOGH2 Calc'!A51,'LCOGH Plant Assumptions'!$A$6:$A$15,0)) -> New Zealand 2 | D51: =IF('LCOGH Plant Assumptions'!$D$7="","",'LCOGH Plant Assumptions'!$D$7) -> NZ Grid Medium Scale | E51: 2033 | F51: ='LCOGH Plant Assumptions'!$E$7 -> Medium | G51: =INDEX('LCOGH Inputs'!$C$25:$C$29,MATCH('LCOGH2 Calc'!F51,'LCOGH Inputs'!$A$25:$A$29,0)) -> 421875 | H51: =INDEX('LCOGH Inputs'!$D$25:$D$29,MATCH('LCOGH2 Calc'!F51,'LCOGH Inputs'!$A$25:$A$29,0)) -> 4010 | I51: =INDEX('LCOGH Inputs'!$G$25:$G$29,MATCH('LCOGH2 Calc'!F51,'LCOGH Inputs'!$A$25:$A$29,0)) -> 9187500 | J51: =INDEX('LCOGH Inputs'!$K$25:$K$29,MATCH('LCOGH2 Calc'!F51,'LCOGH Inputs'!$A$25:$A$29,0)) -> 0 | K51: =INDEX('LCOGH Inputs'!$L$25:$L$29,MATCH('LCOGH2 Calc'!F51,'LCOGH Inputs'!$A$25:$A$29,0)) -> 70000 | L51: ='LCOGH Plant Assumptions'!$M$7 -> Constant | M51: ='LCOGH Plant Assumptions'!$N$7 -> Constant | N51: ='LCOGH Plant Assumptions'!$X$7 -> 0.1375 | O51: =IF(L51="Path",INDEX('LCOGH Inputs'!$I$70:$AL$70,MATCH('LCOGH2 Calc'!E51,'LCOGH Inputs'!$I$68:$AL$68,0)),N51*(1+'LCOGH Inputs'!$C$70)^(COUNT('LCOGH2 Calc'!N$39:N51))) -> 0.1330976706 | P51: =INDEX('LCOGH Inputs'!$I$25:$I$29,MATCH('LCOGH2 Calc'!F51,'LCOGH Inputs'!$A$25:$A$29,0)) -> 55 | Q51: =IF('LCOGH Plant Assumptions'!$O$7="Yes",P50*(1+'LCOGH Plant Assumptions'!$R$7)^(1+COUNT(P$38:P50)),P50) -> 46.44724015 | R51: ='LCOGH Plant Assumptions'!$Y$7 -> 0.00161 | S51: =IF(M51="Path",INDEX('LCOGH Inputs'!$I$37:$AL$37,MATCH('LCOGH2 Calc'!E51,'LCOGH Inputs'!$I$35:$AL$35,0)),R51*(1+'LCOGH Inputs'!$G$37)^(COUNT('LCOGH2 Calc'!R$39:R51))) -> 0.001832330181 | T51: =INDEX('LCOGH Inputs'!$H$25:$H$29,MATCH('LCOGH2 Calc'!F51,'LCOGH Inputs'!$A$25:$A$29,0)) -> 18 | U51: 20 | V51: ='LCOGH Plant Assumptions'!$L$7 -> 0.9 | W51: 1317285 | X51: =IF(E51=2020,I51,I51*(1+'LCOGH Plant Assumptions'!$P$7)^(1+COUNT(W$38:W51))) -> 5468324.121 | Y51: 556960.8902 | Z51: ='LCOGH Plant Assumptions'!$S$7 -> NZD | AA51: ='LCOGH Inputs'!$E$9 -> 1.341281669 | AB51: =INDEX('LCOGH Inputs'!$F$9:$F$14,MATCH('LCOGH2 Calc'!Z51,'LCOGH Inputs'!$D$9:$D$14,0)) -> 1 | AC51: =INDEX('LCOGH Inputs'!$G$9:$G$14,MATCH('LCOGH2 Calc'!Z51,'LCOGH Inputs'!$D$9:$D$14,0)) -> 0.7455555556 | AD51: ='LCOGH Plant Assumptions'!$T$7 -> USD | AE51: 0.4228097111 | AF51: 0.02458987104 | AG51: 4.609038961 | AH51: 0.3202609914 | AI51: 4.953889823 | AJ51: 5.376699534 | AK51: =AJ51/'LCOGH Inputs'!$B$135 -> 0.04480582945 | AL51: NZ Grid Medium Scale2033
A52: ='LCOGH Plant Assumptions'!$A$7 -> 2 | B52: ='LCOGH Plant Assumptions'!$B$7 -> 0.08 | C52: =INDEX('LCOGH Plant Assumptions'!$C$6:$C$15,MATCH('LCOGH2 Calc'!A52,'LCOGH Plant Assumptions'!$A$6:$A$15,0)) -> New Zealand 2 | D52: =IF('LCOGH Plant Assumptions'!$D$7="","",'LCOGH Plant Assumptions'!$D$7) -> NZ Grid Medium Scale | E52: 2034 | F52: ='LCOGH Plant Assumptions'!$E$7 -> Medium | G52: =INDEX('LCOGH Inputs'!$C$25:$C$29,MATCH('LCOGH2 Calc'!F52,'LCOGH Inputs'!$A$25:$A$29,0)) -> 421875 | H52: =INDEX('LCOGH Inputs'!$D$25:$D$29,MATCH('LCOGH2 Calc'!F52,'LCOGH Inputs'!$A$25:$A$29,0)) -> 4010 | I52: =INDEX('LCOGH Inputs'!$G$25:$G$29,MATCH('LCOGH2 Calc'!F52,'LCOGH Inputs'!$A$25:$A$29,0)) -> 9187500 | J52: =INDEX('LCOGH Inputs'!$K$25:$K$29,MATCH('LCOGH2 Calc'!F52,'LCOGH Inputs'!$A$25:$A$29,0)) -> 0 | K52: =INDEX('LCOGH Inputs'!$L$25:$L$29,MATCH('LCOGH2 Calc'!F52,'LCOGH Inputs'!$A$25:$A$29,0)) -> 70000 | L52: ='LCOGH Plant Assumptions'!$M$7 -> Constant | M52: ='LCOGH Plant Assumptions'!$N$7 -> Constant | N52: ='LCOGH Plant Assumptions'!$X$7 -> 0.1375 | O52: =IF(L52="Path",INDEX('LCOGH Inputs'!$I$70:$AL$70,MATCH('LCOGH2 Calc'!E52,'LCOGH Inputs'!$I$68:$AL$68,0)),N52*(1+'LCOGH Inputs'!$C$70)^(COUNT('LCOGH2 Calc'!N$39:N52))) -> 0.1327649264 | P52: =INDEX('LCOGH Inputs'!$I$25:$I$29,MATCH('LCOGH2 Calc'!F52,'LCOGH Inputs'!$A$25:$A$29,0)) -> 55 | Q52: =IF('LCOGH Plant Assumptions'!$O$7="Yes",P51*(1+'LCOGH Plant Assumptions'!$R$7)^(1+COUNT(P$38:P51)),P51) -> 45.88987327 | R52: ='LCOGH Plant Assumptions'!$Y$7 -> 0.00161 | S52: =IF(M52="Path",INDEX('LCOGH Inputs'!$I$37:$AL$37,MATCH('LCOGH2 Calc'!E52,'LCOGH Inputs'!$I$35:$AL$35,0)),R52*(1+'LCOGH Inputs'!$G$37)^(COUNT('LCOGH2 Calc'!R$39:R52))) -> 0.001850653483 | T52: =INDEX('LCOGH Inputs'!$H$25:$H$29,MATCH('LCOGH2 Calc'!F52,'LCOGH Inputs'!$A$25:$A$29,0)) -> 18 | U52: 20 | V52: ='LCOGH Plant Assumptions'!$L$7 -> 0.9 | W52: 1317285 | X52: =IF(E52=2020,I52,I52*(1+'LCOGH Plant Assumptions'!$P$7)^(1+COUNT(W$38:W52))) -> 5282401.1 | Y52: 538024.22 | Z52: ='LCOGH Plant Assumptions'!$S$7 -> NZD | AA52: ='LCOGH Inputs'!$E$9 -> 1.341281669 | AB52: =INDEX('LCOGH Inputs'!$F$9:$F$14,MATCH('LCOGH2 Calc'!Z52,'LCOGH Inputs'!$D$9:$D$14,0)) -> 1 | AC52: =INDEX('LCOGH Inputs'!$G$9:$G$14,MATCH('LCOGH2 Calc'!Z52,'LCOGH Inputs'!$D$9:$D$14,0)) -> 0.7455555556 | AD52: ='LCOGH Plant Assumptions'!$T$7 -> USD | AE52: 0.4084341809 | AF52: 0.02483576975 | AG52: 4.542346167 | AH52: 0.3202609914 | AI52: 4.887442928 | AJ52: 5.295877109 | AK52: =AJ52/'LCOGH Inputs'!$B$135 -> 0.04413230924 | AL52: NZ Grid Medium Scale2034
A53: ='LCOGH Plant Assumptions'!$A$7 -> 2 | B53: ='LCOGH Plant Assumptions'!$B$7 -> 0.08 | C53: =INDEX('LCOGH Plant Assumptions'!$C$6:$C$15,MATCH('LCOGH2 Calc'!A53,'LCOGH Plant Assumptions'!$A$6:$A$15,0)) -> New Zealand 2 | D53: =IF('LCOGH Plant Assumptions'!$D$7="","",'LCOGH Plant Assumptions'!$D$7) -> NZ Grid Medium Scale | E53: 2035 | F53: ='LCOGH Plant Assumptions'!$E$7 -> Medium | G53: =INDEX('LCOGH Inputs'!$C$25:$C$29,MATCH('LCOGH2 Calc'!F53,'LCOGH Inputs'!$A$25:$A$29,0)) -> 421875 | H53: =INDEX('LCOGH Inputs'!$D$25:$D$29,MATCH('LCOGH2 Calc'!F53,'LCOGH Inputs'!$A$25:$A$29,0)) -> 4010 | I53: =INDEX('LCOGH Inputs'!$G$25:$G$29,MATCH('LCOGH2 Calc'!F53,'LCOGH Inputs'!$A$25:$A$29,0)) -> 9187500 | J53: =INDEX('LCOGH Inputs'!$K$25:$K$29,MATCH('LCOGH2 Calc'!F53,'LCOGH Inputs'!$A$25:$A$29,0)) -> 0 | K53: =INDEX('LCOGH Inputs'!$L$25:$L$29,MATCH('LCOGH2 Calc'!F53,'LCOGH Inputs'!$A$25:$A$29,0)) -> 70000 | L53: ='LCOGH Plant Assumptions'!$M$7 -> Constant | M53: ='LCOGH Plant Assumptions'!$N$7 -> Constant | N53: ='LCOGH Plant Assumptions'!$X$7 -> 0.1375 | O53: =IF(L53="Path",INDEX('LCOGH Inputs'!$I$70:$AL$70,MATCH('LCOGH2 Calc'!E53,'LCOGH Inputs'!$I$68:$AL$68,0)),N53*(1+'LCOGH Inputs'!$C$70)^(COUNT('LCOGH2 Calc'!N$39:N53))) -> 0.1324330141 | P53: =INDEX('LCOGH Inputs'!$I$25:$I$29,MATCH('LCOGH2 Calc'!F53,'LCOGH Inputs'!$A$25:$A$29,0)) -> 55 | Q53: =IF('LCOGH Plant Assumptions'!$O$7="Yes",P52*(1+'LCOGH Plant Assumptions'!$R$7)^(1+COUNT(P$38:P52)),P52) -> 45.33919479 | R53: ='LCOGH Plant Assumptions'!$Y$7 -> 0.00161 | S53: =IF(M53="Path",INDEX('LCOGH Inputs'!$I$37:$AL$37,MATCH('LCOGH2 Calc'!E53,'LCOGH Inputs'!$I$35:$AL$35,0)),R53*(1+'LCOGH Inputs'!$G$37)^(COUNT('LCOGH2 Calc'!R$39:R53))) -> 0.001869160018 | T53: =INDEX('LCOGH Inputs'!$H$25:$H$29,MATCH('LCOGH2 Calc'!F53,'LCOGH Inputs'!$A$25:$A$29,0)) -> 18 | U53: 20 | V53: ='LCOGH Plant Assumptions'!$L$7 -> 0.9 | W53: 1317285 | X53: =IF(E53=2020,I53,I53*(1+'LCOGH Plant Assumptions'!$P$7)^(1+COUNT(W$38:W53))) -> 5102799.463 | Y53: 519731.3965 | Z53: ='LCOGH Plant Assumptions'!$S$7 -> NZD | AA53: ='LCOGH Inputs'!$E$9 -> 1.341281669 | AB53: =INDEX('LCOGH Inputs'!$F$9:$F$14,MATCH('LCOGH2 Calc'!Z53,'LCOGH Inputs'!$D$9:$D$14,0)) -> 1 | AC53: =INDEX('LCOGH Inputs'!$G$9:$G$14,MATCH('LCOGH2 Calc'!Z53,'LCOGH Inputs'!$D$9:$D$14,0)) -> 0.7455555556 | AD53: ='LCOGH Plant Assumptions'!$T$7 -> USD | AE53: 0.3945474187 | AF53: 0.02508412744 | AG53: 4.476618418 | AH53: 0.3202609914 | AI53: 4.821963537 | AJ53: 5.216510955 | AK53: =AJ53/'LCOGH Inputs'!$B$135 -> 0.04347092463 | AL53: NZ Grid Medium Scale2035
A54: ='LCOGH Plant Assumptions'!$A$7 -> 2 | B54: ='LCOGH Plant Assumptions'!$B$7 -> 0.08 | C54: =INDEX('LCOGH Plant Assumptions'!$C$6:$C$15,MATCH('LCOGH2 Calc'!A54,'LCOGH Plant Assumptions'!$A$6:$A$15,0)) -> New Zealand 2 | D54: =IF('LCOGH Plant Assumptions'!$D$7="","",'LCOGH Plant Assumptions'!$D$7) -> NZ Grid Medium Scale | E54: 2036 | F54: ='LCOGH Plant Assumptions'!$E$7 -> Medium | G54: =INDEX('LCOGH Inputs'!$C$25:$C$29,MATCH('LCOGH2 Calc'!F54,'LCOGH Inputs'!$A$25:$A$29,0)) -> 421875 | H54: =INDEX('LCOGH Inputs'!$D$25:$D$29,MATCH('LCOGH2 Calc'!F54,'LCOGH Inputs'!$A$25:$A$29,0)) -> 4010 | I54: =INDEX('LCOGH Inputs'!$G$25:$G$29,MATCH('LCOGH2 Calc'!F54,'LCOGH Inputs'!$A$25:$A$29,0)) -> 9187500 | J54: =INDEX('LCOGH Inputs'!$K$25:$K$29,MATCH('LCOGH2 Calc'!F54,'LCOGH Inputs'!$A$25:$A$29,0)) -> 0 | K54: =INDEX('LCOGH Inputs'!$L$25:$L$29,MATCH('LCOGH2 Calc'!F54,'LCOGH Inputs'!$A$25:$A$29,0)) -> 70000 | L54: ='LCOGH Plant Assumptions'!$M$7 -> Constant | M54: ='LCOGH Plant Assumptions'!$N$7 -> Constant | N54: ='LCOGH Plant Assumptions'!$X$7 -> 0.1375 | O54: =IF(L54="Path",INDEX('LCOGH Inputs'!$I$70:$AL$70,MATCH('LCOGH2 Calc'!E54,'LCOGH Inputs'!$I$68:$AL$68,0)),N54*(1+'LCOGH Inputs'!$C$70)^(COUNT('LCOGH2 Calc'!N$39:N54))) -> 0.1321019316 | P54: =INDEX('LCOGH Inputs'!$I$25:$I$29,MATCH('LCOGH2 Calc'!F54,'LCOGH Inputs'!$A$25:$A$29,0)) -> 55 | Q54: =IF('LCOGH Plant Assumptions'!$O$7="Yes",P53*(1+'LCOGH Plant Assumptions'!$R$7)^(1+COUNT(P$38:P53)),P53) -> 44.79512445 | R54: ='LCOGH Plant Assumptions'!$Y$7 -> 0.00161 | S54: =IF(M54="Path",INDEX('LCOGH Inputs'!$I$37:$AL$37,MATCH('LCOGH2 Calc'!E54,'LCOGH Inputs'!$I$35:$AL$35,0)),R54*(1+'LCOGH Inputs'!$G$37)^(COUNT('LCOGH2 Calc'!R$39:R54))) -> 0.001887851618 | T54: =INDEX('LCOGH Inputs'!$H$25:$H$29,MATCH('LCOGH2 Calc'!F54,'LCOGH Inputs'!$A$25:$A$29,0)) -> 18 | U54: 20 | V54: ='LCOGH Plant Assumptions'!$L$7 -> 0.9 | W54: 1317285 | X54: =IF(E54=2020,I54,I54*(1+'LCOGH Plant Assumptions'!$P$7)^(1+COUNT(W$38:W54))) -> 4929304.281 | Y54: 502060.529 | Z54: ='LCOGH Plant Assumptions'!$S$7 -> NZD | AA54: ='LCOGH Inputs'!$E$9 -> 1.341281669 | AB54: =INDEX('LCOGH Inputs'!$F$9:$F$14,MATCH('LCOGH2 Calc'!Z54,'LCOGH Inputs'!$D$9:$D$14,0)) -> 1 | AC54: =INDEX('LCOGH Inputs'!$G$9:$G$14,MATCH('LCOGH2 Calc'!Z54,'LCOGH Inputs'!$D$9:$D$14,0)) -> 0.7455555556 | AD54: ='LCOGH Plant Assumptions'!$T$7 -> USD | AE54: 0.3811328065 | AF54: 0.02533496872 | AG54: 4.411841749 | AH54: 0.3202609914 | AI54: 4.75743771 | AJ54: 5.138570516 | AK54: =AJ54/'LCOGH Inputs'!$B$135 -> 0.04282142097 | AL54: NZ Grid Medium Scale2036
A55: ='LCOGH Plant Assumptions'!$A$7 -> 2 | B55: ='LCOGH Plant Assumptions'!$B$7 -> 0.08 | C55: =INDEX('LCOGH Plant Assumptions'!$C$6:$C$15,MATCH('LCOGH2 Calc'!A55,'LCOGH Plant Assumptions'!$A$6:$A$15,0)) -> New Zealand 2 | D55: =IF('LCOGH Plant Assumptions'!$D$7="","",'LCOGH Plant Assumptions'!$D$7) -> NZ Grid Medium Scale | E55: 2037 | F55: ='LCOGH Plant Assumptions'!$E$7 -> Medium | G55: =INDEX('LCOGH Inputs'!$C$25:$C$29,MATCH('LCOGH2 Calc'!F55,'LCOGH Inputs'!$A$25:$A$29,0)) -> 421875 | H55: =INDEX('LCOGH Inputs'!$D$25:$D$29,MATCH('LCOGH2 Calc'!F55,'LCOGH Inputs'!$A$25:$A$29,0)) -> 4010 | I55: =INDEX('LCOGH Inputs'!$G$25:$G$29,MATCH('LCOGH2 Calc'!F55,'LCOGH Inputs'!$A$25:$A$29,0)) -> 9187500 | J55: =INDEX('LCOGH Inputs'!$K$25:$K$29,MATCH('LCOGH2 Calc'!F55,'LCOGH Inputs'!$A$25:$A$29,0)) -> 0 | K55: =INDEX('LCOGH Inputs'!$L$25:$L$29,MATCH('LCOGH2 Calc'!F55,'LCOGH Inputs'!$A$25:$A$29,0)) -> 70000 | L55: ='LCOGH Plant Assumptions'!$M$7 -> Constant | M55: ='LCOGH Plant Assumptions'!$N$7 -> Constant | N55: ='LCOGH Plant Assumptions'!$X$7 -> 0.1375 | O55: =IF(L55="Path",INDEX('LCOGH Inputs'!$I$70:$AL$70,MATCH('LCOGH2 Calc'!E55,'LCOGH Inputs'!$I$68:$AL$68,0)),N55*(1+'LCOGH Inputs'!$C$70)^(COUNT('LCOGH2 Calc'!N$39:N55))) -> 0.1317716768 | P55: =INDEX('LCOGH Inputs'!$I$25:$I$29,MATCH('LCOGH2 Calc'!F55,'LCOGH Inputs'!$A$25:$A$29,0)) -> 55 | Q55: =IF('LCOGH Plant Assumptions'!$O$7="Yes",P54*(1+'LCOGH Plant Assumptions'!$R$7)^(1+COUNT(P$38:P54)),P54) -> 44.25758296 | R55: ='LCOGH Plant Assumptions'!$Y$7 -> 0.00161 | S55: =IF(M55="Path",INDEX('LCOGH Inputs'!$I$37:$AL$37,MATCH('LCOGH2 Calc'!E55,'LCOGH Inputs'!$I$35:$AL$35,0)),R55*(1+'LCOGH Inputs'!$G$37)^(COUNT('LCOGH2 Calc'!R$39:R55))) -> 0.001906730135 | T55: =INDEX('LCOGH Inputs'!$H$25:$H$29,MATCH('LCOGH2 Calc'!F55,'LCOGH Inputs'!$A$25:$A$29,0)) -> 18 | U55: 20 | V55: ='LCOGH Plant Assumptions'!$L$7 -> 0.9 | W55: 1317285 | X55: =IF(E55=2020,I55,I55*(1+'LCOGH Plant Assumptions'!$P$7)^(1+COUNT(W$38:W55))) -> 4761707.936 | Y55: 484990.471 | Z55: ='LCOGH Plant Assumptions'!$S$7 -> NZD | AA55: ='LCOGH Inputs'!$E$9 -> 1.341281669 | AB55: =INDEX('LCOGH Inputs'!$F$9:$F$14,MATCH('LCOGH2 Calc'!Z55,'LCOGH Inputs'!$D$9:$D$14,0)) -> 1 | AC55: =INDEX('LCOGH Inputs'!$G$9:$G$14,MATCH('LCOGH2 Calc'!Z55,'LCOGH Inputs'!$D$9:$D$14,0)) -> 0.7455555556 | AD55: ='LCOGH Plant Assumptions'!$T$7 -> USD | AE55: 0.3681742911 | AF55: 0.02558831841 | AG55: 4.348002399 | AH55: 0.3202609914 | AI55: 4.693851709 | AJ55: 5.062026 | AK55: =AJ55/'LCOGH Inputs'!$B$135 -> 0.04218355 | AL55: NZ Grid Medium Scale2037
A56: ='LCOGH Plant Assumptions'!$A$7 -> 2 | B56: ='LCOGH Plant Assumptions'!$B$7 -> 0.08 | C56: =INDEX('LCOGH Plant Assumptions'!$C$6:$C$15,MATCH('LCOGH2 Calc'!A56,'LCOGH Plant Assumptions'!$A$6:$A$15,0)) -> New Zealand 2 | D56: =IF('LCOGH Plant Assumptions'!$D$7="","",'LCOGH Plant Assumptions'!$D$7) -> NZ Grid Medium Scale | E56: 2038 | F56: ='LCOGH Plant Assumptions'!$E$7 -> Medium | G56: =INDEX('LCOGH Inputs'!$C$25:$C$29,MATCH('LCOGH2 Calc'!F56,'LCOGH Inputs'!$A$25:$A$29,0)) -> 421875 | H56: =INDEX('LCOGH Inputs'!$D$25:$D$29,MATCH('LCOGH2 Calc'!F56,'LCOGH Inputs'!$A$25:$A$29,0)) -> 4010 | I56: =INDEX('LCOGH Inputs'!$G$25:$G$29,MATCH('LCOGH2 Calc'!F56,'LCOGH Inputs'!$A$25:$A$29,0)) -> 9187500 | J56: =INDEX('LCOGH Inputs'!$K$25:$K$29,MATCH('LCOGH2 Calc'!F56,'LCOGH Inputs'!$A$25:$A$29,0)) -> 0 | K56: =INDEX('LCOGH Inputs'!$L$25:$L$29,MATCH('LCOGH2 Calc'!F56,'LCOGH Inputs'!$A$25:$A$29,0)) -> 70000 | L56: ='LCOGH Plant Assumptions'!$M$7 -> Constant | M56: ='LCOGH Plant Assumptions'!$N$7 -> Constant | N56: ='LCOGH Plant Assumptions'!$X$7 -> 0.1375 | O56: =IF(L56="Path",INDEX('LCOGH Inputs'!$I$70:$AL$70,MATCH('LCOGH2 Calc'!E56,'LCOGH Inputs'!$I$68:$AL$68,0)),N56*(1+'LCOGH Inputs'!$C$70)^(COUNT('LCOGH2 Calc'!N$39:N56))) -> 0.1314422476 | P56: =INDEX('LCOGH Inputs'!$I$25:$I$29,MATCH('LCOGH2 Calc'!F56,'LCOGH Inputs'!$A$25:$A$29,0)) -> 55 | Q56: =IF('LCOGH Plant Assumptions'!$O$7="Yes",P55*(1+'LCOGH Plant Assumptions'!$R$7)^(1+COUNT(P$38:P55)),P55) -> 43.72649196 | R56: ='LCOGH Plant Assumptions'!$Y$7 -> 0.00161 | S56: =IF(M56="Path",INDEX('LCOGH Inputs'!$I$37:$AL$37,MATCH('LCOGH2 Calc'!E56,'LCOGH Inputs'!$I$35:$AL$35,0)),R56*(1+'LCOGH Inputs'!$G$37)^(COUNT('LCOGH2 Calc'!R$39:R56))) -> 0.001925797436 | T56: =INDEX('LCOGH Inputs'!$H$25:$H$29,MATCH('LCOGH2 Calc'!F56,'LCOGH Inputs'!$A$25:$A$29,0)) -> 18 | U56: 20 | V56: ='LCOGH Plant Assumptions'!$L$7 -> 0.9 | W56: 1317285 | X56: =IF(E56=2020,I56,I56*(1+'LCOGH Plant Assumptions'!$P$7)^(1+COUNT(W$38:W56))) -> 4599809.866 | Y56: 468500.795 | Z56: ='LCOGH Plant Assumptions'!$S$7 -> NZD | AA56: ='LCOGH Inputs'!$E$9 -> 1.341281669 | AB56: =INDEX('LCOGH Inputs'!$F$9:$F$14,MATCH('LCOGH2 Calc'!Z56,'LCOGH Inputs'!$D$9:$D$14,0)) -> 1 | AC56: =INDEX('LCOGH Inputs'!$G$9:$G$14,MATCH('LCOGH2 Calc'!Z56,'LCOGH Inputs'!$D$9:$D$14,0)) -> 0.7455555556 | AD56: ='LCOGH Plant Assumptions'!$T$7 -> USD | AE56: 0.3556563652 | AF56: 0.02584420159 | AG56: 4.285086805 | AH56: 0.3202609914 | AI56: 4.631191998 | AJ56: 4.986848363 | AK56: =AJ56/'LCOGH Inputs'!$B$135 -> 0.04155706969 | AL56: NZ Grid Medium Scale2038
A57: ='LCOGH Plant Assumptions'!$A$7 -> 2 | B57: ='LCOGH Plant Assumptions'!$B$7 -> 0.08 | C57: =INDEX('LCOGH Plant Assumptions'!$C$6:$C$15,MATCH('LCOGH2 Calc'!A57,'LCOGH Plant Assumptions'!$A$6:$A$15,0)) -> New Zealand 2 | D57: =IF('LCOGH Plant Assumptions'!$D$7="","",'LCOGH Plant Assumptions'!$D$7) -> NZ Grid Medium Scale | E57: 2039 | F57: ='LCOGH Plant Assumptions'!$E$7 -> Medium | G57: =INDEX('LCOGH Inputs'!$C$25:$C$29,MATCH('LCOGH2 Calc'!F57,'LCOGH Inputs'!$A$25:$A$29,0)) -> 421875 | H57: =INDEX('LCOGH Inputs'!$D$25:$D$29,MATCH('LCOGH2 Calc'!F57,'LCOGH Inputs'!$A$25:$A$29,0)) -> 4010 | I57: =INDEX('LCOGH Inputs'!$G$25:$G$29,MATCH('LCOGH2 Calc'!F57,'LCOGH Inputs'!$A$25:$A$29,0)) -> 9187500 | J57: =INDEX('LCOGH Inputs'!$K$25:$K$29,MATCH('LCOGH2 Calc'!F57,'LCOGH Inputs'!$A$25:$A$29,0)) -> 0 | K57: =INDEX('LCOGH Inputs'!$L$25:$L$29,MATCH('LCOGH2 Calc'!F57,'LCOGH Inputs'!$A$25:$A$29,0)) -> 70000 | L57: ='LCOGH Plant Assumptions'!$M$7 -> Constant | M57: ='LCOGH Plant Assumptions'!$N$7 -> Constant | N57: ='LCOGH Plant Assumptions'!$X$7 -> 0.1375 | O57: =IF(L57="Path",INDEX('LCOGH Inputs'!$I$70:$AL$70,MATCH('LCOGH2 Calc'!E57,'LCOGH Inputs'!$I$68:$AL$68,0)),N57*(1+'LCOGH Inputs'!$C$70)^(COUNT('LCOGH2 Calc'!N$39:N57))) -> 0.131113642 | P57: =INDEX('LCOGH Inputs'!$I$25:$I$29,MATCH('LCOGH2 Calc'!F57,'LCOGH Inputs'!$A$25:$A$29,0)) -> 55 | Q57: =IF('LCOGH Plant Assumptions'!$O$7="Yes",P56*(1+'LCOGH Plant Assumptions'!$R$7)^(1+COUNT(P$38:P56)),P56) -> 43.20177406 | R57: ='LCOGH Plant Assumptions'!$Y$7 -> 0.00161 | S57: =IF(M57="Path",INDEX('LCOGH Inputs'!$I$37:$AL$37,MATCH('LCOGH2 Calc'!E57,'LCOGH Inputs'!$I$35:$AL$35,0)),R57*(1+'LCOGH Inputs'!$G$37)^(COUNT('LCOGH2 Calc'!R$39:R57))) -> 0.00194505541 | T57: =INDEX('LCOGH Inputs'!$H$25:$H$29,MATCH('LCOGH2 Calc'!F57,'LCOGH Inputs'!$A$25:$A$29,0)) -> 18 | U57: 20 | V57: ='LCOGH Plant Assumptions'!$L$7 -> 0.9 | W57: 1317285 | X57: =IF(E57=2020,I57,I57*(1+'LCOGH Plant Assumptions'!$P$7)^(1+COUNT(W$38:W57))) -> 4443416.33 | Y57: 452571.768 | Z57: ='LCOGH Plant Assumptions'!$S$7 -> NZD | AA57: ='LCOGH Inputs'!$E$9 -> 1.341281669 | AB57: =INDEX('LCOGH Inputs'!$F$9:$F$14,MATCH('LCOGH2 Calc'!Z57,'LCOGH Inputs'!$D$9:$D$14,0)) -> 1 | AC57: =INDEX('LCOGH Inputs'!$G$9:$G$14,MATCH('LCOGH2 Calc'!Z57,'LCOGH Inputs'!$D$9:$D$14,0)) -> 0.7455555556 | AD57: ='LCOGH Plant Assumptions'!$T$7 -> USD | AE57: 0.3435640488 | AF57: 0.02610264361 | AG57: 4.223081599 | AH57: 0.3202609914 | AI57: 4.569445233 | AJ57: 4.913009282 | AK57: =AJ57/'LCOGH Inputs'!$B$135 -> 0.04094174402 | AL57: NZ Grid Medium Scale2039
A58: ='LCOGH Plant Assumptions'!$A$7 -> 2 | B58: ='LCOGH Plant Assumptions'!$B$7 -> 0.08 | C58: =INDEX('LCOGH Plant Assumptions'!$C$6:$C$15,MATCH('LCOGH2 Calc'!A58,'LCOGH Plant Assumptions'!$A$6:$A$15,0)) -> New Zealand 2 | D58: =IF('LCOGH Plant Assumptions'!$D$7="","",'LCOGH Plant Assumptions'!$D$7) -> NZ Grid Medium Scale | E58: 2040 | F58: ='LCOGH Plant Assumptions'!$E$7 -> Medium | G58: =INDEX('LCOGH Inputs'!$C$25:$C$29,MATCH('LCOGH2 Calc'!F58,'LCOGH Inputs'!$A$25:$A$29,0)) -> 421875 | H58: =INDEX('LCOGH Inputs'!$D$25:$D$29,MATCH('LCOGH2 Calc'!F58,'LCOGH Inputs'!$A$25:$A$29,0)) -> 4010 | I58: =INDEX('LCOGH Inputs'!$G$25:$G$29,MATCH('LCOGH2 Calc'!F58,'LCOGH Inputs'!$A$25:$A$29,0)) -> 9187500 | J58: =INDEX('LCOGH Inputs'!$K$25:$K$29,MATCH('LCOGH2 Calc'!F58,'LCOGH Inputs'!$A$25:$A$29,0)) -> 0 | K58: =INDEX('LCOGH Inputs'!$L$25:$L$29,MATCH('LCOGH2 Calc'!F58,'LCOGH Inputs'!$A$25:$A$29,0)) -> 70000 | L58: ='LCOGH Plant Assumptions'!$M$7 -> Constant | M58: ='LCOGH Plant Assumptions'!$N$7 -> Constant | N58: ='LCOGH Plant Assumptions'!$X$7 -> 0.1375 | O58: =IF(L58="Path",INDEX('LCOGH Inputs'!$I$70:$AL$70,MATCH('LCOGH2 Calc'!E58,'LCOGH Inputs'!$I$68:$AL$68,0)),N58*(1+'LCOGH Inputs'!$C$70)^(COUNT('LCOGH2 Calc'!N$39:N58))) -> 0.1307858578 | P58: =INDEX('LCOGH Inputs'!$I$25:$I$29,MATCH('LCOGH2 Calc'!F58,'LCOGH Inputs'!$A$25:$A$29,0)) -> 55 | Q58: =IF('LCOGH Plant Assumptions'!$O$7="Yes",P57*(1+'LCOGH Plant Assumptions'!$R$7)^(1+COUNT(P$38:P57)),P57) -> 42.68335277 | R58: ='LCOGH Plant Assumptions'!$Y$7 -> 0.00161 | S58: =IF(M58="Path",INDEX('LCOGH Inputs'!$I$37:$AL$37,MATCH('LCOGH2 Calc'!E58,'LCOGH Inputs'!$I$35:$AL$35,0)),R58*(1+'LCOGH Inputs'!$G$37)^(COUNT('LCOGH2 Calc'!R$39:R58))) -> 0.001964505964 | T58: =INDEX('LCOGH Inputs'!$H$25:$H$29,MATCH('LCOGH2 Calc'!F58,'LCOGH Inputs'!$A$25:$A$29,0)) -> 18 | U58: 20 | V58: ='LCOGH Plant Assumptions'!$L$7 -> 0.9 | W58: 1317285 | X58: =IF(E58=2020,I58,I58*(1+'LCOGH Plant Assumptions'!$P$7)^(1+COUNT(W$38:W58))) -> 4292340.175 | Y58: 437184.3279 | Z58: ='LCOGH Plant Assumptions'!$S$7 -> NZD | AA58: ='LCOGH Inputs'!$E$9 -> 1.341281669 | AB58: =INDEX('LCOGH Inputs'!$F$9:$F$14,MATCH('LCOGH2 Calc'!Z58,'LCOGH Inputs'!$D$9:$D$14,0)) -> 1 | AC58: =INDEX('LCOGH Inputs'!$G$9:$G$14,MATCH('LCOGH2 Calc'!Z58,'LCOGH Inputs'!$D$9:$D$14,0)) -> 0.7455555556 | AD58: ='LCOGH Plant Assumptions'!$T$7 -> USD | AE58: 0.3318828711 | AF58: 0.02636367004 | AG58: 4.161973608 | AH58: 0.3202609914 | AI58: 4.508598269 | AJ58: 4.84048114 | AK58: =AJ58/'LCOGH Inputs'!$B$135 -> 0.04033734284 | AL58: NZ Grid Medium Scale2040
A59: ='LCOGH Plant Assumptions'!$A$7 -> 2 | B59: ='LCOGH Plant Assumptions'!$B$7 -> 0.08 | C59: =INDEX('LCOGH Plant Assumptions'!$C$6:$C$15,MATCH('LCOGH2 Calc'!A59,'LCOGH Plant Assumptions'!$A$6:$A$15,0)) -> New Zealand 2 | D59: =IF('LCOGH Plant Assumptions'!$D$7="","",'LCOGH Plant Assumptions'!$D$7) -> NZ Grid Medium Scale | E59: 2041 | F59: ='LCOGH Plant Assumptions'!$E$7 -> Medium | G59: =INDEX('LCOGH Inputs'!$C$25:$C$29,MATCH('LCOGH2 Calc'!F59,'LCOGH Inputs'!$A$25:$A$29,0)) -> 421875 | H59: =INDEX('LCOGH Inputs'!$D$25:$D$29,MATCH('LCOGH2 Calc'!F59,'LCOGH Inputs'!$A$25:$A$29,0)) -> 4010 | I59: =INDEX('LCOGH Inputs'!$G$25:$G$29,MATCH('LCOGH2 Calc'!F59,'LCOGH Inputs'!$A$25:$A$29,0)) -> 9187500 | J59: =INDEX('LCOGH Inputs'!$K$25:$K$29,MATCH('LCOGH2 Calc'!F59,'LCOGH Inputs'!$A$25:$A$29,0)) -> 0 | K59: =INDEX('LCOGH Inputs'!$L$25:$L$29,MATCH('LCOGH2 Calc'!F59,'LCOGH Inputs'!$A$25:$A$29,0)) -> 70000 | L59: ='LCOGH Plant Assumptions'!$M$7 -> Constant | M59: ='LCOGH Plant Assumptions'!$N$7 -> Constant | N59: ='LCOGH Plant Assumptions'!$X$7 -> 0.1375 | O59: =IF(L59="Path",INDEX('LCOGH Inputs'!$I$70:$AL$70,MATCH('LCOGH2 Calc'!E59,'LCOGH Inputs'!$I$68:$AL$68,0)),N59*(1+'LCOGH Inputs'!$C$70)^(COUNT('LCOGH2 Calc'!N$39:N59))) -> 0.1304588932 | P59: =INDEX('LCOGH Inputs'!$I$25:$I$29,MATCH('LCOGH2 Calc'!F59,'LCOGH Inputs'!$A$25:$A$29,0)) -> 55 | Q59: =IF('LCOGH Plant Assumptions'!$O$7="Yes",P58*(1+'LCOGH Plant Assumptions'!$R$7)^(1+COUNT(P$38:P58)),P58) -> 42.17115254 | R59: ='LCOGH Plant Assumptions'!$Y$7 -> 0.00161 | S59: =IF(M59="Path",INDEX('LCOGH Inputs'!$I$37:$AL$37,MATCH('LCOGH2 Calc'!E59,'LCOGH Inputs'!$I$35:$AL$35,0)),R59*(1+'LCOGH Inputs'!$G$37)^(COUNT('LCOGH2 Calc'!R$39:R59))) -> 0.001984151024 | T59: =INDEX('LCOGH Inputs'!$H$25:$H$29,MATCH('LCOGH2 Calc'!F59,'LCOGH Inputs'!$A$25:$A$29,0)) -> 18 | U59: 20 | V59: ='LCOGH Plant Assumptions'!$L$7 -> 0.9 | W59: 1317285 | X59: =IF(E59=2020,I59,I59*(1+'LCOGH Plant Assumptions'!$P$7)^(1+COUNT(W$38:W59))) -> 4146400.609 | Y59: 422320.0607 | Z59: ='LCOGH Plant Assumptions'!$S$7 -> NZD | AA59: ='LCOGH Inputs'!$E$9 -> 1.341281669 | AB59: =INDEX('LCOGH Inputs'!$F$9:$F$14,MATCH('LCOGH2 Calc'!Z59,'LCOGH Inputs'!$D$9:$D$14,0)) -> 1 | AC59: =INDEX('LCOGH Inputs'!$G$9:$G$14,MATCH('LCOGH2 Calc'!Z59,'LCOGH Inputs'!$D$9:$D$14,0)) -> 0.7455555556 | AD59: ='LCOGH Plant Assumptions'!$T$7 -> USD | AE59: 0.3205988535 | AF59: 0.02662730674 | AG59: 4.10174985 | AH59: 0.3202609914 | AI59: 4.448638148 | AJ59: 4.769237001 | AK59: =AJ59/'LCOGH Inputs'!$B$135 -> 0.03974364168 | AL59: NZ Grid Medium Scale2041
